Workbook

Sheet Menu
B2: Menu Principal | F2: ="Bienvenue "&H_Input_Nom -> Bienvenue Michel | I2: SAVE ≡ | J2: CALC | L2: 1..max | M2: i | U2: X
B4: Définir les Options concernant le Roadbook | D4: ► | F4: =IF(MR_Date_Création=0,"","Distance Course = "&TEXT(MR_Total_Distance,"#.##0")&" mètres") -> Distance Course = 160.935 mètres | G4: =IF(MR_Date_Création=0,"",MR_Nbr_Etapes&" Etape"&IF(MR_Nbr_Etapes>1,"s","")) -> 1 Etape | I4: =IF(MR_Date_Création=0,"Roadbook non défini","Roadbook défini le "&TEXT(MR_Date_Création,"JJ-MM-AAAA")&" à "&TEXT(MR_Date_Création,"hh:mm")) -> Roadbook défini le 12-05-2014 à 10:24 | O4: Mode Roadbook | R4: =CONCATENATE(M_Input_Préfixe,IF(M_Input_Mode_Reinit_Done,IF(M_Input_Mode_Trace_Only,"Analyse Trace - Reinit","Analyse Trace & Estimateur - Reinit"),IF(M_Input_Mode_Trace_Only,"Analyse Trace",IF(M_Input_Mode_Roadbook,"Estimateur","ATE")))," (V ",P_Version_Num," ",TEXT(P_Version_Rel,"0"), ")",".xlsm") -> 2014-06-07 - GRC - 160 km - Estimateur (V 2.3 6).xlsm
O5: TRUE
B6: Définir les Options concernant le Coureur | D6: ► | F6: =ME_Input_Titre -> Exemple 24 heures | G6: =ME_Input_Méthode_Texte -> Objectif de Temps | I6: Tracé défini le 09-05-2014 à 12:16 | O6: Tracé Défini
O7: TRUE
B8: Finaliser le Tableau des Passages | D8: ► | F8: ="Temps de Course Estimé (Pauses)" -> Temps de Course Estimé (Pauses) | G8: =IF(M_Input_Mode_Coureur_Defini,CONCATENATE(TEXT(ME_Total_Course_HP,"[HH]:MM")," (",TEXT(ME_Total_Pauses,"[HH]:MM"),")"),"") -> 23:30 (00:30) | I8: ="Tableur V "&P_Version_Num&" ("&P_Version_Rel&") du "&TEXT(P_Version_Date,"JJ-MM-AAAA")&", par Mercator" -> Tableur V 2.3 (6) du 08-05-2014, par Mercator | O8: Coureur Défini
O9: TRUE
B10: Finaliser le Tableau Graphique | D10: ► | F10: =CONCATENATE("Départ le ",TEXT(MR_Input_Jour,"JJ-MM-AAAA")," à ",TEXT(MR_Input_Heure,"HH:MM")) -> Départ le 07-06-2014 à 16:00 | G10: =CONCATENATE("☼ ",TEXT(MR_Soleil_Heure_Lever,"HH:MM")," - ",TEXT(MR_Soleil_Heure_Coucher,"HH:MM")) -> ☼ 05:27 - 21:42 | I10: D:\Mes Documents GPS\Données GPS\Plans\Courses\La Grande Randonnée Céleste\Version 2\Traces et Waypoints | O10: Mode Trace Only
O11: FALSE
B12: Introduire les Temps de Course Effectifs | D12: ► | F12: ="Temps de Course Réel (Pauses)" -> Temps de Course Réel (Pauses) | G12: =IF(M_Input_Mode_Coureur_Defini,CONCATENATE(TEXT(ML_Total_Course,"[HH]:MM")," (",TEXT(ML_Total_Pauses,"[HH]:MM"),")"),"") -> 00:00 (00:00) | O12: Reinit Done
O13: FALSE
B14: Analyse de la Vitesse de Course | D14: ► | F14: ="Vitesse de Course "&IF(VC_Input_Supprimer_Pauses,"(Hors Pauses)","") -> Vitesse de Course (Hors Pauses) | G14: =IF(ISERROR(VC_Vitesse_Total),"",VC_Vitesse_Total) ->  | I14: =IF(M_Error_Any,M_Error_Texte,CONCATENATE(TEXT(TODAY(),"JJJJ JJ MMM AAAA")," à ",TEXT(NOW(),"HH:MM")," - ","OK")) -> mardi 13 mai 2014 à 15:52 - OK | O14: Quick Start
O15: TRUE
B18: Définir le Nom du Tracé / de la Course ► | F18: La Grande Randonnée Céleste | O18: Données Graphe | R18: Erreurs
O19: Long - Min | P19: =ROUNDUP(TC_Delta_Long_Min,0) -> -31 | S19: =IF(M_Input_Mode_Roadbook,FALSE,(TA_Nbr_Points>TA_Maximum_Points)) -> FALSE | T19: ="? Maximum "&TA_Maximum_Points&" Points de Trace ?" -> 
B20: Définir le Préfixe des Fichiers Générés ► | F20: 2014-06-07 - GRC - 160 km - | O20: Long - Max | P20: =ROUNDUP(TC_Delta_Long_Max,0) -> 6 | S20: =IF(OR(M_Input_Mode_Roadbook,M_Input_Mode_Trace_Only),FALSE,(WA_Nbr_WP>WA_Maximum_WP)) -> FALSE | T20: ="? Maximum "&WA_Maximum_WP&" WayPoints ?" -> 
O21: Lat - Min | P21: =ROUNDUP(TC_Delta_Lat_Min,0) -> -1 | S21: FALSE | X21: Menu - Image Fond - Ligurie-Toscane - GM.png | AF21: Menu - Image Fond - Chamonix-Zermatt - GM.png | AN21: Menu - Image Fond - BE Sud Est - GM.png | AV21: Menu - Image Fond - BE Liège Spa - GM.png | BD21: Menu - Image Fond - Europe - GM.png | BL21: Menu - Image Fond - ST 29FL - GM.png | BT21: Menu - Image Fond - Croatie - GM.png
B22: Charger une Trace Oziexplorer ou GPX | D22: ► | F22: 2014-06-07 - GRC - 160 km - Trace Finale.plt | G22: 2360 points | O22: Lat - Max | P22: =ROUNDUP(TC_Delta_Lat_Max,0) -> 81 | S22: FALSE
O23: Amplitude | P23: =MAX(P$20-P$19,P$22-P$21) -> 82 | R23: Total | S23: =OR(S19:S22) -> FALSE | T23: =IF(M_Error_Any,VLOOKUP(TRUE,S19:T22,2,FALSE),"Pas d'erreur détectée") -> Pas d'erreur détectée
B24: Ajouter une Trace Oziexplorer ou GPX | D24: ► | G24: 2360 points | O24: Any Erreur | P24: =ISERROR(SUM(P19:P23)) -> FALSE
O25: Axe X - Min | P25: =IF(M_BE_Mode,$S25,IF(P$24,-10,P$19-INT((P$23-(P$20-P$19))/2))) ->  | R25: BE X Min | S25: 19679 | T25: D'après le fichier .tfw de la Carte ADM3 - Site IGN.be - 1900 x 1600 Pixels
B26: Charger les Points au format Oziexplorer | D26: ► | F26: 2014-06-07 - GRC - 160 km - Points et Ravitos.wpt | G26: 60 points (59ᴥ) | O26: Axe X - Max | P26: =IF(M_BE_Mode,$S26,IF(P$24,10,P25+P$23)) ->  | R26: BE X Max | S26: =S25+INT(1900*146.585901) -> 298192
O27: Axe Y - Min | P27: =IF(M_BE_Mode,$S27,IF(P$24,-10,P$21-INT((P$23-(P$22-P$21))/2))) ->  | R27: BE Y Min | S27: =S28-INT(1600*146.585901) -> 15250
B28: Définir les Options concernant le Tracé | D28: ► | F28: Distance Totale = 160.935 mètres | G28: 2360 points | O28: Axe Y - Max | P28: =IF(M_BE_Mode,$S28,IF(P$24,10,P27+P$23)) ->  | R28: BE Y Max | S28: 249787
B30: Définir les Options concernant le Profil | D30: ► | F30: Distance Equivalente = 188.176 mètres | G30: 5.265 m ▲ 5.175 m ▼ | O30: BE Mode | P30: =IF(M_Input_Mode_Trace_Only,FALSE,AND(FALSE,M_Input_Mode_Trace_Definie,MPL_Zone_UTM = 31,PA_Grid_Table_Name="P_Table_UTM31_L72")) -> 
O31: Depracated - Always False
B32: Filtrer et Découper la Trace | D32: ► | F32: Distance Totale Filtrée = 159.067 mètres | G32: 5 section(s) | U32: Zoom
B36: Créer un Fichier Oziexplorer de Bornage | D36: ► | F36: Nombre de Bornes | G36: 160
B38: Définir les Cartes utilisées pour les Plans | D38: ► | F38: Nombre de Cartes Chargées | G38: 1
B40: Définir et Découper les Plans | D40: ► | F40: Nombre de Plans Définis | G40: 39 plans
B42: Créer les Inserts de Profils sur Plans | D42: ► | F42: Nombre d'Insert de Profil | G42: 39 inserts
B44: Ajouter les Inserts sur les Plans | D44: ► | F44: Types des Inserts | G44: Profil ▪ Logo ▪ None
B48: Autres Opérations | D48: ► | X48: Long Max | Y48: 12.36 | Z48: 8.3 | AA48: 7.17 | AB48: 5.94 | AC48: 22.22 | AD48: 4.5126 | AE48: 17.5 | AF48: 0 | AG48: 0 | AH48: 0
X49: Lat Min | Y49: 43 | Z49: 45.55 | AA49: 49.34 | AB49: 50.46 | AC49: 38.59 | AD49: 50.8459 | AE49: 43.6116 | AF49: 0 | AG49: 0 | AH49: 0
B50: Editer et Imprimer le Roadbook Course | D50: ► | I50: PDFCreator on Ne00: | U50: ?
Y54: 1 | Z54: =Y54+1 -> 2 | AA54: =Z54+1 -> 3 | AB54: =AA54+1 -> 4 | AC54: 5 | AD54: 6 | AE54: 7 | AF54: 8 | AG54: 9 | AH54: 10
X55: Long Min | Y55: 8.69 | Z55: 6.5 | AA55: 3.73 | AB55: 5.5 | AC55: -5.86 | AD55: 4.4 | AE55: 14 | AF55: 0 | AG55: 0 | AH55: 0
X56: Long Max | Y56: 12.36 | Z56: 8.3 | AA56: 7.17 | AB56: 5.94 | AC56: 22.22 | AD56: 4.5126 | AE56: 17.5 | AF56: 0 | AG56: 0 | AH56: 0
X57: Lat Min | Y57: 43 | Z57: 45.55 | AA57: 49.34 | AB57: 50.46 | AC57: 38.59 | AD57: 50.8459 | AE57: 43.6116 | AF57: 0 | AG57: 0 | AH57: 0
X58: Lat Max | Y58: 45 | Z58: 46.5 | AA58: 51 | AB58: 50.66 | AC58: 53.55 | AD58: 50.9 | AE58: 45.5 | AF58: 0 | AG58: 0 | AH58: 0
X59: X Pos | Y59: 24 | Z59: 32 | AA59: 40 | AB59: 48 | AC59: 56 | AD59: 64 | AE59: 72 | AF59: 0 | AG59: 0 | AH59: 0
X60: Y Pos | Y60: 4 | Z60: 4 | AA60: 4 | AB60: 4 | AC60: 4 | AD60: 4 | AE60: 4 | AF60: 0 | AG60: 0 | AH60: 0
X61: Fit | Y61: =AND(TC_Longitude_Min>Y55,TC_Longitude_Max<Y56,TC_Latitude_Min>Y57,TC_Latitude_Max<Y58) -> FALSE | Z61: FALSE | AA61: TRUE | AB61: FALSE | AC61: TRUE | AD61: FALSE | AE61: FALSE | AF61: FALSE | AG61: FALSE | AH61: FALSE
X62: Fit % | Y62: =IF(Y61,((TC_Longitude_Max-TC_Longitude_Min)/(Y56-Y55))*((TC_Latitude_Max-TC_Latitude_Min)/(Y58-Y57)),0) -> 0 | Z62: 0 | AA62: 0.06421914559 | AB62: 0 | AC62: 0.0008729761058 | AD62: 0 | AE62: 0 | AF62: 0 | AG62: 0 | AH62: 0
X64: Best % | Y64: =MAX(M_Map_Table_Fit) -> 0.06421914559
X65: Best Fit | Y65: =IF(Y64>0,MATCH(Y64,M_Map_Table_Fit,0),0) -> 3
X66: Map Set | Y66: 3
X67: X Pos | Y67: =HLOOKUP(M_Map_Set,M_Map_Table,6,FALSE) -> 40
X68: Y Pos | Y68: =HLOOKUP(M_Map_Set,M_Map_Table,7,FALSE) -> 4

Sheet Menu Roadbook
B2: Roadbook Course | I2: ►► | N2: CALC | Q2: OK | S2: i | U2: Barrières et Ravitos | AI2: DATE | AN2: ◄◄
B4: Nombre Maximum de Points | E4: 250 | I4: # | J4: Départ Etape | Q4: Distance | R4: Dénivelé + | S4: Dénivelé - | U4: ∆ Les données du Roadbook sont déjà définies. Normalement vous ne devez pas les changer … | AS4: Point De | AT4: Point A | AV4: Points Existants au Départ et à l'Arrivée
I5: 0
B6: Nombre de Points | E6: =RC_Nbr_Points -> 58 | I6: =I5+1 -> 1 | J6: =OFFSET($C$51,1+MAX(1,$AS6-1),0) -> GRC Diekirch - Départ | Q6: =OFFSET($BB$51,1+$AT6,0)-OFFSET($BB$51,1+$AS6-1,0) -> 160935.002 | R6: =OFFSET($BC$51,1+$AT6,0)-OFFSET($BC$51,1+$AS6-1,0) -> 5264.903812 | S6: =OFFSET($BD$51,1+$AT6,0)-OFFSET($BD$51,1+$AS6-1,0) -> -5174.680228 | AS6: =MATCH($I6,OFFSET($O$51,2,0,MR_Nbr_Points),0) -> 1 | AT6: =IF($I6=MR_Nbr_Etapes,MR_Nbr_Points,AS7-1) -> 58 | AV6: =IF(TC_Nbr_Points=0,"",VLOOKUP(1,TC_Table,COLUMN('Trace Construction'!$EB$12)-COLUMN('Trace Construction'!$B$12)+1,TRUE)) -> 7
B7: Nombre de Points Supprimés | E7: =IF(ISERROR(COUNTIF(OFFSET(MR_Header_X,2,0,MR_Nbr_Points),FALSE)),0,COUNTIF(OFFSET(MR_Header_X,2,0,MR_Nbr_Points),FALSE)) -> 0 | I7: =I6+1 -> 2 | Q7: =OFFSET($BB$51,1+$AT7,0)-OFFSET($BB$51,1+$AS7-1,0) ->  | R7: =OFFSET($BC$51,1+$AT7,0)-OFFSET($BC$51,1+$AS7-1,0) ->  | S7: =OFFSET($BD$51,1+$AT7,0)-OFFSET($BD$51,1+$AS7-1,0) ->  | AV7: =IF(TC_Nbr_Points=0,"",VLOOKUP(TC_Nbr_Points,TC_Table,COLUMN('Trace Construction'!$EB$12)-COLUMN('Trace Construction'!$B$12)+1,TRUE)) -> 55
B8: Nombre de Points Cachés | E8: =IF(ISERROR(COUNTIF(OFFSET(MR_Header_Visible,2,0,MR_Nbr_Points),FALSE)),0,COUNTIF(OFFSET(MR_Header_Visible,2,0,MR_Nbr_Points),FALSE)) -> 3 | I8: 3
B9: Nombre de Points Roadbook | E9: =IF(ISERROR(MAX(OFFSET($K$51,2,0,MR_Nbr_Points))),0,MAX(OFFSET($K$51,2,0,MR_Nbr_Points))) -> 55 | I9: 4 | AV9: Lune | BZ9: Nbr_Points= | CA9: =IF(VLOOKUP(BZ9,RBB_Table_Tags,2,FALSE)=0,"",VLOOKUP(BZ9,RBB_Table_Tags,2,FALSE)) -> 
B10: Date de Création | E10: 2014-05-12T10:24:39 | I10: 5 | AV10: Nouvelle Lune + 0 (Local Time) | AX10: =datetime_NouvelleLune(YEAR(MR_Input_Jour),MONTH(MR_Input_Jour))+MR_Input_Delta_TU -> 2014-05-28T20:43:05.023 | AY10: =datetime_NouvelleLune(YEAR(RI_Date),MONTH(RI_Date)) -> 1900-02-01T01:19:56.168 | AZ10: 1900-02-01T01:19:56.168 | BZ10: Line Point 1 | CA10: =MATCH(BZ9,OFFSET(RBB_Table_Tags,0,0,,1),0)+2 -> 
I11: 6 | AV11: Nouvelle Lune + 1 (Local Time) | AX11: =datetime_NouvelleLune(YEAR(MR_Input_Jour),MONTH(MR_Input_Jour)+1)+MR_Input_Delta_TU -> 2014-06-27T10:12:07.066 | AY11: 1900-02-01T01:19:56.168 | AZ11: 1900-02-01T01:19:56.168
B12: Lieu de Départ de la Course | I12: 7 | AV12: Nouvelle Lune + 2 (Local Time) | AX12: =datetime_NouvelleLune(YEAR(MR_Input_Jour),MONTH(MR_Input_Jour)+2)+MR_Input_Delta_TU -> 2014-07-27T00:43:02.750 | AY12: 1900-02-01T01:19:56.168 | AZ12: 1900-02-01T01:19:56.168 | BZ12: Départ= | CA12: =IF(VLOOKUP(BZ12,RBB_Table_Tags,2,FALSE)=0,"",VLOOKUP(BZ12,RBB_Table_Tags,2,FALSE)) -> 
B13: Lieu d'Arrivée de la Course | I13: 8 | AV13: Nuit Course | AX13: =MR_Input_Jour+IF(MR_Input_Heure<$E$18,1/60/24,1-1/60/24) -> 2014-06-07T23:59:00 | AY13: 1900-02-01T01:19:56.168 | AZ13: 1900-02-01T01:19:56.168 | BZ13: Arrivée= | CA13: =IF(VLOOKUP(BZ13,RBB_Table_Tags,2,FALSE)=0,"",VLOOKUP(BZ13,RBB_Table_Tags,2,FALSE)) -> 
B14: Jour du Départ | E14: 2014-06-07 | I14: 9 | AV14: Nouvelle Lune Avant | AX14: =IF(AX13>AX11,AX11,AX10) -> 2014-05-28T20:43:05.023 | AY14: 1900-02-01T01:19:56.168 | AZ14: 1900-02-01T01:19:56.168 | BZ14: Jour= | CA14: =IF(VLOOKUP(BZ14,RBB_Table_Tags,2,FALSE)=0,"",VLOOKUP(BZ14,RBB_Table_Tags,2,FALSE)) -> 
B15: Heure du Départ | E15: 16:00:00 | I15: 10 | AV15: Nouvelle Lune Après | AX15: =IF(AX13>AX11,AX12,AX11) -> 2014-06-27T10:12:07.066 | AY15: 1900-02-01T01:19:56.168 | AZ15: 1900-02-01T01:19:56.168 | BZ15: Heure= | CA15: =IF(VLOOKUP(BZ15,RBB_Table_Tags,2,FALSE)=0,"",VLOOKUP(BZ15,RBB_Table_Tags,2,FALSE)) -> 
B16: Avance ou Retard sur le TU | E16: 02:00:00 | I16: 11 | U16: Sauver les Infos Roadbook | AV16: % Cycle Lunaire | AX16: =(AX13-AX14)/(AX15-AX14) -> 0.3428763797 | AY16: 32.05551121 | AZ16: 32.05551121 | BZ16: DeltaTU= | CA16: =IF(VLOOKUP(BZ16,RBB_Table_Tags,2,FALSE)=0,"",VLOOKUP(BZ16,RBB_Table_Tags,2,FALSE)) -> 
B17: Début du Crépuscule Civil | E17: =time_Leversoleil(MR_Input_Jour,TC_Latitude_Moyenne,TC_Longitude_Moyenne,MR_Input_Delta_TU*24,P_Angle_Crépuscule) -> 04:42:56.429 | I17: 12 | AV17: Phase | AX17: =ROUND(AX16*4,0) -> 1 | AY17: 32.05551121 | AZ17: 32.05551121
B18: Lever du Soleil | E18: =time_Leversoleil(MR_Input_Jour,TC_Latitude_Moyenne,TC_Longitude_Moyenne,MR_Input_Delta_TU*24,P_Angle_LeverCoucher) -> 05:27:02.773 | I18: 13 | AV18: Nom Phase | AX18: =CHOOSE(AX17+1,"Nouvelle Lune","Premier Quartier","Pleine Lune","Dernier Quartier","Nouvelle Lune") -> Premier Quartier | AY18: 32.05551121 | AZ18: 32.05551121
B19: Coucher du Soleil | E19: =time_Couchersoleil(MR_Input_Jour,TC_Latitude_Moyenne,TC_Longitude_Moyenne,MR_Input_Delta_TU*24,P_Angle_LeverCoucher) -> 21:42:29.801 | I19: 14 | U19: Restaurer les Infos Roadbook | AV19: Nom Phase Court | AX19: =CHOOSE(AX17+1,"NL","PQ","PL","DQ","NL") -> PQ | AY19: 32.05551121 | AZ19: 32.05551121
B20: Fin du Crépuscule Civil | E20: =time_Couchersoleil(MR_Input_Jour,TC_Latitude_Moyenne,TC_Longitude_Moyenne,MR_Input_Delta_TU*24,P_Angle_Crépuscule) -> 22:26:36.145 | I20: 15 | AV20: Date Approx Phase | AX20: =AX14+AX17*25%*(AX15-AX14) -> 2014-06-05T06:05:20.534 | AY20: 1900-02-01T01:19:56.168 | AZ20: 1900-02-01T01:19:56.168
B21: Durée de la Nuit | E21: =MOD(E18+1-E19,1) -> 07:44:32.972 | I21: 16
I22: 17
B23: Nombre Maximum Etapes | E23: 40 | I23: 18
I24: 19
I25: 20
I26: 21
I27: 22
I28: 23
I29: 24
I30: 25
I31: 26
I32: 27
I33: 28
I34: 29
I35: 30
I36: 31
I37: 32
I38: 33
I39: 34
I40: 35
B41: ▼ Ajouter des Points si nécessaire ▼ | I41: 36
B42: Au Départ ► | I42: 37 | BZ42: RB_Départ= | CA42: =IF(VLOOKUP(BZ42,RBB_Table_Tags,2,FALSE)=0,"",VLOOKUP(BZ42,RBB_Table_Tags,2,FALSE)) -> 
B43: A l'Arrivée ► | I43: 38 | BZ43: RB_Arrivée=
B44: Débuts de Segment ► | I44: 39 | BZ44: RB_Segments=
B45: Fins de Segment ► | I45: 40 | AT45: -1 | BZ45: RB_Segments_Fins= | CA45: =IF(VLOOKUP(BZ45,RBB_Table_Tags,2,FALSE)=0,"",VLOOKUP(BZ45,RBB_Table_Tags,2,FALSE)) -> 
B46: Bornes Majeures ► | I46: =IF(ISERROR(MAX(OFFSET($O$51,2,0,MR_Nbr_Points))),0,MAX(OFFSET($O$51,2,0,MR_Nbr_Points))) -> 1 | J46: Total | Q46: =SUM(OFFSET(Q$4,2,0,MR_Nbr_Etapes)) -> 160935.002 | R46: =SUM(OFFSET(R$4,2,0,MR_Nbr_Etapes)) -> 5264.903812 | S46: =SUM(OFFSET(S$4,2,0,MR_Nbr_Etapes)) -> -5174.680228 | U46: RAZ toutes les Données² | BZ46: RB_Bornes= | CA46: =IF(VLOOKUP(BZ46,RBB_Table_Tags,2,FALSE)=0,"",VLOOKUP(BZ46,RBB_Table_Tags,2,FALSE)) -> 
B47: ="Points Hauts ("&TEXT(TC_Nbr_Points_Hauts,"0")&") ►" -> Points Hauts (8) ► | R47: + ▼ | S47: - ▲ | AH47: Courabilité Moyenne | AN47: =SUMPRODUCT(OFFSET($BT$51,2,0,MR_Nbr_RB),OFFSET(MR_Header_Courabilité,2,0,MR_Nbr_RB))/SUM(OFFSET($BT$51,2,0,MR_Nbr_RB)) -> 0.9350007475 | BZ47: RB_Points_Hauts= | CA47: =IF(VLOOKUP(BZ47,RBB_Table_Tags,2,FALSE)=0,"",VLOOKUP(BZ47,RBB_Table_Tags,2,FALSE)) -> 
B48: ="Points Bas ("&TEXT(TC_Nbr_Points_Bas,"0")&") ►" -> Points Bas (7) ► | BZ48: RB_Points_Bas= | CA48: =IF(VLOOKUP(BZ48,RBB_Table_Tags,2,FALSE)=0,"",VLOOKUP(BZ48,RBB_Table_Tags,2,FALSE)) -> 
B49: Dist de recherche (Points Hauts/bas) | E49: 10000 | I49: " | J49: " | M49: ▼ Définition des Etapes ▼ | U49: ▼ Barrières In ▼ | X49: ▼ Barrières Out ▼ | AA49: ▼ Ravitos ▼ | AH49: ▼ Courabilité ▼ | AQ49: ▼ Changer le Nom ▼ | AS49: Trace Complète | BB49: Trace Roadbook
AS50: =COLUMN('Roadbook Construction'!$D$13)-COLUMN('Roadbook Construction'!$B$13)+1 -> 3 | AT50: =COLUMN('Roadbook Construction'!$H$13)-COLUMN('Roadbook Construction'!$B$13)+1 -> 7 | AU50: =COLUMN('Roadbook Construction'!$I$13)-COLUMN('Roadbook Construction'!$B$13)+1 -> 8 | AV50: =COLUMN('Roadbook Construction'!$J$13)-COLUMN('Roadbook Construction'!$B$13)+1 -> 9 | AW50: =COLUMN('Roadbook Construction'!$K$13)-COLUMN('Roadbook Construction'!$B$13)+1 -> 10 | AX50: =COLUMN('Roadbook Construction'!$L$13)-COLUMN('Roadbook Construction'!$B$13)+1 -> 11 | AY50: =COLUMN('Roadbook Construction'!$M$13)-COLUMN('Roadbook Construction'!$B$13)+1 -> 12 | AZ50: =COLUMN('Roadbook Construction'!$N$13)-COLUMN('Roadbook Construction'!$B$13)+1 -> 13 | BA50: =COLUMN('Roadbook Construction'!$O$13)-COLUMN('Roadbook Construction'!$B$13)+1 -> 14 | BN50: =COLUMN('Roadbook Construction'!$AR$13)-COLUMN('Roadbook Construction'!$B$13)+1 -> 43 | BO50: =COLUMN('Roadbook Construction'!$AS$13)-COLUMN('Roadbook Construction'!$B$13)+1 -> 44 | BP50: =COLUMN('Roadbook Construction'!$AT$13)-COLUMN('Roadbook Construction'!$B$13)+1 -> 45 | BQ50: =COLUMN('Roadbook Construction'!$X$13)-COLUMN('Roadbook Construction'!$B$13)+1 -> 23 | BR50: =COLUMN('Roadbook Construction'!$Y$13)-COLUMN('Roadbook Construction'!$B$13)+1 -> 24 | BZ50: Valeurs RBB Backup
B51: Point | C51: Nom | G51: Altitude | I51: X | J51: Visible | K51: N | M51: Jour | N51: Heure | O51: Etape | P51: Départ Etape | Q51: Dist Etape | R51: D+ Etape | S51: D- Etape | U51: T Max | V51: Barrière In | X51: T Max | Y51: Barrière Out | AA51: E | AB51: L | AC51: C | AD51: BV | AE51: Sacs | AF51: Lits | AH51: % | AI51: 100 | AJ51: 98 | AK51: 95 | AL51: 92 | AM51: 88 | AN51: 80 | AO51: 70 | AQ51: Nouveau Nom | AS51: =OFFSET(RC_Header_Table,0,AS50-1,1,1) -> Dist Totale | AT51: Tot D + | AU51: Tot D - | AV51: Tot Dist ▼ | AW51: Tot Dist ≡ ▼ | AX51: Tot Dist ► | AY51: Tot Dist ≡ ► | AZ51: Tot Dist ▲ | BA51: Tot Dist ≡ ▲ | BB51: =AS51 -> Dist Totale | BC51: =AT51 -> Tot D + | BD51: Tot D - | BE51: Tot Dist ▼ | BF51: Tot Dist ≡ ▼ | BG51: Tot Dist ► | BH51: Tot Dist ≡ ► | BI51: Tot Dist ▲ | BJ51: Tot Dist ≡ ▲ | BK51: Début Etape | BL51: Nom | BM51: Altitude | BN51: =OFFSET(RC_Header_Table,0,BN50-1,1,1) -> Alt Min | BO51: =OFFSET(RC_Header_Table,0,BO50-1,1,1) -> Alt Max | BP51: =OFFSET(RC_Header_Table,0,BP50-1,1,1) -> Alt Moy | BQ51: =OFFSET(RC_Header_Table,0,BQ50-1,1,1) -> Latitude | BR51: =OFFSET(RC_Header_Table,0,BR50-1,1,1) -> Longitude | BT51: Distance | BV51: RB Num | BX51: Export | BZ51: Match | CA51: =$I51 -> X | CB51: =$J51 -> Visible | CC51: =$M51 -> Jour | CD51: =$N51 -> Heure | CE51: =$U51 -> T Max | CF51: =$X51 -> T Max | CG51: =$AA51 -> E | CH51: =$AB51 -> L | CI51: =$AC51 -> C | CJ51: =$AD51 -> BV | CK51: =$AE51 -> Sacs | CL51: =$AF51 -> Lits | CM51: =$AH51 -> %
B52: 0 | C52: =COLUMN('Roadbook Construction'!$AA$13)-COLUMN('Roadbook Construction'!$B$13)+1 -> 26 | G52: =COLUMN('Roadbook Construction'!$Z$13)-COLUMN('Roadbook Construction'!$B$13)+1 -> 25 | I52: TRUE | K52: 0 | O52: 1 | Q52: 0 | R52: 0 | S52: 0 | AI52: 1 | AJ52: 0.98 | AK52: 0.95 | AL52: 0.92 | AM52: 0.88 | AN52: 0.8 | AO52: 0.7 | AQ52: =COLUMN('Roadbook Construction'!$Z$13)-COLUMN('Roadbook Construction'!$B$13)+1 -> 25 | AS52: 0 | AT52: 0 | AU52: 0 | AV52: 0 | AW52: 0 | AX52: 0 | AY52: 0 | AZ52: 0 | BA52: 0 | BB52: 0 | BC52: 0 | BD52: 0 | BE52: 0 | BF52: 0 | BG52: 0 | BH52: 0 | BI52: 0 | BJ52: 0 | BK52: =MR_Input_Jour+MR_Input_Heure -> 2014-06-07T16:00:00 | BT52: 0 | BX52: =CONCATENATE(M_Input_Préfixe,"Backup Roadbook (",TEXT(NOW(),"AAAA-MM-JJ HH-MM"),").txt") -> 2014-06-07 - GRC - 160 km - Backup Roadbook (2014-05-12 15-26).txt | CA52: =COLUMN('RB Backup'!$D$1)-COLUMN('RB Backup'!$A$1)+1 -> 4 | CB52: =COLUMN('RB Backup'!$E$1)-COLUMN('RB Backup'!$A$1)+1 -> 5 | CC52: =COLUMN('RB Backup'!$F$1)-COLUMN('RB Backup'!$A$1)+1 -> 6 | CD52: =COLUMN('RB Backup'!$G$1)-COLUMN('RB Backup'!$A$1)+1 -> 7 | CE52: =COLUMN('RB Backup'!$H$1)-COLUMN('RB Backup'!$A$1)+1 -> 8 | CF52: =COLUMN('RB Backup'!$I$1)-COLUMN('RB Backup'!$A$1)+1 -> 9 | CG52: =COLUMN('RB Backup'!$J$1)-COLUMN('RB Backup'!$A$1)+1 -> 10 | CH52: =COLUMN('RB Backup'!$K$1)-COLUMN('RB Backup'!$A$1)+1 -> 11 | CI52: =COLUMN('RB Backup'!$L$1)-COLUMN('RB Backup'!$A$1)+1 -> 12 | CJ52: =COLUMN('RB Backup'!$M$1)-COLUMN('RB Backup'!$A$1)+1 -> 13 | CK52: =COLUMN('RB Backup'!$N$1)-COLUMN('RB Backup'!$A$1)+1 -> 14 | CL52: =COLUMN('RB Backup'!$O$1)-COLUMN('RB Backup'!$A$1)+1 -> 15 | CM52: =COLUMN('RB Backup'!$P$1)-COLUMN('RB Backup'!$A$1)+1 -> 16
B53: =B52+1 -> 1 | C53: =VLOOKUP($B53,RC_Table,C$52,TRUE) -> GRC Diekirch - Départ | G53: =VLOOKUP($B53,RC_Table,G$52,TRUE) -> 191.981328 | I53: TRUE | J53: TRUE | K53: =K52+IF($J53,IF($I53,1,IF(OR($B53=MR_Nbr_Points,NOT($I54)),0,1)),0) -> 1 | O53: =O52+IF(AND($M52<>"",$N52<>""),1,0) -> 1 | P53: =IF(AND($M53<>"",$N53<>""),MR_Input_Jour+$M53-1+$N53,"") ->  | Q53: =IF($I53,($AS53-$AS52),0)+IF($O53=$O52,Q52,0) -> 0.001 | R53: =IF($I53,($AT53-$AT52),0)+IF($O53=$O52,R52,0) -> 0 | S53: =IF($I53,($AU53-$AU52),0)+IF($O53=$O52,S52,0) -> 0 | V53: =IF($U53<>"",$BK53+$U53,"") ->  | Y53: =IF($X53<>"",$BK53+$X53,"") ->  | AA53: FALSE | AB53: FALSE | AC53: FALSE | AD53: FALSE | AE53: FALSE | AF53: FALSE | AH53: 1 | AS53: =VLOOKUP($B53,RC_Table,AS$50,TRUE) -> 0.001 | AT53: 0 | AU53: 0 | AV53: 0 | AW53: 0 | AX53: 0.001 | AY53: 0.001 | AZ53: 0 | BA53: 0 | BB53: =BB52+IF($I53,AS53-AS52,TC_Delta_Min) -> 0.001 | BC53: =BC52+IF($I53,AT53-AT52,0) -> 0 | BD53: 0 | BE53: 0 | BF53: 0 | BG53: =BG52+IF($I53,AX53-AX52,TC_Delta_Min) -> 0.001 | BH53: =BH52+IF($I53,AY53-AY52,TC_Delta_Min) -> 0.001 | BI53: 0 | BJ53: 0 | BK53: =IF($O53<>$O52,$P52,BK52) -> 2014-06-07T16:00:00 | BL53: =IF($AQ53<>"",$AQ53,$C53) -> GRC Diekirch - Départ | BM53: =$G53 -> 191.981328 | BN53: =VLOOKUP($B53,RC_Table,BN$50,TRUE) -> 191.981328 | BO53: 191.981328 | BP53: 191.981328 | BQ53: 49,865358 | BR53: 6,155532 | BT53: =$BB53-$BB52 -> 0.001 | BV53: =$B53 -> 1 | BX53: =CONCATENATE(TEXT($B53,"0"),",",SUBSTITUTE($C53,",",";"),",",IF($B53=1,"X",SUBSTITUTE($C52,",",";"))," >>> ",SUBSTITUTE($C53,",",";"),",",TEXT($I53,"0"),",",TEXT($J53,"0"),",",IF(ISBLANK($M53),"X",TEXT($M53,"0")),",",IF(ISBLANK($N53),"X",TEXT($N53,"[HH]:MM")),",",IF(ISBLANK($U53),"X",TEXT($U53,"[HH]:MM")),",",IF(ISBLANK($X53),"X",TEXT($X53,"[HH]:MM")),",",TEXT($AA53,"0"),",",TEXT($AB53,"0"),",",TEXT($AC53,"0"),",",TEXT($AD53,"0"),",",TEXT($AE53,"0"),",",TEXT($AF53,"0"),",",TEXT($AH53,"0%")) -> 1,GRC Diekirch - Départ,X >>> GRC Diekirch - Départ,TRUE,TRUE,X,X,X,X,FALSE,FALSE,FALSE,FALSE,FALSE,FALSE,100% | BZ53: =MATCH(CONCATENATE(IF($B53=1,"X",SUBSTITUTE($C52,",",";"))," >>> ",SUBSTITUTE($C53,",",";")),RBB_Liste_De_A,0) ->  | CA53: =VLOOKUP($BZ53,RBB_Table,CA$52,FALSE) -> 
B54: =B53+1 -> 2 | C54: GRC-064 Pont de Gilsdorf | G54: =VLOOKUP($B54,RC_Table,G$52,TRUE) -> 189.14872 | I54: TRUE | J54: TRUE | K54: 2 | O54: 1 | Q54: 2079.095823 | R54: 7.511547935 | S54: -10.34415594 | AA54: FALSE | AB54: FALSE | AC54: FALSE | AD54: FALSE | AE54: FALSE | AF54: FALSE | AH54: 0.98 | AS54: 2079.095823 | AT54: 7.511547935 | AU54: -10.34415594 | AV54: 1292.620628 | AW54: 1267.641255 | AX54: 0.001 | AY54: 0.001 | AZ54: 786.4741958 | BA54: 809.8011346 | BB54: 2079.095823 | BC54: =BC53+IF($I54,AT54-AT53,0) -> 7.511547935 | BD54: =BD53+IF($I54,AU54-AU53,0) -> -10.34415594 | BE54: =BE53+IF($I54,AV54-AV53,0) -> 1292.620628 | BF54: =BF53+IF($I54,AW54-AW53,0) -> 1267.641255 | BG54: 0.001 | BH54: 0.001 | BI54: =BI53+IF($I54,AZ54-AZ53,0) -> 786.4741958 | BJ54: =BJ53+IF($I54,BA54-BA53,0) -> 809.8011346 | BK54: 2014-06-07T16:00:00 | BL54: =IF($AQ54<>"",$AQ54,$C54) -> GRC-064 Pont de Gilsdorf | BM54: =$G54 -> 189.14872 | BN54: 186.3947759 | BO54: 194.79768 | BP54: 190.0821575 | BQ54: 49,868810 | BR54: 6,181360 | BT54: =$BB54-$BB53 -> 2079.094823 | BV54: =$B54 -> 2 | BX54: =CONCATENATE(TEXT($B54,"0"),",",SUBSTITUTE($C54,",",";"),",",IF($B54=1,"X",SUBSTITUTE($C53,",",";"))," >>> ",SUBSTITUTE($C54,",",";"),",",TEXT($I54,"0"),",",TEXT($J54,"0"),",",IF(ISBLANK($M54),"X",TEXT($M54,"0")),",",IF(ISBLANK($N54),"X",TEXT($N54,"[HH]:MM")),",",IF(ISBLANK($U54),"X",TEXT($U54,"[HH]:MM")),",",IF(ISBLANK($X54),"X",TEXT($X54,"[HH]:MM")),",",TEXT($AA54,"0"),",",TEXT($AB54,"0"),",",TEXT($AC54,"0"),",",TEXT($AD54,"0"),",",TEXT($AE54,"0"),",",TEXT($AF54,"0"),",",TEXT($AH54,"0%")) -> 2,GRC-064 Pont de Gilsdorf,GRC Diekirch - Départ >>> GRC-064 Pont de Gilsdorf,TRUE,TRUE,X,X,X,X,FALSE,FALSE,FALSE,FALSE,FALSE,FALSE,98%
B55: 3 | C55: GR5-063 Bleesbréck | G55: 189.2254941 | I55: TRUE | J55: TRUE | K55: 3 | O55: 1 | Q55: 2979.203719 | R55: 15.27623553 | S55: -18.03206942 | AA55: FALSE | AB55: FALSE | AC55: FALSE | AD55: FALSE | AE55: FALSE | AF55: FALSE | AH55: 0.98 | AS55: 2979.203719 | AT55: 15.27623553 | AU55: -18.03206942 | AV55: 1854.351826 | AW55: 1813.056749 | AX55: 0.001 | AY55: 0.001 | AZ55: 1124.850893 | BA55: 1177.297286 | BB55: 2979.203719 | BC55: 15.27623553 | BD55: -18.03206942 | BE55: 1854.351826 | BF55: 1813.056749 | BG55: 0.001 | BH55: 0.001 | BI55: 1124.850893 | BJ55: 1177.297286 | BK55: 2014-06-07T16:00:00 | BL55: GR5-063 Bleesbréck | BM55: 189.2254941 | BN55: 187.2742 | BO55: 193.9393493 | BP55: 191.3048523 | BQ55: 49,872300 | BR55: 6,190287 | BT55: 900.1078952 | BV55: 3 | BX55: 3,GR5-063 Bleesbréck,GRC-064 Pont de Gilsdorf >>> GR5-063 Bleesbréck,TRUE,TRUE,X,X,X,X,FALSE,FALSE,FALSE,FALSE,FALSE,FALSE,98%
B56: 4 | C56: GR5-062 Kiirchbesch | G56: 426.631817 | I56: TRUE | J56: TRUE | K56: 4 | O56: =O55+IF(AND($M55<>"",$N55<>""),1,0) -> 1 | Q56: 7302.335111 | R56: 275.5799575 | S56: -40.92946844 | AA56: FALSE | AB56: FALSE | AC56: FALSE | AD56: FALSE | AE56: FALSE | AF56: FALSE | AH56: 0.92 | AS56: 7302.335111 | AT56: 275.5799575 | AU56: -40.92946844 | AV56: 2542.694938 | AW56: 2467.341078 | AX56: 0.001 | AY56: 0.001 | AZ56: 4759.639174 | BA56: 6149.3936 | BB56: 7302.335111 | BC56: 275.5799575 | BD56: -40.92946844 | BE56: 2542.694938 | BF56: 2467.341078 | BG56: 0.001 | BH56: 0.001 | BI56: 4759.639174 | BJ56: 6149.3936 | BK56: 2014-06-07T16:00:00 | BL56: GR5-062 Kiirchbesch | BM56: 426.631817 | BN56: 189.2254941 | BO56: 433.67452 | BP56: 329.456554 | BQ56: 49,890954 | BR56: 6,218746 | BT56: 4323.131393 | BV56: 4 | BX56: 4,GR5-062 Kiirchbesch,GR5-063 Bleesbréck >>> GR5-062 Kiirchbesch,TRUE,TRUE,X,X,X,X,FALSE,FALSE,FALSE,FALSE,FALSE,FALSE,92%
B57: 5 | C57: GR5-061 Marxbierg | G57: 298.4837625 | I57: TRUE | J57: TRUE | K57: 5 | O57: =O56+IF(AND($M56<>"",$N56<>""),1,0) -> 1 | Q57: 10126.0507 | R57: 306.9398381 | S57: -200.4374036 | AA57: FALSE | AB57: FALSE | AC57: FALSE | AD57: FALSE | AE57: FALSE | AF57: FALSE | AH57: 0.92 | AS57: 10126.0507 | AT57: 306.9398381 | AU57: -200.4374036 | AV57: 4756.89265 | AW57: 4658.151781 | AX57: 0.001 | AY57: 0.001 | AZ57: 5369.157047 | BA57: 6911.505786 | BB57: 10126.0507 | BC57: 306.9398381 | BD57: -200.4374036 | BE57: 4756.89265 | BF57: 4658.151781 | BG57: 0.001 | BH57: 0.001 | BI57: 5369.157047 | BJ57: 6911.505786 | BK57: 2014-06-07T16:00:00 | BL57: GR5-061 Marxbierg | BM57: 298.4837625 | BN57: 281.6606 | BO57: 429.4782999 | BP57: 348.5798569 | BQ57: 49,899000 | BR57: 6,207713 | BT57: 2823.715586 | BV57: 5 | BX57: 5,GR5-061 Marxbierg,GR5-062 Kiirchbesch >>> GR5-061 Marxbierg,TRUE,TRUE,X,X,X,X,FALSE,FALSE,FALSE,FALSE,FALSE,FALSE,92%
B58: 6 | C58: GR5-060 Bettel | G58: 214.0257942 | I58: TRUE | J58: TRUE | K58: 6 | O58: 1 | Q58: 12908.04218 | R58: 346.9386485 | S58: -324.8941823 | AA58: FALSE | AB58: FALSE | AC58: FALSE | AD58: FALSE | AE58: FALSE | AF58: FALSE | AH58: 0.98 | AS58: 12908.04218 | AT58: 346.9386485 | AU58: -324.8941823 | AV58: 6447.188492 | AW58: 6244.549516 | AX58: 0.001 | AY58: 0.001 | AZ58: 6460.852687 | BA58: 8168.786178 | BB58: 12908.04218 | BC58: 346.9386485 | BD58: -324.8941823 | BE58: 6447.188492 | BF58: 6244.549516 | BG58: 0.001 | BH58: 0.001 | BI58: 6460.852687 | BJ58: 8168.786178 | BK58: 2014-06-07T16:00:00 | BL58: GR5-060 Bettel | BM58: 214.0257942 | BN58: 203.44892 | BO58: 327.9056987 | BP58: 265.0023487 | BQ58: 49,916574 | BR58: 6,226680 | BT58: 2781.991482 | BV58: 6 | BX58: 6,GR5-060 Bettel,GR5-061 Marxbierg >>> GR5-060 Bettel,TRUE,TRUE,X,X,X,X,FALSE,FALSE,FALSE,FALSE,FALSE,FALSE,98%
B59: 7 | C59: GR5-059 Leemkaul | G59: 206.5657546 | I59: TRUE | J59: TRUE | K59: 7 | O59: 1 | Q59: 14734.337 | R59: 424.7185285 | S59: -410.134102 | AA59: FALSE | AB59: FALSE | AC59: FALSE | AD59: FALSE | AE59: FALSE | AF59: FALSE | AH59: 0.98 | AS59: 14734.337 | AT59: 424.7185285 | AU59: -410.134102 | AV59: 7382.747684 | AW59: 7206.308017 | AX59: 0.001 | AY59: 0.001 | AZ59: 7351.588318 | BA59: 9460.463284 | BB59: 14734.337 | BC59: 424.7185285 | BD59: -410.134102 | BE59: 7382.747684 | BF59: 7206.308017 | BG59: 0.001 | BH59: 0.001 | BI59: 7351.588318 | BJ59: 9460.463284 | BK59: 2014-06-07T16:00:00 | BL59: GR5-059 Leemkaul | BM59: 206.5657546 | BN59: 206.5657546 | BO59: 281.14244 | BP59: 241.1248401 | BQ59: 49,927309 | BR59: 6,220286 | BT59: 1826.294823 | BV59: 7 | BX59: 7,GR5-059 Leemkaul,GR5-060 Bettel >>> GR5-059 Leemkaul,TRUE,TRUE,X,X,X,X,FALSE,FALSE,FALSE,FALSE,FALSE,FALSE,98%
B60: 8 | C60: GR5-058 AJ Vianden | G60: 282.575 | I60: TRUE | J60: TRUE | K60: 8 | O60: 1 | Q60: 16996.9459 | R60: 578.6288997 | S60: -488.0352277 | AA60: FALSE | AB60: FALSE | AC60: FALSE | AD60: FALSE | AE60: FALSE | AF60: FALSE | AH60: 0.98 | AS60: 16996.9459 | AT60: 578.6288997 | AU60: -488.0352277 | AV60: 8235.830856 | AW60: 8099.64576 | AX60: 0.001 | AY60: 0.001 | AZ60: 8761.114049 | BA60: 11786.38042 | BB60: 16996.9459 | BC60: 578.6288997 | BD60: -488.0352277 | BE60: 8235.830856 | BF60: 8099.64576 | BG60: 0.001 | BH60: 0.001 | BI60: 8761.114049 | BJ60: 11786.38042 | BK60: 2014-06-07T16:00:00 | BL60: GR5-058 AJ Vianden | BM60: 282.575 | BN60: 205.59268 | BO60: 329.6561763 | BP60: 271.5753487 | BQ60: 49,935575 | BR60: 6,200267 | BT60: 2262.608902 | BV60: 8 | BX60: 8,GR5-058 AJ Vianden,GR5-059 Leemkaul >>> GR5-058 AJ Vianden,TRUE,TRUE,X,X,X,X,FALSE,FALSE,FALSE,FALSE,FALSE,FALSE,98%
B61: 9 | C61: GR5-057 Mont Saint Nicolas | G61: 492.84128 | I61: TRUE | J61: TRUE | K61: 9 | O61: 1 | Q61: 22934.06957 | R61: 1026.01373 | S61: -725.153778 | AA61: FALSE | AB61: FALSE | AC61: FALSE | AD61: FALSE | AE61: FALSE | AF61: FALSE | AH61: 0.92 | AS61: 22934.06957 | AT61: 1026.01373 | AU61: -725.153778 | AV61: 10603.76151 | AW61: 10836.41588 | AX61: 0.001 | AY61: 0.001 | AZ61: 12330.30705 | BA61: 18274.55143 | BB61: 22934.06957 | BC61: 1026.01373 | BD61: -725.153778 | BE61: 10603.76151 | BF61: 10836.41588 | BG61: 0.001 | BH61: 0.001 | BI61: 12330.30705 | BJ61: 18274.55143 | BK61: 2014-06-07T16:00:00 | BL61: GR5-057 Mont Saint Nicolas | BM61: 492.84128 | BN61: 264.0692725 | BO61: 500.0386357 | BP61: 391.303777 | BQ61: 49,946809 | BR61: 6,166292 | BT61: 5937.123661 | BV61: 9 | BX61: 9,GR5-057 Mont Saint Nicolas,GR5-058 AJ Vianden >>> GR5-057 Mont Saint Nicolas,TRUE,TRUE,X,X,X,X,FALSE,FALSE,FALSE,FALSE,FALSE,FALSE,92%
B62: 10 | C62: GR5-056 Stolzembourg | G62: 245.9293544 | I62: TRUE | J62: TRUE | K62: 10 | O62: 1 | Q62: 26766.67669 | R62: 1146.054479 | S62: -1092.106453 | AA62: FALSE | AB62: FALSE | AC62: FALSE | AD62: FALSE | AE62: FALSE | AF62: FALSE | AH62: 0.92 | AS62: 26766.67669 | AT62: 1146.054479 | AU62: -1092.106453 | AV62: 13552.59077 | AW62: 14100.37389 | AX62: 0.001 | AY62: 0.001 | AZ62: 13214.08492 | BA62: 20009.8108 | BB62: 26766.67669 | BC62: 1146.054479 | BD62: -1092.106453 | BE62: 13552.59077 | BF62: 14100.37389 | BG62: 0.001 | BH62: 0.001 | BI62: 13214.08492 | BJ62: 20009.8108 | BK62: 2014-06-07T16:00:00 | BL62: GR5-056 Stolzembourg | BM62: 245.9293544 | BN62: 245.9293544 | BO62: 492.84128 | BP62: 370.0204194 | BQ62: 49,965510 | BR62: 6,166974 | BT62: 3832.60712 | BV62: 10 | BX62: 10,GR5-056 Stolzembourg,GR5-057 Mont Saint Nicolas >>> GR5-056 Stolzembourg,TRUE,TRUE,X,X,X,X,FALSE,FALSE,FALSE,FALSE,FALSE,FALSE,92%
B63: 11 | C63: GRC Ravito 1 | G63: 278.55672 | I63: TRUE | J63: TRUE | K63: 11 | O63: 1 | Q63: 29107.08002 | R63: 1297.071606 | S63: -1210.496214 | AA63: TRUE | AB63: TRUE | AC63: TRUE | AD63: FALSE | AE63: FALSE | AF63: FALSE | AH63: 0.92 | AS63: 29107.08002 | AT63: 1297.071606 | AU63: -1210.496214 | AV63: 14530.55918 | AW63: 15149.93917 | AX63: 0.001 | AY63: 0.001 | AZ63: 14576.51984 | BA63: 22287.20238 | BB63: 29107.08002 | BC63: 1297.071606 | BD63: -1210.496214 | BE63: 14530.55918 | BF63: 15149.93917 | BG63: 0.001 | BH63: 0.001 | BI63: 14576.51984 | BJ63: 22287.20238 | BK63: 2014-06-07T16:00:00 | BL63: GRC Ravito 1 | BM63: 278.55672 | BN63: 245.9293544 | BO63: 366.6468551 | BP63: 298.6065453 | BQ63: 49,977126 | BR63: 6,163875 | BT63: 2340.40333 | BV63: 11 | BX63: 11,GRC Ravito 1,GR5-056 Stolzembourg >>> GRC Ravito 1,TRUE,TRUE,X,X,X,X,TRUE,TRUE,TRUE,FALSE,FALSE,FALSE,92%
B64: 12 | C64: GR5-055 Pont de Gemund | G64: 250.00204 | I64: TRUE | J64: TRUE | K64: 12 | O64: 1 | Q64: 31205.98841 | R64: 1410.631265 | S64: -1352.610553 | AA64: FALSE | AB64: FALSE | AC64: FALSE | AD64: FALSE | AE64: FALSE | AF64: FALSE | AH64: 0.92 | AS64: 31205.98841 | AT64: 1410.631265 | AU64: -1352.610553 | AV64: 15586.87894 | AW64: 16289.18623 | AX64: 0.001 | AY64: 0.001 | AZ64: 15619.10847 | BA64: 24036.24064 | BB64: 31205.98841 | BC64: 1410.631265 | BD64: -1352.610553 | BE64: 15586.87894 | BF64: 16289.18623 | BG64: 0.001 | BH64: 0.001 | BI64: 15619.10847 | BJ64: 24036.24064 | BK64: 2014-06-07T16:00:00 | BL64: GR5-055 Pont de Gemund | BM64: 250.00204 | BN64: 250.00204 | BO64: 322.16344 | BP64: 283.6770427 | BQ64: 49,987006 | BR64: 6,163602 | BT64: 2098.908397 | BV64: 12 | BX64: 12,GR5-055 Pont de Gemund,GRC Ravito 1 >>> GR5-055 Pont de Gemund,TRUE,TRUE,X,X,X,X,FALSE,FALSE,FALSE,FALSE,FALSE,FALSE,92%
B65: 13 | C65: GR5-054 Wahlhausen | G65: 498.221 | I65: TRUE | J65: TRUE | K65: 13 | O65: 1 | Q65: 34478.26505 | R65: 1670.06216 | S65: -1363.822488 | AA65: FALSE | AB65: FALSE | AC65: FALSE | AD65: FALSE | AE65: FALSE | AF65: FALSE | AH65: 0.92 | AS65: 34478.26505 | AT65: 1670.06216 | AU65: -1363.822488 | AV65: 15912.46586 | AW65: 16607.36055 | AX65: 0.001 | AY65: 0.001 | AZ65: 18565.7982 | BA65: 28499.61959 | BB65: 34478.26505 | BC65: 1670.06216 | BD65: -1363.822488 | BE65: 15912.46586 | BF65: 16607.36055 | BG65: 0.001 | BH65: 0.001 | BI65: 18565.7982 | BJ65: 28499.61959 | BK65: =IF($O65<>$O64,$P64,BK64) -> 2014-06-07T16:00:00 | BL65: GR5-054 Wahlhausen | BM65: 498.221 | BN65: 249.82424 | BO65: 498.221 | BP65: 394.2420703 | BQ65: 49,986792 | BR65: 6,126372 | BT65: 3272.276642 | BV65: 13 | BX65: 13,GR5-054 Wahlhausen,GR5-055 Pont de Gemund >>> GR5-054 Wahlhausen,TRUE,TRUE,X,X,X,X,FALSE,FALSE,FALSE,FALSE,FALSE,FALSE,92%
B66: 14 | C66: GR5-053 Untereisenbach | G66: 257.79984 | I66: TRUE | J66: TRUE | K66: 14 | O66: 1 | Q66: 36945.00747 | R66: 1670.06216 | S66: -1604.243648 | AA66: FALSE | AB66: FALSE | AC66: FALSE | AD66: FALSE | AE66: FALSE | AF66: FALSE | AH66: 0.92 | AS66: 36945.00747 | AT66: 1670.06216 | AU66: -1604.243648 | AV66: 18379.20827 | AW66: 19120.9179 | AX66: 0.001 | AY66: 0.001 | AZ66: 18565.7982 | BA66: 28499.61959 | BB66: 36945.00747 | BC66: 1670.06216 | BD66: -1604.243648 | BE66: 18379.20827 | BF66: 19120.9179 | BG66: 0.001 | BH66: 0.001 | BI66: 18565.7982 | BJ66: 28499.61959 | BK66: =IF($O66<>$O65,$P65,BK65) -> 2014-06-07T16:00:00 | BL66: GR5-053 Untereisenbach | BM66: 257.79984 | BN66: 257.79984 | BO66: 498.221 | BP66: 402.8034621 | BQ66: 50,001293 | BR66: 6,144812 | BT66: 2466.742412 | BV66: 14 | BX66: 14,GR5-053 Untereisenbach,GR5-054 Wahlhausen >>> GR5-053 Untereisenbach,TRUE,TRUE,X,X,X,X,FALSE,FALSE,FALSE,FALSE,FALSE,FALSE,92%
B67: 15 | C67: GR5-052 Obereisenbach | G67: 320.73088 | I67: TRUE | J67: TRUE | K67: 15 | O67: 1 | Q67: 38231.02095 | R67: 1776.13256 | S67: -1647.383008 | AA67: FALSE | AB67: FALSE | AC67: FALSE | AD67: FALSE | AE67: FALSE | AF67: FALSE | AH67: 0.92 | AS67: 38231.02095 | AT67: 1776.13256 | AU67: -1647.383008 | AV67: 18785.34438 | AW67: 19536.93817 | AX67: 0.001 | AY67: 0.001 | AZ67: 19445.67558 | BA67: 30038.03691 | BB67: 38231.02095 | BC67: 1776.13256 | BD67: -1647.383008 | BE67: 18785.34438 | BF67: 19536.93817 | BG67: 0.001 | BH67: 0.001 | BI67: 19445.67558 | BJ67: 30038.03691 | BK67: 2014-06-07T16:00:00 | BL67: GR5-052 Obereisenbach | BM67: 320.73088 | BN67: 248.50852 | BO67: 333.47152 | BP67: 275.683955 | BQ67: 50,008718 | BR67: 6,142180 | BT67: 1286.013485 | BV67: 15 | BX67: 15,GR5-052 Obereisenbach,GR5-053 Untereisenbach >>> GR5-052 Obereisenbach,TRUE,TRUE,X,X,X,X,FALSE,FALSE,FALSE,FALSE,FALSE,FALSE,92%
B68: 16 | C68: GR5-051 Belvédère de Geislay | G68: 376.96648 | I68: TRUE | J68: TRUE | K68: 16 | O68: 1 | Q68: 40018.55835 | R68: 1897.071448 | S68: -1712.086296 | AA68: FALSE | AB68: FALSE | AC68: FALSE | AD68: FALSE | AE68: FALSE | AF68: FALSE | AH68: 0.92 | AS68: 40018.55835 | AT68: 1897.071448 | AU68: -1712.086296 | AV68: 19519.88056 | AW68: 20284.57631 | AX68: 0.001 | AY68: 0.001 | AZ68: 20498.67679 | BA68: 31782.51335 | BB68: 40018.55835 | BC68: 1897.071448 | BD68: -1712.086296 | BE68: 19519.88056 | BF68: 20284.57631 | BG68: 0.001 | BH68: 0.001 | BI68: 20498.67679 | BJ68: 31782.51335 | BK68: 2014-06-07T16:00:00 | BL68: GR5-051 Belvédère de Geislay | BM68: 376.96648 | BN68: 290.53028 | BO68: 385.84632 | BP68: 334.0415177 | BQ68: 50,018892 | BR68: 6,127600 | BT68: 1787.537396 | BV68: 16 | BX68: 16,GR5-051 Belvédère de Geislay,GR5-052 Obereisenbach >>> GR5-051 Belvédère de Geislay,TRUE,TRUE,X,X,X,X,FALSE,FALSE,FALSE,FALSE,FALSE,FALSE,92% | CM68: =VLOOKUP($BZ68,RBB_Table,CM$52,FALSE) -> 
B69: 17 | C69: GR5-050 Rodershausen | G69: 295.3214498 | I69: TRUE | J69: TRUE | K69: 17 | O69: 1 | Q69: 43952.6291 | R69: 2099.152585 | S69: -1995.812464 | AA69: FALSE | AB69: FALSE | AC69: FALSE | AD69: FALSE | AE69: FALSE | AF69: FALSE | AH69: 0.92 | AS69: 43952.6291 | AT69: 2099.152585 | AU69: -1995.812464 | AV69: 21723.62587 | AW69: 22946.23964 | AX69: 0.001 | AY69: 0.001 | AZ69: 22229.00224 | BA69: 34894.75832 | BB69: 43952.6291 | BC69: 2099.152585 | BD69: -1995.812464 | BE69: 21723.62587 | BF69: 22946.23964 | BG69: 0.001 | BH69: 0.001 | BI69: 22229.00224 | BJ69: 34894.75832 | BK69: 2014-06-07T16:00:00 | BL69: GR5-050 Rodershausen | BM69: 295.3214498 | BN69: 259.52196 | BO69: 392.9671929 | BP69: 338.032823 | BQ69: 50,036485 | BR69: 6,130134 | BT69: 3934.070756 | BV69: 17 | BX69: 17,GR5-050 Rodershausen,GR5-051 Belvédère de Geislay >>> GR5-050 Rodershausen,TRUE,TRUE,X,X,X,X,FALSE,FALSE,FALSE,FALSE,FALSE,FALSE,92%
B70: 18 | C70: GR5-049 Dasbourg Pont | G70: 304.005596 | I70: TRUE | J70: TRUE | K70: 18 | O70: 1 | Q70: 45496.23959 | R70: 2136.112376 | S70: -2024.088108 | AA70: FALSE | AB70: FALSE | AC70: FALSE | AD70: FALSE | AE70: FALSE | AF70: FALSE | AH70: 0.92 | AS70: 45496.23959 | AT70: 2136.112376 | AU70: -2024.088108 | AV70: 22316.13374 | AW70: 23496.93955 | AX70: 0.001 | AY70: 0.001 | AZ70: 23180.10485 | BA70: 35996.50478 | BB70: 45496.23959 | BC70: 2136.112376 | BD70: -2024.088108 | BE70: 22316.13374 | BF70: 23496.93955 | BG70: 0.001 | BH70: 0.001 | BI70: 23180.10485 | BJ70: 35996.50478 | BK70: 2014-06-07T16:00:00 | BL70: GR5-049 Dasbourg Pont | BM70: 304.005596 | BN70: 275.38172 | BO70: 304.005596 | BP70: 294.0939126 | BQ70: 50,049301 | BR70: 6,125962 | BT70: 1543.610485 | BV70: 18 | BX70: 18,GR5-049 Dasbourg Pont,GR5-050 Rodershausen >>> GR5-049 Dasbourg Pont,TRUE,TRUE,X,X,X,X,FALSE,FALSE,FALSE,FALSE,FALSE,FALSE,92%
B71: 19 | C71: GR5-048 Tintesmillen | G71: 308.8376661 | I71: TRUE | J71: TRUE | K71: 19 | O71: 1 | Q71: 53956.17699 | R71: 2432.611913 | S71: -2315.755575 | AA71: FALSE | AB71: FALSE | AC71: FALSE | AD71: FALSE | AE71: FALSE | AF71: FALSE | AH71: 0.92 | AS71: 53956.17699 | AT71: 2432.611913 | AU71: -2315.755575 | AV71: 26328.49812 | AW71: 27486.5838 | AX71: 0.001 | AY71: 0.001 | AZ71: 27627.67787 | BA71: 41939.63239 | BB71: 53956.17699 | BC71: 2432.611913 | BD71: -2315.755575 | BE71: 26328.49812 | BF71: 27486.5838 | BG71: 0.001 | BH71: 0.001 | BI71: 27627.67787 | BJ71: 41939.63239 | BK71: 2014-06-07T16:00:00 | BL71: GR5-048 Tintesmillen | BM71: 308.8376661 | BN71: 290.79444 | BO71: 370.3341752 | BP71: 323.048292 | BQ71: 50,093813 | BR71: 6,127756 | BT71: 8459.937402 | BV71: 19 | BX71: 19,GR5-048 Tintesmillen,GR5-049 Dasbourg Pont >>> GR5-048 Tintesmillen,TRUE,TRUE,X,X,X,X,FALSE,FALSE,FALSE,FALSE,FALSE,FALSE,92%
B72: 20 | C72: GR5-047 Trois Frontières | G72: 319.80124 | I72: TRUE | J72: TRUE | K72: 20 | O72: 1 | Q72: 59392.00905 | R72: 2623.65997 | S72: -2495.840058 | AA72: FALSE | AB72: FALSE | AC72: FALSE | AD72: FALSE | AE72: FALSE | AF72: FALSE | AH72: 0.92 | AS72: 59392.00905 | AT72: 2623.65997 | AU72: -2495.840058 | AV72: 29413.6357 | AW72: 30469.96049 | AX72: 0.001 | AY72: 0.001 | AZ72: 29978.37235 | BA72: 45322.96277 | BB72: 59392.00905 | BC72: 2623.65997 | BD72: -2495.840058 | BE72: 29413.6357 | BF72: 30469.96049 | BG72: 0.001 | BH72: 0.001 | BI72: 29978.37235 | BJ72: 45322.96277 | BK72: 2014-06-07T16:00:00 | BL72: GR5-047 Trois Frontières | BM72: 319.80124 | BN72: 308.8376661 | BO72: 379.9412746 | BP72: 341.0872945 | BQ72: 50,129920 | BR72: 6,137217 | BT72: 5435.832058 | BV72: 20 | BX72: 20,GR5-047 Trois Frontières,GR5-048 Tintesmillen >>> GR5-047 Trois Frontières,TRUE,TRUE,X,X,X,X,FALSE,FALSE,FALSE,FALSE,FALSE,FALSE,92%
B73: 21 | C73: GRC Ravito 2 | G73: 321.03568 | I73: TRUE | J73: TRUE | K73: 21 | O73: 1 | Q73: 59492.54411 | R73: 2624.89441 | S73: -2495.840058 | AA73: TRUE | AB73: TRUE | AC73: TRUE | AD73: FALSE | AE73: TRUE | AF73: FALSE | AH73: 0.92 | AS73: =VLOOKUP($B73,RC_Table,AS$50,TRUE) -> 59492.54411 | AT73: 2624.89441 | AU73: -2495.840058 | AV73: 29413.6357 | AW73: 30469.96049 | AX73: 0.001 | AY73: 0.001 | AZ73: 30078.90741 | BA73: 45427.30446 | BB73: 59492.54411 | BC73: 2624.89441 | BD73: -2495.840058 | BE73: 29413.6357 | BF73: 30469.96049 | BG73: 0.001 | BH73: 0.001 | BI73: 30078.90741 | BJ73: 45427.30446 | BK73: 2014-06-07T16:00:00 | BL73: GRC Ravito 2 | BM73: 321.03568 | BN73: 319.80124 | BO73: 321.03568 | BP73: 320.3086729 | BQ73: 50,130916 | BR73: 6,137015 | BT73: 100.5350587 | BV73: 21 | BX73: 21,GRC Ravito 2,GR5-047 Trois Frontières >>> GRC Ravito 2,TRUE,TRUE,X,X,X,X,TRUE,TRUE,TRUE,FALSE,TRUE,FALSE,92% | CA73: =VLOOKUP($BZ73,RBB_Table,CA$52,FALSE) -> 
B74: 22 | C74: GR5-046 Ouren | G74: 327.19264 | I74: TRUE | J74: TRUE | K74: 22 | O74: 1 | Q74: 60738.01435 | R74: 2643.677577 | S74: -2508.466265 | AA74: FALSE | AB74: FALSE | AC74: FALSE | AD74: FALSE | AE74: FALSE | AF74: FALSE | AH74: 0.92 | AS74: 60738.01435 | AT74: 2643.677577 | AU74: -2508.466265 | AV74: 29971.92694 | AW74: 31001.11851 | AX74: 0.001 | AY74: 0.001 | AZ74: 30766.08642 | BA74: 46187.21834 | BB74: 60738.01435 | BC74: 2643.677577 | BD74: -2508.466265 | BE74: 29971.92694 | BF74: 31001.11851 | BG74: 0.001 | BH74: 0.001 | BI74: 30766.08642 | BJ74: 46187.21834 | BK74: 2014-06-07T16:00:00 | BL74: GR5-046 Ouren | BM74: 327.19264 | BN74: 320.46672 | BO74: 330.06284 | BP74: 323.8492363 | BQ74: 50,140360 | BR74: 6,133748 | BT74: 1245.470243 | BV74: 22 | BX74: 22,GR5-046 Ouren,GRC Ravito 2 >>> GR5-046 Ouren,TRUE,TRUE,X,X,X,X,FALSE,FALSE,FALSE,FALSE,FALSE,FALSE,92%
B75: 23 | C75: GR5-045 Leithum | G75: 488.0308622 | I75: TRUE | J75: TRUE | K75: 23 | O75: 1 | Q75: 64788.81545 | R75: 2854.938544 | S75: -2558.889009 | AA75: FALSE | AB75: FALSE | AC75: FALSE | AD75: FALSE | AE75: FALSE | AF75: FALSE | AH75: 0.92 | AS75: 64788.81545 | AT75: 2854.938544 | AU75: -2558.889009 | AV75: 30969.40952 | AW75: 31985.56901 | AX75: 0.001 | AY75: 0.001 | AZ75: 33819.40493 | BA75: 50319.61909 | BB75: 64788.81545 | BC75: 2854.938544 | BD75: -2558.889009 | BE75: 30969.40952 | BF75: 31985.56901 | BG75: 0.001 | BH75: 0.001 | BI75: 33819.40493 | BJ75: 50319.61909 | BK75: 2014-06-07T16:00:00 | BL75: GR5-045 Leithum | BM75: 488.0308622 | BN75: 322.3836146 | BO75: 489.964533 | BP75: 410.284594 | BQ75: 50,163315 | BR75: 6,119762 | BT75: 4050.801098 | BV75: 23 | BX75: 23,GR5-045 Leithum,GR5-046 Ouren >>> GR5-045 Leithum,TRUE,TRUE,X,X,X,X,FALSE,FALSE,FALSE,FALSE,FALSE,FALSE,92%
B76: 24 | C76: GR5-044 Ouest de Stoubach | G76: 377.35764 | I76: TRUE | J76: TRUE | K76: 24 | O76: 1 | Q76: 68124.14347 | R76: 2887.045648 | S76: -2701.669336 | AA76: FALSE | AB76: FALSE | AC76: FALSE | AD76: FALSE | AE76: FALSE | AF76: FALSE | AH76: 0.92 | AS76: 68124.14347 | AT76: 2887.045648 | AU76: -2701.669336 | AV76: 33012.7565 | AW76: 33949.35822 | AX76: 0.001 | AY76: 0.001 | AZ76: 35111.38597 | BA76: 51721.34959 | BB76: 68124.14347 | BC76: 2887.045648 | BD76: -2701.669336 | BE76: 33012.7565 | BF76: 33949.35822 | BG76: 0.001 | BH76: 0.001 | BI76: 35111.38597 | BJ76: 51721.34959 | BK76: 2014-06-07T16:00:00 | BL76: GR5-044 Ouest de Stoubach | BM76: 377.35764 | BN76: 370.7126442 | BO76: 494.2093614 | BP76: 418.234758 | BQ76: 50,176546 | BR76: 6,138288 | BT76: 3335.328023 | BV76: 24 | BX76: 24,GR5-044 Ouest de Stoubach,GR5-045 Leithum >>> GR5-044 Ouest de Stoubach,TRUE,TRUE,X,X,X,X,FALSE,FALSE,FALSE,FALSE,FALSE,FALSE,92%
B77: 25 | C77: GR5-043 GR5 Y GR56 | G77: 389.062422 | I77: TRUE | J77: TRUE | K77: 25 | O77: 1 | Q77: 70566.02989 | R77: 2994.272258 | S77: -2797.191164 | AA77: FALSE | AB77: FALSE | AC77: FALSE | AD77: FALSE | AE77: FALSE | AF77: FALSE | AH77: 0.92 | AS77: 70566.02989 | AT77: 2994.272258 | AU77: -2797.191164 | AV77: 34019.60927 | AW77: 35038.68007 | AX77: 0.001 | AY77: 0.001 | AZ77: 36546.41961 | BA77: 53711.03122 | BB77: 70566.02989 | BC77: 2994.272258 | BD77: -2797.191164 | BE77: 34019.60927 | BF77: 35038.68007 | BG77: 0.001 | BH77: 0.001 | BI77: 36546.41961 | BJ77: 53711.03122 | BK77: 2014-06-07T16:00:00 | BL77: GR5-043 GR5 Y GR56 | BM77: 389.062422 | BN77: 375.54408 | BO77: 477.3336335 | BP77: 428.1139006 | BQ77: 50,194352 | BR77: 6,136667 | BT77: 2441.886415 | BV77: 25 | BX77: 25,GR5-043 GR5 Y GR56,GR5-044 Ouest de Stoubach >>> GR5-043 GR5 Y GR56,TRUE,TRUE,X,X,X,X,FALSE,FALSE,FALSE,FALSE,FALSE,FALSE,92%
B78: 26 | C78: XXX GR56 | G78: 389.9789705 | I78: TRUE | J78: FALSE | K78: 25 | O78: 1 | Q78: 71262.96812 | R78: 3023.84154 | S78: -2825.843898 | AA78: FALSE | AB78: FALSE | AC78: FALSE | AD78: FALSE | AE78: FALSE | AF78: FALSE | AH78: 0.98 | AS78: 71262.96812 | AT78: 3023.84154 | AU78: -2825.843898 | AV78: 34324.81196 | AW78: 35351.32596 | AX78: 0.001 | AY78: 0.001 | AZ78: 36938.15516 | BA78: 54266.10367 | BB78: 71262.96812 | BC78: 3023.84154 | BD78: -2825.843898 | BE78: 34324.81196 | BF78: 35351.32596 | BG78: 0.001 | BH78: 0.001 | BI78: 36938.15516 | BJ78: 54266.10367 | BK78: 2014-06-07T16:00:00 | BL78: XXX GR56 | BM78: 389.9789705 | BN78: 362.91012 | BO78: 392.4794023 | BP78: 377.2929554 | BQ78: 50,197936 | BR78: 6,135567 | BT78: 696.9382335 | BV78: 26 | BX78: 26,XXX GR56,GR5-043 GR5 Y GR56 >>> XXX GR56,TRUE,FALSE,X,X,X,X,FALSE,FALSE,FALSE,FALSE,FALSE,FALSE,98%
B79: 27 | C79: GR5-042 Brug Reuland | G79: 398.5959529 | I79: TRUE | J79: TRUE | K79: 26 | O79: 1 | Q79: 71508.94636 | R79: 3032.458523 | S79: -2825.843898 | AA79: FALSE | AB79: FALSE | AC79: FALSE | AD79: FALSE | AE79: FALSE | AF79: FALSE | AH79: 0.98 | AS79: 71508.94636 | AT79: 3032.458523 | AU79: -2825.843898 | AV79: 34324.81196 | AW79: 35351.32596 | AX79: 0.001 | AY79: 0.001 | AZ79: 37184.1334 | BA79: 54542.55614 | BB79: 71508.94636 | BC79: 3032.458523 | BD79: -2825.843898 | BE79: 34324.81196 | BF79: 35351.32596 | BG79: 0.001 | BH79: 0.001 | BI79: 37184.1334 | BJ79: 54542.55614 | BK79: 2014-06-07T16:00:00 | BL79: GR5-042 Brug Reuland | BM79: 398.5959529 | BN79: 389.9789705 | BO79: 398.5959529 | BP79: 394.5966868 | BQ79: 50,198805 | BR79: 6,131535 | BT79: 245.97824 | BV79: 27 | BX79: 27,GR5-042 Brug Reuland,XXX GR56 >>> GR5-042 Brug Reuland,TRUE,TRUE,X,X,X,X,FALSE,FALSE,FALSE,FALSE,FALSE,FALSE,98%
B80: 28 | C80: GR5-041 Schirm | G80: 496.77828 | I80: TRUE | J80: TRUE | K80: 27 | O80: 1 | Q80: 78323.18029 | R80: 3236.226416 | S80: -2931.429464 | AA80: FALSE | AB80: FALSE | AC80: FALSE | AD80: FALSE | AE80: FALSE | AF80: FALSE | AH80: 0.98 | AS80: 78323.18029 | AT80: 3236.226416 | AU80: -2931.429464 | AV80: 36558.39724 | AW80: 37508.96354 | AX80: 0.001 | AY80: 0.001 | AZ80: 41764.78205 | BA80: 60008.49296 | BB80: 78323.18029 | BC80: 3236.226416 | BD80: -2931.429464 | BE80: 36558.39724 | BF80: 37508.96354 | BG80: 0.001 | BH80: 0.001 | BI80: 41764.78205 | BJ80: 60008.49296 | BK80: 2014-06-07T16:00:00 | BL80: GR5-041 Schirm | BM80: 496.77828 | BN80: 398.5959529 | BO80: 527.1047933 | BP80: 475.4835969 | BQ80: 50,230117 | BR80: 6,083345 | BT80: 6814.233927 | BV80: 28 | BX80: 28,GR5-041 Schirm,GR5-042 Brug Reuland >>> GR5-041 Schirm,TRUE,TRUE,X,X,X,X,FALSE,FALSE,FALSE,FALSE,FALSE,FALSE,98%
B81: 29 | C81: GRC Ravito 3 | G81: 453.23252 | I81: TRUE | J81: TRUE | K81: 28 | O81: 1 | Q81: 82208.97961 | R81: 3271.726553 | S81: -3010.475361 | AA81: TRUE | AB81: TRUE | AC81: TRUE | AD81: FALSE | AE81: TRUE | AF81: FALSE | AH81: 0.95 | AS81: 82208.97961 | AT81: 3271.726553 | AU81: -3010.475361 | AV81: 39028.54661 | AW81: 39851.83894 | AX81: 0.001 | AY81: 0.001 | AZ81: 43180.43201 | BA81: 61552.94323 | BB81: 82208.97961 | BC81: 3271.726553 | BD81: -3010.475361 | BE81: 39028.54661 | BF81: 39851.83894 | BG81: 0.001 | BH81: 0.001 | BI81: 43180.43201 | BJ81: 61552.94323 | BK81: 2014-06-07T16:00:00 | BL81: GRC Ravito 3 | BM81: 453.23252 | BN81: 439.1406 | BO81: 500.5832 | BP81: 467.4885744 | BQ81: 50,242488 | BR81: 6,059560 | BT81: 3885.799325 | BV81: 29 | BX81: 29,GRC Ravito 3,GR5-041 Schirm >>> GRC Ravito 3,TRUE,TRUE,X,X,X,X,TRUE,TRUE,TRUE,FALSE,TRUE,FALSE,95%
B82: 30 | C82: GR5-040 Braunlauf | G82: 453.23252 | I82: TRUE | J82: TRUE | K82: 29 | O82: 1 | Q82: 82351.04594 | R82: 3272.066913 | S82: -3010.815721 | AA82: FALSE | AB82: FALSE | AC82: FALSE | AD82: FALSE | AE82: FALSE | AF82: FALSE | AH82: 0.95 | AS82: 82351.04594 | AT82: 3272.066913 | AU82: -3010.815721 | AV82: 39119.27525 | AW82: 39941.67081 | AX82: 0.001 | AY82: 0.001 | AZ82: 43231.76969 | BA82: 61605.32217 | BB82: 82351.04594 | BC82: 3272.066913 | BD82: -3010.815721 | BE82: 39119.27525 | BF82: 39941.67081 | BG82: 0.001 | BH82: 0.001 | BI82: 43231.76969 | BJ82: 61605.32217 | BK82: 2014-06-07T16:00:00 | BL82: GR5-040 Braunlauf | BM82: 453.23252 | BN82: 452.91248 | BO82: 453.25284 | BP82: 453.1230101 | BQ82: 50,243085 | BR82: 6,058192 | BT82: 142.0663269 | BV82: 30 | BX82: 30,GR5-040 Braunlauf,GRC Ravito 3 >>> GR5-040 Braunlauf,TRUE,TRUE,X,X,X,X,FALSE,FALSE,FALSE,FALSE,FALSE,FALSE,95%
B83: 31 | C83: GR5-039 Commanster | G83: 507.65456 | I83: TRUE | J83: TRUE | K83: 30 | O83: 1 | Q83: 87245.90928 | R83: 3367.554401 | S83: -3051.881169 | AA83: FALSE | AB83: FALSE | AC83: FALSE | AD83: FALSE | AE83: FALSE | AF83: FALSE | AH83: 0.95 | AS83: 87245.90928 | AT83: 3367.554401 | AU83: -3051.881169 | AV83: 40793.81987 | AW83: 41546.56854 | AX83: 0.001 | AY83: 0.001 | AZ83: 46452.08841 | BA83: 65195.73946 | BB83: 87245.90928 | BC83: 3367.554401 | BD83: -3051.881169 | BE83: 40793.81987 | BF83: 41546.56854 | BG83: 0.001 | BH83: 0.001 | BI83: 46452.08841 | BJ83: 65195.73946 | BK83: 2014-06-07T16:00:00 | BL83: GR5-039 Commanster | BM83: 507.65456 | BN83: 449.1482 | BO83: 527.02968 | BP83: 495.8403871 | BQ83: 50,253310 | BR83: 6,000668 | BT83: 4894.863335 | BV83: 31 | BX83: 31,GR5-039 Commanster,GR5-040 Braunlauf >>> GR5-039 Commanster,TRUE,TRUE,X,X,X,X,FALSE,FALSE,FALSE,FALSE,FALSE,FALSE,95%
B84: 32 | C84: GR5-038 N823 | G84: 530.2256027 | I84: TRUE | J84: TRUE | K84: 31 | O84: 1 | Q84: 93910.95519 | R84: 3521.694764 | S84: -3183.450489 | AA84: FALSE | AB84: FALSE | AC84: FALSE | AD84: FALSE | AE84: FALSE | AF84: FALSE | AH84: 0.95 | AS84: 93910.95519 | AT84: 3521.694764 | AU84: -3183.450489 | AV84: 43836.99834 | AW84: 44417.93078 | AX84: 0.001 | AY84: 0.001 | AZ84: 50073.95585 | BA84: 69456.72941 | BB84: 93910.95519 | BC84: 3521.694764 | BD84: -3183.450489 | BE84: 43836.99834 | BF84: 44417.93078 | BG84: 0.001 | BH84: 0.001 | BI84: 50073.95585 | BJ84: 69456.72941 | BK84: 2014-06-07T16:00:00 | BL84: GR5-038 N823 | BM84: 530.2256027 | BN84: 466.4456 | BO84: 558.4704709 | BP84: 510.0706871 | BQ84: 50,274557 | BR84: =VLOOKUP($B84,RC_Table,BR$50,TRUE) -> 5,943610 | BT84: 6665.045914 | BV84: 32 | BX84: 32,GR5-038 N823,GR5-039 Commanster >>> GR5-038 N823,TRUE,TRUE,X,X,X,X,FALSE,FALSE,FALSE,FALSE,FALSE,FALSE,95%
B85: 33 | C85: GR5-037 Vielsalm | G85: 352.15576 | I85: TRUE | J85: TRUE | K85: 32 | O85: 1 | Q85: 96885.25674 | R85: 3529.242939 | S85: -3369.068507 | AA85: FALSE | AB85: FALSE | AC85: FALSE | AD85: FALSE | AE85: FALSE | AF85: FALSE | AH85: 0.98 | AS85: 96885.25674 | AT85: 3529.242939 | AU85: -3369.068507 | AV85: 46459.47325 | AW85: 46897.26189 | AX85: 0.001 | AY85: 0.001 | AZ85: 50425.7825 | BA85: 69842.25108 | BB85: 96885.25674 | BC85: 3529.242939 | BD85: -3369.068507 | BE85: 46459.47325 | BF85: 46897.26189 | BG85: 0.001 | BH85: 0.001 | BI85: 50425.7825 | BJ85: 69842.25108 | BK85: 2014-06-07T16:00:00 | BL85: GR5-037 Vielsalm | BM85: 352.15576 | BN85: 352.15576 | BO85: 530.3722181 | BP85: 451.3694437 | BQ85: 50,287919 | BR85: 5,914496 | BT85: 2974.301552 | BV85: 33 | BX85: 33,GR5-037 Vielsalm,GR5-038 N823 >>> GR5-037 Vielsalm,TRUE,TRUE,X,X,X,X,FALSE,FALSE,FALSE,FALSE,FALSE,FALSE,98%
B86: 34 | C86: GR5-036 Mon-le-Soie | G86: 553.8314309 | I86: TRUE | J86: TRUE | K86: 33 | O86: 1 | Q86: 102640.1769 | R86: 3759.426806 | S86: -3397.576703 | AA86: FALSE | AB86: FALSE | AC86: FALSE | AD86: FALSE | AE86: FALSE | AF86: FALSE | AH86: 0.95 | AS86: 102640.1769 | AT86: 3759.426806 | AU86: -3397.576703 | AV86: 47519.15013 | AW86: 47910.62704 | AX86: 0.001 | AY86: 0.001 | AZ86: 55121.02578 | BA86: 75561.82811 | BB86: 102640.1769 | BC86: 3759.426806 | BD86: -3397.576703 | BE86: 47519.15013 | BF86: 47910.62704 | BG86: 0.001 | BH86: 0.001 | BI86: 55121.02578 | BJ86: 75561.82811 | BK86: 2014-06-07T16:00:00 | BL86: GR5-036 Mon-le-Soie | BM86: 553.8314309 | BN86: 351.8966881 | BO86: 560.77612 | BP86: 486.6506054 | BQ86: 50,322674 | BR86: 5,962799 | BT86: 5754.920168 | BV86: 34 | BX86: 34,GR5-036 Mon-le-Soie,GR5-037 Vielsalm >>> GR5-036 Mon-le-Soie,TRUE,TRUE,X,X,X,X,FALSE,FALSE,FALSE,FALSE,FALSE,FALSE,95%
B87: 35 | C87: GRC Ravito 4 | G87: 542.1514028 | I87: TRUE | J87: TRUE | K87: 34 | O87: 1 | Q87: 103026.5164 | R87: 3760.903649 | S87: -3410.733574 | AA87: TRUE | AB87: TRUE | AC87: TRUE | AD87: FALSE | AE87: TRUE | AF87: FALSE | AH87: 0.95 | AS87: 103026.5164 | AT87: 3760.903649 | AU87: -3410.733574 | AV87: 47771.16246 | AW87: 48142.0705 | AX87: 0.001 | AY87: 0.001 | AZ87: 55255.35295 | BA87: 75700.60817 | BB87: 103026.5164 | BC87: 3760.903649 | BD87: -3410.733574 | BE87: 47771.16246 | BF87: 48142.0705 | BG87: 0.001 | BH87: 0.001 | BI87: 55255.35295 | BJ87: 75700.60817 | BK87: 2014-06-07T16:00:00 | BL87: GRC Ravito 4 | BM87: 542.1514028 | BN87: 541.26384 | BO87: 553.8314309 | BP87: 544.4778519 | BQ87: 50,325066 | BR87: 5,963574 | BT87: 386.3394947 | BV87: 35 | BX87: 35,GRC Ravito 4,GR5-036 Mon-le-Soie >>> GRC Ravito 4,TRUE,TRUE,X,X,X,X,TRUE,TRUE,TRUE,FALSE,TRUE,FALSE,95%
B88: 36 | C88: GR5-035 Logbiermé | G88: 536.5779438 | I88: TRUE | J88: TRUE | K88: 35 | O88: 1 | Q88: 105231.1577 | R88: 3795.381716 | S88: -3450.785101 | AA88: FALSE | AB88: FALSE | AC88: FALSE | AD88: FALSE | AE88: FALSE | AF88: FALSE | AH88: 0.95 | AS88: 105231.1577 | AT88: 3795.381716 | AU88: -3450.785101 | AV88: 49001.05424 | AW88: 49314.18148 | AX88: 0.001 | AY88: 0.001 | AZ88: 56230.10246 | BA88: 76814.74625 | BB88: 105231.1577 | BC88: 3795.381716 | BD88: -3450.785101 | BE88: 49001.05424 | BF88: 49314.18148 | BG88: 0.001 | BH88: 0.001 | BI88: 56230.10246 | BJ88: 76814.74625 | BK88: 2014-06-07T16:00:00 | BL88: GR5-035 Logbiermé | BM88: 536.5779438 | BN88: 536.5779438 | BO88: 563.0075746 | BP88: 547.8029104 | BQ88: 50,342447 | BR88: 5,961544 | BT88: 2204.641294 | BV88: 36 | BX88: 36,GR5-035 Logbiermé,GRC Ravito 4 >>> GR5-035 Logbiermé,TRUE,TRUE,X,X,X,X,FALSE,FALSE,FALSE,FALSE,FALSE,FALSE,95% | CM88: =VLOOKUP($BZ88,RBB_Table,CM$52,FALSE) -> 
B89: 37 | C89: GR5-034 Stavelot X GR14 | G89: 275.1836 | I89: TRUE | J89: TRUE | K89: 36 | O89: 1 | Q89: 112390.1803 | R89: 3853.043515 | S89: -3769.841243 | AA89: FALSE | AB89: FALSE | AC89: FALSE | AD89: FALSE | AE89: FALSE | AF89: FALSE | AH89: 0.92 | AS89: 112390.1803 | AT89: 3853.043515 | AU89: -3769.841243 | AV89: 54209.09645 | AW89: 54325.92209 | AX89: 0.001 | AY89: 0.001 | AZ89: 58181.08289 | BA89: 78990.83373 | BB89: 112390.1803 | BC89: 3853.043515 | BD89: -3769.841243 | BE89: 54209.09645 | BF89: 54325.92209 | BG89: 0.001 | BH89: 0.001 | BI89: 58181.08289 | BJ89: 78990.83373 | BK89: 2014-06-07T16:00:00 | BL89: GR5-034 Stavelot X GR14 | BM89: 275.1836 | BN89: 275.1836 | BO89: 578.359649 | BP89: 488.5027711 | BQ89: 50,391694 | BR89: 5,931950 | BT89: 7159.022642 | BV89: 37 | BX89: 37,GR5-034 Stavelot X GR14,GR5-035 Logbiermé >>> GR5-034 Stavelot X GR14,TRUE,TRUE,X,X,X,X,FALSE,FALSE,FALSE,FALSE,FALSE,FALSE,92%
B90: 38 | C90: GR5-033 Stavelot Centre | G90: 295.76268 | I90: TRUE | J90: TRUE | K90: 37 | O90: 1 | Q90: 112739.694 | R90: 3873.622595 | S90: -3769.841243 | AA90: FALSE | AB90: FALSE | AC90: FALSE | AD90: FALSE | AE90: FALSE | AF90: FALSE | AH90: 0.98 | AS90: 112739.694 | AT90: 3873.622595 | AU90: -3769.841243 | AV90: 54209.09645 | AW90: 54325.92209 | AX90: 0.001 | AY90: 0.001 | AZ90: 58530.59657 | BA90: 79427.48562 | BB90: 112739.694 | BC90: 3873.622595 | BD90: -3769.841243 | BE90: 54209.09645 | BF90: 54325.92209 | BG90: 0.001 | BH90: 0.001 | BI90: 58530.59657 | BJ90: 79427.48562 | BK90: 2014-06-07T16:00:00 | BL90: GR5-033 Stavelot Centre | BM90: 295.76268 | BN90: 275.1836 | BO90: 295.76268 | BP90: 285.1261627 | BQ90: 50,394561 | BR90: 5,930230 | BT90: 349.5136794 | BV90: 38 | BX90: 38,GR5-033 Stavelot Centre,GR5-034 Stavelot X GR14 >>> GR5-033 Stavelot Centre,TRUE,TRUE,X,X,X,X,FALSE,FALSE,FALSE,FALSE,FALSE,FALSE,98%
B91: 39 | C91: GR5-032 Ruy | G91: 303.96688 | I91: TRUE | J91: TRUE | K91: 38 | O91: 1 | Q91: 118706.6905 | R91: 4098.962964 | S91: -3986.977412 | AA91: FALSE | AB91: FALSE | AC91: FALSE | AD91: FALSE | AE91: FALSE | AF91: FALSE | AH91: 0.92 | AS91: 118706.6905 | AT91: 4098.962964 | AU91: -3986.977412 | AV91: 56854.62615 | AW91: 56947.63286 | AX91: 0.001 | AY91: 0.001 | AZ91: 61852.06339 | BA91: 83889.92897 | BB91: 118706.6905 | BC91: 4098.962964 | BD91: -3986.977412 | BE91: 56854.62615 | BF91: 56947.63286 | BG91: 0.001 | BH91: 0.001 | BI91: 61852.06339 | BJ91: 83889.92897 | BK91: 2014-06-07T16:00:00 | BL91: GR5-032 Ruy | BM91: 303.96688 | BN91: 295.76268 | BO91: 501.2031808 | BP91: 425.7712765 | BQ91: 50,432705 | BR91: 5,899537 | BT91: 5966.996523 | BV91: 39 | BX91: 39,GR5-032 Ruy,GR5-033 Stavelot Centre >>> GR5-032 Ruy,TRUE,TRUE,X,X,X,X,FALSE,FALSE,FALSE,FALSE,FALSE,FALSE,92%
B92: 40 | C92: GR5-031 Andrimont | G92: 445.4144 | I92: TRUE | J92: TRUE | K92: 39 | O92: 1 | Q92: 119929.2839 | R92: 4240.410484 | S92: -3986.977412 | AA92: FALSE | AB92: FALSE | AC92: FALSE | AD92: FALSE | AE92: FALSE | AF92: FALSE | AH92: 0.92 | AS92: 119929.2839 | AT92: 4240.410484 | AU92: -3986.977412 | AV92: 56854.62615 | AW92: 56947.63286 | AX92: 0.001 | AY92: 0.001 | AZ92: 63074.65672 | BA92: 85933.91529 | BB92: 119929.2839 | BC92: 4240.410484 | BD92: -3986.977412 | BE92: 56854.62615 | BF92: 56947.63286 | BG92: 0.001 | BH92: 0.001 | BI92: 63074.65672 | BJ92: 85933.91529 | BK92: 2014-06-07T16:00:00 | BL92: GR5-031 Andrimont | BM92: 445.4144 | BN92: 303.96688 | BO92: 445.4144 | BP92: 384.0008007 | BQ92: 50,438882 | BR92: 5,890739 | BT92: 1222.593326 | BV92: 40 | BX92: 40,GR5-031 Andrimont,GR5-032 Ruy >>> GR5-031 Andrimont,TRUE,TRUE,X,X,X,X,FALSE,FALSE,FALSE,FALSE,FALSE,FALSE,92%
B93: 41 | C93: GR5-030 Bérinzenne | G93: 546.6842 | I93: TRUE | J93: TRUE | K93: 40 | O93: 1 | Q93: 122446.8024 | R93: 4362.747556 | S93: -4008.044684 | AA93: FALSE | AB93: FALSE | AC93: FALSE | AD93: FALSE | AE93: FALSE | AF93: FALSE | AH93: 0.88 | AS93: =VLOOKUP($B93,RC_Table,AS$50,TRUE) -> 122446.8024 | AT93: 4362.747556 | AU93: -4008.044684 | AV93: 57667.93097 | AW93: 57720.23225 | AX93: 0.001 | AY93: 0.001 | AZ93: 64778.87039 | BA93: 88242.31249 | BB93: 122446.8024 | BC93: 4362.747556 | BD93: -4008.044684 | BE93: 57667.93097 | BF93: 57720.23225 | BG93: 0.001 | BH93: 0.001 | BI93: 64778.87039 | BJ93: 88242.31249 | BK93: 2014-06-07T16:00:00 | BL93: GR5-030 Bérinzenne | BM93: 546.6842 | BN93: 445.4144 | BO93: 567.7514718 | BP93: 530.6008482 | BQ93: 50,460010 | BR93: 5,886495 | BT93: 2517.518492 | BV93: 41 | BX93: 41,GR5-030 Bérinzenne,GR5-031 Andrimont >>> GR5-030 Bérinzenne,TRUE,TRUE,X,X,X,X,FALSE,FALSE,FALSE,FALSE,FALSE,FALSE,88% | CA93: =VLOOKUP($BZ93,RBB_Table,CA$52,FALSE) -> 
B94: 42 | C94: GR5-029 Chemin des Fontaines | G94: 431.67808 | I94: TRUE | J94: TRUE | K94: 41 | O94: 1 | Q94: 127012.2361 | R94: 4387.360156 | S94: -4147.663404 | AA94: FALSE | AB94: FALSE | AC94: FALSE | AD94: FALSE | AE94: FALSE | AF94: FALSE | AH94: 0.92 | AS94: 127012.2361 | AT94: 4387.360156 | AU94: -4147.663404 | AV94: 61113.10353 | AW94: 60925.58725 | AX94: 0.001 | AY94: 0.001 | AZ94: 65899.1316 | BA94: 89446.37685 | BB94: 127012.2361 | BC94: 4387.360156 | BD94: -4147.663404 | BE94: 61113.10353 | BF94: 60925.58725 | BG94: 0.001 | BH94: 0.001 | BI94: 65899.1316 | BJ94: 89446.37685 | BK94: 2014-06-07T16:00:00 | BL94: GR5-029 Chemin des Fontaines | BM94: 431.67808 | BN94: 431.67808 | BO94: 571.2968 | BP94: 513.8803671 | BQ94: 50,476901 | BR94: 5,886721 | BT94: 4565.433769 | BV94: 42 | BX94: 42,GR5-029 Chemin des Fontaines,GR5-030 Bérinzenne >>> GR5-029 Chemin des Fontaines,TRUE,TRUE,X,X,X,X,FALSE,FALSE,FALSE,FALSE,FALSE,FALSE,92%
B95: 43 | C95: GRC Ravito 5 | G95: 352.6433589 | I95: TRUE | J95: TRUE | K95: 42 | O95: 1 | Q95: 127898.5372 | R95: 4387.949436 | S95: -4227.287405 | AA95: TRUE | AB95: TRUE | AC95: TRUE | AD95: FALSE | AE95: TRUE | AF95: FALSE | AH95: 0.95 | AS95: 127898.5372 | AT95: 4387.949436 | AU95: -4227.287405 | AV95: 61982.93025 | AW95: 61774.93025 | AX95: 0.001 | AY95: 0.001 | AZ95: 65915.60591 | BA95: 89464.94461 | BB95: 127898.5372 | BC95: 4387.949436 | BD95: -4227.287405 | BE95: 61982.93025 | BF95: 61774.93025 | BG95: 0.001 | BH95: 0.001 | BI95: 65915.60591 | BJ95: 89464.94461 | BK95: 2014-06-07T16:00:00 | BL95: GRC Ravito 5 | BM95: 352.6433589 | BN95: 352.6433589 | BO95: 431.67808 | BP95: 390.5005284 | BQ95: 50,482344 | BR95: 5,880503 | BT95: 886.3010286 | BV95: 43 | BX95: 43,GRC Ravito 5,GR5-029 Chemin des Fontaines >>> GRC Ravito 5,TRUE,TRUE,X,X,X,X,TRUE,TRUE,TRUE,FALSE,FALSE,FALSE,95%
B96: 44 | C96: GR5-028 Spa | G96: 251.999475 | I96: TRUE | J96: TRUE | K96: 43 | O96: 1 | Q96: 130003.5946 | R96: 4389.933646 | S96: -4329.915499 | AA96: FALSE | AB96: FALSE | AC96: FALSE | AD96: FALSE | AE96: FALSE | AF96: FALSE | AH96: 0.98 | AS96: 130003.5946 | AT96: 4389.933646 | AU96: -4329.915499 | AV96: 63898.89998 | AW96: 63564.88467 | AX96: 0.002 | AY96: 0.002 | AZ96: 66104.69262 | BA96: 89660.19383 | BB96: 130003.5946 | BC96: 4389.933646 | BD96: -4329.915499 | BE96: 63898.89998 | BF96: 63564.88467 | BG96: 0.002 | BH96: 0.002 | BI96: 66104.69262 | BJ96: 89660.19383 | BK96: 2014-06-07T16:00:00 | BL96: GR5-028 Spa | BM96: 251.999475 | BN96: 251.999475 | BO96: 352.6433589 | BP96: 307.4267648 | BQ96: 50,492346 | BR96: 5,863176 | BT96: 2105.057441 | BV96: 44 | BX96: 44,GR5-028 Spa,GRC Ravito 5 >>> GR5-028 Spa,TRUE,TRUE,X,X,X,X,FALSE,FALSE,FALSE,FALSE,FALSE,FALSE,98%
B97: 45 | C97: GR5-027 Creppe | G97: 377.43892 | I97: TRUE | J97: TRUE | K97: 44 | O97: 1 | Q97: 135291.6766 | R97: 4580.061811 | S97: -4394.604219 | AA97: FALSE | AB97: FALSE | AC97: FALSE | AD97: FALSE | AE97: FALSE | AF97: FALSE | AH97: 0.95 | AS97: 135291.6766 | AT97: 4580.061811 | AU97: -4394.604219 | AV97: 65593.70919 | AW97: 65174.45219 | AX97: 0.002 | AY97: 0.002 | AZ97: 69697.96536 | BA97: 94100.41705 | BB97: 135291.6766 | BC97: 4580.061811 | BD97: -4394.604219 | BE97: 65593.70919 | BF97: 65174.45219 | BG97: 0.002 | BH97: 0.002 | BI97: 69697.96536 | BJ97: 94100.41705 | BK97: 2014-06-07T16:00:00 | BL97: GR5-027 Creppe | BM97: 377.43892 | BN97: 251.999475 | BO97: 398.82064 | BP97: 340.370121 | BQ97: 50,471250 | BR97: 5,838418 | BT97: 5288.08195 | BV97: 45 | BX97: 45,GR5-027 Creppe,GR5-028 Spa >>> GR5-027 Creppe,TRUE,TRUE,X,X,X,X,FALSE,FALSE,FALSE,FALSE,FALSE,FALSE,95%
B98: 46 | C98: XXX GR15 | G98: 259.8166 | I98: TRUE | J98: FALSE | K98: 44 | O98: 1 | Q98: 137048.014 | R98: 4588.541441 | S98: -4520.706169 | AA98: FALSE | AB98: FALSE | AC98: FALSE | AD98: FALSE | AE98: FALSE | AF98: FALSE | AH98: 0.92 | AS98: 137048.014 | AT98: 4588.541441 | AU98: -4520.706169 | AV98: 67045.08287 | AW98: 66695.91019 | AX98: 0.002 | AY98: 0.002 | AZ98: 70002.92915 | BA98: 94435.04217 | BB98: 137048.014 | BC98: 4588.541441 | BD98: -4520.706169 | BE98: 67045.08287 | BF98: 66695.91019 | BG98: 0.002 | BH98: 0.002 | BI98: 70002.92915 | BJ98: 94435.04217 | BK98: 2014-06-07T16:00:00 | BL98: XXX GR15 | BM98: 259.8166 | BN98: 259.8166 | BO98: 383.13471 | BP98: 343.8961572 | BQ98: 50,475047 | BR98: 5,816409 | BT98: 1756.337468 | BV98: 46 | BX98: 46,XXX GR15,GR5-027 Creppe >>> XXX GR15,TRUE,FALSE,X,X,X,X,FALSE,FALSE,FALSE,FALSE,FALSE,FALSE,92%
B99: 47 | C99: GR5-026 Winamplanche Y GR15 | G99: 257.03276 | I99: TRUE | J99: TRUE | K99: 45 | O99: 1 | Q99: 137107.1788 | R99: 4588.541441 | S99: -4523.490009 | AA99: FALSE | AB99: FALSE | AC99: FALSE | AD99: FALSE | AE99: FALSE | AF99: FALSE | AH99: 0.92 | AS99: 137107.1788 | AT99: 4588.541441 | AU99: -4523.490009 | AV99: 67104.24763 | AW99: 66750.28876 | AX99: 0.002 | AY99: 0.002 | AZ99: 70002.92915 | BA99: 94435.04217 | BB99: 137107.1788 | BC99: 4588.541441 | BD99: -4523.490009 | BE99: 67104.24763 | BF99: 66750.28876 | BG99: 0.002 | BH99: 0.002 | BI99: 70002.92915 | BJ99: 94435.04217 | BK99: 2014-06-07T16:00:00 | BL99: GR5-026 Winamplanche Y GR15 | BM99: 257.03276 | BN99: 257.03276 | BO99: 259.8166 | BP99: 258.3803103 | BQ99: 50,476046 | BR99: 5,818369 | BT99: 59.16476853 | BV99: 47 | BX99: 47,GR5-026 Winamplanche Y GR15,XXX GR15 >>> GR5-026 Winamplanche Y GR15,TRUE,TRUE,X,X,X,X,FALSE,FALSE,FALSE,FALSE,FALSE,FALSE,92%
B100: 48 | C100: GR5-025 La Reid | G100: 287.87344 | I100: TRUE | J100: TRUE | K100: 46 | O100: 1 | Q100: 140139.5211 | R100: 4709.820177 | S100: -4613.928065 | AA100: FALSE | AB100: FALSE | AC100: FALSE | AD100: FALSE | AE100: FALSE | AF100: FALSE | AH100: 0.92 | AS100: 140139.5211 | AT100: 4709.820177 | AU100: -4613.928065 | AV100: 68668.23171 | AW100: 68208.36658 | AX100: 0.002 | AY100: 0.002 | AZ100: 71471.28735 | BA100: 96595.04488 | BB100: 140139.5211 | BC100: 4709.820177 | BD100: -4613.928065 | BE100: 68668.23171 | BF100: 68208.36658 | BG100: 0.002 | BH100: 0.002 | BI100: 71471.28735 | BJ100: 96595.04488 | BK100: 2014-06-07T16:00:00 | BL100: GR5-025 La Reid | BM100: 287.87344 | BN100: 252.97892 | BO100: 372.12016 | BP100: 325.1380806 | BQ100: 50,489414 | BR100: 5,791440 | BT100: 3032.342271 | BV100: 48 | BX100: 48,GR5-025 La Reid,GR5-026 Winamplanche Y GR15 >>> GR5-025 La Reid,TRUE,TRUE,X,X,X,X,FALSE,FALSE,FALSE,FALSE,FALSE,FALSE,92%
B101: 49 | C101: GR5-024 Becco | G101: 325.63308 | I101: TRUE | J101: TRUE | K101: 47 | O101: 1 | Q101: 141770.3532 | R101: 4782.108929 | S101: -4648.457177 | AA101: FALSE | AB101: FALSE | AC101: FALSE | AD101: FALSE | AE101: FALSE | AF101: FALSE | AH101: 0.92 | AS101: 141770.3532 | AT101: 4782.108929 | AU101: -4648.457177 | AV101: 69547.40346 | AW101: 69035.00682 | AX101: 0.002 | AY101: 0.002 | AZ101: 72222.94778 | BA101: 97763.69195 | BB101: 141770.3532 | BC101: 4782.108929 | BD101: -4648.457177 | BE101: 69547.40346 | BF101: 69035.00682 | BG101: 0.002 | BH101: 0.002 | BI101: 72222.94778 | BJ101: 97763.69195 | BK101: 2014-06-07T16:00:00 | BL101: GR5-024 Becco | BM101: 325.63308 | BN101: 255.50368 | BO101: 325.63308 | BP101: 291.5603963 | BQ101: 50,502571 | BR101: 5,788536 | BT101: 1630.832174 | BV101: 49 | BX101: 49,GR5-024 Becco,GR5-025 La Reid >>> GR5-024 Becco,TRUE,TRUE,X,X,X,X,FALSE,FALSE,FALSE,FALSE,FALSE,FALSE,92%
B102: 50 | C102: XXX GR576 | G102: 279.18156 | I102: TRUE | J102: FALSE | K102: 47 | O102: 1 | Q102: 142834.0775 | R102: 4787.163528 | S102: -4699.963296 | AA102: FALSE | AB102: FALSE | AC102: FALSE | AD102: FALSE | AE102: FALSE | AF102: FALSE | AH102: 0.92 | AS102: 142834.0775 | AT102: 4787.163528 | AU102: -4699.963296 | AV102: 70374.11093 | AW102: 69835.00235 | AX102: 0.002 | AY102: 0.002 | AZ102: 72459.96458 | BA102: 98017.93368 | BB102: 142834.0775 | BC102: 4787.163528 | BD102: -4699.963296 | BE102: 70374.11093 | BF102: 69835.00235 | BG102: 0.002 | BH102: 0.002 | BI102: 72459.96458 | BJ102: 98017.93368 | BK102: 2014-06-07T16:00:00 | BL102: XXX GR576 | BM102: 279.18156 | BN102: 276.88032 | BO102: 328.1121187 | BP102: 303.8517309 | BQ102: 50,510286 | BR102: 5,782318 | BT102: 1063.724274 | BV102: 50 | BX102: 50,XXX GR576,GR5-024 Becco >>> XXX GR576,TRUE,FALSE,X,X,X,X,FALSE,FALSE,FALSE,FALSE,FALSE,FALSE,92%
B103: 51 | C103: GR5-023 Ruisseau de Targnon | G103: 276.57044 | I103: TRUE | J103: TRUE | K103: 48 | O103: 1 | Q103: 142915.3263 | R103: 4787.163528 | S103: -4702.574416 | AA103: FALSE | AB103: FALSE | AC103: FALSE | AD103: FALSE | AE103: FALSE | AF103: FALSE | AH103: 0.92 | AS103: 142915.3263 | AT103: 4787.163528 | AU103: -4702.574416 | AV103: 70455.35977 | AW103: 69911.25213 | AX103: 0.002 | AY103: 0.002 | AZ103: 72459.96458 | BA103: 98017.93368 | BB103: 142915.3263 | BC103: 4787.163528 | BD103: -4702.574416 | BE103: 70455.35977 | BF103: 69911.25213 | BG103: 0.002 | BH103: 0.002 | BI103: 72459.96458 | BJ103: 98017.93368 | BK103: 2014-06-07T16:00:00 | BL103: GR5-023 Ruisseau de Targnon | BM103: 276.57044 | BN103: 276.57044 | BO103: 279.18156 | BP103: 277.829657 | BQ103: 50,511311 | BR103: 5,783559 | BT103: 81.24884136 | BV103: 51 | BX103: 51,GR5-023 Ruisseau de Targnon,XXX GR576 >>> GR5-023 Ruisseau de Targnon,TRUE,TRUE,X,X,X,X,FALSE,FALSE,FALSE,FALSE,FALSE,FALSE,92%
B104: 52 | C104: GR5-022 Banneux Chapelle | G104: 311.5279157 | I104: TRUE | J104: TRUE | K104: 49 | O104: 1 | Q104: 147475.9372 | R104: 4873.016597 | S104: -4753.470009 | AA104: FALSE | AB104: FALSE | AC104: FALSE | AD104: FALSE | AE104: FALSE | AF104: FALSE | AH104: 0.92 | AS104: 147475.9372 | AT104: 4873.016597 | AU104: -4753.470009 | AV104: 72271.27927 | AW104: 71628.25707 | AX104: 0.002 | AY104: 0.002 | AZ104: 75204.65594 | BA104: 101093.3314 | BB104: 147475.9372 | BC104: 4873.016597 | BD104: -4753.470009 | BE104: 72271.27927 | BF104: 71628.25707 | BG104: 0.002 | BH104: 0.002 | BI104: 75204.65594 | BJ104: 101093.3314 | BK104: 2014-06-07T16:00:00 | BL104: GR5-022 Banneux Chapelle | BM104: 311.5279157 | BN104: 276.57044 | BO104: 348.8847666 | BP104: 326.2798028 | BQ104: 50,539667 | BR104: 5,749580 | BT104: 4560.610867 | BV104: 52 | BX104: 52,GR5-022 Banneux Chapelle,GR5-023 Ruisseau de Targnon >>> GR5-022 Banneux Chapelle,TRUE,TRUE,X,X,X,X,FALSE,FALSE,FALSE,FALSE,FALSE,FALSE,92%
B105: 53 | C105: GRC Ravito 6 | G105: 311.55132 | I105: TRUE | J105: TRUE | K105: 50 | O105: 1 | Q105: 147892.8007 | R105: 4876.257637 | S105: -4756.687645 | AA105: TRUE | AB105: TRUE | AC105: TRUE | AD105: FALSE | AE105: FALSE | AF105: FALSE | AH105: 0.95 | AS105: 147892.8007 | AT105: 4876.257637 | AU105: -4756.687645 | AV105: 72417.32346 | AW105: 71768.15347 | AX105: 0.002 | AY105: 0.002 | AZ105: 75475.47525 | BA105: 101374.6129 | BB105: 147892.8007 | BC105: 4876.257637 | BD105: -4756.687645 | BE105: 72417.32346 | BF105: 71768.15347 | BG105: 0.002 | BH105: 0.002 | BI105: 75475.47525 | BJ105: 101374.6129 | BK105: 2014-06-07T16:00:00 | BL105: GRC Ravito 6 | BM105: 311.55132 | BN105: 308.31028 | BO105: 311.55132 | BP105: 310.526275 | BQ105: 50,543252 | BR105: 5,747550 | BT105: 416.8635013 | BV105: 53 | BX105: 53,GRC Ravito 6,GR5-022 Banneux Chapelle >>> GRC Ravito 6,TRUE,TRUE,X,X,X,X,TRUE,TRUE,TRUE,FALSE,FALSE,FALSE,95%
B106: 54 | C106: GR5-021 Gare de Fraipont | G106: 116.713 | I106: TRUE | J106: TRUE | K106: 51 | O106: 1 | Q106: 151621.6356 | R106: 4889.308157 | S106: -4964.576485 | AA106: FALSE | AB106: FALSE | AC106: FALSE | AD106: FALSE | AE106: FALSE | AF106: FALSE | AH106: 0.95 | AS106: 151621.6356 | AT106: 4889.308157 | AU106: -4964.576485 | AV106: 75488.52776 | AW106: 74827.45025 | AX106: 0.002 | AY106: 0.002 | AZ106: 76133.10579 | BA106: 102079.2736 | BB106: 151621.6356 | BC106: 4889.308157 | BD106: -4964.576485 | BE106: 75488.52776 | BF106: 74827.45025 | BG106: 0.002 | BH106: 0.002 | BI106: 76133.10579 | BJ106: 102079.2736 | BK106: 2014-06-07T16:00:00 | BL106: GR5-021 Gare de Fraipont | BM106: 116.713 | BN106: 116.713 | BO106: 311.93232 | BP106: 253.8473695 | BQ106: 50,564979 | BR106: 5,723878 | BT106: 3728.834838 | BV106: 54 | BX106: 54,GR5-021 Gare de Fraipont,GRC Ravito 6 >>> GR5-021 Gare de Fraipont,TRUE,TRUE,X,X,X,X,FALSE,FALSE,FALSE,FALSE,FALSE,FALSE,95%
B107: 55 | C107: GR5-020 Nessonvaux Y GR573 | G107: 108.2938586 | I107: TRUE | J107: TRUE | K107: 52 | O107: 1 | Q107: 153930.9499 | R107: 4925.429132 | S107: -5009.116601 | AA107: FALSE | AB107: FALSE | AC107: FALSE | AD107: FALSE | AE107: FALSE | AF107: FALSE | AH107: 0.92 | AS107: 153930.9499 | AT107: 4925.429132 | AU107: -5009.116601 | AV107: 76724.58408 | AW107: 76001.24549 | AX107: 0.002 | AY107: 0.002 | AZ107: 77206.36384 | BA107: 103297.7273 | BB107: 153930.9499 | BC107: 4925.429132 | BD107: -5009.116601 | BE107: 76724.58408 | BF107: 76001.24549 | BG107: 0.002 | BH107: 0.002 | BI107: 77206.36384 | BJ107: 103297.7273 | BK107: 2014-06-07T16:00:00 | BL107: GR5-020 Nessonvaux Y GR573 | BM107: 108.2938586 | BN107: 105.7301137 | BO107: 138.9234159 | BP107: 119.4633589 | BQ107: 50,571463 | BR107: 5,738992 | BT107: 2309.314365 | BV107: 55 | BX107: 55,GR5-020 Nessonvaux Y GR573,GR5-021 Gare de Fraipont >>> GR5-020 Nessonvaux Y GR573,TRUE,TRUE,X,X,X,X,FALSE,FALSE,FALSE,FALSE,FALSE,FALSE,92%
B108: 56 | C108: GR5-019 Grihanster Y GR563 | G108: 192.41008 | I108: TRUE | J108: TRUE | K108: 53 | O108: 1 | Q108: 154986.1378 | R108: 5014.538428 | S108: -5014.109676 | AA108: FALSE | AB108: FALSE | AC108: FALSE | AD108: FALSE | AE108: FALSE | AF108: FALSE | AH108: 0.88 | AS108: 154986.1378 | AT108: 5014.538428 | AU108: -5014.109676 | AV108: 77105.16586 | AW108: 76370.01523 | AX108: 0.002 | AY108: 0.002 | AZ108: 77880.96994 | BA108: 104524.2069 | BB108: 154986.1378 | BC108: 5014.538428 | BD108: -5014.109676 | BE108: 77105.16586 | BF108: 76370.01523 | BG108: 0.002 | BH108: 0.002 | BI108: 77880.96994 | BJ108: 104524.2069 | BK108: 2014-06-07T16:00:00 | BL108: GR5-019 Grihanster Y GR563 | BM108: 192.41008 | BN108: 105.11028 | BO108: 192.41008 | BP108: 133.589727 | BQ108: 50,576787 | BR108: 5,743504 | BT108: 1055.187881 | BV108: 56 | BX108: 56,GR5-019 Grihanster Y GR563,GR5-020 Nessonvaux Y GR573 >>> GR5-019 Grihanster Y GR563,TRUE,TRUE,X,X,X,X,FALSE,FALSE,FALSE,FALSE,FALSE,FALSE,88% | CM108: =VLOOKUP($BZ108,RBB_Table,CM$52,FALSE) -> 
B109: 57 | C109: GR5-018 Olne - Fin GR5 | G109: 234.74446 | I109: TRUE | J109: TRUE | K109: 54 | O109: 1 | Q109: 157531.9549 | R109: 5130.411216 | S109: -5087.648084 | AA109: FALSE | AB109: FALSE | AC109: FALSE | AD109: FALSE | AE109: FALSE | AF109: FALSE | AH109: 0.92 | AS109: 157531.9549 | AT109: 5130.411216 | AU109: -5087.648084 | AV109: 77968.525 | AW109: 77299.37387 | AX109: 0.002 | AY109: 0.002 | AZ109: 79563.42786 | BA109: 106760.804 | BB109: 157531.9549 | BC109: 5130.411216 | BD109: -5087.648084 | BE109: 77968.525 | BF109: 77299.37387 | BG109: 0.002 | BH109: 0.002 | BI109: 79563.42786 | BJ109: 106760.804 | BK109: 2014-06-07T16:00:00 | BL109: GR5-018 Olne - Fin GR5 | BM109: 234.74446 | BN109: 124.52096 | BO109: 236.5211717 | BP109: 176.3582418 | BQ109: 50,589848 | BR109: 5,750144 | BT109: 2545.817064 | BV109: 57 | BX109: 57,GR5-018 Olne - Fin GR5,GR5-019 Grihanster Y GR563 >>> GR5-018 Olne - Fin GR5,TRUE,TRUE,X,X,X,X,FALSE,FALSE,FALSE,FALSE,FALSE,FALSE,92%
B110: 58 | C110: GRC Soiron - Arrivée | G110: 282.2049119 | I110: TRUE | J110: TRUE | K110: 55 | O110: 1 | Q110: 160935.002 | R110: 5264.903812 | S110: -5174.680228 | AA110: TRUE | AB110: TRUE | AC110: TRUE | AD110: TRUE | AE110: TRUE | AF110: TRUE | AH110: 0.92 | AS110: 160935.002 | AT110: 5264.903812 | AU110: -5174.680228 | AV110: 79625.35897 | AW110: 78928.03776 | AX110: 0.002 | AY110: 0.002 | AZ110: 81309.64103 | BA110: 109248.3888 | BB110: 160935.002 | BC110: 5264.903812 | BD110: -5174.680228 | BE110: 79625.35897 | BF110: 78928.03776 | BG110: 0.002 | BH110: 0.002 | BI110: 81309.64103 | BJ110: 109248.3888 | BK110: 2014-06-07T16:00:00 | BL110: GRC Soiron - Arrivée | BM110: 282.2049119 | BN110: 165.45052 | BO110: 283.8740985 | BP110: 238.3466019 | BQ110: 50,583205 | BR110: 5,784250 | BT110: 3403.047136 | BV110: 58 | BX110: 58,GRC Soiron - Arrivée,GR5-018 Olne - Fin GR5 >>> GRC Soiron - Arrivée,TRUE,TRUE,X,X,X,X,TRUE,TRUE,TRUE,TRUE,TRUE,TRUE,92%
B111: 59 | C111: GRC Soiron - Arrivée | G111: 282.2049119 | I111: TRUE | J111: TRUE | K111: 56 | O111: 1 | Q111: 160935.002 | R111: 5264.903812 | S111: -5174.680228 | AA111: FALSE | AB111: FALSE | AC111: FALSE | AD111: FALSE | AE111: FALSE | AF111: FALSE | AH111: 1 | AS111: 160935.002 | AT111: 5264.903812 | AU111: -5174.680228 | AV111: 79625.35897 | AW111: 78928.03776 | AX111: 0.002 | AY111: 0.002 | AZ111: 81309.64103 | BA111: 109248.3888 | BB111: 160935.002 | BC111: 5264.903812 | BD111: -5174.680228 | BE111: 79625.35897 | BF111: 78928.03776 | BG111: 0.002 | BH111: 0.002 | BI111: 81309.64103 | BJ111: 109248.3888 | BK111: 2014-06-07T16:00:00 | BL111: GRC Soiron - Arrivée | BM111: 282.2049119 | BN111: 165.45052 | BO111: 283.8740985 | BP111: 238.3466019 | BQ111: 50,583205 | BR111: 5,784250 | BT111: 0 | BV111: 59 | BX111: 59,GRC Soiron - Arrivée,GRC Soiron - Arrivée >>> GRC Soiron - Arrivée,TRUE,TRUE,X,X,X,X,FALSE,FALSE,FALSE,FALSE,FALSE,FALSE,100%
B112: 60 | C112: GRC Soiron - Arrivée | G112: 282.2049119 | I112: TRUE | J112: TRUE | K112: 57 | O112: 1 | Q112: 160935.002 | R112: 5264.903812 | S112: -5174.680228 | AA112: FALSE | AB112: FALSE | AC112: FALSE | AD112: FALSE | AE112: FALSE | AF112: FALSE | AH112: 1 | AS112: 160935.002 | AT112: 5264.903812 | AU112: -5174.680228 | AV112: 79625.35897 | AW112: 78928.03776 | AX112: 0.002 | AY112: 0.002 | AZ112: 81309.64103 | BA112: 109248.3888 | BB112: 160935.002 | BC112: 5264.903812 | BD112: -5174.680228 | BE112: 79625.35897 | BF112: 78928.03776 | BG112: 0.002 | BH112: 0.002 | BI112: 81309.64103 | BJ112: 109248.3888 | BK112: 2014-06-07T16:00:00 | BL112: GRC Soiron - Arrivée | BM112: 282.2049119 | BN112: 165.45052 | BO112: 283.8740985 | BP112: 238.3466019 | BQ112: 50,583205 | BR112: 5,784250 | BT112: 0 | BV112: 60 | BX112: 60,GRC Soiron - Arrivée,GRC Soiron - Arrivée >>> GRC Soiron - Arrivée,TRUE,TRUE,X,X,X,X,FALSE,FALSE,FALSE,FALSE,FALSE,FALSE,100%
B113: 61 | C113: GRC Soiron - Arrivée | G113: 282.2049119 | I113: TRUE | J113: TRUE | K113: 58 | O113: 1 | Q113: 160935.002 | R113: 5264.903812 | S113: -5174.680228 | AA113: FALSE | AB113: FALSE | AC113: FALSE | AD113: FALSE | AE113: FALSE | AF113: FALSE | AH113: 1 | AS113: =VLOOKUP($B113,RC_Table,AS$50,TRUE) -> 160935.002 | AT113: 5264.903812 | AU113: -5174.680228 | AV113: 79625.35897 | AW113: 78928.03776 | AX113: 0.002 | AY113: 0.002 | AZ113: 81309.64103 | BA113: 109248.3888 | BB113: 160935.002 | BC113: 5264.903812 | BD113: -5174.680228 | BE113: 79625.35897 | BF113: 78928.03776 | BG113: 0.002 | BH113: 0.002 | BI113: 81309.64103 | BJ113: 109248.3888 | BK113: 2014-06-07T16:00:00 | BL113: GRC Soiron - Arrivée | BM113: 282.2049119 | BN113: 165.45052 | BO113: 283.8740985 | BP113: 238.3466019 | BQ113: 50,583205 | BR113: 5,784250 | BT113: 0 | BV113: 61 | BX113: 61,GRC Soiron - Arrivée,GRC Soiron - Arrivée >>> GRC Soiron - Arrivée,TRUE,TRUE,X,X,X,X,FALSE,FALSE,FALSE,FALSE,FALSE,FALSE,100% | CA113: =VLOOKUP($BZ113,RBB_Table,CA$52,FALSE) -> 
B114: 62 | C114: GRC Soiron - Arrivée | G114: 282.2049119 | I114: TRUE | J114: TRUE | K114: 59 | O114: 1 | Q114: 160935.002 | R114: 5264.903812 | S114: -5174.680228 | AA114: FALSE | AB114: FALSE | AC114: FALSE | AD114: FALSE | AE114: FALSE | AF114: FALSE | AH114: 1 | AS114: 160935.002 | AT114: 5264.903812 | AU114: -5174.680228 | AV114: 79625.35897 | AW114: 78928.03776 | AX114: 0.002 | AY114: 0.002 | AZ114: 81309.64103 | BA114: 109248.3888 | BB114: 160935.002 | BC114: 5264.903812 | BD114: -5174.680228 | BE114: 79625.35897 | BF114: 78928.03776 | BG114: 0.002 | BH114: 0.002 | BI114: 81309.64103 | BJ114: 109248.3888 | BK114: 2014-06-07T16:00:00 | BL114: GRC Soiron - Arrivée | BM114: 282.2049119 | BN114: 165.45052 | BO114: 283.8740985 | BP114: 238.3466019 | BQ114: 50,583205 | BR114: 5,784250 | BT114: 0 | BV114: 62 | BX114: 62,GRC Soiron - Arrivée,GRC Soiron - Arrivée >>> GRC Soiron - Arrivée,TRUE,TRUE,X,X,X,X,FALSE,FALSE,FALSE,FALSE,FALSE,FALSE,100%
B115: 63 | C115: GRC Soiron - Arrivée | G115: 282.2049119 | I115: TRUE | J115: TRUE | K115: 60 | O115: 1 | Q115: 160935.002 | R115: 5264.903812 | S115: -5174.680228 | AA115: FALSE | AB115: FALSE | AC115: FALSE | AD115: FALSE | AE115: FALSE | AF115: FALSE | AH115: 1 | AS115: 160935.002 | AT115: 5264.903812 | AU115: -5174.680228 | AV115: 79625.35897 | AW115: 78928.03776 | AX115: 0.002 | AY115: 0.002 | AZ115: 81309.64103 | BA115: 109248.3888 | BB115: 160935.002 | BC115: 5264.903812 | BD115: -5174.680228 | BE115: 79625.35897 | BF115: 78928.03776 | BG115: 0.002 | BH115: 0.002 | BI115: 81309.64103 | BJ115: 109248.3888 | BK115: 2014-06-07T16:00:00 | BL115: GRC Soiron - Arrivée | BM115: 282.2049119 | BN115: 165.45052 | BO115: 283.8740985 | BP115: 238.3466019 | BQ115: 50,583205 | BR115: 5,784250 | BT115: 0 | BV115: 63 | BX115: 63,GRC Soiron - Arrivée,GRC Soiron - Arrivée >>> GRC Soiron - Arrivée,TRUE,TRUE,X,X,X,X,FALSE,FALSE,FALSE,FALSE,FALSE,FALSE,100%
B116: 64 | C116: GRC Soiron - Arrivée | G116: 282.2049119 | I116: TRUE | J116: TRUE | K116: 61 | O116: 1 | Q116: 160935.002 | R116: 5264.903812 | S116: -5174.680228 | AA116: FALSE | AB116: FALSE | AC116: FALSE | AD116: FALSE | AE116: FALSE | AF116: FALSE | AH116: 1 | AS116: 160935.002 | AT116: 5264.903812 | AU116: -5174.680228 | AV116: 79625.35897 | AW116: 78928.03776 | AX116: 0.002 | AY116: 0.002 | AZ116: 81309.64103 | BA116: 109248.3888 | BB116: 160935.002 | BC116: 5264.903812 | BD116: -5174.680228 | BE116: 79625.35897 | BF116: 78928.03776 | BG116: 0.002 | BH116: 0.002 | BI116: 81309.64103 | BJ116: 109248.3888 | BK116: 2014-06-07T16:00:00 | BL116: GRC Soiron - Arrivée | BM116: 282.2049119 | BN116: 165.45052 | BO116: 283.8740985 | BP116: 238.3466019 | BQ116: 50,583205 | BR116: 5,784250 | BT116: 0 | BV116: 64 | BX116: 64,GRC Soiron - Arrivée,GRC Soiron - Arrivée >>> GRC Soiron - Arrivée,TRUE,TRUE,X,X,X,X,FALSE,FALSE,FALSE,FALSE,FALSE,FALSE,100%
B117: 65 | C117: =VLOOKUP($B117,RC_Table,C$52,TRUE) -> GRC Soiron - Arrivée | G117: =VLOOKUP($B117,RC_Table,G$52,TRUE) -> 282.2049119 | I117: TRUE | J117: TRUE | K117: =K116+IF($J117,IF($I117,1,IF(OR($B117=MR_Nbr_Points,NOT($I118)),0,1)),0) -> 62 | O117: 1 | P117: =IF(AND($M117<>"",$N117<>""),MR_Input_Jour+$M117-1+$N117,"") ->  | Q117: =IF($I117,($AS117-$AS116),0)+IF($O117=$O116,Q116,0) -> 160935.002 | R117: =IF($I117,($AT117-$AT116),0)+IF($O117=$O116,R116,0) -> 5264.903812 | S117: =IF($I117,($AU117-$AU116),0)+IF($O117=$O116,S116,0) -> -5174.680228 | V117: =IF($U117<>"",$BK117+$U117,"") ->  | Y117: =IF($X117<>"",$BK117+$X117,"") ->  | AA117: FALSE | AB117: FALSE | AC117: FALSE | AD117: FALSE | AE117: FALSE | AF117: FALSE | AH117: 1 | AS117: 160935.002 | AT117: 5264.903812 | AU117: -5174.680228 | AV117: 79625.35897 | AW117: 78928.03776 | AX117: 0.002 | AY117: 0.002 | AZ117: 81309.64103 | BA117: 109248.3888 | BB117: =BB116+IF($I117,AS117-AS116,TC_Delta_Min) -> 160935.002 | BC117: 5264.903812 | BD117: -5174.680228 | BE117: 79625.35897 | BF117: 78928.03776 | BG117: =BG116+IF($I117,AX117-AX116,TC_Delta_Min) -> 0.002 | BH117: =BH116+IF($I117,AY117-AY116,TC_Delta_Min) -> 0.002 | BI117: 81309.64103 | BJ117: 109248.3888 | BK117: 2014-06-07T16:00:00 | BL117: GRC Soiron - Arrivée | BM117: 282.2049119 | BN117: =VLOOKUP($B117,RC_Table,BN$50,TRUE) -> 165.45052 | BO117: 283.8740985 | BP117: 238.3466019 | BQ117: 50,583205 | BR117: 5,784250 | BT117: 0 | BV117: 65 | BX117: 65,GRC Soiron - Arrivée,GRC Soiron - Arrivée >>> GRC Soiron - Arrivée,TRUE,TRUE,X,X,X,X,FALSE,FALSE,FALSE,FALSE,FALSE,FALSE,100% | BZ117: =MATCH(CONCATENATE(IF($B117=1,"X",SUBSTITUTE($C116,",",";"))," >>> ",SUBSTITUTE($C117,",",";")),RBB_Liste_De_A,0) -> 
B118: =B117+1 -> 66 | C118: GRC Soiron - Arrivée | G118: 282.2049119 | I118: TRUE | J118: TRUE | K118: 63 | O118: 1 | Q118: 160935.002 | R118: 5264.903812 | S118: -5174.680228 | AA118: FALSE | AB118: FALSE | AC118: FALSE | AD118: FALSE | AE118: FALSE | AF118: FALSE | AH118: 1 | AS118: 160935.002 | AT118: 5264.903812 | AU118: -5174.680228 | AV118: 79625.35897 | AW118: 78928.03776 | AX118: 0.002 | AY118: 0.002 | AZ118: 81309.64103 | BA118: 109248.3888 | BB118: 160935.002 | BC118: =BC117+IF($I118,AT118-AT117,0) -> 5264.903812 | BD118: =BD117+IF($I118,AU118-AU117,0) -> -5174.680228 | BE118: =BE117+IF($I118,AV118-AV117,0) -> 79625.35897 | BF118: =BF117+IF($I118,AW118-AW117,0) -> 78928.03776 | BG118: 0.002 | BH118: 0.002 | BI118: =BI117+IF($I118,AZ118-AZ117,0) -> 81309.64103 | BJ118: =BJ117+IF($I118,BA118-BA117,0) -> 109248.3888 | BK118: 2014-06-07T16:00:00 | BL118: =IF($AQ118<>"",$AQ118,$C118) -> GRC Soiron - Arrivée | BM118: =$G118 -> 282.2049119 | BN118: 165.45052 | BO118: 283.8740985 | BP118: 238.3466019 | BQ118: 50,583205 | BR118: 5,784250 | BT118: =$BB118-$BB117 -> 0 | BV118: =$B118 -> 66 | BX118: =CONCATENATE(TEXT($B118,"0"),",",SUBSTITUTE($C118,",",";"),",",IF($B118=1,"X",SUBSTITUTE($C117,",",";"))," >>> ",SUBSTITUTE($C118,",",";"),",",TEXT($I118,"0"),",",TEXT($J118,"0"),",",IF(ISBLANK($M118),"X",TEXT($M118,"0")),",",IF(ISBLANK($N118),"X",TEXT($N118,"[HH]:MM")),",",IF(ISBLANK($U118),"X",TEXT($U118,"[HH]:MM")),",",IF(ISBLANK($X118),"X",TEXT($X118,"[HH]:MM")),",",TEXT($AA118,"0"),",",TEXT($AB118,"0"),",",TEXT($AC118,"0"),",",TEXT($AD118,"0"),",",TEXT($AE118,"0"),",",TEXT($AF118,"0"),",",TEXT($AH118,"0%")) -> 66,GRC Soiron - Arrivée,GRC Soiron - Arrivée >>> GRC Soiron - Arrivée,TRUE,TRUE,X,X,X,X,FALSE,FALSE,FALSE,FALSE,FALSE,FALSE,100%
B119: 67 | C119: GRC Soiron - Arrivée | G119: 282.2049119 | I119: TRUE | J119: TRUE | K119: 64 | O119: 1 | Q119: 160935.002 | R119: 5264.903812 | S119: -5174.680228 | AA119: FALSE | AB119: FALSE | AC119: FALSE | AD119: FALSE | AE119: FALSE | AF119: FALSE | AH119: 1 | AS119: 160935.002 | AT119: 5264.903812 | AU119: -5174.680228 | AV119: 79625.35897 | AW119: 78928.03776 | AX119: 0.002 | AY119: 0.002 | AZ119: 81309.64103 | BA119: 109248.3888 | BB119: 160935.002 | BC119: 5264.903812 | BD119: -5174.680228 | BE119: 79625.35897 | BF119: 78928.03776 | BG119: 0.002 | BH119: 0.002 | BI119: 81309.64103 | BJ119: 109248.3888 | BK119: 2014-06-07T16:00:00 | BL119: GRC Soiron - Arrivée | BM119: 282.2049119 | BN119: 165.45052 | BO119: 283.8740985 | BP119: 238.3466019 | BQ119: 50,583205 | BR119: 5,784250 | BT119: 0 | BV119: 67 | BX119: 67,GRC Soiron - Arrivée,GRC Soiron - Arrivée >>> GRC Soiron - Arrivée,TRUE,TRUE,X,X,X,X,FALSE,FALSE,FALSE,FALSE,FALSE,FALSE,100%
B120: 68 | C120: GRC Soiron - Arrivée | G120: 282.2049119 | I120: TRUE | J120: TRUE | K120: 65 | O120: 1 | Q120: 160935.002 | R120: 5264.903812 | S120: -5174.680228 | AA120: FALSE | AB120: FALSE | AC120: FALSE | AD120: FALSE | AE120: FALSE | AF120: FALSE | AH120: 1 | AS120: 160935.002 | AT120: 5264.903812 | AU120: -5174.680228 | AV120: 79625.35897 | AW120: 78928.03776 | AX120: 0.002 | AY120: 0.002 | AZ120: 81309.64103 | BA120: 109248.3888 | BB120: 160935.002 | BC120: 5264.903812 | BD120: -5174.680228 | BE120: 79625.35897 | BF120: 78928.03776 | BG120: 0.002 | BH120: 0.002 | BI120: 81309.64103 | BJ120: 109248.3888 | BK120: 2014-06-07T16:00:00 | BL120: GRC Soiron - Arrivée | BM120: 282.2049119 | BN120: 165.45052 | BO120: 283.8740985 | BP120: 238.3466019 | BQ120: 50,583205 | BR120: 5,784250 | BT120: 0 | BV120: 68 | BX120: 68,GRC Soiron - Arrivée,GRC Soiron - Arrivée >>> GRC Soiron - Arrivée,TRUE,TRUE,X,X,X,X,FALSE,FALSE,FALSE,FALSE,FALSE,FALSE,100%
B121: 69 | C121: GRC Soiron - Arrivée | G121: 282.2049119 | I121: TRUE | J121: TRUE | K121: 66 | O121: =O120+IF(AND($M120<>"",$N120<>""),1,0) -> 1 | Q121: 160935.002 | R121: 5264.903812 | S121: -5174.680228 | AA121: FALSE | AB121: FALSE | AC121: FALSE | AD121: FALSE | AE121: FALSE | AF121: FALSE | AH121: 1 | AS121: 160935.002 | AT121: 5264.903812 | AU121: -5174.680228 | AV121: 79625.35897 | AW121: 78928.03776 | AX121: 0.002 | AY121: 0.002 | AZ121: 81309.64103 | BA121: 109248.3888 | BB121: 160935.002 | BC121: 5264.903812 | BD121: -5174.680228 | BE121: 79625.35897 | BF121: 78928.03776 | BG121: 0.002 | BH121: 0.002 | BI121: 81309.64103 | BJ121: 109248.3888 | BK121: 2014-06-07T16:00:00 | BL121: GRC Soiron - Arrivée | BM121: 282.2049119 | BN121: 165.45052 | BO121: 283.8740985 | BP121: 238.3466019 | BQ121: 50,583205 | BR121: 5,784250 | BT121: 0 | BV121: 69 | BX121: 69,GRC Soiron - Arrivée,GRC Soiron - Arrivée >>> GRC Soiron - Arrivée,TRUE,TRUE,X,X,X,X,FALSE,FALSE,FALSE,FALSE,FALSE,FALSE,100%
B122: 70 | C122: GRC Soiron - Arrivée | G122: 282.2049119 | I122: TRUE | J122: TRUE | K122: 67 | O122: 1 | Q122: 160935.002 | R122: 5264.903812 | S122: -5174.680228 | AA122: FALSE | AB122: FALSE | AC122: FALSE | AD122: FALSE | AE122: FALSE | AF122: FALSE | AH122: 1 | AS122: 160935.002 | AT122: 5264.903812 | AU122: -5174.680228 | AV122: 79625.35897 | AW122: 78928.03776 | AX122: 0.002 | AY122: 0.002 | AZ122: 81309.64103 | BA122: 109248.3888 | BB122: 160935.002 | BC122: 5264.903812 | BD122: -5174.680228 | BE122: 79625.35897 | BF122: 78928.03776 | BG122: 0.002 | BH122: 0.002 | BI122: 81309.64103 | BJ122: 109248.3888 | BK122: 2014-06-07T16:00:00 | BL122: GRC Soiron - Arrivée | BM122: 282.2049119 | BN122: 165.45052 | BO122: 283.8740985 | BP122: 238.3466019 | BQ122: 50,583205 | BR122: 5,784250 | BT122: 0 | BV122: 70 | BX122: 70,GRC Soiron - Arrivée,GRC Soiron - Arrivée >>> GRC Soiron - Arrivée,TRUE,TRUE,X,X,X,X,FALSE,FALSE,FALSE,FALSE,FALSE,FALSE,100%
B123: 71 | C123: GRC Soiron - Arrivée | G123: 282.2049119 | I123: TRUE | J123: TRUE | K123: 68 | O123: 1 | Q123: 160935.002 | R123: 5264.903812 | S123: -5174.680228 | AA123: FALSE | AB123: FALSE | AC123: FALSE | AD123: FALSE | AE123: FALSE | AF123: FALSE | AH123: 1 | AS123: 160935.002 | AT123: 5264.903812 | AU123: -5174.680228 | AV123: 79625.35897 | AW123: 78928.03776 | AX123: 0.002 | AY123: 0.002 | AZ123: 81309.64103 | BA123: 109248.3888 | BB123: 160935.002 | BC123: 5264.903812 | BD123: -5174.680228 | BE123: 79625.35897 | BF123: 78928.03776 | BG123: 0.002 | BH123: 0.002 | BI123: 81309.64103 | BJ123: 109248.3888 | BK123: 2014-06-07T16:00:00 | BL123: GRC Soiron - Arrivée | BM123: 282.2049119 | BN123: 165.45052 | BO123: 283.8740985 | BP123: 238.3466019 | BQ123: 50,583205 | BR123: 5,784250 | BT123: 0 | BV123: 71 | BX123: 71,GRC Soiron - Arrivée,GRC Soiron - Arrivée >>> GRC Soiron - Arrivée,TRUE,TRUE,X,X,X,X,FALSE,FALSE,FALSE,FALSE,FALSE,FALSE,100%
B124: 72 | C124: GRC Soiron - Arrivée | G124: 282.2049119 | I124: TRUE | J124: TRUE | K124: 69 | O124: 1 | Q124: 160935.002 | R124: 5264.903812 | S124: -5174.680228 | AA124: FALSE | AB124: FALSE | AC124: FALSE | AD124: FALSE | AE124: FALSE | AF124: FALSE | AH124: 1 | AS124: 160935.002 | AT124: 5264.903812 | AU124: -5174.680228 | AV124: 79625.35897 | AW124: 78928.03776 | AX124: 0.002 | AY124: 0.002 | AZ124: 81309.64103 | BA124: 109248.3888 | BB124: 160935.002 | BC124: 5264.903812 | BD124: -5174.680228 | BE124: 79625.35897 | BF124: 78928.03776 | BG124: 0.002 | BH124: 0.002 | BI124: 81309.64103 | BJ124: 109248.3888 | BK124: 2014-06-07T16:00:00 | BL124: GRC Soiron - Arrivée | BM124: 282.2049119 | BN124: 165.45052 | BO124: 283.8740985 | BP124: 238.3466019 | BQ124: 50,583205 | BR124: 5,784250 | BT124: 0 | BV124: 72 | BX124: 72,GRC Soiron - Arrivée,GRC Soiron - Arrivée >>> GRC Soiron - Arrivée,TRUE,TRUE,X,X,X,X,FALSE,FALSE,FALSE,FALSE,FALSE,FALSE,100%
B125: 73 | C125: GRC Soiron - Arrivée | G125: 282.2049119 | I125: TRUE | J125: TRUE | K125: 70 | O125: 1 | Q125: 160935.002 | R125: 5264.903812 | S125: -5174.680228 | AA125: FALSE | AB125: FALSE | AC125: FALSE | AD125: FALSE | AE125: FALSE | AF125: FALSE | AH125: 1 | AS125: 160935.002 | AT125: 5264.903812 | AU125: -5174.680228 | AV125: 79625.35897 | AW125: 78928.03776 | AX125: 0.002 | AY125: 0.002 | AZ125: 81309.64103 | BA125: 109248.3888 | BB125: 160935.002 | BC125: 5264.903812 | BD125: -5174.680228 | BE125: 79625.35897 | BF125: 78928.03776 | BG125: 0.002 | BH125: 0.002 | BI125: 81309.64103 | BJ125: 109248.3888 | BK125: 2014-06-07T16:00:00 | BL125: GRC Soiron - Arrivée | BM125: 282.2049119 | BN125: 165.45052 | BO125: 283.8740985 | BP125: 238.3466019 | BQ125: 50,583205 | BR125: 5,784250 | BT125: 0 | BV125: 73 | BX125: 73,GRC Soiron - Arrivée,GRC Soiron - Arrivée >>> GRC Soiron - Arrivée,TRUE,TRUE,X,X,X,X,FALSE,FALSE,FALSE,FALSE,FALSE,FALSE,100%
B126: 74 | C126: GRC Soiron - Arrivée | G126: 282.2049119 | I126: TRUE | J126: TRUE | K126: 71 | O126: 1 | Q126: 160935.002 | R126: 5264.903812 | S126: -5174.680228 | AA126: FALSE | AB126: FALSE | AC126: FALSE | AD126: FALSE | AE126: FALSE | AF126: FALSE | AH126: 1 | AS126: 160935.002 | AT126: 5264.903812 | AU126: -5174.680228 | AV126: 79625.35897 | AW126: 78928.03776 | AX126: 0.002 | AY126: 0.002 | AZ126: 81309.64103 | BA126: 109248.3888 | BB126: 160935.002 | BC126: 5264.903812 | BD126: -5174.680228 | BE126: 79625.35897 | BF126: 78928.03776 | BG126: 0.002 | BH126: 0.002 | BI126: 81309.64103 | BJ126: 109248.3888 | BK126: 2014-06-07T16:00:00 | BL126: GRC Soiron - Arrivée | BM126: 282.2049119 | BN126: 165.45052 | BO126: 283.8740985 | BP126: 238.3466019 | BQ126: 50,583205 | BR126: 5,784250 | BT126: 0 | BV126: 74 | BX126: 74,GRC Soiron - Arrivée,GRC Soiron - Arrivée >>> GRC Soiron - Arrivée,TRUE,TRUE,X,X,X,X,FALSE,FALSE,FALSE,FALSE,FALSE,FALSE,100%
B127: 75 | C127: GRC Soiron - Arrivée | G127: 282.2049119 | I127: TRUE | J127: TRUE | K127: 72 | O127: 1 | Q127: 160935.002 | R127: 5264.903812 | S127: -5174.680228 | AA127: FALSE | AB127: FALSE | AC127: FALSE | AD127: FALSE | AE127: FALSE | AF127: FALSE | AH127: 1 | AS127: 160935.002 | AT127: 5264.903812 | AU127: -5174.680228 | AV127: 79625.35897 | AW127: 78928.03776 | AX127: 0.002 | AY127: 0.002 | AZ127: 81309.64103 | BA127: 109248.3888 | BB127: 160935.002 | BC127: 5264.903812 | BD127: -5174.680228 | BE127: 79625.35897 | BF127: 78928.03776 | BG127: 0.002 | BH127: 0.002 | BI127: 81309.64103 | BJ127: 109248.3888 | BK127: 2014-06-07T16:00:00 | BL127: GRC Soiron - Arrivée | BM127: 282.2049119 | BN127: 165.45052 | BO127: 283.8740985 | BP127: 238.3466019 | BQ127: 50,583205 | BR127: 5,784250 | BT127: 0 | BV127: 75 | BX127: 75,GRC Soiron - Arrivée,GRC Soiron - Arrivée >>> GRC Soiron - Arrivée,TRUE,TRUE,X,X,X,X,FALSE,FALSE,FALSE,FALSE,FALSE,FALSE,100%
B128: 76 | C128: GRC Soiron - Arrivée | G128: 282.2049119 | I128: TRUE | J128: TRUE | K128: 73 | O128: 1 | Q128: 160935.002 | R128: 5264.903812 | S128: -5174.680228 | AA128: FALSE | AB128: FALSE | AC128: FALSE | AD128: FALSE | AE128: FALSE | AF128: FALSE | AH128: 1 | AS128: 160935.002 | AT128: 5264.903812 | AU128: -5174.680228 | AV128: 79625.35897 | AW128: 78928.03776 | AX128: 0.002 | AY128: 0.002 | AZ128: 81309.64103 | BA128: 109248.3888 | BB128: 160935.002 | BC128: 5264.903812 | BD128: -5174.680228 | BE128: 79625.35897 | BF128: 78928.03776 | BG128: 0.002 | BH128: 0.002 | BI128: 81309.64103 | BJ128: 109248.3888 | BK128: 2014-06-07T16:00:00 | BL128: GRC Soiron - Arrivée | BM128: 282.2049119 | BN128: 165.45052 | BO128: 283.8740985 | BP128: 238.3466019 | BQ128: 50,583205 | BR128: 5,784250 | BT128: 0 | BV128: 76 | BX128: 76,GRC Soiron - Arrivée,GRC Soiron - Arrivée >>> GRC Soiron - Arrivée,TRUE,TRUE,X,X,X,X,FALSE,FALSE,FALSE,FALSE,FALSE,FALSE,100% | CM128: =VLOOKUP($BZ128,RBB_Table,CM$52,FALSE) -> 
B129: 77 | C129: GRC Soiron - Arrivée | G129: 282.2049119 | I129: TRUE | J129: TRUE | K129: 74 | O129: 1 | Q129: 160935.002 | R129: 5264.903812 | S129: -5174.680228 | AA129: FALSE | AB129: FALSE | AC129: FALSE | AD129: FALSE | AE129: FALSE | AF129: FALSE | AH129: 1 | AS129: 160935.002 | AT129: 5264.903812 | AU129: -5174.680228 | AV129: 79625.35897 | AW129: 78928.03776 | AX129: 0.002 | AY129: 0.002 | AZ129: 81309.64103 | BA129: 109248.3888 | BB129: 160935.002 | BC129: 5264.903812 | BD129: -5174.680228 | BE129: 79625.35897 | BF129: 78928.03776 | BG129: 0.002 | BH129: 0.002 | BI129: 81309.64103 | BJ129: 109248.3888 | BK129: 2014-06-07T16:00:00 | BL129: GRC Soiron - Arrivée | BM129: 282.2049119 | BN129: 165.45052 | BO129: 283.8740985 | BP129: 238.3466019 | BQ129: 50,583205 | BR129: 5,784250 | BT129: 0 | BV129: 77 | BX129: 77,GRC Soiron - Arrivée,GRC Soiron - Arrivée >>> GRC Soiron - Arrivée,TRUE,TRUE,X,X,X,X,FALSE,FALSE,FALSE,FALSE,FALSE,FALSE,100%
B130: 78 | C130: GRC Soiron - Arrivée | G130: 282.2049119 | I130: TRUE | J130: TRUE | K130: 75 | O130: 1 | Q130: 160935.002 | R130: 5264.903812 | S130: -5174.680228 | AA130: FALSE | AB130: FALSE | AC130: FALSE | AD130: FALSE | AE130: FALSE | AF130: FALSE | AH130: 1 | AS130: 160935.002 | AT130: 5264.903812 | AU130: -5174.680228 | AV130: 79625.35897 | AW130: 78928.03776 | AX130: 0.002 | AY130: 0.002 | AZ130: 81309.64103 | BA130: 109248.3888 | BB130: 160935.002 | BC130: 5264.903812 | BD130: -5174.680228 | BE130: 79625.35897 | BF130: 78928.03776 | BG130: 0.002 | BH130: 0.002 | BI130: 81309.64103 | BJ130: 109248.3888 | BK130: =IF($O130<>$O129,$P129,BK129) -> 2014-06-07T16:00:00 | BL130: GRC Soiron - Arrivée | BM130: 282.2049119 | BN130: 165.45052 | BO130: 283.8740985 | BP130: 238.3466019 | BQ130: 50,583205 | BR130: 5,784250 | BT130: 0 | BV130: 78 | BX130: 78,GRC Soiron - Arrivée,GRC Soiron - Arrivée >>> GRC Soiron - Arrivée,TRUE,TRUE,X,X,X,X,FALSE,FALSE,FALSE,FALSE,FALSE,FALSE,100%
B131: 79 | C131: GRC Soiron - Arrivée | G131: 282.2049119 | I131: TRUE | J131: TRUE | K131: 76 | O131: 1 | Q131: 160935.002 | R131: 5264.903812 | S131: -5174.680228 | AA131: FALSE | AB131: FALSE | AC131: FALSE | AD131: FALSE | AE131: FALSE | AF131: FALSE | AH131: 1 | AS131: 160935.002 | AT131: 5264.903812 | AU131: -5174.680228 | AV131: 79625.35897 | AW131: 78928.03776 | AX131: 0.002 | AY131: 0.002 | AZ131: 81309.64103 | BA131: 109248.3888 | BB131: 160935.002 | BC131: 5264.903812 | BD131: -5174.680228 | BE131: 79625.35897 | BF131: 78928.03776 | BG131: 0.002 | BH131: 0.002 | BI131: 81309.64103 | BJ131: 109248.3888 | BK131: 2014-06-07T16:00:00 | BL131: GRC Soiron - Arrivée | BM131: 282.2049119 | BN131: 165.45052 | BO131: 283.8740985 | BP131: 238.3466019 | BQ131: 50,583205 | BR131: 5,784250 | BT131: 0 | BV131: 79 | BX131: 79,GRC Soiron - Arrivée,GRC Soiron - Arrivée >>> GRC Soiron - Arrivée,TRUE,TRUE,X,X,X,X,FALSE,FALSE,FALSE,FALSE,FALSE,FALSE,100%
B132: 80 | C132: GRC Soiron - Arrivée | G132: 282.2049119 | I132: TRUE | J132: TRUE | K132: 77 | O132: 1 | Q132: 160935.002 | R132: 5264.903812 | S132: -5174.680228 | AA132: FALSE | AB132: FALSE | AC132: FALSE | AD132: FALSE | AE132: FALSE | AF132: FALSE | AH132: 1 | AS132: 160935.002 | AT132: 5264.903812 | AU132: -5174.680228 | AV132: 79625.35897 | AW132: 78928.03776 | AX132: 0.002 | AY132: 0.002 | AZ132: 81309.64103 | BA132: 109248.3888 | BB132: 160935.002 | BC132: 5264.903812 | BD132: -5174.680228 | BE132: 79625.35897 | BF132: 78928.03776 | BG132: 0.002 | BH132: 0.002 | BI132: 81309.64103 | BJ132: 109248.3888 | BK132: 2014-06-07T16:00:00 | BL132: GRC Soiron - Arrivée | BM132: 282.2049119 | BN132: 165.45052 | BO132: 283.8740985 | BP132: 238.3466019 | BQ132: 50,583205 | BR132: 5,784250 | BT132: 0 | BV132: 80 | BX132: 80,GRC Soiron - Arrivée,GRC Soiron - Arrivée >>> GRC Soiron - Arrivée,TRUE,TRUE,X,X,X,X,FALSE,FALSE,FALSE,FALSE,FALSE,FALSE,100%
B133: 81 | C133: GRC Soiron - Arrivée | G133: 282.2049119 | I133: TRUE | J133: TRUE | K133: 78 | O133: 1 | Q133: 160935.002 | R133: 5264.903812 | S133: -5174.680228 | AA133: FALSE | AB133: FALSE | AC133: FALSE | AD133: FALSE | AE133: FALSE | AF133: FALSE | AH133: 1 | AS133: =VLOOKUP($B133,RC_Table,AS$50,TRUE) -> 160935.002 | AT133: 5264.903812 | AU133: -5174.680228 | AV133: 79625.35897 | AW133: 78928.03776 | AX133: 0.002 | AY133: 0.002 | AZ133: 81309.64103 | BA133: 109248.3888 | BB133: 160935.002 | BC133: 5264.903812 | BD133: -5174.680228 | BE133: 79625.35897 | BF133: 78928.03776 | BG133: 0.002 | BH133: 0.002 | BI133: 81309.64103 | BJ133: 109248.3888 | BK133: 2014-06-07T16:00:00 | BL133: GRC Soiron - Arrivée | BM133: 282.2049119 | BN133: 165.45052 | BO133: 283.8740985 | BP133: 238.3466019 | BQ133: 50,583205 | BR133: 5,784250 | BT133: 0 | BV133: 81 | BX133: 81,GRC Soiron - Arrivée,GRC Soiron - Arrivée >>> GRC Soiron - Arrivée,TRUE,TRUE,X,X,X,X,FALSE,FALSE,FALSE,FALSE,FALSE,FALSE,100% | CA133: =VLOOKUP($BZ133,RBB_Table,CA$52,FALSE) -> 
B134: 82 | C134: GRC Soiron - Arrivée | G134: 282.2049119 | I134: TRUE | J134: TRUE | K134: 79 | O134: 1 | Q134: 160935.002 | R134: 5264.903812 | S134: -5174.680228 | AA134: FALSE | AB134: FALSE | AC134: FALSE | AD134: FALSE | AE134: FALSE | AF134: FALSE | AH134: 1 | AS134: 160935.002 | AT134: 5264.903812 | AU134: -5174.680228 | AV134: 79625.35897 | AW134: 78928.03776 | AX134: 0.002 | AY134: 0.002 | AZ134: 81309.64103 | BA134: 109248.3888 | BB134: 160935.002 | BC134: 5264.903812 | BD134: -5174.680228 | BE134: 79625.35897 | BF134: 78928.03776 | BG134: 0.002 | BH134: 0.002 | BI134: 81309.64103 | BJ134: 109248.3888 | BK134: 2014-06-07T16:00:00 | BL134: GRC Soiron - Arrivée | BM134: 282.2049119 | BN134: 165.45052 | BO134: 283.8740985 | BP134: 238.3466019 | BQ134: 50,583205 | BR134: 5,784250 | BT134: 0 | BV134: 82 | BX134: 82,GRC Soiron - Arrivée,GRC Soiron - Arrivée >>> GRC Soiron - Arrivée,TRUE,TRUE,X,X,X,X,FALSE,FALSE,FALSE,FALSE,FALSE,FALSE,100%
B135: 83 | C135: GRC Soiron - Arrivée | G135: 282.2049119 | I135: TRUE | J135: TRUE | K135: 80 | O135: 1 | Q135: 160935.002 | R135: 5264.903812 | S135: -5174.680228 | AA135: FALSE | AB135: FALSE | AC135: FALSE | AD135: FALSE | AE135: FALSE | AF135: FALSE | AH135: 1 | AS135: 160935.002 | AT135: 5264.903812 | AU135: -5174.680228 | AV135: 79625.35897 | AW135: 78928.03776 | AX135: 0.002 | AY135: 0.002 | AZ135: 81309.64103 | BA135: 109248.3888 | BB135: 160935.002 | BC135: 5264.903812 | BD135: -5174.680228 | BE135: 79625.35897 | BF135: 78928.03776 | BG135: 0.002 | BH135: 0.002 | BI135: 81309.64103 | BJ135: 109248.3888 | BK135: 2014-06-07T16:00:00 | BL135: GRC Soiron - Arrivée | BM135: 282.2049119 | BN135: 165.45052 | BO135: 283.8740985 | BP135: 238.3466019 | BQ135: 50,583205 | BR135: 5,784250 | BT135: 0 | BV135: 83 | BX135: 83,GRC Soiron - Arrivée,GRC Soiron - Arrivée >>> GRC Soiron - Arrivée,TRUE,TRUE,X,X,X,X,FALSE,FALSE,FALSE,FALSE,FALSE,FALSE,100%
B136: 84 | C136: GRC Soiron - Arrivée | G136: 282.2049119 | I136: TRUE | J136: TRUE | K136: 81 | O136: 1 | Q136: 160935.002 | R136: 5264.903812 | S136: -5174.680228 | AA136: FALSE | AB136: FALSE | AC136: FALSE | AD136: FALSE | AE136: FALSE | AF136: FALSE | AH136: 1 | AS136: 160935.002 | AT136: 5264.903812 | AU136: -5174.680228 | AV136: 79625.35897 | AW136: 78928.03776 | AX136: 0.002 | AY136: 0.002 | AZ136: 81309.64103 | BA136: 109248.3888 | BB136: 160935.002 | BC136: 5264.903812 | BD136: -5174.680228 | BE136: 79625.35897 | BF136: 78928.03776 | BG136: 0.002 | BH136: 0.002 | BI136: 81309.64103 | BJ136: 109248.3888 | BK136: 2014-06-07T16:00:00 | BL136: GRC Soiron - Arrivée | BM136: 282.2049119 | BN136: 165.45052 | BO136: 283.8740985 | BP136: 238.3466019 | BQ136: 50,583205 | BR136: 5,784250 | BT136: 0 | BV136: 84 | BX136: 84,GRC Soiron - Arrivée,GRC Soiron - Arrivée >>> GRC Soiron - Arrivée,TRUE,TRUE,X,X,X,X,FALSE,FALSE,FALSE,FALSE,FALSE,FALSE,100%
B137: 85 | C137: GRC Soiron - Arrivée | G137: 282.2049119 | I137: TRUE | J137: TRUE | K137: 82 | O137: 1 | Q137: 160935.002 | R137: 5264.903812 | S137: -5174.680228 | AA137: FALSE | AB137: FALSE | AC137: FALSE | AD137: FALSE | AE137: FALSE | AF137: FALSE | AH137: 1 | AS137: 160935.002 | AT137: 5264.903812 | AU137: -5174.680228 | AV137: 79625.35897 | AW137: 78928.03776 | AX137: 0.002 | AY137: 0.002 | AZ137: 81309.64103 | BA137: 109248.3888 | BB137: 160935.002 | BC137: 5264.903812 | BD137: -5174.680228 | BE137: 79625.35897 | BF137: 78928.03776 | BG137: 0.002 | BH137: 0.002 | BI137: 81309.64103 | BJ137: 109248.3888 | BK137: 2014-06-07T16:00:00 | BL137: GRC Soiron - Arrivée | BM137: 282.2049119 | BN137: 165.45052 | BO137: 283.8740985 | BP137: 238.3466019 | BQ137: 50,583205 | BR137: 5,784250 | BT137: 0 | BV137: 85 | BX137: 85,GRC Soiron - Arrivée,GRC Soiron - Arrivée >>> GRC Soiron - Arrivée,TRUE,TRUE,X,X,X,X,FALSE,FALSE,FALSE,FALSE,FALSE,FALSE,100%
B138: 86 | C138: GRC Soiron - Arrivée | G138: 282.2049119 | I138: TRUE | J138: TRUE | K138: 83 | O138: 1 | Q138: 160935.002 | R138: 5264.903812 | S138: -5174.680228 | AA138: FALSE | AB138: FALSE | AC138: FALSE | AD138: FALSE | AE138: FALSE | AF138: FALSE | AH138: 1 | AS138: 160935.002 | AT138: 5264.903812 | AU138: -5174.680228 | AV138: 79625.35897 | AW138: 78928.03776 | AX138: 0.002 | AY138: 0.002 | AZ138: 81309.64103 | BA138: 109248.3888 | BB138: 160935.002 | BC138: 5264.903812 | BD138: -5174.680228 | BE138: 79625.35897 | BF138: 78928.03776 | BG138: 0.002 | BH138: 0.002 | BI138: 81309.64103 | BJ138: 109248.3888 | BK138: 2014-06-07T16:00:00 | BL138: GRC Soiron - Arrivée | BM138: 282.2049119 | BN138: 165.45052 | BO138: 283.8740985 | BP138: 238.3466019 | BQ138: 50,583205 | BR138: 5,784250 | BT138: 0 | BV138: 86 | BX138: 86,GRC Soiron - Arrivée,GRC Soiron - Arrivée >>> GRC Soiron - Arrivée,TRUE,TRUE,X,X,X,X,FALSE,FALSE,FALSE,FALSE,FALSE,FALSE,100%
B139: 87 | C139: GRC Soiron - Arrivée | G139: 282.2049119 | I139: TRUE | J139: TRUE | K139: 84 | O139: 1 | Q139: 160935.002 | R139: 5264.903812 | S139: -5174.680228 | AA139: FALSE | AB139: FALSE | AC139: FALSE | AD139: FALSE | AE139: FALSE | AF139: FALSE | AH139: 1 | AS139: 160935.002 | AT139: 5264.903812 | AU139: -5174.680228 | AV139: 79625.35897 | AW139: 78928.03776 | AX139: 0.002 | AY139: 0.002 | AZ139: 81309.64103 | BA139: 109248.3888 | BB139: 160935.002 | BC139: 5264.903812 | BD139: -5174.680228 | BE139: 79625.35897 | BF139: 78928.03776 | BG139: 0.002 | BH139: 0.002 | BI139: 81309.64103 | BJ139: 109248.3888 | BK139: 2014-06-07T16:00:00 | BL139: GRC Soiron - Arrivée | BM139: 282.2049119 | BN139: 165.45052 | BO139: 283.8740985 | BP139: 238.3466019 | BQ139: 50,583205 | BR139: 5,784250 | BT139: 0 | BV139: 87 | BX139: 87,GRC Soiron - Arrivée,GRC Soiron - Arrivée >>> GRC Soiron - Arrivée,TRUE,TRUE,X,X,X,X,FALSE,FALSE,FALSE,FALSE,FALSE,FALSE,100%
B140: 88 | C140: GRC Soiron - Arrivée | G140: 282.2049119 | I140: TRUE | J140: TRUE | K140: 85 | O140: 1 | Q140: 160935.002 | R140: 5264.903812 | S140: -5174.680228 | AA140: FALSE | AB140: FALSE | AC140: FALSE | AD140: FALSE | AE140: FALSE | AF140: FALSE | AH140: 1 | AS140: 160935.002 | AT140: 5264.903812 | AU140: -5174.680228 | AV140: 79625.35897 | AW140: 78928.03776 | AX140: 0.002 | AY140: 0.002 | AZ140: 81309.64103 | BA140: 109248.3888 | BB140: 160935.002 | BC140: 5264.903812 | BD140: -5174.680228 | BE140: 79625.35897 | BF140: 78928.03776 | BG140: 0.002 | BH140: 0.002 | BI140: 81309.64103 | BJ140: 109248.3888 | BK140: 2014-06-07T16:00:00 | BL140: GRC Soiron - Arrivée | BM140: 282.2049119 | BN140: 165.45052 | BO140: 283.8740985 | BP140: 238.3466019 | BQ140: 50,583205 | BR140: 5,784250 | BT140: 0 | BV140: 88 | BX140: 88,GRC Soiron - Arrivée,GRC Soiron - Arrivée >>> GRC Soiron - Arrivée,TRUE,TRUE,X,X,X,X,FALSE,FALSE,FALSE,FALSE,FALSE,FALSE,100%
B141: 89 | C141: GRC Soiron - Arrivée | G141: 282.2049119 | I141: TRUE | J141: TRUE | K141: 86 | O141: 1 | Q141: 160935.002 | R141: 5264.903812 | S141: -5174.680228 | AA141: FALSE | AB141: FALSE | AC141: FALSE | AD141: FALSE | AE141: FALSE | AF141: FALSE | AH141: 1 | AS141: 160935.002 | AT141: 5264.903812 | AU141: -5174.680228 | AV141: 79625.35897 | AW141: 78928.03776 | AX141: 0.002 | AY141: 0.002 | AZ141: 81309.64103 | BA141: 109248.3888 | BB141: 160935.002 | BC141: 5264.903812 | BD141: -5174.680228 | BE141: 79625.35897 | BF141: 78928.03776 | BG141: 0.002 | BH141: 0.002 | BI141: 81309.64103 | BJ141: 109248.3888 | BK141: 2014-06-07T16:00:00 | BL141: GRC Soiron - Arrivée | BM141: 282.2049119 | BN141: 165.45052 | BO141: 283.8740985 | BP141: 238.3466019 | BQ141: 50,583205 | BR141: 5,784250 | BT141: 0 | BV141: 89 | BX141: 89,GRC Soiron - Arrivée,GRC Soiron - Arrivée >>> GRC Soiron - Arrivée,TRUE,TRUE,X,X,X,X,FALSE,FALSE,FALSE,FALSE,FALSE,FALSE,100%
B142: 90 | C142: GRC Soiron - Arrivée | G142: 282.2049119 | I142: TRUE | J142: TRUE | K142: 87 | O142: 1 | Q142: 160935.002 | R142: 5264.903812 | S142: -5174.680228 | AA142: FALSE | AB142: FALSE | AC142: FALSE | AD142: FALSE | AE142: FALSE | AF142: FALSE | AH142: 1 | AS142: 160935.002 | AT142: 5264.903812 | AU142: -5174.680228 | AV142: 79625.35897 | AW142: 78928.03776 | AX142: 0.002 | AY142: 0.002 | AZ142: 81309.64103 | BA142: 109248.3888 | BB142: 160935.002 | BC142: 5264.903812 | BD142: -5174.680228 | BE142: 79625.35897 | BF142: 78928.03776 | BG142: 0.002 | BH142: 0.002 | BI142: 81309.64103 | BJ142: 109248.3888 | BK142: 2014-06-07T16:00:00 | BL142: GRC Soiron - Arrivée | BM142: 282.2049119 | BN142: 165.45052 | BO142: 283.8740985 | BP142: 238.3466019 | BQ142: 50,583205 | BR142: 5,784250 | BT142: 0 | BV142: 90 | BX142: 90,GRC Soiron - Arrivée,GRC Soiron - Arrivée >>> GRC Soiron - Arrivée,TRUE,TRUE,X,X,X,X,FALSE,FALSE,FALSE,FALSE,FALSE,FALSE,100%
B143: 91 | C143: GRC Soiron - Arrivée | G143: 282.2049119 | I143: TRUE | J143: TRUE | K143: 88 | O143: 1 | Q143: 160935.002 | R143: 5264.903812 | S143: -5174.680228 | AA143: FALSE | AB143: FALSE | AC143: FALSE | AD143: FALSE | AE143: FALSE | AF143: FALSE | AH143: 1 | AS143: 160935.002 | AT143: 5264.903812 | AU143: -5174.680228 | AV143: 79625.35897 | AW143: 78928.03776 | AX143: 0.002 | AY143: 0.002 | AZ143: 81309.64103 | BA143: 109248.3888 | BB143: 160935.002 | BC143: 5264.903812 | BD143: -5174.680228 | BE143: 79625.35897 | BF143: 78928.03776 | BG143: 0.002 | BH143: 0.002 | BI143: 81309.64103 | BJ143: 109248.3888 | BK143: 2014-06-07T16:00:00 | BL143: GRC Soiron - Arrivée | BM143: 282.2049119 | BN143: 165.45052 | BO143: 283.8740985 | BP143: 238.3466019 | BQ143: 50,583205 | BR143: 5,784250 | BT143: 0 | BV143: 91 | BX143: 91,GRC Soiron - Arrivée,GRC Soiron - Arrivée >>> GRC Soiron - Arrivée,TRUE,TRUE,X,X,X,X,FALSE,FALSE,FALSE,FALSE,FALSE,FALSE,100%
B144: 92 | C144: GRC Soiron - Arrivée | G144: 282.2049119 | I144: TRUE | J144: TRUE | K144: 89 | O144: 1 | Q144: 160935.002 | R144: 5264.903812 | S144: -5174.680228 | AA144: FALSE | AB144: FALSE | AC144: FALSE | AD144: FALSE | AE144: FALSE | AF144: FALSE | AH144: 1 | AS144: 160935.002 | AT144: 5264.903812 | AU144: -5174.680228 | AV144: 79625.35897 | AW144: 78928.03776 | AX144: 0.002 | AY144: 0.002 | AZ144: 81309.64103 | BA144: 109248.3888 | BB144: 160935.002 | BC144: 5264.903812 | BD144: -5174.680228 | BE144: 79625.35897 | BF144: 78928.03776 | BG144: 0.002 | BH144: 0.002 | BI144: 81309.64103 | BJ144: 109248.3888 | BK144: 2014-06-07T16:00:00 | BL144: GRC Soiron - Arrivée | BM144: 282.2049119 | BN144: 165.45052 | BO144: 283.8740985 | BP144: 238.3466019 | BQ144: 50,583205 | BR144: 5,784250 | BT144: 0 | BV144: 92 | BX144: 92,GRC Soiron - Arrivée,GRC Soiron - Arrivée >>> GRC Soiron - Arrivée,TRUE,TRUE,X,X,X,X,FALSE,FALSE,FALSE,FALSE,FALSE,FALSE,100%
B145: 93 | C145: GRC Soiron - Arrivée | G145: 282.2049119 | I145: TRUE | J145: TRUE | K145: 90 | O145: 1 | Q145: 160935.002 | R145: 5264.903812 | S145: -5174.680228 | AA145: FALSE | AB145: FALSE | AC145: FALSE | AD145: FALSE | AE145: FALSE | AF145: FALSE | AH145: 1 | AS145: 160935.002 | AT145: 5264.903812 | AU145: -5174.680228 | AV145: 79625.35897 | AW145: 78928.03776 | AX145: 0.002 | AY145: 0.002 | AZ145: 81309.64103 | BA145: 109248.3888 | BB145: 160935.002 | BC145: 5264.903812 | BD145: -5174.680228 | BE145: 79625.35897 | BF145: 78928.03776 | BG145: 0.002 | BH145: 0.002 | BI145: 81309.64103 | BJ145: 109248.3888 | BK145: 2014-06-07T16:00:00 | BL145: GRC Soiron - Arrivée | BM145: 282.2049119 | BN145: 165.45052 | BO145: 283.8740985 | BP145: 238.3466019 | BQ145: 50,583205 | BR145: 5,784250 | BT145: 0 | BV145: 93 | BX145: 93,GRC Soiron - Arrivée,GRC Soiron - Arrivée >>> GRC Soiron - Arrivée,TRUE,TRUE,X,X,X,X,FALSE,FALSE,FALSE,FALSE,FALSE,FALSE,100%
B146: 94 | C146: GRC Soiron - Arrivée | G146: 282.2049119 | I146: TRUE | J146: TRUE | K146: 91 | O146: 1 | Q146: 160935.002 | R146: 5264.903812 | S146: -5174.680228 | AA146: FALSE | AB146: FALSE | AC146: FALSE | AD146: FALSE | AE146: FALSE | AF146: FALSE | AH146: 1 | AS146: 160935.002 | AT146: 5264.903812 | AU146: -5174.680228 | AV146: 79625.35897 | AW146: 78928.03776 | AX146: 0.002 | AY146: 0.002 | AZ146: 81309.64103 | BA146: 109248.3888 | BB146: 160935.002 | BC146: 5264.903812 | BD146: -5174.680228 | BE146: 79625.35897 | BF146: 78928.03776 | BG146: 0.002 | BH146: 0.002 | BI146: 81309.64103 | BJ146: 109248.3888 | BK146: 2014-06-07T16:00:00 | BL146: GRC Soiron - Arrivée | BM146: 282.2049119 | BN146: 165.45052 | BO146: 283.8740985 | BP146: 238.3466019 | BQ146: 50,583205 | BR146: 5,784250 | BT146: 0 | BV146: 94 | BX146: 94,GRC Soiron - Arrivée,GRC Soiron - Arrivée >>> GRC Soiron - Arrivée,TRUE,TRUE,X,X,X,X,FALSE,FALSE,FALSE,FALSE,FALSE,FALSE,100%
B147: 95 | C147: GRC Soiron - Arrivée | G147: 282.2049119 | I147: TRUE | J147: TRUE | K147: 92 | O147: 1 | Q147: 160935.002 | R147: 5264.903812 | S147: -5174.680228 | AA147: FALSE | AB147: FALSE | AC147: FALSE | AD147: FALSE | AE147: FALSE | AF147: FALSE | AH147: 1 | AS147: 160935.002 | AT147: 5264.903812 | AU147: -5174.680228 | AV147: 79625.35897 | AW147: 78928.03776 | AX147: 0.002 | AY147: 0.002 | AZ147: 81309.64103 | BA147: 109248.3888 | BB147: 160935.002 | BC147: 5264.903812 | BD147: -5174.680228 | BE147: 79625.35897 | BF147: 78928.03776 | BG147: 0.002 | BH147: 0.002 | BI147: 81309.64103 | BJ147: 109248.3888 | BK147: 2014-06-07T16:00:00 | BL147: GRC Soiron - Arrivée | BM147: 282.2049119 | BN147: 165.45052 | BO147: 283.8740985 | BP147: 238.3466019 | BQ147: 50,583205 | BR147: 5,784250 | BT147: 0 | BV147: 95 | BX147: 95,GRC Soiron - Arrivée,GRC Soiron - Arrivée >>> GRC Soiron - Arrivée,TRUE,TRUE,X,X,X,X,FALSE,FALSE,FALSE,FALSE,FALSE,FALSE,100%
B148: 96 | C148: GRC Soiron - Arrivée | G148: 282.2049119 | I148: TRUE | J148: TRUE | K148: 93 | O148: 1 | Q148: 160935.002 | R148: 5264.903812 | S148: -5174.680228 | AA148: FALSE | AB148: FALSE | AC148: FALSE | AD148: FALSE | AE148: FALSE | AF148: FALSE | AH148: 1 | AS148: 160935.002 | AT148: 5264.903812 | AU148: -5174.680228 | AV148: 79625.35897 | AW148: 78928.03776 | AX148: 0.002 | AY148: 0.002 | AZ148: 81309.64103 | BA148: 109248.3888 | BB148: 160935.002 | BC148: 5264.903812 | BD148: -5174.680228 | BE148: 79625.35897 | BF148: 78928.03776 | BG148: 0.002 | BH148: 0.002 | BI148: 81309.64103 | BJ148: 109248.3888 | BK148: 2014-06-07T16:00:00 | BL148: GRC Soiron - Arrivée | BM148: 282.2049119 | BN148: 165.45052 | BO148: 283.8740985 | BP148: 238.3466019 | BQ148: 50,583205 | BR148: =VLOOKUP($B148,RC_Table,BR$50,TRUE) -> 5,784250 | BT148: 0 | BV148: 96 | BX148: 96,GRC Soiron - Arrivée,GRC Soiron - Arrivée >>> GRC Soiron - Arrivée,TRUE,TRUE,X,X,X,X,FALSE,FALSE,FALSE,FALSE,FALSE,FALSE,100% | CM148: =VLOOKUP($BZ148,RBB_Table,CM$52,FALSE) -> 
B149: 97 | C149: GRC Soiron - Arrivée | G149: 282.2049119 | I149: TRUE | J149: TRUE | K149: 94 | O149: 1 | Q149: 160935.002 | R149: 5264.903812 | S149: -5174.680228 | AA149: FALSE | AB149: FALSE | AC149: FALSE | AD149: FALSE | AE149: FALSE | AF149: FALSE | AH149: 1 | AS149: 160935.002 | AT149: 5264.903812 | AU149: -5174.680228 | AV149: 79625.35897 | AW149: 78928.03776 | AX149: 0.002 | AY149: 0.002 | AZ149: 81309.64103 | BA149: 109248.3888 | BB149: 160935.002 | BC149: 5264.903812 | BD149: -5174.680228 | BE149: 79625.35897 | BF149: 78928.03776 | BG149: 0.002 | BH149: 0.002 | BI149: 81309.64103 | BJ149: 109248.3888 | BK149: 2014-06-07T16:00:00 | BL149: GRC Soiron - Arrivée | BM149: 282.2049119 | BN149: 165.45052 | BO149: 283.8740985 | BP149: 238.3466019 | BQ149: 50,583205 | BR149: 5,784250 | BT149: 0 | BV149: 97 | BX149: 97,GRC Soiron - Arrivée,GRC Soiron - Arrivée >>> GRC Soiron - Arrivée,TRUE,TRUE,X,X,X,X,FALSE,FALSE,FALSE,FALSE,FALSE,FALSE,100%
B150: 98 | C150: GRC Soiron - Arrivée | G150: 282.2049119 | I150: TRUE | J150: TRUE | K150: 95 | O150: 1 | Q150: 160935.002 | R150: 5264.903812 | S150: -5174.680228 | AA150: FALSE | AB150: FALSE | AC150: FALSE | AD150: FALSE | AE150: FALSE | AF150: FALSE | AH150: 1 | AS150: 160935.002 | AT150: 5264.903812 | AU150: -5174.680228 | AV150: 79625.35897 | AW150: 78928.03776 | AX150: 0.002 | AY150: 0.002 | AZ150: 81309.64103 | BA150: 109248.3888 | BB150: 160935.002 | BC150: 5264.903812 | BD150: -5174.680228 | BE150: 79625.35897 | BF150: 78928.03776 | BG150: 0.002 | BH150: 0.002 | BI150: 81309.64103 | BJ150: 109248.3888 | BK150: 2014-06-07T16:00:00 | BL150: GRC Soiron - Arrivée | BM150: 282.2049119 | BN150: 165.45052 | BO150: 283.8740985 | BP150: 238.3466019 | BQ150: 50,583205 | BR150: 5,784250 | BT150: 0 | BV150: 98 | BX150: 98,GRC Soiron - Arrivée,GRC Soiron - Arrivée >>> GRC Soiron - Arrivée,TRUE,TRUE,X,X,X,X,FALSE,FALSE,FALSE,FALSE,FALSE,FALSE,100%
B151: 99 | C151: GRC Soiron - Arrivée | G151: 282.2049119 | I151: TRUE | J151: TRUE | K151: 96 | O151: 1 | Q151: 160935.002 | R151: 5264.903812 | S151: -5174.680228 | AA151: FALSE | AB151: FALSE | AC151: FALSE | AD151: FALSE | AE151: FALSE | AF151: FALSE | AH151: 1 | AS151: 160935.002 | AT151: 5264.903812 | AU151: -5174.680228 | AV151: 79625.35897 | AW151: 78928.03776 | AX151: 0.002 | AY151: 0.002 | AZ151: 81309.64103 | BA151: 109248.3888 | BB151: 160935.002 | BC151: 5264.903812 | BD151: -5174.680228 | BE151: 79625.35897 | BF151: 78928.03776 | BG151: 0.002 | BH151: 0.002 | BI151: 81309.64103 | BJ151: 109248.3888 | BK151: 2014-06-07T16:00:00 | BL151: GRC Soiron - Arrivée | BM151: 282.2049119 | BN151: 165.45052 | BO151: 283.8740985 | BP151: 238.3466019 | BQ151: 50,583205 | BR151: 5,784250 | BT151: 0 | BV151: 99 | BX151: 99,GRC Soiron - Arrivée,GRC Soiron - Arrivée >>> GRC Soiron - Arrivée,TRUE,TRUE,X,X,X,X,FALSE,FALSE,FALSE,FALSE,FALSE,FALSE,100%
B152: 100 | C152: GRC Soiron - Arrivée | G152: 282.2049119 | I152: TRUE | J152: TRUE | K152: 97 | O152: 1 | Q152: 160935.002 | R152: 5264.903812 | S152: -5174.680228 | AA152: FALSE | AB152: FALSE | AC152: FALSE | AD152: FALSE | AE152: FALSE | AF152: FALSE | AH152: 1 | AS152: 160935.002 | AT152: 5264.903812 | AU152: -5174.680228 | AV152: 79625.35897 | AW152: 78928.03776 | AX152: 0.002 | AY152: 0.002 | AZ152: 81309.64103 | BA152: 109248.3888 | BB152: 160935.002 | BC152: 5264.903812 | BD152: -5174.680228 | BE152: 79625.35897 | BF152: 78928.03776 | BG152: 0.002 | BH152: 0.002 | BI152: 81309.64103 | BJ152: 109248.3888 | BK152: 2014-06-07T16:00:00 | BL152: GRC Soiron - Arrivée | BM152: 282.2049119 | BN152: 165.45052 | BO152: 283.8740985 | BP152: 238.3466019 | BQ152: 50,583205 | BR152: 5,784250 | BT152: 0 | BV152: 100 | BX152: 100,GRC Soiron - Arrivée,GRC Soiron - Arrivée >>> GRC Soiron - Arrivée,TRUE,TRUE,X,X,X,X,FALSE,FALSE,FALSE,FALSE,FALSE,FALSE,100%
B153: 101 | C153: GRC Soiron - Arrivée | G153: 282.2049119 | I153: TRUE | J153: TRUE | K153: 98 | O153: 1 | Q153: 160935.002 | R153: 5264.903812 | S153: -5174.680228 | AA153: FALSE | AB153: FALSE | AC153: FALSE | AD153: FALSE | AE153: FALSE | AF153: FALSE | AH153: 1 | AS153: =VLOOKUP($B153,RC_Table,AS$50,TRUE) -> 160935.002 | AT153: 5264.903812 | AU153: -5174.680228 | AV153: 79625.35897 | AW153: 78928.03776 | AX153: 0.002 | AY153: 0.002 | AZ153: 81309.64103 | BA153: 109248.3888 | BB153: 160935.002 | BC153: 5264.903812 | BD153: -5174.680228 | BE153: 79625.35897 | BF153: 78928.03776 | BG153: 0.002 | BH153: 0.002 | BI153: 81309.64103 | BJ153: 109248.3888 | BK153: 2014-06-07T16:00:00 | BL153: GRC Soiron - Arrivée | BM153: 282.2049119 | BN153: 165.45052 | BO153: 283.8740985 | BP153: 238.3466019 | BQ153: 50,583205 | BR153: 5,784250 | BT153: 0 | BV153: 101 | BX153: 101,GRC Soiron - Arrivée,GRC Soiron - Arrivée >>> GRC Soiron - Arrivée,TRUE,TRUE,X,X,X,X,FALSE,FALSE,FALSE,FALSE,FALSE,FALSE,100% | CA153: =VLOOKUP($BZ153,RBB_Table,CA$52,FALSE) -> 
B154: 102 | C154: GRC Soiron - Arrivée | G154: 282.2049119 | I154: TRUE | J154: TRUE | K154: 99 | O154: 1 | Q154: 160935.002 | R154: 5264.903812 | S154: -5174.680228 | AA154: FALSE | AB154: FALSE | AC154: FALSE | AD154: FALSE | AE154: FALSE | AF154: FALSE | AH154: 1 | AS154: 160935.002 | AT154: 5264.903812 | AU154: -5174.680228 | AV154: 79625.35897 | AW154: 78928.03776 | AX154: 0.002 | AY154: 0.002 | AZ154: 81309.64103 | BA154: 109248.3888 | BB154: 160935.002 | BC154: 5264.903812 | BD154: -5174.680228 | BE154: 79625.35897 | BF154: 78928.03776 | BG154: 0.002 | BH154: 0.002 | BI154: 81309.64103 | BJ154: 109248.3888 | BK154: 2014-06-07T16:00:00 | BL154: GRC Soiron - Arrivée | BM154: 282.2049119 | BN154: 165.45052 | BO154: 283.8740985 | BP154: 238.3466019 | BQ154: 50,583205 | BR154: 5,784250 | BT154: 0 | BV154: 102 | BX154: 102,GRC Soiron - Arrivée,GRC Soiron - Arrivée >>> GRC Soiron - Arrivée,TRUE,TRUE,X,X,X,X,FALSE,FALSE,FALSE,FALSE,FALSE,FALSE,100%
B155: 103 | C155: GRC Soiron - Arrivée | G155: 282.2049119 | I155: TRUE | J155: TRUE | K155: 100 | O155: 1 | Q155: 160935.002 | R155: 5264.903812 | S155: -5174.680228 | AA155: FALSE | AB155: FALSE | AC155: FALSE | AD155: FALSE | AE155: FALSE | AF155: FALSE | AH155: 1 | AS155: 160935.002 | AT155: 5264.903812 | AU155: -5174.680228 | AV155: 79625.35897 | AW155: 78928.03776 | AX155: 0.002 | AY155: 0.002 | AZ155: 81309.64103 | BA155: 109248.3888 | BB155: 160935.002 | BC155: 5264.903812 | BD155: -5174.680228 | BE155: 79625.35897 | BF155: 78928.03776 | BG155: 0.002 | BH155: 0.002 | BI155: 81309.64103 | BJ155: 109248.3888 | BK155: 2014-06-07T16:00:00 | BL155: GRC Soiron - Arrivée | BM155: 282.2049119 | BN155: 165.45052 | BO155: 283.8740985 | BP155: 238.3466019 | BQ155: 50,583205 | BR155: 5,784250 | BT155: 0 | BV155: 103 | BX155: 103,GRC Soiron - Arrivée,GRC Soiron - Arrivée >>> GRC Soiron - Arrivée,TRUE,TRUE,X,X,X,X,FALSE,FALSE,FALSE,FALSE,FALSE,FALSE,100%
B156: 104 | C156: GRC Soiron - Arrivée | G156: 282.2049119 | I156: TRUE | J156: TRUE | K156: 101 | O156: 1 | Q156: 160935.002 | R156: 5264.903812 | S156: -5174.680228 | AA156: FALSE | AB156: FALSE | AC156: FALSE | AD156: FALSE | AE156: FALSE | AF156: FALSE | AH156: 1 | AS156: 160935.002 | AT156: 5264.903812 | AU156: -5174.680228 | AV156: 79625.35897 | AW156: 78928.03776 | AX156: 0.002 | AY156: 0.002 | AZ156: 81309.64103 | BA156: 109248.3888 | BB156: 160935.002 | BC156: 5264.903812 | BD156: -5174.680228 | BE156: 79625.35897 | BF156: 78928.03776 | BG156: 0.002 | BH156: 0.002 | BI156: 81309.64103 | BJ156: 109248.3888 | BK156: 2014-06-07T16:00:00 | BL156: GRC Soiron - Arrivée | BM156: 282.2049119 | BN156: 165.45052 | BO156: 283.8740985 | BP156: 238.3466019 | BQ156: 50,583205 | BR156: 5,784250 | BT156: 0 | BV156: 104 | BX156: 104,GRC Soiron - Arrivée,GRC Soiron - Arrivée >>> GRC Soiron - Arrivée,TRUE,TRUE,X,X,X,X,FALSE,FALSE,FALSE,FALSE,FALSE,FALSE,100%
B157: 105 | C157: GRC Soiron - Arrivée | G157: 282.2049119 | I157: TRUE | J157: TRUE | K157: 102 | O157: 1 | Q157: 160935.002 | R157: 5264.903812 | S157: -5174.680228 | AA157: FALSE | AB157: FALSE | AC157: FALSE | AD157: FALSE | AE157: FALSE | AF157: FALSE | AH157: 1 | AS157: 160935.002 | AT157: 5264.903812 | AU157: -5174.680228 | AV157: 79625.35897 | AW157: 78928.03776 | AX157: 0.002 | AY157: 0.002 | AZ157: 81309.64103 | BA157: 109248.3888 | BB157: 160935.002 | BC157: 5264.903812 | BD157: -5174.680228 | BE157: 79625.35897 | BF157: 78928.03776 | BG157: 0.002 | BH157: 0.002 | BI157: 81309.64103 | BJ157: 109248.3888 | BK157: 2014-06-07T16:00:00 | BL157: GRC Soiron - Arrivée | BM157: 282.2049119 | BN157: 165.45052 | BO157: 283.8740985 | BP157: 238.3466019 | BQ157: 50,583205 | BR157: 5,784250 | BT157: 0 | BV157: 105 | BX157: 105,GRC Soiron - Arrivée,GRC Soiron - Arrivée >>> GRC Soiron - Arrivée,TRUE,TRUE,X,X,X,X,FALSE,FALSE,FALSE,FALSE,FALSE,FALSE,100%
B158: 106 | C158: GRC Soiron - Arrivée | G158: 282.2049119 | I158: TRUE | J158: TRUE | K158: 103 | O158: 1 | Q158: 160935.002 | R158: 5264.903812 | S158: -5174.680228 | AA158: FALSE | AB158: FALSE | AC158: FALSE | AD158: FALSE | AE158: FALSE | AF158: FALSE | AH158: 1 | AS158: 160935.002 | AT158: 5264.903812 | AU158: -5174.680228 | AV158: 79625.35897 | AW158: 78928.03776 | AX158: 0.002 | AY158: 0.002 | AZ158: 81309.64103 | BA158: 109248.3888 | BB158: 160935.002 | BC158: 5264.903812 | BD158: -5174.680228 | BE158: 79625.35897 | BF158: 78928.03776 | BG158: 0.002 | BH158: 0.002 | BI158: 81309.64103 | BJ158: 109248.3888 | BK158: 2014-06-07T16:00:00 | BL158: GRC Soiron - Arrivée | BM158: 282.2049119 | BN158: 165.45052 | BO158: 283.8740985 | BP158: 238.3466019 | BQ158: 50,583205 | BR158: 5,784250 | BT158: 0 | BV158: 106 | BX158: 106,GRC Soiron - Arrivée,GRC Soiron - Arrivée >>> GRC Soiron - Arrivée,TRUE,TRUE,X,X,X,X,FALSE,FALSE,FALSE,FALSE,FALSE,FALSE,100%
B159: 107 | C159: GRC Soiron - Arrivée | G159: 282.2049119 | I159: TRUE | J159: TRUE | K159: 104 | O159: 1 | Q159: 160935.002 | R159: 5264.903812 | S159: -5174.680228 | AA159: FALSE | AB159: FALSE | AC159: FALSE | AD159: FALSE | AE159: FALSE | AF159: FALSE | AH159: 1 | AS159: 160935.002 | AT159: 5264.903812 | AU159: -5174.680228 | AV159: 79625.35897 | AW159: 78928.03776 | AX159: 0.002 | AY159: 0.002 | AZ159: 81309.64103 | BA159: 109248.3888 | BB159: 160935.002 | BC159: 5264.903812 | BD159: -5174.680228 | BE159: 79625.35897 | BF159: 78928.03776 | BG159: 0.002 | BH159: 0.002 | BI159: 81309.64103 | BJ159: 109248.3888 | BK159: 2014-06-07T16:00:00 | BL159: GRC Soiron - Arrivée | BM159: 282.2049119 | BN159: 165.45052 | BO159: 283.8740985 | BP159: 238.3466019 | BQ159: 50,583205 | BR159: 5,784250 | BT159: 0 | BV159: 107 | BX159: 107,GRC Soiron - Arrivée,GRC Soiron - Arrivée >>> GRC Soiron - Arrivée,TRUE,TRUE,X,X,X,X,FALSE,FALSE,FALSE,FALSE,FALSE,FALSE,100%
B160: 108 | C160: GRC Soiron - Arrivée | G160: 282.2049119 | I160: TRUE | J160: TRUE | K160: 105 | O160: 1 | Q160: 160935.002 | R160: 5264.903812 | S160: -5174.680228 | AA160: FALSE | AB160: FALSE | AC160: FALSE | AD160: FALSE | AE160: FALSE | AF160: FALSE | AH160: 1 | AS160: 160935.002 | AT160: 5264.903812 | AU160: -5174.680228 | AV160: 79625.35897 | AW160: 78928.03776 | AX160: 0.002 | AY160: 0.002 | AZ160: 81309.64103 | BA160: 109248.3888 | BB160: 160935.002 | BC160: 5264.903812 | BD160: -5174.680228 | BE160: 79625.35897 | BF160: 78928.03776 | BG160: 0.002 | BH160: 0.002 | BI160: 81309.64103 | BJ160: 109248.3888 | BK160: 2014-06-07T16:00:00 | BL160: GRC Soiron - Arrivée | BM160: 282.2049119 | BN160: 165.45052 | BO160: 283.8740985 | BP160: 238.3466019 | BQ160: 50,583205 | BR160: 5,784250 | BT160: 0 | BV160: 108 | BX160: 108,GRC Soiron - Arrivée,GRC Soiron - Arrivée >>> GRC Soiron - Arrivée,TRUE,TRUE,X,X,X,X,FALSE,FALSE,FALSE,FALSE,FALSE,FALSE,100%
B161: 109 | C161: GRC Soiron - Arrivée | G161: 282.2049119 | I161: TRUE | J161: TRUE | K161: 106 | O161: 1 | Q161: 160935.002 | R161: 5264.903812 | S161: -5174.680228 | AA161: FALSE | AB161: FALSE | AC161: FALSE | AD161: FALSE | AE161: FALSE | AF161: FALSE | AH161: 1 | AS161: 160935.002 | AT161: 5264.903812 | AU161: -5174.680228 | AV161: 79625.35897 | AW161: 78928.03776 | AX161: 0.002 | AY161: 0.002 | AZ161: 81309.64103 | BA161: 109248.3888 | BB161: 160935.002 | BC161: 5264.903812 | BD161: -5174.680228 | BE161: 79625.35897 | BF161: 78928.03776 | BG161: 0.002 | BH161: 0.002 | BI161: 81309.64103 | BJ161: 109248.3888 | BK161: 2014-06-07T16:00:00 | BL161: GRC Soiron - Arrivée | BM161: 282.2049119 | BN161: 165.45052 | BO161: 283.8740985 | BP161: 238.3466019 | BQ161: 50,583205 | BR161: 5,784250 | BT161: 0 | BV161: 109 | BX161: 109,GRC Soiron - Arrivée,GRC Soiron - Arrivée >>> GRC Soiron - Arrivée,TRUE,TRUE,X,X,X,X,FALSE,FALSE,FALSE,FALSE,FALSE,FALSE,100%
B162: 110 | C162: GRC Soiron - Arrivée | G162: 282.2049119 | I162: TRUE | J162: TRUE | K162: 107 | O162: 1 | Q162: 160935.002 | R162: 5264.903812 | S162: -5174.680228 | AA162: FALSE | AB162: FALSE | AC162: FALSE | AD162: FALSE | AE162: FALSE | AF162: FALSE | AH162: 1 | AS162: 160935.002 | AT162: 5264.903812 | AU162: -5174.680228 | AV162: 79625.35897 | AW162: 78928.03776 | AX162: 0.002 | AY162: 0.002 | AZ162: 81309.64103 | BA162: 109248.3888 | BB162: 160935.002 | BC162: 5264.903812 | BD162: -5174.680228 | BE162: 79625.35897 | BF162: 78928.03776 | BG162: 0.002 | BH162: 0.002 | BI162: 81309.64103 | BJ162: 109248.3888 | BK162: 2014-06-07T16:00:00 | BL162: GRC Soiron - Arrivée | BM162: 282.2049119 | BN162: 165.45052 | BO162: 283.8740985 | BP162: 238.3466019 | BQ162: 50,583205 | BR162: 5,784250 | BT162: 0 | BV162: 110 | BX162: 110,GRC Soiron - Arrivée,GRC Soiron - Arrivée >>> GRC Soiron - Arrivée,TRUE,TRUE,X,X,X,X,FALSE,FALSE,FALSE,FALSE,FALSE,FALSE,100%
B163: 111 | C163: GRC Soiron - Arrivée | G163: 282.2049119 | I163: TRUE | J163: TRUE | K163: 108 | O163: 1 | Q163: 160935.002 | R163: 5264.903812 | S163: -5174.680228 | AA163: FALSE | AB163: FALSE | AC163: FALSE | AD163: FALSE | AE163: FALSE | AF163: FALSE | AH163: 1 | AS163: 160935.002 | AT163: 5264.903812 | AU163: -5174.680228 | AV163: 79625.35897 | AW163: 78928.03776 | AX163: 0.002 | AY163: 0.002 | AZ163: 81309.64103 | BA163: 109248.3888 | BB163: 160935.002 | BC163: 5264.903812 | BD163: -5174.680228 | BE163: 79625.35897 | BF163: 78928.03776 | BG163: 0.002 | BH163: 0.002 | BI163: 81309.64103 | BJ163: 109248.3888 | BK163: 2014-06-07T16:00:00 | BL163: GRC Soiron - Arrivée | BM163: 282.2049119 | BN163: 165.45052 | BO163: 283.8740985 | BP163: 238.3466019 | BQ163: 50,583205 | BR163: 5,784250 | BT163: 0 | BV163: 111 | BX163: 111,GRC Soiron - Arrivée,GRC Soiron - Arrivée >>> GRC Soiron - Arrivée,TRUE,TRUE,X,X,X,X,FALSE,FALSE,FALSE,FALSE,FALSE,FALSE,100%
B164: 112 | C164: GRC Soiron - Arrivée | G164: 282.2049119 | I164: TRUE | J164: TRUE | K164: 109 | O164: 1 | Q164: 160935.002 | R164: 5264.903812 | S164: -5174.680228 | AA164: FALSE | AB164: FALSE | AC164: FALSE | AD164: FALSE | AE164: FALSE | AF164: FALSE | AH164: 1 | AS164: 160935.002 | AT164: 5264.903812 | AU164: -5174.680228 | AV164: 79625.35897 | AW164: 78928.03776 | AX164: 0.002 | AY164: 0.002 | AZ164: 81309.64103 | BA164: 109248.3888 | BB164: 160935.002 | BC164: 5264.903812 | BD164: -5174.680228 | BE164: 79625.35897 | BF164: 78928.03776 | BG164: 0.002 | BH164: 0.002 | BI164: 81309.64103 | BJ164: 109248.3888 | BK164: 2014-06-07T16:00:00 | BL164: GRC Soiron - Arrivée | BM164: 282.2049119 | BN164: 165.45052 | BO164: 283.8740985 | BP164: 238.3466019 | BQ164: 50,583205 | BR164: 5,784250 | BT164: 0 | BV164: 112 | BX164: 112,GRC Soiron - Arrivée,GRC Soiron - Arrivée >>> GRC Soiron - Arrivée,TRUE,TRUE,X,X,X,X,FALSE,FALSE,FALSE,FALSE,FALSE,FALSE,100%
B165: 113 | C165: GRC Soiron - Arrivée | G165: 282.2049119 | I165: TRUE | J165: TRUE | K165: 110 | O165: 1 | Q165: 160935.002 | R165: 5264.903812 | S165: -5174.680228 | AA165: FALSE | AB165: FALSE | AC165: FALSE | AD165: FALSE | AE165: FALSE | AF165: FALSE | AH165: 1 | AS165: 160935.002 | AT165: 5264.903812 | AU165: -5174.680228 | AV165: 79625.35897 | AW165: 78928.03776 | AX165: 0.002 | AY165: 0.002 | AZ165: 81309.64103 | BA165: 109248.3888 | BB165: 160935.002 | BC165: 5264.903812 | BD165: -5174.680228 | BE165: 79625.35897 | BF165: 78928.03776 | BG165: 0.002 | BH165: 0.002 | BI165: 81309.64103 | BJ165: 109248.3888 | BK165: 2014-06-07T16:00:00 | BL165: GRC Soiron - Arrivée | BM165: 282.2049119 | BN165: 165.45052 | BO165: 283.8740985 | BP165: 238.3466019 | BQ165: 50,583205 | BR165: 5,784250 | BT165: 0 | BV165: 113 | BX165: 113,GRC Soiron - Arrivée,GRC Soiron - Arrivée >>> GRC Soiron - Arrivée,TRUE,TRUE,X,X,X,X,FALSE,FALSE,FALSE,FALSE,FALSE,FALSE,100%
B166: 114 | C166: GRC Soiron - Arrivée | G166: 282.2049119 | I166: TRUE | J166: TRUE | K166: 111 | O166: 1 | Q166: 160935.002 | R166: 5264.903812 | S166: -5174.680228 | AA166: FALSE | AB166: FALSE | AC166: FALSE | AD166: FALSE | AE166: FALSE | AF166: FALSE | AH166: 1 | AS166: 160935.002 | AT166: 5264.903812 | AU166: -5174.680228 | AV166: 79625.35897 | AW166: 78928.03776 | AX166: 0.002 | AY166: 0.002 | AZ166: 81309.64103 | BA166: 109248.3888 | BB166: 160935.002 | BC166: 5264.903812 | BD166: -5174.680228 | BE166: 79625.35897 | BF166: 78928.03776 | BG166: 0.002 | BH166: 0.002 | BI166: 81309.64103 | BJ166: 109248.3888 | BK166: 2014-06-07T16:00:00 | BL166: GRC Soiron - Arrivée | BM166: 282.2049119 | BN166: 165.45052 | BO166: 283.8740985 | BP166: 238.3466019 | BQ166: 50,583205 | BR166: 5,784250 | BT166: 0 | BV166: 114 | BX166: 114,GRC Soiron - Arrivée,GRC Soiron - Arrivée >>> GRC Soiron - Arrivée,TRUE,TRUE,X,X,X,X,FALSE,FALSE,FALSE,FALSE,FALSE,FALSE,100%
B167: 115 | C167: GRC Soiron - Arrivée | G167: 282.2049119 | I167: TRUE | J167: TRUE | K167: 112 | O167: 1 | Q167: 160935.002 | R167: 5264.903812 | S167: -5174.680228 | AA167: FALSE | AB167: FALSE | AC167: FALSE | AD167: FALSE | AE167: FALSE | AF167: FALSE | AH167: 1 | AS167: 160935.002 | AT167: 5264.903812 | AU167: -5174.680228 | AV167: 79625.35897 | AW167: 78928.03776 | AX167: 0.002 | AY167: 0.002 | AZ167: 81309.64103 | BA167: 109248.3888 | BB167: 160935.002 | BC167: 5264.903812 | BD167: -5174.680228 | BE167: 79625.35897 | BF167: 78928.03776 | BG167: 0.002 | BH167: 0.002 | BI167: 81309.64103 | BJ167: 109248.3888 | BK167: 2014-06-07T16:00:00 | BL167: GRC Soiron - Arrivée | BM167: 282.2049119 | BN167: 165.45052 | BO167: 283.8740985 | BP167: 238.3466019 | BQ167: 50,583205 | BR167: 5,784250 | BT167: 0 | BV167: 115 | BX167: 115,GRC Soiron - Arrivée,GRC Soiron - Arrivée >>> GRC Soiron - Arrivée,TRUE,TRUE,X,X,X,X,FALSE,FALSE,FALSE,FALSE,FALSE,FALSE,100%
B168: 116 | C168: GRC Soiron - Arrivée | G168: 282.2049119 | I168: TRUE | J168: TRUE | K168: 113 | O168: 1 | Q168: 160935.002 | R168: 5264.903812 | S168: -5174.680228 | AA168: FALSE | AB168: FALSE | AC168: FALSE | AD168: FALSE | AE168: FALSE | AF168: FALSE | AH168: 1 | AS168: 160935.002 | AT168: 5264.903812 | AU168: -5174.680228 | AV168: 79625.35897 | AW168: 78928.03776 | AX168: 0.002 | AY168: 0.002 | AZ168: 81309.64103 | BA168: 109248.3888 | BB168: 160935.002 | BC168: 5264.903812 | BD168: -5174.680228 | BE168: 79625.35897 | BF168: 78928.03776 | BG168: 0.002 | BH168: 0.002 | BI168: 81309.64103 | BJ168: 109248.3888 | BK168: 2014-06-07T16:00:00 | BL168: GRC Soiron - Arrivée | BM168: 282.2049119 | BN168: 165.45052 | BO168: 283.8740985 | BP168: 238.3466019 | BQ168: 50,583205 | BR168: 5,784250 | BT168: 0 | BV168: 116 | BX168: 116,GRC Soiron - Arrivée,GRC Soiron - Arrivée >>> GRC Soiron - Arrivée,TRUE,TRUE,X,X,X,X,FALSE,FALSE,FALSE,FALSE,FALSE,FALSE,100% | CM168: =VLOOKUP($BZ168,RBB_Table,CM$52,FALSE) -> 
B169: 117 | C169: GRC Soiron - Arrivée | G169: 282.2049119 | I169: TRUE | J169: TRUE | K169: 114 | O169: 1 | Q169: 160935.002 | R169: 5264.903812 | S169: -5174.680228 | AA169: FALSE | AB169: FALSE | AC169: FALSE | AD169: FALSE | AE169: FALSE | AF169: FALSE | AH169: 1 | AS169: 160935.002 | AT169: 5264.903812 | AU169: -5174.680228 | AV169: 79625.35897 | AW169: 78928.03776 | AX169: 0.002 | AY169: 0.002 | AZ169: 81309.64103 | BA169: 109248.3888 | BB169: 160935.002 | BC169: 5264.903812 | BD169: -5174.680228 | BE169: 79625.35897 | BF169: 78928.03776 | BG169: 0.002 | BH169: 0.002 | BI169: 81309.64103 | BJ169: 109248.3888 | BK169: 2014-06-07T16:00:00 | BL169: GRC Soiron - Arrivée | BM169: 282.2049119 | BN169: 165.45052 | BO169: 283.8740985 | BP169: 238.3466019 | BQ169: 50,583205 | BR169: 5,784250 | BT169: 0 | BV169: 117 | BX169: 117,GRC Soiron - Arrivée,GRC Soiron - Arrivée >>> GRC Soiron - Arrivée,TRUE,TRUE,X,X,X,X,FALSE,FALSE,FALSE,FALSE,FALSE,FALSE,100%
B170: 118 | C170: GRC Soiron - Arrivée | G170: 282.2049119 | I170: TRUE | J170: TRUE | K170: 115 | O170: 1 | Q170: 160935.002 | R170: 5264.903812 | S170: -5174.680228 | AA170: FALSE | AB170: FALSE | AC170: FALSE | AD170: FALSE | AE170: FALSE | AF170: FALSE | AH170: 1 | AS170: 160935.002 | AT170: 5264.903812 | AU170: -5174.680228 | AV170: 79625.35897 | AW170: 78928.03776 | AX170: 0.002 | AY170: 0.002 | AZ170: 81309.64103 | BA170: 109248.3888 | BB170: 160935.002 | BC170: 5264.903812 | BD170: -5174.680228 | BE170: 79625.35897 | BF170: 78928.03776 | BG170: 0.002 | BH170: 0.002 | BI170: 81309.64103 | BJ170: 109248.3888 | BK170: 2014-06-07T16:00:00 | BL170: GRC Soiron - Arrivée | BM170: 282.2049119 | BN170: 165.45052 | BO170: 283.8740985 | BP170: 238.3466019 | BQ170: 50,583205 | BR170: 5,784250 | BT170: 0 | BV170: 118 | BX170: 118,GRC Soiron - Arrivée,GRC Soiron - Arrivée >>> GRC Soiron - Arrivée,TRUE,TRUE,X,X,X,X,FALSE,FALSE,FALSE,FALSE,FALSE,FALSE,100%
B171: 119 | C171: GRC Soiron - Arrivée | G171: 282.2049119 | I171: TRUE | J171: TRUE | K171: 116 | O171: 1 | Q171: 160935.002 | R171: 5264.903812 | S171: -5174.680228 | AA171: FALSE | AB171: FALSE | AC171: FALSE | AD171: FALSE | AE171: FALSE | AF171: FALSE | AH171: 1 | AS171: 160935.002 | AT171: 5264.903812 | AU171: -5174.680228 | AV171: 79625.35897 | AW171: 78928.03776 | AX171: 0.002 | AY171: 0.002 | AZ171: 81309.64103 | BA171: 109248.3888 | BB171: 160935.002 | BC171: 5264.903812 | BD171: -5174.680228 | BE171: 79625.35897 | BF171: 78928.03776 | BG171: 0.002 | BH171: 0.002 | BI171: 81309.64103 | BJ171: 109248.3888 | BK171: 2014-06-07T16:00:00 | BL171: GRC Soiron - Arrivée | BM171: 282.2049119 | BN171: 165.45052 | BO171: 283.8740985 | BP171: 238.3466019 | BQ171: 50,583205 | BR171: 5,784250 | BT171: 0 | BV171: 119 | BX171: 119,GRC Soiron - Arrivée,GRC Soiron - Arrivée >>> GRC Soiron - Arrivée,TRUE,TRUE,X,X,X,X,FALSE,FALSE,FALSE,FALSE,FALSE,FALSE,100%
B172: 120 | C172: GRC Soiron - Arrivée | G172: 282.2049119 | I172: TRUE | J172: TRUE | K172: 117 | O172: 1 | Q172: 160935.002 | R172: 5264.903812 | S172: -5174.680228 | AA172: FALSE | AB172: FALSE | AC172: FALSE | AD172: FALSE | AE172: FALSE | AF172: FALSE | AH172: 1 | AS172: 160935.002 | AT172: 5264.903812 | AU172: -5174.680228 | AV172: 79625.35897 | AW172: 78928.03776 | AX172: 0.002 | AY172: 0.002 | AZ172: 81309.64103 | BA172: 109248.3888 | BB172: 160935.002 | BC172: 5264.903812 | BD172: -5174.680228 | BE172: 79625.35897 | BF172: 78928.03776 | BG172: 0.002 | BH172: 0.002 | BI172: 81309.64103 | BJ172: 109248.3888 | BK172: 2014-06-07T16:00:00 | BL172: GRC Soiron - Arrivée | BM172: 282.2049119 | BN172: 165.45052 | BO172: 283.8740985 | BP172: 238.3466019 | BQ172: 50,583205 | BR172: 5,784250 | BT172: 0 | BV172: 120 | BX172: 120,GRC Soiron - Arrivée,GRC Soiron - Arrivée >>> GRC Soiron - Arrivée,TRUE,TRUE,X,X,X,X,FALSE,FALSE,FALSE,FALSE,FALSE,FALSE,100%
B173: 121 | C173: GRC Soiron - Arrivée | G173: 282.2049119 | I173: TRUE | J173: TRUE | K173: 118 | O173: 1 | Q173: 160935.002 | R173: 5264.903812 | S173: -5174.680228 | AA173: FALSE | AB173: FALSE | AC173: FALSE | AD173: FALSE | AE173: FALSE | AF173: FALSE | AH173: 1 | AS173: =VLOOKUP($B173,RC_Table,AS$50,TRUE) -> 160935.002 | AT173: 5264.903812 | AU173: -5174.680228 | AV173: 79625.35897 | AW173: 78928.03776 | AX173: 0.002 | AY173: 0.002 | AZ173: 81309.64103 | BA173: 109248.3888 | BB173: 160935.002 | BC173: 5264.903812 | BD173: -5174.680228 | BE173: 79625.35897 | BF173: 78928.03776 | BG173: 0.002 | BH173: 0.002 | BI173: 81309.64103 | BJ173: 109248.3888 | BK173: 2014-06-07T16:00:00 | BL173: GRC Soiron - Arrivée | BM173: 282.2049119 | BN173: 165.45052 | BO173: 283.8740985 | BP173: 238.3466019 | BQ173: 50,583205 | BR173: 5,784250 | BT173: 0 | BV173: 121 | BX173: 121,GRC Soiron - Arrivée,GRC Soiron - Arrivée >>> GRC Soiron - Arrivée,TRUE,TRUE,X,X,X,X,FALSE,FALSE,FALSE,FALSE,FALSE,FALSE,100% | CA173: =VLOOKUP($BZ173,RBB_Table,CA$52,FALSE) -> 
B174: 122 | C174: GRC Soiron - Arrivée | G174: 282.2049119 | I174: TRUE | J174: TRUE | K174: 119 | O174: 1 | Q174: 160935.002 | R174: 5264.903812 | S174: -5174.680228 | AA174: FALSE | AB174: FALSE | AC174: FALSE | AD174: FALSE | AE174: FALSE | AF174: FALSE | AH174: 1 | AS174: 160935.002 | AT174: 5264.903812 | AU174: -5174.680228 | AV174: 79625.35897 | AW174: 78928.03776 | AX174: 0.002 | AY174: 0.002 | AZ174: 81309.64103 | BA174: 109248.3888 | BB174: 160935.002 | BC174: 5264.903812 | BD174: -5174.680228 | BE174: 79625.35897 | BF174: 78928.03776 | BG174: 0.002 | BH174: 0.002 | BI174: 81309.64103 | BJ174: 109248.3888 | BK174: 2014-06-07T16:00:00 | BL174: GRC Soiron - Arrivée | BM174: 282.2049119 | BN174: 165.45052 | BO174: 283.8740985 | BP174: 238.3466019 | BQ174: 50,583205 | BR174: 5,784250 | BT174: 0 | BV174: 122 | BX174: 122,GRC Soiron - Arrivée,GRC Soiron - Arrivée >>> GRC Soiron - Arrivée,TRUE,TRUE,X,X,X,X,FALSE,FALSE,FALSE,FALSE,FALSE,FALSE,100%
B175: 123 | C175: GRC Soiron - Arrivée | G175: 282.2049119 | I175: TRUE | J175: TRUE | K175: 120 | O175: 1 | Q175: 160935.002 | R175: 5264.903812 | S175: -5174.680228 | AA175: FALSE | AB175: FALSE | AC175: FALSE | AD175: FALSE | AE175: FALSE | AF175: FALSE | AH175: 1 | AS175: 160935.002 | AT175: 5264.903812 | AU175: -5174.680228 | AV175: 79625.35897 | AW175: 78928.03776 | AX175: 0.002 | AY175: 0.002 | AZ175: 81309.64103 | BA175: 109248.3888 | BB175: 160935.002 | BC175: 5264.903812 | BD175: -5174.680228 | BE175: 79625.35897 | BF175: 78928.03776 | BG175: 0.002 | BH175: 0.002 | BI175: 81309.64103 | BJ175: 109248.3888 | BK175: 2014-06-07T16:00:00 | BL175: GRC Soiron - Arrivée | BM175: 282.2049119 | BN175: 165.45052 | BO175: 283.8740985 | BP175: 238.3466019 | BQ175: 50,583205 | BR175: 5,784250 | BT175: 0 | BV175: 123 | BX175: 123,GRC Soiron - Arrivée,GRC Soiron - Arrivée >>> GRC Soiron - Arrivée,TRUE,TRUE,X,X,X,X,FALSE,FALSE,FALSE,FALSE,FALSE,FALSE,100%
B176: 124 | C176: GRC Soiron - Arrivée | G176: 282.2049119 | I176: TRUE | J176: TRUE | K176: 121 | O176: 1 | Q176: 160935.002 | R176: 5264.903812 | S176: -5174.680228 | AA176: FALSE | AB176: FALSE | AC176: FALSE | AD176: FALSE | AE176: FALSE | AF176: FALSE | AH176: 1 | AS176: 160935.002 | AT176: 5264.903812 | AU176: -5174.680228 | AV176: 79625.35897 | AW176: 78928.03776 | AX176: 0.002 | AY176: 0.002 | AZ176: 81309.64103 | BA176: 109248.3888 | BB176: 160935.002 | BC176: 5264.903812 | BD176: -5174.680228 | BE176: 79625.35897 | BF176: 78928.03776 | BG176: 0.002 | BH176: 0.002 | BI176: 81309.64103 | BJ176: 109248.3888 | BK176: 2014-06-07T16:00:00 | BL176: GRC Soiron - Arrivée | BM176: 282.2049119 | BN176: 165.45052 | BO176: 283.8740985 | BP176: 238.3466019 | BQ176: 50,583205 | BR176: 5,784250 | BT176: 0 | BV176: 124 | BX176: 124,GRC Soiron - Arrivée,GRC Soiron - Arrivée >>> GRC Soiron - Arrivée,TRUE,TRUE,X,X,X,X,FALSE,FALSE,FALSE,FALSE,FALSE,FALSE,100%
B177: 125 | C177: GRC Soiron - Arrivée | G177: 282.2049119 | I177: TRUE | J177: TRUE | K177: 122 | O177: 1 | Q177: 160935.002 | R177: 5264.903812 | S177: -5174.680228 | AA177: FALSE | AB177: FALSE | AC177: FALSE | AD177: FALSE | AE177: FALSE | AF177: FALSE | AH177: 1 | AS177: 160935.002 | AT177: 5264.903812 | AU177: -5174.680228 | AV177: 79625.35897 | AW177: 78928.03776 | AX177: 0.002 | AY177: 0.002 | AZ177: 81309.64103 | BA177: 109248.3888 | BB177: 160935.002 | BC177: 5264.903812 | BD177: -5174.680228 | BE177: 79625.35897 | BF177: 78928.03776 | BG177: 0.002 | BH177: 0.002 | BI177: 81309.64103 | BJ177: 109248.3888 | BK177: 2014-06-07T16:00:00 | BL177: GRC Soiron - Arrivée | BM177: 282.2049119 | BN177: 165.45052 | BO177: 283.8740985 | BP177: 238.3466019 | BQ177: 50,583205 | BR177: 5,784250 | BT177: 0 | BV177: 125 | BX177: 125,GRC Soiron - Arrivée,GRC Soiron - Arrivée >>> GRC Soiron - Arrivée,TRUE,TRUE,X,X,X,X,FALSE,FALSE,FALSE,FALSE,FALSE,FALSE,100%
B178: 126 | C178: GRC Soiron - Arrivée | G178: 282.2049119 | I178: TRUE | J178: TRUE | K178: 123 | O178: 1 | Q178: 160935.002 | R178: 5264.903812 | S178: -5174.680228 | AA178: FALSE | AB178: FALSE | AC178: FALSE | AD178: FALSE | AE178: FALSE | AF178: FALSE | AH178: 1 | AS178: 160935.002 | AT178: 5264.903812 | AU178: -5174.680228 | AV178: 79625.35897 | AW178: 78928.03776 | AX178: 0.002 | AY178: 0.002 | AZ178: 81309.64103 | BA178: 109248.3888 | BB178: 160935.002 | BC178: 5264.903812 | BD178: -5174.680228 | BE178: 79625.35897 | BF178: 78928.03776 | BG178: 0.002 | BH178: 0.002 | BI178: 81309.64103 | BJ178: 109248.3888 | BK178: 2014-06-07T16:00:00 | BL178: GRC Soiron - Arrivée | BM178: 282.2049119 | BN178: 165.45052 | BO178: 283.8740985 | BP178: 238.3466019 | BQ178: 50,583205 | BR178: 5,784250 | BT178: 0 | BV178: 126 | BX178: 126,GRC Soiron - Arrivée,GRC Soiron - Arrivée >>> GRC Soiron - Arrivée,TRUE,TRUE,X,X,X,X,FALSE,FALSE,FALSE,FALSE,FALSE,FALSE,100%
B179: 127 | C179: GRC Soiron - Arrivée | G179: 282.2049119 | I179: TRUE | J179: TRUE | K179: 124 | O179: 1 | Q179: 160935.002 | R179: 5264.903812 | S179: -5174.680228 | AA179: FALSE | AB179: FALSE | AC179: FALSE | AD179: FALSE | AE179: FALSE | AF179: FALSE | AH179: 1 | AS179: 160935.002 | AT179: 5264.903812 | AU179: -5174.680228 | AV179: 79625.35897 | AW179: 78928.03776 | AX179: 0.002 | AY179: 0.002 | AZ179: 81309.64103 | BA179: 109248.3888 | BB179: 160935.002 | BC179: 5264.903812 | BD179: -5174.680228 | BE179: 79625.35897 | BF179: 78928.03776 | BG179: 0.002 | BH179: 0.002 | BI179: 81309.64103 | BJ179: 109248.3888 | BK179: 2014-06-07T16:00:00 | BL179: GRC Soiron - Arrivée | BM179: 282.2049119 | BN179: 165.45052 | BO179: 283.8740985 | BP179: 238.3466019 | BQ179: 50,583205 | BR179: 5,784250 | BT179: 0 | BV179: 127 | BX179: 127,GRC Soiron - Arrivée,GRC Soiron - Arrivée >>> GRC Soiron - Arrivée,TRUE,TRUE,X,X,X,X,FALSE,FALSE,FALSE,FALSE,FALSE,FALSE,100%
B180: 128 | C180: GRC Soiron - Arrivée | G180: 282.2049119 | I180: TRUE | J180: TRUE | K180: 125 | O180: 1 | Q180: 160935.002 | R180: 5264.903812 | S180: -5174.680228 | AA180: FALSE | AB180: FALSE | AC180: FALSE | AD180: FALSE | AE180: FALSE | AF180: FALSE | AH180: 1 | AS180: 160935.002 | AT180: 5264.903812 | AU180: -5174.680228 | AV180: 79625.35897 | AW180: 78928.03776 | AX180: 0.002 | AY180: 0.002 | AZ180: 81309.64103 | BA180: 109248.3888 | BB180: 160935.002 | BC180: 5264.903812 | BD180: -5174.680228 | BE180: 79625.35897 | BF180: 78928.03776 | BG180: 0.002 | BH180: 0.002 | BI180: 81309.64103 | BJ180: 109248.3888 | BK180: 2014-06-07T16:00:00 | BL180: GRC Soiron - Arrivée | BM180: 282.2049119 | BN180: 165.45052 | BO180: 283.8740985 | BP180: 238.3466019 | BQ180: 50,583205 | BR180: 5,784250 | BT180: 0 | BV180: 128 | BX180: 128,GRC Soiron - Arrivée,GRC Soiron - Arrivée >>> GRC Soiron - Arrivée,TRUE,TRUE,X,X,X,X,FALSE,FALSE,FALSE,FALSE,FALSE,FALSE,100%
B181: 129 | C181: =VLOOKUP($B181,RC_Table,C$52,TRUE) -> GRC Soiron - Arrivée | G181: =VLOOKUP($B181,RC_Table,G$52,TRUE) -> 282.2049119 | I181: TRUE | J181: TRUE | K181: =K180+IF($J181,IF($I181,1,IF(OR($B181=MR_Nbr_Points,NOT($I182)),0,1)),0) -> 126 | O181: 1 | P181: =IF(AND($M181<>"",$N181<>""),MR_Input_Jour+$M181-1+$N181,"") ->  | Q181: =IF($I181,($AS181-$AS180),0)+IF($O181=$O180,Q180,0) -> 160935.002 | R181: =IF($I181,($AT181-$AT180),0)+IF($O181=$O180,R180,0) -> 5264.903812 | S181: =IF($I181,($AU181-$AU180),0)+IF($O181=$O180,S180,0) -> -5174.680228 | V181: =IF($U181<>"",$BK181+$U181,"") ->  | Y181: =IF($X181<>"",$BK181+$X181,"") ->  | AA181: FALSE | AB181: FALSE | AC181: FALSE | AD181: FALSE | AE181: FALSE | AF181: FALSE | AH181: 1 | AS181: 160935.002 | AT181: 5264.903812 | AU181: -5174.680228 | AV181: 79625.35897 | AW181: 78928.03776 | AX181: 0.002 | AY181: 0.002 | AZ181: 81309.64103 | BA181: 109248.3888 | BB181: =BB180+IF($I181,AS181-AS180,TC_Delta_Min) -> 160935.002 | BC181: 5264.903812 | BD181: -5174.680228 | BE181: 79625.35897 | BF181: 78928.03776 | BG181: =BG180+IF($I181,AX181-AX180,TC_Delta_Min) -> 0.002 | BH181: =BH180+IF($I181,AY181-AY180,TC_Delta_Min) -> 0.002 | BI181: 81309.64103 | BJ181: 109248.3888 | BK181: 2014-06-07T16:00:00 | BL181: GRC Soiron - Arrivée | BM181: 282.2049119 | BN181: =VLOOKUP($B181,RC_Table,BN$50,TRUE) -> 165.45052 | BO181: 283.8740985 | BP181: 238.3466019 | BQ181: 50,583205 | BR181: 5,784250 | BT181: 0 | BV181: 129 | BX181: 129,GRC Soiron - Arrivée,GRC Soiron - Arrivée >>> GRC Soiron - Arrivée,TRUE,TRUE,X,X,X,X,FALSE,FALSE,FALSE,FALSE,FALSE,FALSE,100% | BZ181: =MATCH(CONCATENATE(IF($B181=1,"X",SUBSTITUTE($C180,",",";"))," >>> ",SUBSTITUTE($C181,",",";")),RBB_Liste_De_A,0) -> 
B182: =B181+1 -> 130 | C182: GRC Soiron - Arrivée | G182: 282.2049119 | I182: TRUE | J182: TRUE | K182: 127 | O182: 1 | Q182: 160935.002 | R182: 5264.903812 | S182: -5174.680228 | AA182: FALSE | AB182: FALSE | AC182: FALSE | AD182: FALSE | AE182: FALSE | AF182: FALSE | AH182: 1 | AS182: 160935.002 | AT182: 5264.903812 | AU182: -5174.680228 | AV182: 79625.35897 | AW182: 78928.03776 | AX182: 0.002 | AY182: 0.002 | AZ182: 81309.64103 | BA182: 109248.3888 | BB182: 160935.002 | BC182: =BC181+IF($I182,AT182-AT181,0) -> 5264.903812 | BD182: =BD181+IF($I182,AU182-AU181,0) -> -5174.680228 | BE182: =BE181+IF($I182,AV182-AV181,0) -> 79625.35897 | BF182: =BF181+IF($I182,AW182-AW181,0) -> 78928.03776 | BG182: 0.002 | BH182: 0.002 | BI182: =BI181+IF($I182,AZ182-AZ181,0) -> 81309.64103 | BJ182: =BJ181+IF($I182,BA182-BA181,0) -> 109248.3888 | BK182: 2014-06-07T16:00:00 | BL182: =IF($AQ182<>"",$AQ182,$C182) -> GRC Soiron - Arrivée | BM182: =$G182 -> 282.2049119 | BN182: 165.45052 | BO182: 283.8740985 | BP182: 238.3466019 | BQ182: 50,583205 | BR182: 5,784250 | BT182: =$BB182-$BB181 -> 0 | BV182: =$B182 -> 130 | BX182: =CONCATENATE(TEXT($B182,"0"),",",SUBSTITUTE($C182,",",";"),",",IF($B182=1,"X",SUBSTITUTE($C181,",",";"))," >>> ",SUBSTITUTE($C182,",",";"),",",TEXT($I182,"0"),",",TEXT($J182,"0"),",",IF(ISBLANK($M182),"X",TEXT($M182,"0")),",",IF(ISBLANK($N182),"X",TEXT($N182,"[HH]:MM")),",",IF(ISBLANK($U182),"X",TEXT($U182,"[HH]:MM")),",",IF(ISBLANK($X182),"X",TEXT($X182,"[HH]:MM")),",",TEXT($AA182,"0"),",",TEXT($AB182,"0"),",",TEXT($AC182,"0"),",",TEXT($AD182,"0"),",",TEXT($AE182,"0"),",",TEXT($AF182,"0"),",",TEXT($AH182,"0%")) -> 130,GRC Soiron - Arrivée,GRC Soiron - Arrivée >>> GRC Soiron - Arrivée,TRUE,TRUE,X,X,X,X,FALSE,FALSE,FALSE,FALSE,FALSE,FALSE,100%
B183: 131 | C183: GRC Soiron - Arrivée | G183: 282.2049119 | I183: TRUE | J183: TRUE | K183: 128 | O183: 1 | Q183: 160935.002 | R183: 5264.903812 | S183: -5174.680228 | AA183: FALSE | AB183: FALSE | AC183: FALSE | AD183: FALSE | AE183: FALSE | AF183: FALSE | AH183: 1 | AS183: 160935.002 | AT183: 5264.903812 | AU183: -5174.680228 | AV183: 79625.35897 | AW183: 78928.03776 | AX183: 0.002 | AY183: 0.002 | AZ183: 81309.64103 | BA183: 109248.3888 | BB183: 160935.002 | BC183: 5264.903812 | BD183: -5174.680228 | BE183: 79625.35897 | BF183: 78928.03776 | BG183: 0.002 | BH183: 0.002 | BI183: 81309.64103 | BJ183: 109248.3888 | BK183: 2014-06-07T16:00:00 | BL183: GRC Soiron - Arrivée | BM183: 282.2049119 | BN183: 165.45052 | BO183: 283.8740985 | BP183: 238.3466019 | BQ183: 50,583205 | BR183: 5,784250 | BT183: 0 | BV183: 131 | BX183: 131,GRC Soiron - Arrivée,GRC Soiron - Arrivée >>> GRC Soiron - Arrivée,TRUE,TRUE,X,X,X,X,FALSE,FALSE,FALSE,FALSE,FALSE,FALSE,100%
B184: 132 | C184: GRC Soiron - Arrivée | G184: 282.2049119 | I184: TRUE | J184: TRUE | K184: 129 | O184: 1 | Q184: 160935.002 | R184: 5264.903812 | S184: -5174.680228 | AA184: FALSE | AB184: FALSE | AC184: FALSE | AD184: FALSE | AE184: FALSE | AF184: FALSE | AH184: 1 | AS184: 160935.002 | AT184: 5264.903812 | AU184: -5174.680228 | AV184: 79625.35897 | AW184: 78928.03776 | AX184: 0.002 | AY184: 0.002 | AZ184: 81309.64103 | BA184: 109248.3888 | BB184: 160935.002 | BC184: 5264.903812 | BD184: -5174.680228 | BE184: 79625.35897 | BF184: 78928.03776 | BG184: 0.002 | BH184: 0.002 | BI184: 81309.64103 | BJ184: 109248.3888 | BK184: 2014-06-07T16:00:00 | BL184: GRC Soiron - Arrivée | BM184: 282.2049119 | BN184: 165.45052 | BO184: 283.8740985 | BP184: 238.3466019 | BQ184: 50,583205 | BR184: 5,784250 | BT184: 0 | BV184: 132 | BX184: 132,GRC Soiron - Arrivée,GRC Soiron - Arrivée >>> GRC Soiron - Arrivée,TRUE,TRUE,X,X,X,X,FALSE,FALSE,FALSE,FALSE,FALSE,FALSE,100%
B185: 133 | C185: GRC Soiron - Arrivée | G185: 282.2049119 | I185: TRUE | J185: TRUE | K185: 130 | O185: =O184+IF(AND($M184<>"",$N184<>""),1,0) -> 1 | Q185: 160935.002 | R185: 5264.903812 | S185: -5174.680228 | AA185: FALSE | AB185: FALSE | AC185: FALSE | AD185: FALSE | AE185: FALSE | AF185: FALSE | AH185: 1 | AS185: 160935.002 | AT185: 5264.903812 | AU185: -5174.680228 | AV185: 79625.35897 | AW185: 78928.03776 | AX185: 0.002 | AY185: 0.002 | AZ185: 81309.64103 | BA185: 109248.3888 | BB185: 160935.002 | BC185: 5264.903812 | BD185: -5174.680228 | BE185: 79625.35897 | BF185: 78928.03776 | BG185: 0.002 | BH185: 0.002 | BI185: 81309.64103 | BJ185: 109248.3888 | BK185: 2014-06-07T16:00:00 | BL185: GRC Soiron - Arrivée | BM185: 282.2049119 | BN185: 165.45052 | BO185: 283.8740985 | BP185: 238.3466019 | BQ185: 50,583205 | BR185: 5,784250 | BT185: 0 | BV185: 133 | BX185: 133,GRC Soiron - Arrivée,GRC Soiron - Arrivée >>> GRC Soiron - Arrivée,TRUE,TRUE,X,X,X,X,FALSE,FALSE,FALSE,FALSE,FALSE,FALSE,100%
B186: 134 | C186: GRC Soiron - Arrivée | G186: 282.2049119 | I186: TRUE | J186: TRUE | K186: 131 | O186: 1 | Q186: 160935.002 | R186: 5264.903812 | S186: -5174.680228 | AA186: FALSE | AB186: FALSE | AC186: FALSE | AD186: FALSE | AE186: FALSE | AF186: FALSE | AH186: 1 | AS186: 160935.002 | AT186: 5264.903812 | AU186: -5174.680228 | AV186: 79625.35897 | AW186: 78928.03776 | AX186: 0.002 | AY186: 0.002 | AZ186: 81309.64103 | BA186: 109248.3888 | BB186: 160935.002 | BC186: 5264.903812 | BD186: -5174.680228 | BE186: 79625.35897 | BF186: 78928.03776 | BG186: 0.002 | BH186: 0.002 | BI186: 81309.64103 | BJ186: 109248.3888 | BK186: 2014-06-07T16:00:00 | BL186: GRC Soiron - Arrivée | BM186: 282.2049119 | BN186: 165.45052 | BO186: 283.8740985 | BP186: 238.3466019 | BQ186: 50,583205 | BR186: 5,784250 | BT186: 0 | BV186: 134 | BX186: 134,GRC Soiron - Arrivée,GRC Soiron - Arrivée >>> GRC Soiron - Arrivée,TRUE,TRUE,X,X,X,X,FALSE,FALSE,FALSE,FALSE,FALSE,FALSE,100%
B187: 135 | C187: GRC Soiron - Arrivée | G187: 282.2049119 | I187: TRUE | J187: TRUE | K187: 132 | O187: 1 | Q187: 160935.002 | R187: 5264.903812 | S187: -5174.680228 | AA187: FALSE | AB187: FALSE | AC187: FALSE | AD187: FALSE | AE187: FALSE | AF187: FALSE | AH187: 1 | AS187: 160935.002 | AT187: 5264.903812 | AU187: -5174.680228 | AV187: 79625.35897 | AW187: 78928.03776 | AX187: 0.002 | AY187: 0.002 | AZ187: 81309.64103 | BA187: 109248.3888 | BB187: 160935.002 | BC187: 5264.903812 | BD187: -5174.680228 | BE187: 79625.35897 | BF187: 78928.03776 | BG187: 0.002 | BH187: 0.002 | BI187: 81309.64103 | BJ187: 109248.3888 | BK187: 2014-06-07T16:00:00 | BL187: GRC Soiron - Arrivée | BM187: 282.2049119 | BN187: 165.45052 | BO187: 283.8740985 | BP187: 238.3466019 | BQ187: 50,583205 | BR187: 5,784250 | BT187: 0 | BV187: 135 | BX187: 135,GRC Soiron - Arrivée,GRC Soiron - Arrivée >>> GRC Soiron - Arrivée,TRUE,TRUE,X,X,X,X,FALSE,FALSE,FALSE,FALSE,FALSE,FALSE,100%
B188: 136 | C188: GRC Soiron - Arrivée | G188: 282.2049119 | I188: TRUE | J188: TRUE | K188: 133 | O188: 1 | Q188: 160935.002 | R188: 5264.903812 | S188: -5174.680228 | AA188: FALSE | AB188: FALSE | AC188: FALSE | AD188: FALSE | AE188: FALSE | AF188: FALSE | AH188: 1 | AS188: 160935.002 | AT188: 5264.903812 | AU188: -5174.680228 | AV188: 79625.35897 | AW188: 78928.03776 | AX188: 0.002 | AY188: 0.002 | AZ188: 81309.64103 | BA188: 109248.3888 | BB188: 160935.002 | BC188: 5264.903812 | BD188: -5174.680228 | BE188: 79625.35897 | BF188: 78928.03776 | BG188: 0.002 | BH188: 0.002 | BI188: 81309.64103 | BJ188: 109248.3888 | BK188: 2014-06-07T16:00:00 | BL188: GRC Soiron - Arrivée | BM188: 282.2049119 | BN188: 165.45052 | BO188: 283.8740985 | BP188: 238.3466019 | BQ188: 50,583205 | BR188: 5,784250 | BT188: 0 | BV188: 136 | BX188: 136,GRC Soiron - Arrivée,GRC Soiron - Arrivée >>> GRC Soiron - Arrivée,TRUE,TRUE,X,X,X,X,FALSE,FALSE,FALSE,FALSE,FALSE,FALSE,100% | CM188: =VLOOKUP($BZ188,RBB_Table,CM$52,FALSE) -> 
B189: 137 | C189: GRC Soiron - Arrivée | G189: 282.2049119 | I189: TRUE | J189: TRUE | K189: 134 | O189: 1 | Q189: 160935.002 | R189: 5264.903812 | S189: -5174.680228 | AA189: FALSE | AB189: FALSE | AC189: FALSE | AD189: FALSE | AE189: FALSE | AF189: FALSE | AH189: 1 | AS189: 160935.002 | AT189: 5264.903812 | AU189: -5174.680228 | AV189: 79625.35897 | AW189: 78928.03776 | AX189: 0.002 | AY189: 0.002 | AZ189: 81309.64103 | BA189: 109248.3888 | BB189: 160935.002 | BC189: 5264.903812 | BD189: -5174.680228 | BE189: 79625.35897 | BF189: 78928.03776 | BG189: 0.002 | BH189: 0.002 | BI189: 81309.64103 | BJ189: 109248.3888 | BK189: 2014-06-07T16:00:00 | BL189: GRC Soiron - Arrivée | BM189: 282.2049119 | BN189: 165.45052 | BO189: 283.8740985 | BP189: 238.3466019 | BQ189: 50,583205 | BR189: 5,784250 | BT189: 0 | BV189: 137 | BX189: 137,GRC Soiron - Arrivée,GRC Soiron - Arrivée >>> GRC Soiron - Arrivée,TRUE,TRUE,X,X,X,X,FALSE,FALSE,FALSE,FALSE,FALSE,FALSE,100%
B190: 138 | C190: GRC Soiron - Arrivée | G190: 282.2049119 | I190: TRUE | J190: TRUE | K190: 135 | O190: 1 | Q190: 160935.002 | R190: 5264.903812 | S190: -5174.680228 | AA190: FALSE | AB190: FALSE | AC190: FALSE | AD190: FALSE | AE190: FALSE | AF190: FALSE | AH190: 1 | AS190: 160935.002 | AT190: 5264.903812 | AU190: -5174.680228 | AV190: 79625.35897 | AW190: 78928.03776 | AX190: 0.002 | AY190: 0.002 | AZ190: 81309.64103 | BA190: 109248.3888 | BB190: 160935.002 | BC190: 5264.903812 | BD190: -5174.680228 | BE190: 79625.35897 | BF190: 78928.03776 | BG190: 0.002 | BH190: 0.002 | BI190: 81309.64103 | BJ190: 109248.3888 | BK190: 2014-06-07T16:00:00 | BL190: GRC Soiron - Arrivée | BM190: 282.2049119 | BN190: 165.45052 | BO190: 283.8740985 | BP190: 238.3466019 | BQ190: 50,583205 | BR190: 5,784250 | BT190: 0 | BV190: 138 | BX190: 138,GRC Soiron - Arrivée,GRC Soiron - Arrivée >>> GRC Soiron - Arrivée,TRUE,TRUE,X,X,X,X,FALSE,FALSE,FALSE,FALSE,FALSE,FALSE,100%
B191: 139 | C191: GRC Soiron - Arrivée | G191: 282.2049119 | I191: TRUE | J191: TRUE | K191: 136 | O191: 1 | Q191: 160935.002 | R191: 5264.903812 | S191: -5174.680228 | AA191: FALSE | AB191: FALSE | AC191: FALSE | AD191: FALSE | AE191: FALSE | AF191: FALSE | AH191: 1 | AS191: 160935.002 | AT191: 5264.903812 | AU191: -5174.680228 | AV191: 79625.35897 | AW191: 78928.03776 | AX191: 0.002 | AY191: 0.002 | AZ191: 81309.64103 | BA191: 109248.3888 | BB191: 160935.002 | BC191: 5264.903812 | BD191: -5174.680228 | BE191: 79625.35897 | BF191: 78928.03776 | BG191: 0.002 | BH191: 0.002 | BI191: 81309.64103 | BJ191: 109248.3888 | BK191: 2014-06-07T16:00:00 | BL191: GRC Soiron - Arrivée | BM191: 282.2049119 | BN191: 165.45052 | BO191: 283.8740985 | BP191: 238.3466019 | BQ191: 50,583205 | BR191: 5,784250 | BT191: 0 | BV191: 139 | BX191: 139,GRC Soiron - Arrivée,GRC Soiron - Arrivée >>> GRC Soiron - Arrivée,TRUE,TRUE,X,X,X,X,FALSE,FALSE,FALSE,FALSE,FALSE,FALSE,100%
B192: 140 | C192: GRC Soiron - Arrivée | G192: 282.2049119 | I192: TRUE | J192: TRUE | K192: 137 | O192: 1 | Q192: 160935.002 | R192: 5264.903812 | S192: -5174.680228 | AA192: FALSE | AB192: FALSE | AC192: FALSE | AD192: FALSE | AE192: FALSE | AF192: FALSE | AH192: 1 | AS192: 160935.002 | AT192: 5264.903812 | AU192: -5174.680228 | AV192: 79625.35897 | AW192: 78928.03776 | AX192: 0.002 | AY192: 0.002 | AZ192: 81309.64103 | BA192: 109248.3888 | BB192: 160935.002 | BC192: 5264.903812 | BD192: -5174.680228 | BE192: 79625.35897 | BF192: 78928.03776 | BG192: 0.002 | BH192: 0.002 | BI192: 81309.64103 | BJ192: 109248.3888 | BK192: 2014-06-07T16:00:00 | BL192: GRC Soiron - Arrivée | BM192: 282.2049119 | BN192: 165.45052 | BO192: 283.8740985 | BP192: 238.3466019 | BQ192: 50,583205 | BR192: 5,784250 | BT192: 0 | BV192: 140 | BX192: 140,GRC Soiron - Arrivée,GRC Soiron - Arrivée >>> GRC Soiron - Arrivée,TRUE,TRUE,X,X,X,X,FALSE,FALSE,FALSE,FALSE,FALSE,FALSE,100%
B193: 141 | C193: GRC Soiron - Arrivée | G193: 282.2049119 | I193: TRUE | J193: TRUE | K193: 138 | O193: 1 | Q193: 160935.002 | R193: 5264.903812 | S193: -5174.680228 | AA193: FALSE | AB193: FALSE | AC193: FALSE | AD193: FALSE | AE193: FALSE | AF193: FALSE | AH193: 1 | AS193: =VLOOKUP($B193,RC_Table,AS$50,TRUE) -> 160935.002 | AT193: 5264.903812 | AU193: -5174.680228 | AV193: 79625.35897 | AW193: 78928.03776 | AX193: 0.002 | AY193: 0.002 | AZ193: 81309.64103 | BA193: 109248.3888 | BB193: 160935.002 | BC193: 5264.903812 | BD193: -5174.680228 | BE193: 79625.35897 | BF193: 78928.03776 | BG193: 0.002 | BH193: 0.002 | BI193: 81309.64103 | BJ193: 109248.3888 | BK193: 2014-06-07T16:00:00 | BL193: GRC Soiron - Arrivée | BM193: 282.2049119 | BN193: 165.45052 | BO193: 283.8740985 | BP193: 238.3466019 | BQ193: 50,583205 | BR193: 5,784250 | BT193: 0 | BV193: 141 | BX193: 141,GRC Soiron - Arrivée,GRC Soiron - Arrivée >>> GRC Soiron - Arrivée,TRUE,TRUE,X,X,X,X,FALSE,FALSE,FALSE,FALSE,FALSE,FALSE,100% | CA193: =VLOOKUP($BZ193,RBB_Table,CA$52,FALSE) -> 
B194: 142 | C194: GRC Soiron - Arrivée | G194: 282.2049119 | I194: TRUE | J194: TRUE | K194: 139 | O194: 1 | Q194: 160935.002 | R194: 5264.903812 | S194: -5174.680228 | AA194: FALSE | AB194: FALSE | AC194: FALSE | AD194: FALSE | AE194: FALSE | AF194: FALSE | AH194: 1 | AS194: 160935.002 | AT194: 5264.903812 | AU194: -5174.680228 | AV194: 79625.35897 | AW194: 78928.03776 | AX194: 0.002 | AY194: 0.002 | AZ194: 81309.64103 | BA194: 109248.3888 | BB194: 160935.002 | BC194: 5264.903812 | BD194: -5174.680228 | BE194: 79625.35897 | BF194: 78928.03776 | BG194: 0.002 | BH194: 0.002 | BI194: 81309.64103 | BJ194: 109248.3888 | BK194: =IF($O194<>$O193,$P193,BK193) -> 2014-06-07T16:00:00 | BL194: GRC Soiron - Arrivée | BM194: 282.2049119 | BN194: 165.45052 | BO194: 283.8740985 | BP194: 238.3466019 | BQ194: 50,583205 | BR194: 5,784250 | BT194: 0 | BV194: 142 | BX194: 142,GRC Soiron - Arrivée,GRC Soiron - Arrivée >>> GRC Soiron - Arrivée,TRUE,TRUE,X,X,X,X,FALSE,FALSE,FALSE,FALSE,FALSE,FALSE,100%
B195: 143 | C195: GRC Soiron - Arrivée | G195: 282.2049119 | I195: TRUE | J195: TRUE | K195: 140 | O195: 1 | Q195: 160935.002 | R195: 5264.903812 | S195: -5174.680228 | AA195: FALSE | AB195: FALSE | AC195: FALSE | AD195: FALSE | AE195: FALSE | AF195: FALSE | AH195: 1 | AS195: 160935.002 | AT195: 5264.903812 | AU195: -5174.680228 | AV195: 79625.35897 | AW195: 78928.03776 | AX195: 0.002 | AY195: 0.002 | AZ195: 81309.64103 | BA195: 109248.3888 | BB195: 160935.002 | BC195: 5264.903812 | BD195: -5174.680228 | BE195: 79625.35897 | BF195: 78928.03776 | BG195: 0.002 | BH195: 0.002 | BI195: 81309.64103 | BJ195: 109248.3888 | BK195: 2014-06-07T16:00:00 | BL195: GRC Soiron - Arrivée | BM195: 282.2049119 | BN195: 165.45052 | BO195: 283.8740985 | BP195: 238.3466019 | BQ195: 50,583205 | BR195: 5,784250 | BT195: 0 | BV195: 143 | BX195: 143,GRC Soiron - Arrivée,GRC Soiron - Arrivée >>> GRC Soiron - Arrivée,TRUE,TRUE,X,X,X,X,FALSE,FALSE,FALSE,FALSE,FALSE,FALSE,100%
B196: 144 | C196: GRC Soiron - Arrivée | G196: 282.2049119 | I196: TRUE | J196: TRUE | K196: 141 | O196: 1 | Q196: 160935.002 | R196: 5264.903812 | S196: -5174.680228 | AA196: FALSE | AB196: FALSE | AC196: FALSE | AD196: FALSE | AE196: FALSE | AF196: FALSE | AH196: 1 | AS196: 160935.002 | AT196: 5264.903812 | AU196: -5174.680228 | AV196: 79625.35897 | AW196: 78928.03776 | AX196: 0.002 | AY196: 0.002 | AZ196: 81309.64103 | BA196: 109248.3888 | BB196: 160935.002 | BC196: 5264.903812 | BD196: -5174.680228 | BE196: 79625.35897 | BF196: 78928.03776 | BG196: 0.002 | BH196: 0.002 | BI196: 81309.64103 | BJ196: 109248.3888 | BK196: 2014-06-07T16:00:00 | BL196: GRC Soiron - Arrivée | BM196: 282.2049119 | BN196: 165.45052 | BO196: 283.8740985 | BP196: 238.3466019 | BQ196: 50,583205 | BR196: 5,784250 | BT196: 0 | BV196: 144 | BX196: 144,GRC Soiron - Arrivée,GRC Soiron - Arrivée >>> GRC Soiron - Arrivée,TRUE,TRUE,X,X,X,X,FALSE,FALSE,FALSE,FALSE,FALSE,FALSE,100%
B197: 145 | C197: GRC Soiron - Arrivée | G197: 282.2049119 | I197: TRUE | J197: TRUE | K197: 142 | O197: 1 | Q197: 160935.002 | R197: 5264.903812 | S197: -5174.680228 | AA197: FALSE | AB197: FALSE | AC197: FALSE | AD197: FALSE | AE197: FALSE | AF197: FALSE | AH197: 1 | AS197: 160935.002 | AT197: 5264.903812 | AU197: -5174.680228 | AV197: 79625.35897 | AW197: 78928.03776 | AX197: 0.002 | AY197: 0.002 | AZ197: 81309.64103 | BA197: 109248.3888 | BB197: 160935.002 | BC197: 5264.903812 | BD197: -5174.680228 | BE197: 79625.35897 | BF197: 78928.03776 | BG197: 0.002 | BH197: 0.002 | BI197: 81309.64103 | BJ197: 109248.3888 | BK197: 2014-06-07T16:00:00 | BL197: GRC Soiron - Arrivée | BM197: 282.2049119 | BN197: 165.45052 | BO197: 283.8740985 | BP197: 238.3466019 | BQ197: 50,583205 | BR197: 5,784250 | BT197: 0 | BV197: 145 | BX197: 145,GRC Soiron - Arrivée,GRC Soiron - Arrivée >>> GRC Soiron - Arrivée,TRUE,TRUE,X,X,X,X,FALSE,FALSE,FALSE,FALSE,FALSE,FALSE,100%
B198: 146 | C198: GRC Soiron - Arrivée | G198: 282.2049119 | I198: TRUE | J198: TRUE | K198: 143 | O198: 1 | Q198: 160935.002 | R198: 5264.903812 | S198: -5174.680228 | AA198: FALSE | AB198: FALSE | AC198: FALSE | AD198: FALSE | AE198: FALSE | AF198: FALSE | AH198: 1 | AS198: 160935.002 | AT198: 5264.903812 | AU198: -5174.680228 | AV198: 79625.35897 | AW198: 78928.03776 | AX198: 0.002 | AY198: 0.002 | AZ198: 81309.64103 | BA198: 109248.3888 | BB198: 160935.002 | BC198: 5264.903812 | BD198: -5174.680228 | BE198: 79625.35897 | BF198: 78928.03776 | BG198: 0.002 | BH198: 0.002 | BI198: 81309.64103 | BJ198: 109248.3888 | BK198: 2014-06-07T16:00:00 | BL198: GRC Soiron - Arrivée | BM198: 282.2049119 | BN198: 165.45052 | BO198: 283.8740985 | BP198: 238.3466019 | BQ198: 50,583205 | BR198: 5,784250 | BT198: 0 | BV198: 146 | BX198: 146,GRC Soiron - Arrivée,GRC Soiron - Arrivée >>> GRC Soiron - Arrivée,TRUE,TRUE,X,X,X,X,FALSE,FALSE,FALSE,FALSE,FALSE,FALSE,100%
B199: 147 | C199: GRC Soiron - Arrivée | G199: 282.2049119 | I199: TRUE | J199: TRUE | K199: 144 | O199: 1 | Q199: 160935.002 | R199: 5264.903812 | S199: -5174.680228 | AA199: FALSE | AB199: FALSE | AC199: FALSE | AD199: FALSE | AE199: FALSE | AF199: FALSE | AH199: 1 | AS199: 160935.002 | AT199: 5264.903812 | AU199: -5174.680228 | AV199: 79625.35897 | AW199: 78928.03776 | AX199: 0.002 | AY199: 0.002 | AZ199: 81309.64103 | BA199: 109248.3888 | BB199: 160935.002 | BC199: 5264.903812 | BD199: -5174.680228 | BE199: 79625.35897 | BF199: 78928.03776 | BG199: 0.002 | BH199: 0.002 | BI199: 81309.64103 | BJ199: 109248.3888 | BK199: 2014-06-07T16:00:00 | BL199: GRC Soiron - Arrivée | BM199: 282.2049119 | BN199: 165.45052 | BO199: 283.8740985 | BP199: 238.3466019 | BQ199: 50,583205 | BR199: 5,784250 | BT199: 0 | BV199: 147 | BX199: 147,GRC Soiron - Arrivée,GRC Soiron - Arrivée >>> GRC Soiron - Arrivée,TRUE,TRUE,X,X,X,X,FALSE,FALSE,FALSE,FALSE,FALSE,FALSE,100%
B200: 148 | C200: GRC Soiron - Arrivée | G200: 282.2049119 | I200: TRUE | J200: TRUE | K200: 145 | O200: 1 | Q200: 160935.002 | R200: 5264.903812 | S200: -5174.680228 | AA200: FALSE | AB200: FALSE | AC200: FALSE | AD200: FALSE | AE200: FALSE | AF200: FALSE | AH200: 1 | AS200: 160935.002 | AT200: 5264.903812 | AU200: -5174.680228 | AV200: 79625.35897 | AW200: 78928.03776 | AX200: 0.002 | AY200: 0.002 | AZ200: 81309.64103 | BA200: 109248.3888 | BB200: 160935.002 | BC200: 5264.903812 | BD200: -5174.680228 | BE200: 79625.35897 | BF200: 78928.03776 | BG200: 0.002 | BH200: 0.002 | BI200: 81309.64103 | BJ200: 109248.3888 | BK200: 2014-06-07T16:00:00 | BL200: GRC Soiron - Arrivée | BM200: 282.2049119 | BN200: 165.45052 | BO200: 283.8740985 | BP200: 238.3466019 | BQ200: 50,583205 | BR200: 5,784250 | BT200: 0 | BV200: 148 | BX200: 148,GRC Soiron - Arrivée,GRC Soiron - Arrivée >>> GRC Soiron - Arrivée,TRUE,TRUE,X,X,X,X,FALSE,FALSE,FALSE,FALSE,FALSE,FALSE,100%
B201: 149 | C201: GRC Soiron - Arrivée | G201: 282.2049119 | I201: TRUE | J201: TRUE | K201: 146 | O201: 1 | Q201: 160935.002 | R201: 5264.903812 | S201: -5174.680228 | AA201: FALSE | AB201: FALSE | AC201: FALSE | AD201: FALSE | AE201: FALSE | AF201: FALSE | AH201: 1 | AS201: 160935.002 | AT201: 5264.903812 | AU201: -5174.680228 | AV201: 79625.35897 | AW201: 78928.03776 | AX201: 0.002 | AY201: 0.002 | AZ201: 81309.64103 | BA201: 109248.3888 | BB201: 160935.002 | BC201: 5264.903812 | BD201: -5174.680228 | BE201: 79625.35897 | BF201: 78928.03776 | BG201: 0.002 | BH201: 0.002 | BI201: 81309.64103 | BJ201: 109248.3888 | BK201: 2014-06-07T16:00:00 | BL201: GRC Soiron - Arrivée | BM201: 282.2049119 | BN201: 165.45052 | BO201: 283.8740985 | BP201: 238.3466019 | BQ201: 50,583205 | BR201: 5,784250 | BT201: 0 | BV201: 149 | BX201: 149,GRC Soiron - Arrivée,GRC Soiron - Arrivée >>> GRC Soiron - Arrivée,TRUE,TRUE,X,X,X,X,FALSE,FALSE,FALSE,FALSE,FALSE,FALSE,100%
B202: 150 | C202: GRC Soiron - Arrivée | G202: 282.2049119 | I202: TRUE | J202: TRUE | K202: 147 | O202: 1 | Q202: 160935.002 | R202: 5264.903812 | S202: -5174.680228 | AA202: FALSE | AB202: FALSE | AC202: FALSE | AD202: FALSE | AE202: FALSE | AF202: FALSE | AH202: 1 | AS202: 160935.002 | AT202: 5264.903812 | AU202: -5174.680228 | AV202: 79625.35897 | AW202: 78928.03776 | AX202: 0.002 | AY202: 0.002 | AZ202: 81309.64103 | BA202: 109248.3888 | BB202: 160935.002 | BC202: 5264.903812 | BD202: -5174.680228 | BE202: 79625.35897 | BF202: 78928.03776 | BG202: 0.002 | BH202: 0.002 | BI202: 81309.64103 | BJ202: 109248.3888 | BK202: 2014-06-07T16:00:00 | BL202: GRC Soiron - Arrivée | BM202: 282.2049119 | BN202: 165.45052 | BO202: 283.8740985 | BP202: 238.3466019 | BQ202: 50,583205 | BR202: 5,784250 | BT202: 0 | BV202: 150 | BX202: 150,GRC Soiron - Arrivée,GRC Soiron - Arrivée >>> GRC Soiron - Arrivée,TRUE,TRUE,X,X,X,X,FALSE,FALSE,FALSE,FALSE,FALSE,FALSE,100%
... 100 more rows

Sheet Menu Coureur
C2: Vitesse de Course | H2: + | J2: – | V2: Temps de Passage | AB2: ►► | AD2: CALC | AK2: OK | AM2: i | AS2: ◄◄
C4: Nombre Maximum de Points | F4: 250 | BR4: Save Information
C5: Nombre de Points Roadbook | F5: =MR_Nbr_RB -> 55 | BR5: =Clean_NonPath_Characters(CONCATENATE(M_Input_Préfixe,"Backup Coureur - ",ME_Input_Titre," (",TEXT(NOW(),"AAAA-MM-JJ HH-MM"),").txt")) -> 2014-06-07 - GRC - 160 km - Backup Coureur - Exemple 24 heures (2014-05-13 15-50).txt
BR6: =CONCATENATE(ME_Input_Titre," ; ",TEXT(ME_Input_Méthode,"0")," ; ",TEXT(ME_Input_Temps_Objectif,"[hh]:mm")," ; ",TEXT(ME_Input_Vitesse_Initiale,"0,00")," ; ",ME_Input_Décr_Globale," ; ",ME_Input_Décr_Linéaire," ; ",TEXT(ME_Input_Décr_Etape,"0,0%")," ; ",TEXT(ME_Input_Taux_Etape,"0,0%")," ; ",TEXT(ME_Input_Décr_Finale,"0,0%")," ; ",TEXT(ME_Input_Taux_Final,"0,0%")," ; ",ME_Input_Relief," ; ",ME_Input_Courabilité," ; ",TEXT(ME_Input_Alt_Montée_Taux,"0,0%")," ; ",TEXT(ME_Input_Alt_Montée_Seuil,"0")," ; ",TEXT(ME_Input_Alt_Descente_Taux,"0,0%")," ; ",TEXT(ME_Input_Alt_Descente_Seuil,"0")," ; ",TEXT(ME_Input_Grimpeur,"0,0%")," ; ",TEXT(ME_Input_Descendeur,"0,0%")," ; ",TEXT(ME_Input_Nuit_Montée,"0,0%")," ; ",TEXT(ME_Input_Nuit_Descente,"0,0%")," ; ") -> Exemple 24 heures ; 1 ; 24:00 ; 8,00 ; TRUE ; FALSE ; 80,0% ; 20,0% ; 80,0% ; 8,0% ; TRUE ; TRUE ; 11,0% ; 1600 ; 5,0% ; 2500 ; 100,0% ; 100,0% ; 100,0% ; 100,0% ;
C7: ▼ Titre de cette Estimation ▼ | L7: Graphe - Vitesse | O7: Graphe Pente | S7: Graphe - Altitude | AH7: ◄ Courabilité | BR7: Restore Information
D8: Exemple 24 heures | L8: Temps (H) | M8: V % | O8: Pente | P8: Min-Max | Q8: D x | S8: Alt | T8: V % | BR8: DBMS | BS8: 2 | BT8: 100:00 | BU8: 4.2 | BV8: FAUX | BW8: FAUX | BX8: 0.8 | BY8: 0.2 | BZ8: 0.85 | CA8: 0.06 | CB8: VRAI | CC8: FAUX | CD8: 0.11 | CE8: 1600 | CF8: 0.05 | CG8: 2500 | CH8: 0.9 | CI8: 1 | CJ8: 1 | CK8: 1
L9: 0 | M9: =IF(ME_Input_Décr_Linéaire,1-(1-ME_Input_Décr_Finale)*L9/40,ME_Input_Décr_Finale+(1-ME_Input_Décr_Finale)*(1-ME_Input_Taux_Final)^L9) -> 1 | O9: -60 | P9: =MIN(MAX(O9,100*P_RPO_Pente_Min),100*P_RPO_Pente_Max) -> -40 | Q9: =IF(ME_Input_Relief,(1+P_RPO_X*P9+P_RPO_X2*P9^2+P_RPO_X3*P9^3+P_RPO_X4*P9^4)*IF(P9<>O9,O9/P9,1),1) -> 3.774 | S9: 0 | T9: 1 | AH9: ◄ Altitude | BR9: =SUBSTITUTE(BR8," ","") -> DBMS | BS9: =VALUE(BS8) -> 2 | BT9: =SUBSTITUTE(BT8," ","") -> 100:00 | BU9: =VALUE(BU8) -> 4.2 | BV9: =SUBSTITUTE(BV8," ","") -> FAUX | BW9: =SUBSTITUTE(BW8," ","") -> FAUX | BX9: =VALUE(BX8) -> 0.8 | BY9: =VALUE(BY8) -> 0.2 | BZ9: =VALUE(BZ8) -> 0.85 | CA9: =VALUE(CA8) -> 0.06 | CB9: =SUBSTITUTE(CB8," ","") -> VRAI | CC9: =SUBSTITUTE(CC8," ","") -> FAUX | CD9: =VALUE(CD8) -> 0.11 | CE9: 1600 | CF9: 0.05 | CG9: 2500 | CH9: 0.9 | CI9: 1 | CJ9: 1 | CK9: 1 | DQ9: ="Itération "&DQ11&" >>>" -> Itération 1 >>> | GF9: ="Itération "&GF11&" >>>" -> Itération 2 >>> | IU9: ="Itération "&IU11&" >>>" -> Itération 3 >>> | LJ9: ="Itération "&LJ11&" >>>" -> Itération 4 >>> | NY9: ="Itération "&NY11&" >>>" -> Itération 5 >>> | QN9: ="Itération "&QN11&" >>>" -> Itération 6 >>>
B10: 1 | C10: ▼ Méthode de Calcul des Vitesses ▼ | L10: =L9+1 -> 1 | M10: 0.984 | O10: =O9+2 -> -58 | P10: -40 | Q10: 3.6482 | S10: =ME_Input_Alt_Montée_Seuil -> 1600 | T10: 1 | FW10: Correction | FZ10: Correction | IL10: Correction | IO10: Correction | LA10: Correction | LD10: Correction | NP10: Correction | NS10: Correction | QE10: Correction | QH10: Correction | ST10: Correction | SW10: Correction
C11: Objectif ▼ | E11: V Init / Fin ▼ | G11: Manuel ▼ | L11: =L10+1 -> 2 | M11: 0.96928 | O11: =O10+2 -> -56 | P11: -40 | Q11: 3.5224 | S11: 5000 | T11: =100%-ME_Input_Alt_Montée_Taux*(S11-S10)/1000 -> 0.626 | AH11: ◄ Grimpeur / D | DQ11: 1 | DS11: 1 | DZ11: 1 | FW11: =CHOOSE(ME_Input_Méthode,NA(),FW12/(ME_Input_Vitesse_Initiale*ME_Input_Décr_Finale),NA()) ->  | FZ11: =CHOOSE(ME_Input_Méthode,FZ17/FV17,NA(),NA()) -> 0.5839853719 | GF11: =DQ11+1 -> 2 | GH11: =FZ11 -> 0.5839853719 | GO11: =FW11 ->  | IL11: =CHOOSE(ME_Input_Méthode,NA(),IL12/(ME_Input_Vitesse_Initiale*ME_Input_Décr_Finale),NA()) ->  | IO11: =CHOOSE(ME_Input_Méthode,IO17/IK17,NA(),NA()) -> 1.038016038 | IU11: =GF11+1 -> 3 | IW11: =IO11 -> 1.038016038 | JD11: =IL11 ->  | LA11: =CHOOSE(ME_Input_Méthode,NA(),LA12/(ME_Input_Vitesse_Initiale*ME_Input_Décr_Finale),NA()) ->  | LD11: =CHOOSE(ME_Input_Méthode,LD17/KZ17,NA(),NA()) -> 0.997323066 | LJ11: =IU11+1 -> 4 | LL11: =LD11 -> 0.997323066 | LS11: =LA11 ->  | NP11: =CHOOSE(ME_Input_Méthode,NA(),NP12/(ME_Input_Vitesse_Initiale*ME_Input_Décr_Finale),NA()) ->  | NS11: =CHOOSE(ME_Input_Méthode,NS17/NO17,NA(),NA()) -> 1.000192647 | NY11: =LJ11+1 -> 5 | OA11: =NS11 -> 1.000192647 | OH11: =NP11 ->  | QE11: =CHOOSE(ME_Input_Méthode,NA(),QE12/(ME_Input_Vitesse_Initiale*ME_Input_Décr_Finale),NA()) ->  | QH11: =CHOOSE(ME_Input_Méthode,QH17/QD17,NA(),NA()) -> 0.9999861575 | QN11: =NY11+1 -> 6 | QP11: =QH11 -> 0.9999861575 | QW11: =QE11 ->  | ST11: =CHOOSE(ME_Input_Méthode,NA(),ST12/(ME_Input_Vitesse_Initiale*ME_Input_Décr_Finale),NA()) ->  | SW11: =CHOOSE(ME_Input_Méthode,SW17/SS17,NA(),NA()) -> 1.000000995
D12: =CHOOSE(ME_Input_Méthode,"Objectif de Temps","Vitesses Initiales et Finales","Choix Manuel des Vitesses") -> Objectif de Temps | L12: 3 | M12: 0.9557376 | O12: -54 | P12: -40 | Q12: 3.3966 | S12: 0 | T12: 1 | FW12: =OFFSET(FW$20,1+ME_Nbr_RB,0) -> 13.83286347 | IL12: =OFFSET(IL$20,1+ME_Nbr_RB,0) -> 7.725451148 | LA12: =OFFSET(LA$20,1+ME_Nbr_RB,0) -> 8.040453052 | NP12: =OFFSET(NP$20,1+ME_Nbr_RB,0) -> 8.01737504 | QE12: =OFFSET(QE$20,1+ME_Nbr_RB,0) -> 8.019031137 | ST12: =OFFSET(ST$20,1+ME_Nbr_RB,0) -> 8.018912115
C13: Temps Visé ► | F13: 1 | L13: 4 | M13: 0.943278592 | O13: -52 | P13: -40 | Q13: 3.2708 | S13: =ME_Input_Alt_Descente_Seuil -> 2500 | T13: 1 | AH13: ◄ Nuit
C14: Vitesse Initiale ► | F14: 8 | L14: 5 | M14: 0.9318163046 | O14: -50 | P14: -40 | Q14: 3.145 | S14: 5000 | T14: =100%-ME_Input_Alt_Descente_Taux*(S14-S13)/1000 -> 0.875 | DQ14: Vitesse en début Etape | DU14: Première Estimation - Avec Tm = Ti | EG14: Vitesse en début Etape (idem) | EK14: Seconde Estimation - Avec Tm sur base To de la Première Estimation | EW14: Calcul de Coéficient de Correstion de Nuit | FN14: Vitesse en début Etape (idem) | FR14: Estimation Finale pour cette Itération | GF14: Vitesse en début Etape | GJ14: Première Estimation - Avec Tm = Ti | GV14: Vitesse en début Etape (idem) | GZ14: Seconde Estimation - Avec Tm sur base To de la Première Estimation | HL14: Calcul de Coéficient de Correstion de Nuit | IC14: Vitesse en début Etape (idem) | IG14: Estimation Finale pour cette Itération | IU14: Vitesse en début Etape | IY14: Première Estimation - Avec Tm = Ti | JK14: Vitesse en début Etape (idem) | JO14: Seconde Estimation - Avec Tm sur base To de la Première Estimation | KA14: Calcul de Coéficient de Correstion de Nuit | KR14: Vitesse en début Etape (idem) | KV14: Estimation Finale pour cette Itération | LJ14: Vitesse en début Etape | LN14: Première Estimation - Avec Tm = Ti | LZ14: Vitesse en début Etape (idem) | MD14: Seconde Estimation - Avec Tm sur base To de la Première Estimation | MP14: Calcul de Coéficient de Correstion de Nuit | NG14: Vitesse en début Etape (idem) | NK14: Estimation Finale pour cette Itération | NY14: Vitesse en début Etape | OC14: Première Estimation - Avec Tm = Ti | OO14: Vitesse en début Etape (idem) | OS14: Seconde Estimation - Avec Tm sur base To de la Première Estimation | PE14: Calcul de Coéficient de Correstion de Nuit | PV14: Vitesse en début Etape (idem) | PZ14: Estimation Finale pour cette Itération | QN14: Vitesse en début Etape | QR14: Première Estimation - Avec Tm = Ti | RD14: Vitesse en début Etape (idem) | RH14: Seconde Estimation - Avec Tm sur base To de la Première Estimation | RT14: Calcul de Coéficient de Correstion de Nuit | SK14: Vitesse en début Etape (idem) | SO14: Estimation Finale pour cette Itération | TC14: Calcul des Temps Totaux ./. Aux Coéfficients | TJ14: Calcul des coéfficients séparément Montée / Descente | UA14: Vitesses ascentionelles | UI14: Tables avec Points en double - In / Out
L15: 6 | M15: 0.9212710003 | O15: -48 | P15: -40 | Q15: 3.0192 | BQ15: ◄ Passages | BR15: ◄ Passages | CN15: Determination des Facteurs de Correction - Sauf Vitesse de Nuit (qui dépend de l'heure)
C16: ▼ Décroissance de la Vitesse ▼ | L16: 7 | M16: 0.9115693202 | O16: -46 | P16: -40 | Q16: 2.8934 | DQ16: =ME_Input_Méthode -> 1 | DS16: =CHOOSE(ME_Input_Méthode,16*DS$11,ME_Input_Vitesse_Initiale,NA()) -> 16 | DY16: Décélération Linéaire | EC16: Total Hp | EG16: =ME_Input_Méthode -> 1 | EI16: =DS16 -> 16 | EO16: =DY16 -> Décélération Linéaire | ES16: Total Hp | EW16: =ME_Input_Méthode -> 1 | FN16: =ME_Input_Méthode -> 1 | FP16: =EI16 -> 16 | FV16: =EO16 -> Décélération Linéaire | FZ16: Total Hp | GF16: =ME_Input_Méthode -> 1 | GH16: =CHOOSE(ME_Input_Méthode,DS16*GH$11,ME_Input_Vitesse_Initiale,NA()) -> 9.34376595 | GN16: Décélération Linéaire | GR16: Total Hp | GV16: =ME_Input_Méthode -> 1 | GX16: =GH16 -> 9.34376595 | HD16: =GN16 -> Décélération Linéaire | HH16: Total Hp | HL16: =ME_Input_Méthode -> 1 | IC16: =ME_Input_Méthode -> 1 | IE16: =GX16 -> 9.34376595 | IK16: =HD16 -> Décélération Linéaire | IO16: Total Hp | IU16: =ME_Input_Méthode -> 1 | IW16: =CHOOSE(ME_Input_Méthode,GH16*IW$11,ME_Input_Vitesse_Initiale,NA()) -> 9.698978908 | JC16: Décélération Linéaire | JG16: Total Hp | JK16: =ME_Input_Méthode -> 1 | JM16: =IW16 -> 9.698978908 | JS16: =JC16 -> Décélération Linéaire | JW16: Total Hp | KA16: =ME_Input_Méthode -> 1 | KR16: =ME_Input_Méthode -> 1 | KT16: =JM16 -> 9.698978908 | KZ16: =JS16 -> Décélération Linéaire | LD16: Total Hp | LJ16: =ME_Input_Méthode -> 1 | LL16: =CHOOSE(ME_Input_Méthode,IW16*LL$11,ME_Input_Vitesse_Initiale,NA()) -> 9.673015382 | LR16: Décélération Linéaire | LV16: Total Hp | LZ16: =ME_Input_Méthode -> 1 | MB16: =LL16 -> 9.673015382 | MH16: =LR16 -> Décélération Linéaire | ML16: Total Hp | MP16: =ME_Input_Méthode -> 1 | NG16: =ME_Input_Méthode -> 1 | NI16: =MB16 -> 9.673015382 | NO16: =MH16 -> Décélération Linéaire | NS16: Total Hp | NY16: =ME_Input_Méthode -> 1 | OA16: =CHOOSE(ME_Input_Méthode,LL16*OA$11,ME_Input_Vitesse_Initiale,NA()) -> 9.674878859 | OG16: Décélération Linéaire | OK16: Total Hp | OO16: =ME_Input_Méthode -> 1 | OQ16: =OA16 -> 9.674878859 | OW16: =OG16 -> Décélération Linéaire | PA16: Total Hp | PE16: =ME_Input_Méthode -> 1 | PV16: =ME_Input_Méthode -> 1 | PX16: =OQ16 -> 9.674878859 | QD16: =OW16 -> Décélération Linéaire | QH16: Total Hp | QN16: =ME_Input_Méthode -> 1 | QP16: =CHOOSE(ME_Input_Méthode,OA16*QP$11,ME_Input_Vitesse_Initiale,NA()) -> 9.674744934 | QV16: Décélération Linéaire | QZ16: Total Hp | RD16: =ME_Input_Méthode -> 1 | RF16: =QP16 -> 9.674744934 | RL16: =QV16 -> Décélération Linéaire | RP16: Total Hp | RT16: =ME_Input_Méthode -> 1 | SC16: TP▲ | SD16: TP▲ | SG16: TP TG ▲ | SK16: =ME_Input_Méthode -> 1 | SM16: =RF16 -> 9.674744934 | SS16: =RL16 -> Décélération Linéaire | SW16: Total Hp | TD16: Total | TE16: Total | TF16: Total | TG16: Total | TH16: Total | UA16: TP▲ | UB16: TP▲ | UD16: TP▲ | UE16: TP▲
B17: TRUE | C17: Globale ▼ | D17: Par Etape ▼ | F17: Linéaire ▼ | G17: Expo ▼ | L17: 8 | M17: 0.9026437746 | O17: -44 | P17: -40 | Q17: 2.7676 | BG17: Original RB Num | BH17: RB Cut | BJ17: Barrières In Out | BL17: Avance / Retard Barrières | BQ17: Lookup Table MR_Table_RB (en mètres) | CB17: Calcul des Différences par Point (en mètres) | CL17: Dist ≡ Eff | CN17: % Distances ≡ ▼ ► ▲ | CR17: Courabilité | CT17: Altitudes Min - Max - Moyenne | CW17: Préparation Coéfficient Altitude | DD17: Coéfficients Alt - G/D - Total | DI17: Lat - Long pour Nuit | DL17: Barrières | DQ17: =ME_Input_Décr_Globale -> TRUE | DY17: =ME_Input_Temps_Objectif-ME_Total_Pauses -> 0.9791666667 | DZ17: =(ME_Total_Distance_Equivalente/1000)/(ME_Input_Vitesse_Initiale*((1+ME_Input_Décr_Finale)/2)*24) -> 1.088983962 | EC17: =SUM(OFFSET(EC$20,2,0,ME_Nbr_RB)) -> 0.5706021109 | EG17: =ME_Input_Décr_Globale -> TRUE | EO17: =DY17 -> 0.9791666667 | EP17: =DZ17 -> 1.088983962 | ES17: =SUM(OFFSET(ES$20,2,0,ME_Nbr_RB)) -> 0.5718156342 | EW17: =ME_Input_Décr_Globale -> TRUE | FN17: =ME_Input_Décr_Globale -> TRUE | FV17: =EO17 -> 0.9791666667 | FW17: =EP17 -> 1.088983962 | FZ17: =SUM(OFFSET(FZ$20,2,0,ME_Nbr_RB)) -> 0.57181901 | GF17: =ME_Input_Décr_Globale -> TRUE | GN17: =ME_Input_Temps_Objectif-ME_Total_Pauses -> 0.9791666667 | GO17: =(ME_Total_Distance_Equivalente/1000)/(ME_Input_Vitesse_Initiale*24) -> 0.9800855655 | GR17: =SUM(OFFSET(GR$20,2,0,ME_Nbr_RB)) -> 1.013509905 | GV17: =ME_Input_Décr_Globale -> TRUE | HD17: =GN17 -> 0.9791666667 | HE17: =GO17 -> 0.9800855655 | HH17: =SUM(OFFSET(HH$20,2,0,ME_Nbr_RB)) -> 1.016378784 | HL17: =ME_Input_Décr_Globale -> TRUE | IC17: =ME_Input_Décr_Globale -> TRUE | IK17: =HD17 -> 0.9791666667 | IL17: =HE17 -> 0.9800855655 | IO17: =SUM(OFFSET(IO$20,2,0,ME_Nbr_RB)) -> 1.016390703 | IU17: =ME_Input_Décr_Globale -> TRUE | JC17: =ME_Input_Temps_Objectif-ME_Total_Pauses -> 0.9791666667 | JD17: =(ME_Total_Distance_Equivalente/1000)/(ME_Input_Vitesse_Initiale*24) -> 0.9800855655 | JG17: =SUM(OFFSET(JG$20,2,0,ME_Nbr_RB)) -> 0.9738184769 | JK17: =ME_Input_Décr_Globale -> TRUE | JS17: =JC17 -> 0.9791666667 | JT17: =JD17 -> 0.9800855655 | JW17: =SUM(OFFSET(JW$20,2,0,ME_Nbr_RB)) -> 0.9765345172 | KA17: =ME_Input_Décr_Globale -> TRUE | KR17: =ME_Input_Décr_Globale -> TRUE | KZ17: =JS17 -> 0.9791666667 | LA17: =JT17 -> 0.9800855655 | LD17: =SUM(OFFSET(LD$20,2,0,ME_Nbr_RB)) -> 0.9765455022 | LJ17: =ME_Input_Décr_Globale -> TRUE | LR17: =ME_Input_Temps_Objectif-ME_Total_Pauses -> 0.9791666667 | LS17: =(ME_Total_Distance_Equivalente/1000)/(ME_Input_Vitesse_Initiale*24) -> 0.9800855655 | LV17: =SUM(OFFSET(LV$20,2,0,ME_Nbr_RB)) -> 0.9766174324 | LZ17: =ME_Input_Décr_Globale -> TRUE | MH17: =LR17 -> 0.9791666667 | MI17: =LS17 -> 0.9800855655 | ML17: =SUM(OFFSET(ML$20,2,0,ME_Nbr_RB)) -> 0.9793442503 | MP17: =ME_Input_Décr_Globale -> TRUE | NG17: =ME_Input_Décr_Globale -> TRUE | NO17: =MH17 -> 0.9791666667 | NP17: =MI17 -> 0.9800855655 | NS17: =SUM(OFFSET(NS$20,2,0,ME_Nbr_RB)) -> 0.9793553002 | NY17: =ME_Input_Décr_Globale -> TRUE | OG17: =ME_Input_Temps_Objectif-ME_Total_Pauses -> 0.9791666667 | OH17: =(ME_Total_Distance_Equivalente/1000)/(ME_Input_Vitesse_Initiale*24) -> 0.9800855655 | OK17: =SUM(OFFSET(OK$20,2,0,ME_Nbr_RB)) -> 0.9764160249 | OO17: =ME_Input_Décr_Globale -> TRUE | OW17: =OG17 -> 0.9791666667 | OX17: =OH17 -> 0.9800855655 | PA17: =SUM(OFFSET(PA$20,2,0,ME_Nbr_RB)) -> 0.9791420673 | PE17: =ME_Input_Décr_Globale -> TRUE | PV17: =ME_Input_Décr_Globale -> TRUE | QD17: =OW17 -> 0.9791666667 | QE17: =OX17 -> 0.9800855655 | QH17: =SUM(OFFSET(QH$20,2,0,ME_Nbr_RB)) -> 0.9791531125 | QN17: =ME_Input_Décr_Globale -> TRUE | QV17: =ME_Input_Temps_Objectif-ME_Total_Pauses -> 0.9791666667 | QW17: =(ME_Total_Distance_Equivalente/1000)/(ME_Input_Vitesse_Initiale*24) -> 0.9800855655 | QZ17: =SUM(OFFSET(QZ$20,2,0,ME_Nbr_RB)) -> 0.9764304971 | RD17: =ME_Input_Décr_Globale -> TRUE | RL17: =QV17 -> 0.9791666667 | RM17: =QW17 -> 0.9800855655 | RP17: =SUM(OFFSET(RP$20,2,0,ME_Nbr_RB)) -> 0.9791565952 | RT17: =ME_Input_Décr_Globale -> TRUE | SK17: =ME_Input_Décr_Globale -> TRUE | SS17: =RL17 -> 0.9791666667 | ST17: =RM17 -> 0.9800855655 | SW17: =SUM(OFFSET(SW$20,2,0,ME_Nbr_RB)) -> 0.9791676407 | TD17: =SUM(OFFSET(TD$20,2,0,ME_Nbr_RB)) -> 0.9128996292 | TE17: =SUM(OFFSET(TE$20,2,0,ME_Nbr_RB)) -> 0.9791676407 | TF17: =SUM(OFFSET(TF$20,2,0,ME_Nbr_RB)) -> 0.9128996292 | TG17: =SUM(OFFSET(TG$20,2,0,ME_Nbr_RB)) -> 0.9128996292 | TH17: =SUM(OFFSET(TH$20,2,0,ME_Nbr_RB)) -> 0.9128996292
B18: FALSE | D18: =CONCATENATE("Décroissance ",IF(ME_Input_Décr_Linéaire,"linéaire","exponentielle")," ",IF(ME_Input_Décr_Globale,"globale","par étape")) -> Décroissance exponentielle globale | L18: 9 | M18: 0.8944322727 | O18: -42 | P18: -40 | Q18: 2.6418 | AJ18: RAZ | AK18: RAZ | AL18: Totaux ◄ ► Deltas | DQ18: =ME_Input_Décr_Linéaire -> FALSE | DY18: =IF(ME_Input_Décr_Linéaire,DS16*(1-ME_Input_Décr_Finale)/(DY17*24),NA()) ->  | DZ18: =IF(ME_Input_Décr_Linéaire,DZ$11*ME_Input_Vitesse_Initiale*(1-ME_Input_Décr_Finale)/(DZ17*24),NA()) ->  | EG18: =ME_Input_Décr_Linéaire -> FALSE | EW18: =ME_Input_Décr_Linéaire -> FALSE | FN18: =ME_Input_Décr_Linéaire -> FALSE | GF18: =ME_Input_Décr_Linéaire -> FALSE | GN18: =IF(ME_Input_Décr_Linéaire,GH16*(1-ME_Input_Décr_Finale)/(GN17*24),NA()) ->  | GO18: =IF(ME_Input_Décr_Linéaire,DZ18*GO$11,NA()) ->  | GV18: =ME_Input_Décr_Linéaire -> FALSE | HL18: =ME_Input_Décr_Linéaire -> FALSE | IC18: =ME_Input_Décr_Linéaire -> FALSE | IU18: =ME_Input_Décr_Linéaire -> FALSE | JC18: =IF(ME_Input_Décr_Linéaire,IW16*(1-ME_Input_Décr_Finale)/(JC17*24),NA()) ->  | JD18: =IF(ME_Input_Décr_Linéaire,GO18*JD$11,NA()) ->  | JK18: =ME_Input_Décr_Linéaire -> FALSE | KA18: =ME_Input_Décr_Linéaire -> FALSE | KR18: =ME_Input_Décr_Linéaire -> FALSE | LJ18: =ME_Input_Décr_Linéaire -> FALSE | LR18: =IF(ME_Input_Décr_Linéaire,LL16*(1-ME_Input_Décr_Finale)/(LR17*24),NA()) ->  | LS18: =IF(ME_Input_Décr_Linéaire,JD18*LS$11,NA()) ->  | LZ18: =ME_Input_Décr_Linéaire -> FALSE | MP18: =ME_Input_Décr_Linéaire -> FALSE | NG18: =ME_Input_Décr_Linéaire -> FALSE | NY18: =ME_Input_Décr_Linéaire -> FALSE | OG18: =IF(ME_Input_Décr_Linéaire,OA16*(1-ME_Input_Décr_Finale)/(OG17*24),NA()) ->  | OH18: =IF(ME_Input_Décr_Linéaire,LS18*OH$11,NA()) ->  | OO18: =ME_Input_Décr_Linéaire -> FALSE | PE18: =ME_Input_Décr_Linéaire -> FALSE | PV18: =ME_Input_Décr_Linéaire -> FALSE | QN18: =ME_Input_Décr_Linéaire -> FALSE | QV18: =IF(ME_Input_Décr_Linéaire,QP16*(1-ME_Input_Décr_Finale)/(QV17*24),NA()) ->  | QW18: =IF(ME_Input_Décr_Linéaire,OH18*QW$11,NA()) ->  | RD18: =ME_Input_Décr_Linéaire -> FALSE | RT18: =ME_Input_Décr_Linéaire -> FALSE | RU18: ◄ V Finale | SK18: =ME_Input_Décr_Linéaire -> FALSE
C19: Vitesse Initiale dernière Etape ► | F19: 0.8 | G19: de V initiale | L19: 10 | M19: 0.8868776908 | O19: -40 | P19: -40 | Q19: 2.516 | AY19: Restore Info | BC19: ◄ V Finale | BD19: ◄ V Finale | BG19: =COLUMN('Menu Roadbook'!$BV$51)-COLUMN('Menu Roadbook'!$K$51)+1 -> 64 | BJ19: =COLUMN('Menu Roadbook'!$V$51)-COLUMN('Menu Roadbook'!$K$51)+1 -> 12 | BK19: =COLUMN('Menu Roadbook'!$Y$51)-COLUMN('Menu Roadbook'!$K$51)+1 -> 15 | BQ19: =COLUMN('Menu Roadbook'!$Q$51)-COLUMN('Menu Roadbook'!$K$51)+1 -> 7 | BR19: =COLUMN('Menu Roadbook'!$BB$51)-COLUMN('Menu Roadbook'!$K$51)+1 -> 44 | BS19: =COLUMN('Menu Roadbook'!$BC$51)-COLUMN('Menu Roadbook'!$K$51)+1 -> 45 | BT19: =COLUMN('Menu Roadbook'!$BD$51)-COLUMN('Menu Roadbook'!$K$51)+1 -> 46 | BU19: =COLUMN('Menu Roadbook'!$BE$51)-COLUMN('Menu Roadbook'!$K$51)+1 -> 47 | BV19: =COLUMN('Menu Roadbook'!$BF$51)-COLUMN('Menu Roadbook'!$K$51)+1 -> 48 | BW19: =COLUMN('Menu Roadbook'!$BG$51)-COLUMN('Menu Roadbook'!$K$51)+1 -> 49 | BX19: =COLUMN('Menu Roadbook'!$BH$51)-COLUMN('Menu Roadbook'!$K$51)+1 -> 50 | BY19: =COLUMN('Menu Roadbook'!$BI$51)-COLUMN('Menu Roadbook'!$K$51)+1 -> 51 | BZ19: =COLUMN('Menu Roadbook'!$BJ$51)-COLUMN('Menu Roadbook'!$K$51)+1 -> 52 | CB19: ◄ Val Finale | CC19: ◄ Val Finale | CD19: ◄ Val Finale | CL19: ◄ Val Finale | CR19: =COLUMN('Menu Roadbook'!$AH$51)-COLUMN('Menu Roadbook'!$K$51)+1 -> 24 | CT19: =COLUMN('Menu Roadbook'!$BN$51)-COLUMN('Menu Roadbook'!$K$51)+1 -> 56 | CU19: =COLUMN('Menu Roadbook'!$BO$51)-COLUMN('Menu Roadbook'!$K$51)+1 -> 57 | CV19: =COLUMN('Menu Roadbook'!$BP$51)-COLUMN('Menu Roadbook'!$K$51)+1 -> 58 | DI19: =COLUMN('Menu Roadbook'!$BQ$51)-COLUMN('Menu Roadbook'!$K$51)+1 -> 59 | DJ19: =COLUMN('Menu Roadbook'!$BR$51)-COLUMN('Menu Roadbook'!$K$51)+1 -> 60 | DL19: =COLUMN('Menu Roadbook'!$V$51)-COLUMN('Menu Roadbook'!$K$51)+1 -> 12 | DM19: =COLUMN('Menu Roadbook'!$Y$51)-COLUMN('Menu Roadbook'!$K$51)+1 -> 15 | EX19: =COLUMN('Menu Roadbook'!$BK$51)-COLUMN('Menu Roadbook'!$K$51)+1 -> 53 | HM19: =COLUMN('Menu Roadbook'!$BK$51)-COLUMN('Menu Roadbook'!$K$51)+1 -> 53 | KB19: =COLUMN('Menu Roadbook'!$BK$51)-COLUMN('Menu Roadbook'!$K$51)+1 -> 53 | MQ19: =COLUMN('Menu Roadbook'!$BK$51)-COLUMN('Menu Roadbook'!$K$51)+1 -> 53 | PF19: =COLUMN('Menu Roadbook'!$BK$51)-COLUMN('Menu Roadbook'!$K$51)+1 -> 53 | RU19: =COLUMN('Menu Roadbook'!$BK$51)-COLUMN('Menu Roadbook'!$K$51)+1 -> 53 | SG19: V Finale► | SI19: V Finale► | SV19: ◄ V Finale | SW19: ◄ V Finale | TD19: ◄ Totaux | TE19: ◄ Totaux | TF19: ◄ Totaux | TG19: ◄ Totaux | TH19: ◄ Totaux
C20: Taux de Décroissance par Etape ► | F20: 0.2 | G20: par étape | L20: 11 | M20: 0.8799274756 | O20: -38 | P20: -38 | Q20: 2.3998896 | V20: RB | Y20: Nom | AB20: Altitude | AC20: Etape | AD20: E | AE20: L | AF20: C | AG20: BV | AH20: Sacs | AI20: Lits | AJ20: Pauses | AK20: Vitesses | AL20: Distance | AM20: D + | AN20: D - | AO20: Distance ≡ | AP20: Vitesse≡ | AQ20: Durée | AR20: Tps In | AS20: Tps Out | AT20: Date In | AU20: Date Out | AV20: A/R In | AW20: A/R Out | AY20: Num | AZ20: Pause | BA20: Vitesses | BC20: Déb Etape | BD20: Fin Etape | BG20: =OFFSET(MR_Header_Table_RB,0,BG19-1,1,1) -> RB Num | BH20: RB Cut | BJ20: =OFFSET(MR_Header_Table_RB,0,BJ19-1,1,1) -> Barrière In | BK20: Barrière Out | BL20: In | BM20: A/R In | BN20: Out | BO20: A/R Out | BQ20: =OFFSET(MR_Header_Table_RB,0,BQ19-1,1,1) -> Dist Etape | BR20: =OFFSET(MR_Header_Table_RB,0,BR19-1,1,1) -> Dist Totale | BS20: Tot D + | BT20: Tot D - | BU20: Tot Dist ▼ | BV20: Tot Dist ≡ ▼ | BW20: Tot Dist ► | BX20: Tot Dist ≡ ► | BY20: Tot Dist ▲ | BZ20: Tot Dist ≡ ▲ | CB20: Distance | CC20: D + | CD20: D - | CE20: Dist ▼ | CF20: Dist ≡ ▼ | CG20: Dist ► | CH20: Dist ≡ ► | CI20: Dist ▲ | CJ20: Dist ≡ ▲ | CL20: Dist ≡ | CN20: % Dist ≡ ▼ | CO20: % Dist ≡ ► | CP20: % Dist ≡ ▲ | CR20: Courabilité | CT20: =OFFSET(MR_Header_Table_RB,0,CT19-1,1,1) -> Alt Min | CU20: =OFFSET(MR_Header_Table_RB,0,CU19-1,1,1) -> Alt Max | CV20: =OFFSET(MR_Header_Table_RB,0,CV19-1,1,1) -> Alt Moy | CW20: Alt Moy ▲ | CX20: % seuil | CY20: % en ▲ | CZ20: Alt Moy ▼ | DA20: % seuil | DB20: % en ▼ | DD20: Corr Alt | DE20: Corr G/D | DF20: Alt & G/D | DG20: % All | DI20: =OFFSET(MR_Header_Table_RB,0,DI19-1,1,1) -> Latitude | DJ20: =OFFSET(MR_Header_Table_RB,0,DJ19-1,1,1) -> Longitude | DL20: =OFFSET(MR_Header_Table_RB,0,DL19-1,1,1) -> Barrière In | DM20: =OFFSET(MR_Header_Table_RB,0,DM19-1,1,1) -> Barrière Out | DQ20: Etape | DR20: Taux Etape | DS20: Vi Etape | DU20: TTi Hp | DV20: TEi Hp | DW20: TTm Hp | DX20: TEm Hp | DY20: V Obj (Ti) | DZ20: V Lin (Ti) | EA20: V Man | EB20: V (Ti) | EC20: Durée Hp | ED20: TTo Hp | EE20: TEo Hp | EG20: Etape | EH20: Taux Etape | EI20: Vi Etape | EK20: TTi Hp | EL20: TEi Hp | EM20: TTm Hp | EN20: TEm Hp | EO20: V Obj (Ti) | EP20: V Lin (Ti) | EQ20: V Man | ER20: V (Ti) | ES20: Durée Hp | ET20: TTo Hp | EU20: TEo Hp | EW20: Etape | EX20: =OFFSET(MR_Header_Table_RB,0,EX19-1,1,1) -> Début Etape | EY20: Di | EZ20: Df | FA20: Do | FB20: ∆ Jour | FC20: ∆ H | FD20: Hm | FE20: Matin | FF20: Jour | FG20: Soir | FH20: Nuit | FI20: Periode | FJ20: % Nuit | FK20: Corr Nuit | FL20: % All | FN20: Etape | FO20: Taux Etape | FP20: Vi Etape | FR20: TTi Hp | FS20: TEi Hp | FT20: TTm Hp | FU20: TEm Hp | FV20: V Obj (Ti) | FW20: V Lin (Ti) | FX20: V Man | FY20: V (Ti) | FZ20: Durée Hp | GA20: TTo Hp | GB20: TEo Hp | GF20: Etape | GG20: Taux Etape | GH20: Vi Etape | GJ20: TTi Hp | GK20: TEi Hp | GL20: TTm Hp | GM20: TEm Hp | GN20: V Obj (Ti) | GO20: V Lin (Ti) | GP20: V Man | GQ20: V (Ti) | GR20: Durée Hp | GS20: TTo Hp | GT20: TEo Hp | GV20: Etape | GW20: Taux Etape | GX20: Vi Etape | GZ20: TTi Hp | HA20: TEi Hp | HB20: TTm Hp | HC20: TEm Hp | HD20: V Obj (Ti) | HE20: V Lin (Ti) | HF20: V Man | HG20: V (Ti) | HH20: Durée Hp | HI20: TTo Hp | HJ20: TEo Hp | HL20: Etape | HM20: =OFFSET(MR_Header_Table_RB,0,HM19-1,1,1) -> Début Etape | HN20: Di | HO20: Df | HP20: Do | HQ20: ∆ Jour | HR20: ∆ H | HS20: Hm | HT20: Matin | HU20: Jour | HV20: Soir | HW20: Nuit | HX20: Periode | HY20: % Nuit | HZ20: Corr Nuit | IA20: % All | IC20: Etape | ID20: Taux Etape | IE20: Vi Etape | IG20: TTi Hp | IH20: TEi Hp | II20: TTm Hp | IJ20: TEm Hp | IK20: V Obj (Ti) | IL20: V Lin (Ti) | IM20: V Man | IN20: V (Ti) | IO20: Durée Hp | IP20: TTo Hp | IQ20: TEo Hp | IU20: Etape | IV20: Taux Etape | IW20: Vi Etape | IY20: TTi Hp | IZ20: TEi Hp | JA20: TTm Hp | JB20: TEm Hp | JC20: V Obj (Ti) | JD20: V Lin (Ti) | JE20: V Man | JF20: V (Ti) | JG20: Durée Hp | JH20: TTo Hp | JI20: TEo Hp | JK20: Etape | JL20: Taux Etape | JM20: Vi Etape | JO20: TTi Hp | JP20: TEi Hp | JQ20: TTm Hp | JR20: TEm Hp | JS20: V Obj (Ti) | JT20: V Lin (Ti) | JU20: V Man | JV20: V (Ti) | JW20: Durée Hp | JX20: TTo Hp | JY20: TEo Hp | KA20: Etape | KB20: =OFFSET(MR_Header_Table_RB,0,KB19-1,1,1) -> Début Etape | KC20: Di | KD20: Df | KE20: Do | KF20: ∆ Jour | KG20: ∆ H | KH20: Hm | KI20: Matin | KJ20: Jour | KK20: Soir | KL20: Nuit | KM20: Periode | KN20: % Nuit | KO20: Corr Nuit | KP20: % All | KR20: Etape | KS20: Taux Etape | KT20: Vi Etape | KV20: TTi Hp | KW20: TEi Hp | KX20: TTm Hp | KY20: TEm Hp | KZ20: V Obj (Ti) | LA20: V Lin (Ti) | LB20: V Man | LC20: V (Ti) | LD20: Durée Hp | LE20: TTo Hp | LF20: TEo Hp | LJ20: Etape | LK20: Taux Etape | LL20: Vi Etape | LN20: TTi Hp | LO20: TEi Hp | LP20: TTm Hp | LQ20: TEm Hp | LR20: V Obj (Ti) | LS20: V Lin (Ti) | LT20: V Man | LU20: V (Ti) | LV20: Durée Hp | LW20: TTo Hp | LX20: TEo Hp | LZ20: Etape | MA20: Taux Etape | MB20: Vi Etape | MD20: TTi Hp | ME20: TEi Hp | MF20: TTm Hp | MG20: TEm Hp | MH20: V Obj (Ti) | MI20: V Lin (Ti) | MJ20: V Man | MK20: V (Ti) | ML20: Durée Hp | MM20: TTo Hp | MN20: TEo Hp | MP20: Etape | MQ20: =OFFSET(MR_Header_Table_RB,0,MQ19-1,1,1) -> Début Etape | MR20: Di | MS20: Df | MT20: Do | MU20: ∆ Jour | MV20: ∆ H | MW20: Hm | MX20: Matin | MY20: Jour | MZ20: Soir | NA20: Nuit | NB20: Periode | NC20: % Nuit | ND20: Corr Nuit | NE20: % All | NG20: Etape | NH20: Taux Etape | NI20: Vi Etape | NK20: TTi Hp | NL20: TEi Hp | NM20: TTm Hp | NN20: TEm Hp | NO20: V Obj (Ti) | NP20: V Lin (Ti) | NQ20: V Man | NR20: V (Ti) | NS20: Durée Hp | NT20: TTo Hp | NU20: TEo Hp | NY20: Etape | NZ20: Taux Etape | OA20: Vi Etape | OC20: TTi Hp | OD20: TEi Hp | OE20: TTm Hp | OF20: TEm Hp | OG20: V Obj (Ti) | OH20: V Lin (Ti) | OI20: V Man | OJ20: V (Ti) | OK20: Durée Hp | OL20: TTo Hp | OM20: TEo Hp | OO20: Etape | OP20: Taux Etape | OQ20: Vi Etape | OS20: TTi Hp | OT20: TEi Hp | OU20: TTm Hp | OV20: TEm Hp | OW20: V Obj (Ti) | OX20: V Lin (Ti) | OY20: V Man | OZ20: V (Ti) | PA20: Durée Hp | PB20: TTo Hp | PC20: TEo Hp | PE20: Etape | PF20: =OFFSET(MR_Header_Table_RB,0,PF19-1,1,1) -> Début Etape | PG20: Di | PH20: Df | PI20: Do | PJ20: ∆ Jour | PK20: ∆ H | PL20: Hm | PM20: Matin | PN20: Jour | PO20: Soir | PP20: Nuit | PQ20: Periode | PR20: % Nuit | PS20: Corr Nuit | PT20: % All | PV20: Etape | PW20: Taux Etape | PX20: Vi Etape | PZ20: TTi Hp | QA20: TEi Hp | QB20: TTm Hp | QC20: TEm Hp | QD20: V Obj (Ti) | QE20: V Lin (Ti) | QF20: V Man | QG20: V (Ti) | QH20: Durée Hp | QI20: TTo Hp | QJ20: TEo Hp | QN20: Etape | QO20: Taux Etape | QP20: Vi Etape | QR20: TTi Hp | QS20: TEi Hp | QT20: TTm Hp | QU20: TEm Hp | QV20: V Obj (Ti) | QW20: V Lin (Ti) | QX20: V Man | QY20: V (Ti) | QZ20: Durée Hp | RA20: TTo Hp | RB20: TEo Hp | RD20: Etape | RE20: Taux Etape | RF20: Vi Etape | RH20: TTi Hp | RI20: TEi Hp | RJ20: TTm Hp | RK20: TEm Hp | RL20: V Obj (Ti) | RM20: V Lin (Ti) | RN20: V Man | RO20: V (Ti) | RP20: Durée Hp | RQ20: TTo Hp | RR20: TEo Hp | RT20: Etape | RU20: =OFFSET(MR_Header_Table_RB,0,RU19-1,1,1) -> Début Etape | RV20: Di | RW20: Df | RX20: Do | RY20: ∆ Jour | RZ20: ∆ H | SA20: Hm | SB20: Matin | SC20: Jour | SD20: Soir | SE20: Nuit | SF20: Periode | SG20: % Nuit | SH20: Corr Nuit | SI20: % All | SK20: Etape | SL20: Taux Etape | SM20: Vi Etape | SO20: TTi Hp | SP20: TEi Hp | SQ20: TTm Hp | SR20: TEm Hp | SS20: V Obj (Ti) | ST20: V Lin (Ti) | SU20: V Man | SV20: V (Ti) | SW20: Durée Hp | SX20: TTo Hp | SY20: TEo Hp | TC20: V Base | TD20: D Base | TE20: D Coura | TF20: D Alti | TG20: D G/D | TH20: D Nuit | TJ20: =$SI20 -> % All | TK20: =$SG20 -> % Nuit | TM20: =$CP20 -> % Dist ≡ ▲ | TN20: Alt | TO20: Alt & G/D | TP20: Nuit | TQ20: A+G+N ▲ | TR20: All ▲ | TT20: =$CN20 -> % Dist ≡ ▼ | TU20: Alt | TV20: Alt & G/D | TW20: Nuit | TX20: A+D+N ▼ | TY20: All ▼ | UA20: Temps ▲ | UB20: Temps ▼ | UD20: Vitesse ▲ | UE20: Vitesse ▼ | UI20: RB Avant | UJ20: RB Après | UK20: Distance | UL20: Courabilité | UM20: Altitude | UN20: G/D | UO20: Nuit | UP20: Total | UQ20: V Finale | UR20: V Base
L21: 12 | M21: 0.8735332775 | O21: -36 | P21: -36 | Q21: 2.2754656 | V21: 0 | W21: =COLUMN('Menu Roadbook'!$BL$51)-COLUMN('Menu Roadbook'!$K$51)+1 -> 54 | AB21: =COLUMN('Menu Roadbook'!$BM$51)-COLUMN('Menu Roadbook'!$K$51)+1 -> 55 | AC21: =COLUMN('Menu Roadbook'!$O$51)-COLUMN('Menu Roadbook'!$K$51)+1 -> 5 | AD21: =COLUMN('Menu Roadbook'!$AA$51)-COLUMN('Menu Roadbook'!$K$51)+1 -> 17 | AE21: =COLUMN('Menu Roadbook'!$AB$51)-COLUMN('Menu Roadbook'!$K$51)+1 -> 18 | AF21: =COLUMN('Menu Roadbook'!$AC$51)-COLUMN('Menu Roadbook'!$K$51)+1 -> 19 | AG21: =COLUMN('Menu Roadbook'!$AD$51)-COLUMN('Menu Roadbook'!$K$51)+1 -> 20 | AH21: =COLUMN('Menu Roadbook'!$AE$51)-COLUMN('Menu Roadbook'!$K$51)+1 -> 21 | AI21: =COLUMN('Menu Roadbook'!$AF$51)-COLUMN('Menu Roadbook'!$K$51)+1 -> 22 | AL21: FALSE | AM21: =ME_Input_Toggle -> FALSE | AN21: =ME_Input_Toggle -> FALSE | BQ21: 0 | BR21: 0 | BS21: 0 | BT21: 0 | BU21: 0 | BV21: 0 | BW21: 0 | BX21: 0 | BY21: 0 | BZ21: 0 | CL21: =ME_Input_Relief -> TRUE | CN21: =ME_Input_Relief -> TRUE | CO21: =ME_Input_Relief -> TRUE | CP21: =ME_Input_Relief -> TRUE | CR21: =ME_Input_Courabilité -> TRUE | DQ21: 1 | EA21: =ME_Input_Vitesse_Initiale -> 8 | ED21: 0 | EE21: 0 | EG21: 1 | EQ21: =ME_Input_Vitesse_Initiale -> 8 | ET21: 0 | EU21: 0 | EW21: 1 | FA21: =MR_Input_Jour+MR_Input_Heure -> 2014-06-07T16:00:00 | FN21: 1 | FX21: =ME_Input_Vitesse_Initiale -> 8 | GA21: 0 | GB21: 0 | GF21: 1 | GP21: =ME_Input_Vitesse_Initiale -> 8 | GS21: 0 | GT21: 0 | GV21: 1 | HF21: =ME_Input_Vitesse_Initiale -> 8 | HI21: 0 | HJ21: 0 | HL21: 1 | HP21: =MR_Input_Jour+MR_Input_Heure -> 2014-06-07T16:00:00 | IC21: 1 | IM21: =ME_Input_Vitesse_Initiale -> 8 | IP21: 0 | IQ21: 0 | IU21: 1 | JE21: =ME_Input_Vitesse_Initiale -> 8 | JH21: 0 | JI21: 0 | JK21: 1 | JU21: =ME_Input_Vitesse_Initiale -> 8 | JX21: 0 | JY21: 0 | KA21: 1 | KE21: =MR_Input_Jour+MR_Input_Heure -> 2014-06-07T16:00:00 | KR21: 1 | LB21: =ME_Input_Vitesse_Initiale -> 8 | LE21: 0 | LF21: 0 | LJ21: 1 | LT21: =ME_Input_Vitesse_Initiale -> 8 | LW21: 0 | LX21: 0 | LZ21: 1 | MJ21: =ME_Input_Vitesse_Initiale -> 8 | MM21: 0 | MN21: 0 | MP21: 1 | MT21: =MR_Input_Jour+MR_Input_Heure -> 2014-06-07T16:00:00 | NG21: 1 | NQ21: =ME_Input_Vitesse_Initiale -> 8 | NT21: 0 | NU21: 0 | NY21: 1 | OI21: =ME_Input_Vitesse_Initiale -> 8 | OL21: 0 | OM21: 0 | OO21: 1 | OY21: =ME_Input_Vitesse_Initiale -> 8 | PB21: 0 | PC21: 0 | PE21: 1 | PI21: =MR_Input_Jour+MR_Input_Heure -> 2014-06-07T16:00:00 | PV21: 1 | QF21: =ME_Input_Vitesse_Initiale -> 8 | QI21: 0 | QJ21: 0 | QN21: 1 | QX21: =ME_Input_Vitesse_Initiale -> 8 | RA21: 0 | RB21: 0 | RD21: 1 | RN21: =ME_Input_Vitesse_Initiale -> 8 | RQ21: 0 | RR21: 0 | RT21: 1 | RX21: =MR_Input_Jour+MR_Input_Heure -> 2014-06-07T16:00:00 | SK21: 1 | SU21: =ME_Input_Vitesse_Initiale -> 8 | SX21: 0 | SY21: 0 | UI21: 0 | UJ21: 0 | UK21: =COLUMN($BR$20)-COLUMN($V$20)+1 -> 49 | UL21: =COLUMN($CR$20)-COLUMN($V$20)+1 -> 75 | UM21: =COLUMN($DD$20)-COLUMN($V$20)+1 -> 87 | UN21: =COLUMN($DE$20)-COLUMN($V$20)+1 -> 88 | UO21: =COLUMN($SH$20)-COLUMN($V$20)+1 -> 481 | UP21: =COLUMN($SI$20)-COLUMN($V$20)+1 -> 482 | UQ21: =COLUMN($SV$20)-COLUMN($V$20)+1 -> 495 | UR21: =COLUMN($TC$20)-COLUMN($V$20)+1 -> 502
C22: Vitesse Finale ► | F22: 0.8 | G22: de V initiale | L22: 13 | M22: 0.8676506153 | O22: -34 | P22: -34 | Q22: 2.1454736 | V22: =V21+1 -> 1 | W22: =VLOOKUP($V22,MR_Table_RB,W$21,FALSE) -> GRC Diekirch - Départ | AB22: =VLOOKUP($V22,MR_Table_RB,AB$21,FALSE) -> 191.981328 | AC22: 1 | AD22: FALSE | AE22: FALSE | AF22: FALSE | AG22: FALSE | AH22: FALSE | AI22: FALSE | AL22: =IF(AL$21,$CB22,$BR22) -> 0.001 | AM22: =IF(AM$21,$CC22,$BS22) -> 0 | AN22: =IF(AN$21,$CD22,$BT22) -> 0 | AO22: =$CL22 -> 0.001 | AP22: =$SV22 -> 9.674744926 | AQ22: =$SW22 -> 4.306745758e-09 | AR22: =IF($BC22,0,AS21)+AQ22 -> 4.306745758e-09 | AS22: =AR22+IF($BD22,0,$AJ22) -> 4.306745758e-09 | AT22: =IF($BC22,IF($V22=1,MR_Input_Jour+MR_Input_Heure,$RU22),AU21)+AQ22 -> 2014-06-07T16:00:00 | AU22: =AT22+IF($BD22,0,$AJ22) -> 2014-06-07T16:00:00 | AV22: =$BM22 ->  | AW22: =$BO22 ->  | AY22: 1 | BC22: =IF($V22=1,TRUE,$AC22<>$AC21) -> TRUE | BD22: =IF($V22=ME_Nbr_RB,TRUE,$AC23<>$AC22) -> FALSE | BG22: =VLOOKUP($V22,MR_Table_RB,BG$19,FALSE) -> 1 | BH22: =NOT(OFFSET(MR_Header_X,1+BG22-1,0,1,1)) -> FALSE | BL22: =IF(BJ22="","",SIGN($AT22-BJ22)) ->  | BM22: =IF(BJ22="","",ABS($AT22-BJ22)) ->  | BN22: =IF(BK22="","",SIGN($AU22-BK22)) ->  | BO22: =IF(BK22="","",ABS($AU22-BK22)) ->  | BQ22: 0.001 | BR22: 0.001 | BS22: 0 | BT22: 0 | BU22: 0 | BV22: 0 | BW22: 0.001 | BX22: 0.001 | BY22: 0 | BZ22: 0 | CB22: =BR22-BR21 -> 0.001 | CC22: =BS22-BS21 -> 0 | CD22: =BT22-BT21 -> 0 | CE22: =BU22-BU21 -> 0 | CF22: =BV22-BV21 -> 0 | CG22: =BW22-BW21 -> 0.001 | CH22: =BX22-BX21 -> 0.001 | CI22: =BY22-BY21 -> 0 | CJ22: =BZ22-BZ21 -> 0 | CL22: =IF(CL$21,CF22+CH22+CJ22,$CB22) -> 0.001 | CN22: =IF(CN$21,CF22,CE22)/IF($CL22=0,1,$CL22) -> 0 | CO22: =IF(CO$21,CH22,CG22)/IF($CL22=0,1,$CL22) -> 1 | CP22: =IF(CP$21,CJ22,CI22)/IF($CL22=0,1,$CL22) -> 0 | CR22: =IF(CR$21,VLOOKUP($V22,MR_Table_RB,CR$19,FALSE),1) -> 1 | CT22: =VLOOKUP($V22,MR_Table_RB,CT$19,FALSE) -> 191.981328 | CU22: 191.981328 | CV22: 191.981328 | CW22: =IF($CU22<=ME_Input_Alt_Montée_Seuil,ME_Input_Alt_Montée_Seuil,IF($CT22>=ME_Input_Alt_Montée_Seuil,$CV22,($CU22+ME_Input_Alt_Montée_Seuil)/2)) -> 1600 | CX22: =IF($CU22<=ME_Input_Alt_Montée_Seuil,0,IF($CT22>=ME_Input_Alt_Montée_Seuil,1,($CU22-ME_Input_Alt_Montée_Seuil)/($CU22-$CT22))) -> 0 | CY22: =1-((CW22-ME_Input_Alt_Montée_Seuil)/1000*ME_Input_Alt_Montée_Taux)*CX22 -> 1 | CZ22: =IF($CU22<=ME_Input_Alt_Descente_Seuil,ME_Input_Alt_Descente_Seuil,IF($CT22>=ME_Input_Alt_Descente_Seuil,$CV22,($CU22+ME_Input_Alt_Descente_Seuil)/2)) -> 2500 | DA22: =IF($CU22<=ME_Input_Alt_Descente_Seuil,0,IF($CT22>=ME_Input_Alt_Descente_Seuil,1,($CU22-ME_Input_Alt_Descente_Seuil)/($CU22-$CT22))) -> 0 | DB22: =1-((CZ22-ME_Input_Alt_Descente_Seuil)/1000*ME_Input_Alt_Descente_Taux)*DA22 -> 1 | DD22: =IF($CL22=0,1,1/(($CP22+$CO22)/$CY22+$CN22/$DB22)) -> 1 | DE22: =IF($CL22=0,1,1/($CN22/ME_Input_Descendeur+$CO22+$CP22/ME_Input_Grimpeur)) -> 1 | DF22: =DD22*DE22/(DD22+DE22-DD22*DE22) -> 1 | DG22: =$CR22*DF22/($CR22+DF22-$CR22*DF22) -> 1 | DI22: =VLOOKUP($V22,MR_Table_RB,DI$19,FALSE) -> 49,865358 | DJ22: 6,155532 | DQ22: =IF(ME_Input_Décr_Globale,1,$AC22) -> 1 | DR22: =ME_Input_Décr_Etape+(1-ME_Input_Décr_Etape)*(1-ME_Input_Taux_Etape)^($DQ22-1) -> 1 | DS22: =DS$16*DR22 -> 16 | DU22: =ED21 -> 0 | DV22: =IF(DQ22=DQ21,EE21,0) -> 0 | DW22: =DU22 -> 0 | DX22: =DV22 -> 0 | DY22: =IF(ME_Input_Décr_Linéaire,DS22-DY$18*(DW22*24),DS22*(ME_Input_Décr_Finale+(1-ME_Input_Décr_Finale)*(1-ME_Input_Taux_Final)^(DX22*24))) -> 16 | DZ22: =IF(ME_Input_Décr_Linéaire,DS22-DZ$18*(DW22*24),DS22*(ME_Input_Décr_Finale+(1-ME_Input_Décr_Finale)*(1-ME_Input_Taux_Final)^(DX22*24))) -> 16 | EA22: =IF(ISBLANK($AK22),EA21,$AK22) -> 8 | EB22: =$DG22*MAX(P_Estimation_Vitesse_Min,CHOOSE(ME_Input_Méthode,DY22,DZ22,EA22)) -> 16 | EC22: =($CL22/1000)/(EB22*24) -> 2.604166667e-09 | ED22: =DU22+EC22 -> 2.604166667e-09 | EE22: =DV22+EC22 -> 2.604166667e-09 | EG22: =IF(ME_Input_Décr_Globale,1,$AC22) -> 1 | EH22: =ME_Input_Décr_Etape+(1-ME_Input_Décr_Etape)*(1-ME_Input_Taux_Etape)^($DQ22-1) -> 1 | EI22: =EI$16*EH22 -> 16 | EK22: =ET21 -> 0 | EL22: =IF(EG22=EG21,EU21,0) -> 0 | EM22: =EK22+EC22/2 -> 1.302083333e-09 | EN22: =EL22+EC22/2 -> 1.302083333e-09 | EO22: =IF(ME_Input_Décr_Linéaire,EI22-EO$18*(EM22*24),EI22*(ME_Input_Décr_Finale+(1-ME_Input_Décr_Finale)*(1-ME_Input_Taux_Final)^(EN22*24))) -> 15.99999999 | EP22: =IF(ME_Input_Décr_Linéaire,EI22-EP$18*(EM22*24),EI22*(ME_Input_Décr_Finale+(1-ME_Input_Décr_Finale)*(1-ME_Input_Taux_Final)^(EN22*24))) -> 15.99999999 | EQ22: =IF(ISBLANK($AK22),EQ21,$AK22) -> 8 | ER22: =$DG22*MAX(P_Estimation_Vitesse_Min,CHOOSE(ME_Input_Méthode,EO22,EP22,EQ22)) -> 15.99999999 | ES22: =($CL22/1000)/(ER22*24) -> 2.604166668e-09 | ET22: =EK22+ES22 -> 2.604166668e-09 | EU22: =EL22+ES22 -> 2.604166668e-09 | EW22: =$AC22 -> 1 | EX22: =VLOOKUP($V22,MR_Table_RB,EX$19,FALSE) -> 2014-06-07T16:00:00 | EY22: =IF(EW22=EW21,FA21,EX22) -> 2014-06-07T16:00:00 | EZ22: =EY22+ES22 -> 2014-06-07T16:00:00 | FA22: =EZ22+$AJ22 -> 2014-06-07T16:00:00 | FB22: =INT(EZ22-EY22) -> 0 | FC22: =EZ22-EY22-FB22 -> 2.604792826e-09 | FD22: =MOD(EY22+FC22/2,1) -> 0.666666668 | FE22: =time_Leversoleil(INT(EY22),$DI22,$DJ22,MR_Input_Delta_TU*24,P_Angle_Crépuscule) -> 0.1977922632 | FF22: =time_Leversoleil(INT(EY22),$DI22,$DJ22,MR_Input_Delta_TU*24,P_Angle_LeverCoucher) -> 0.2279728925 | FG22: =time_Couchersoleil(INT(EY22),$DI22,$DJ22,MR_Input_Delta_TU*24,P_Angle_LeverCoucher) -> 0.9028584148 | FH22: =time_Couchersoleil(INT(EY22),$DI22,$DJ22,MR_Input_Delta_TU*24,P_Angle_Crépuscule) -> 0.9330390441 | FI22: =IF(FD22<FE22,"Nuit",IF(FD22<FF22,"Matin",IF(FD22<FG22,"Jour",IF(FD22<FH22,"Soir","Nuit")))) -> Jour | FJ22: =double_PourcentCourseNuit(EY22,EZ22,FE22,FH22) -> 0 | FK22: =FJ22/($CN22/ME_Input_Nuit_Descente+($CO22+$CP22)/ME_Input_Nuit_Montée)+(1-FJ22) -> 1 | FL22: =$DG22*FK22/($DG22+FK22-$DG22*FK22) -> 1 | FN22: =IF(ME_Input_Décr_Globale,1,$AC22) -> 1 | FO22: =ME_Input_Décr_Etape+(1-ME_Input_Décr_Etape)*(1-ME_Input_Taux_Etape)^($DQ22-1) -> 1 | FP22: =FP$16*FO22 -> 16 | FR22: =GA21 -> 0 | FS22: =IF(FN22=FN21,GB21,0) -> 0 | FT22: =FR22+ES22/2 -> 1.302083334e-09 | FU22: =FS22+ES22/2 -> 1.302083334e-09 | FV22: =IF(ME_Input_Décr_Linéaire,FP22-FV$18*(FT22*24),FP22*(ME_Input_Décr_Finale+(1-ME_Input_Décr_Finale)*(1-ME_Input_Taux_Final)^(FU22*24))) -> 15.99999999 | FW22: =IF(ME_Input_Décr_Linéaire,FP22-FW$18*(FT22*24),FP22*(ME_Input_Décr_Finale+(1-ME_Input_Décr_Finale)*(1-ME_Input_Taux_Final)^(FU22*24))) -> 15.99999999 | FX22: =IF(ISBLANK($AK22),FX21,$AK22) -> 8 | FY22: =FL22*MAX(P_Estimation_Vitesse_Min,CHOOSE(ME_Input_Méthode,FV22,FW22,FX22)) -> 15.99999999 | FZ22: =($CL22/1000)/(FY22*24) -> 2.604166668e-09 | GA22: =FR22+FZ22 -> 2.604166668e-09 | GB22: =FS22+FZ22 -> 2.604166668e-09 | GF22: =IF(ME_Input_Décr_Globale,1,$AC22) -> 1 | GG22: =ME_Input_Décr_Etape+(1-ME_Input_Décr_Etape)*(1-ME_Input_Taux_Etape)^($DQ22-1) -> 1 | GH22: =GH$16*GG22 -> 9.34376595 | GJ22: =GS21 -> 0 | GK22: =IF(GF22=GF21,GT21,0) -> 0 | GL22: =GJ22 -> 0 | GM22: =GK22 -> 0 | GN22: =IF(ME_Input_Décr_Linéaire,GH22-GN$18*(GL22*24),GH22*(ME_Input_Décr_Finale+(1-ME_Input_Décr_Finale)*(1-ME_Input_Taux_Final)^(GM22*24))) -> 9.34376595 | GO22: =IF(ME_Input_Décr_Linéaire,GH22-GO$18*(GL22*24),GH22*(ME_Input_Décr_Finale+(1-ME_Input_Décr_Finale)*(1-ME_Input_Taux_Final)^(GM22*24))) -> 9.34376595 | GP22: =IF(ISBLANK($AK22),GP21,$AK22) -> 8 | GQ22: =$DG22*MAX(P_Estimation_Vitesse_Min,CHOOSE(ME_Input_Méthode,GN22,GO22,GP22)) -> 9.34376595 | GR22: =($CL22/1000)/(GQ22*24) -> 4.459301195e-09 | GS22: =GJ22+GR22 -> 4.459301195e-09 | GT22: =GK22+GR22 -> 4.459301195e-09 | GV22: =IF(ME_Input_Décr_Globale,1,$AC22) -> 1 | GW22: =ME_Input_Décr_Etape+(1-ME_Input_Décr_Etape)*(1-ME_Input_Taux_Etape)^($DQ22-1) -> 1 | GX22: =GX$16*GW22 -> 9.34376595 | GZ22: =HI21 -> 0 | HA22: =IF(GV22=GV21,HJ21,0) -> 0 | HB22: =GZ22+GR22/2 -> 2.229650597e-09 | HC22: =HA22+GR22/2 -> 2.229650597e-09 | HD22: =IF(ME_Input_Décr_Linéaire,GX22-HD$18*(HB22*24),GX22*(ME_Input_Décr_Finale+(1-ME_Input_Décr_Finale)*(1-ME_Input_Taux_Final)^(HC22*24))) -> 9.343765942 | HE22: =IF(ME_Input_Décr_Linéaire,GX22-HE$18*(HB22*24),GX22*(ME_Input_Décr_Finale+(1-ME_Input_Décr_Finale)*(1-ME_Input_Taux_Final)^(HC22*24))) -> 9.343765942 | HF22: =IF(ISBLANK($AK22),HF21,$AK22) -> 8 | HG22: =$DG22*MAX(P_Estimation_Vitesse_Min,CHOOSE(ME_Input_Méthode,HD22,HE22,HF22)) -> 9.343765942 | HH22: =($CL22/1000)/(HG22*24) -> 4.459301199e-09 | HI22: =GZ22+HH22 -> 4.459301199e-09 | HJ22: =HA22+HH22 -> 4.459301199e-09 | HL22: =$AC22 -> 1 | HM22: =VLOOKUP($V22,MR_Table_RB,HM$19,FALSE) -> 2014-06-07T16:00:00 | HN22: =IF(HL22=HL21,HP21,HM22) -> 2014-06-07T16:00:00 | HO22: =HN22+HH22 -> 2014-06-07T16:00:00 | HP22: =HO22+$AJ22 -> 2014-06-07T16:00:00 | HQ22: =INT(HO22-HN22) -> 0 | HR22: =HO22-HN22-HQ22 -> 4.460162017e-09 | HS22: =MOD(HN22+HR22/2,1) -> 0.6666666689 | HT22: =time_Leversoleil(INT(HN22),$DI22,$DJ22,MR_Input_Delta_TU*24,P_Angle_Crépuscule) -> 0.1977922632 | HU22: =time_Leversoleil(INT(HN22),$DI22,$DJ22,MR_Input_Delta_TU*24,P_Angle_LeverCoucher) -> 0.2279728925 | HV22: =time_Couchersoleil(INT(HN22),$DI22,$DJ22,MR_Input_Delta_TU*24,P_Angle_LeverCoucher) -> 0.9028584148 | HW22: =time_Couchersoleil(INT(HN22),$DI22,$DJ22,MR_Input_Delta_TU*24,P_Angle_Crépuscule) -> 0.9330390441 | HX22: =IF(HS22<HT22,"Nuit",IF(HS22<HU22,"Matin",IF(HS22<HV22,"Jour",IF(HS22<HW22,"Soir","Nuit")))) -> Jour | HY22: =double_PourcentCourseNuit(HN22,HO22,HT22,HW22) -> 0 | HZ22: =HY22/($CN22/ME_Input_Nuit_Descente+($CO22+$CP22)/ME_Input_Nuit_Montée)+(1-HY22) -> 1 | IA22: =$DG22*HZ22/($DG22+HZ22-$DG22*HZ22) -> 1 | IC22: =IF(ME_Input_Décr_Globale,1,$AC22) -> 1 | ID22: =ME_Input_Décr_Etape+(1-ME_Input_Décr_Etape)*(1-ME_Input_Taux_Etape)^($DQ22-1) -> 1 | IE22: =IE$16*ID22 -> 9.34376595 | IG22: =IP21 -> 0 | IH22: =IF(IC22=IC21,IQ21,0) -> 0 | II22: =IG22+HH22/2 -> 2.229650599e-09 | IJ22: =IH22+HH22/2 -> 2.229650599e-09 | IK22: =IF(ME_Input_Décr_Linéaire,IE22-IK$18*(II22*24),IE22*(ME_Input_Décr_Finale+(1-ME_Input_Décr_Finale)*(1-ME_Input_Taux_Final)^(IJ22*24))) -> 9.343765942 | IL22: =IF(ME_Input_Décr_Linéaire,IE22-IL$18*(II22*24),IE22*(ME_Input_Décr_Finale+(1-ME_Input_Décr_Finale)*(1-ME_Input_Taux_Final)^(IJ22*24))) -> 9.343765942 | IM22: =IF(ISBLANK($AK22),IM21,$AK22) -> 8 | IN22: =IA22*MAX(P_Estimation_Vitesse_Min,CHOOSE(ME_Input_Méthode,IK22,IL22,IM22)) -> 9.343765942 | IO22: =($CL22/1000)/(IN22*24) -> 4.459301199e-09 | IP22: =IG22+IO22 -> 4.459301199e-09 | IQ22: =IH22+IO22 -> 4.459301199e-09 | IU22: =IF(ME_Input_Décr_Globale,1,$AC22) -> 1 | IV22: =ME_Input_Décr_Etape+(1-ME_Input_Décr_Etape)*(1-ME_Input_Taux_Etape)^($DQ22-1) -> 1 | IW22: =IW$16*IV22 -> 9.698978908 | IY22: =JH21 -> 0 | IZ22: =IF(IU22=IU21,JI21,0) -> 0 | JA22: =IY22 -> 0 | JB22: =IZ22 -> 0 | JC22: =IF(ME_Input_Décr_Linéaire,IW22-JC$18*(JA22*24),IW22*(ME_Input_Décr_Finale+(1-ME_Input_Décr_Finale)*(1-ME_Input_Taux_Final)^(JB22*24))) -> 9.698978908 | JD22: =IF(ME_Input_Décr_Linéaire,IW22-JD$18*(JA22*24),IW22*(ME_Input_Décr_Finale+(1-ME_Input_Décr_Finale)*(1-ME_Input_Taux_Final)^(JB22*24))) -> 9.698978908 | JE22: =IF(ISBLANK($AK22),JE21,$AK22) -> 8 | JF22: =$DG22*MAX(P_Estimation_Vitesse_Min,CHOOSE(ME_Input_Méthode,JC22,JD22,JE22)) -> 9.698978908 | JG22: =($CL22/1000)/(JF22*24) -> 4.295984873e-09 | JH22: =IY22+JG22 -> 4.295984873e-09 | JI22: =IZ22+JG22 -> 4.295984873e-09 | JK22: =IF(ME_Input_Décr_Globale,1,$AC22) -> 1 | JL22: =ME_Input_Décr_Etape+(1-ME_Input_Décr_Etape)*(1-ME_Input_Taux_Etape)^($DQ22-1) -> 1 | JM22: =JM$16*JL22 -> 9.698978908 | JO22: =JX21 -> 0 | JP22: =IF(JK22=JK21,JY21,0) -> 0 | JQ22: =JO22+JG22/2 -> 2.147992436e-09 | JR22: =JP22+JG22/2 -> 2.147992436e-09 | JS22: =IF(ME_Input_Décr_Linéaire,JM22-JS$18*(JQ22*24),JM22*(ME_Input_Décr_Finale+(1-ME_Input_Décr_Finale)*(1-ME_Input_Taux_Final)^(JR22*24))) -> 9.698978899 | JT22: =IF(ME_Input_Décr_Linéaire,JM22-JT$18*(JQ22*24),JM22*(ME_Input_Décr_Finale+(1-ME_Input_Décr_Finale)*(1-ME_Input_Taux_Final)^(JR22*24))) -> 9.698978899 | JU22: =IF(ISBLANK($AK22),JU21,$AK22) -> 8 | JV22: =$DG22*MAX(P_Estimation_Vitesse_Min,CHOOSE(ME_Input_Méthode,JS22,JT22,JU22)) -> 9.698978899 | JW22: =($CL22/1000)/(JV22*24) -> 4.295984876e-09 | JX22: =JO22+JW22 -> 4.295984876e-09 | JY22: =JP22+JW22 -> 4.295984876e-09 | KA22: =$AC22 -> 1 | KB22: =VLOOKUP($V22,MR_Table_RB,KB$19,FALSE) -> 2014-06-07T16:00:00 | KC22: =IF(KA22=KA21,KE21,KB22) -> 2014-06-07T16:00:00 | KD22: =KC22+JW22 -> 2014-06-07T16:00:00 | KE22: =KD22+$AJ22 -> 2014-06-07T16:00:00 | KF22: =INT(KD22-KC22) -> 0 | KG22: =KD22-KC22-KF22 -> 4.292814992e-09 | KH22: =MOD(KC22+KG22/2,1) -> 0.6666666688 | KI22: =time_Leversoleil(INT(KC22),$DI22,$DJ22,MR_Input_Delta_TU*24,P_Angle_Crépuscule) -> 0.1977922632 | KJ22: =time_Leversoleil(INT(KC22),$DI22,$DJ22,MR_Input_Delta_TU*24,P_Angle_LeverCoucher) -> 0.2279728925 | KK22: =time_Couchersoleil(INT(KC22),$DI22,$DJ22,MR_Input_Delta_TU*24,P_Angle_LeverCoucher) -> 0.9028584148 | KL22: =time_Couchersoleil(INT(KC22),$DI22,$DJ22,MR_Input_Delta_TU*24,P_Angle_Crépuscule) -> 0.9330390441 | KM22: =IF(KH22<KI22,"Nuit",IF(KH22<KJ22,"Matin",IF(KH22<KK22,"Jour",IF(KH22<KL22,"Soir","Nuit")))) -> Jour | KN22: =double_PourcentCourseNuit(KC22,KD22,KI22,KL22) -> 0 | KO22: =KN22/($CN22/ME_Input_Nuit_Descente+($CO22+$CP22)/ME_Input_Nuit_Montée)+(1-KN22) -> 1 | KP22: =$DG22*KO22/($DG22+KO22-$DG22*KO22) -> 1 | KR22: =IF(ME_Input_Décr_Globale,1,$AC22) -> 1 | KS22: =ME_Input_Décr_Etape+(1-ME_Input_Décr_Etape)*(1-ME_Input_Taux_Etape)^($DQ22-1) -> 1 | KT22: =KT$16*KS22 -> 9.698978908 | KV22: =LE21 -> 0 | KW22: =IF(KR22=KR21,LF21,0) -> 0 | KX22: =KV22+JW22/2 -> 2.147992438e-09 | KY22: =KW22+JW22/2 -> 2.147992438e-09 | KZ22: =IF(ME_Input_Décr_Linéaire,KT22-KZ$18*(KX22*24),KT22*(ME_Input_Décr_Finale+(1-ME_Input_Décr_Finale)*(1-ME_Input_Taux_Final)^(KY22*24))) -> 9.698978899 | LA22: =IF(ME_Input_Décr_Linéaire,KT22-LA$18*(KX22*24),KT22*(ME_Input_Décr_Finale+(1-ME_Input_Décr_Finale)*(1-ME_Input_Taux_Final)^(KY22*24))) -> 9.698978899 | LB22: =IF(ISBLANK($AK22),LB21,$AK22) -> 8 | LC22: =KP22*MAX(P_Estimation_Vitesse_Min,CHOOSE(ME_Input_Méthode,KZ22,LA22,LB22)) -> 9.698978899 | LD22: =($CL22/1000)/(LC22*24) -> 4.295984876e-09 | LE22: =KV22+LD22 -> 4.295984876e-09 | LF22: =KW22+LD22 -> 4.295984876e-09 | LJ22: =IF(ME_Input_Décr_Globale,1,$AC22) -> 1 | LK22: =ME_Input_Décr_Etape+(1-ME_Input_Décr_Etape)*(1-ME_Input_Taux_Etape)^($DQ22-1) -> 1 | LL22: =LL$16*LK22 -> 9.673015382 | LN22: =LW21 -> 0 | LO22: =IF(LJ22=LJ21,LX21,0) -> 0 | LP22: =LN22 -> 0 | LQ22: =LO22 -> 0 | LR22: =IF(ME_Input_Décr_Linéaire,LL22-LR$18*(LP22*24),LL22*(ME_Input_Décr_Finale+(1-ME_Input_Décr_Finale)*(1-ME_Input_Taux_Final)^(LQ22*24))) -> 9.673015382 | LS22: =IF(ME_Input_Décr_Linéaire,LL22-LS$18*(LP22*24),LL22*(ME_Input_Décr_Finale+(1-ME_Input_Décr_Finale)*(1-ME_Input_Taux_Final)^(LQ22*24))) -> 9.673015382 | LT22: =IF(ISBLANK($AK22),LT21,$AK22) -> 8 | LU22: =$DG22*MAX(P_Estimation_Vitesse_Min,CHOOSE(ME_Input_Méthode,LR22,LS22,LT22)) -> 9.673015382 | LV22: =($CL22/1000)/(LU22*24) -> 4.307515808e-09 | LW22: =LN22+LV22 -> 4.307515808e-09 | LX22: =LO22+LV22 -> 4.307515808e-09 | LZ22: =IF(ME_Input_Décr_Globale,1,$AC22) -> 1 | MA22: =ME_Input_Décr_Etape+(1-ME_Input_Décr_Etape)*(1-ME_Input_Taux_Etape)^($DQ22-1) -> 1 | MB22: =MB$16*MA22 -> 9.673015382 | MD22: =MM21 -> 0 | ME22: =IF(LZ22=LZ21,MN21,0) -> 0 | MF22: =MD22+LV22/2 -> 2.153757904e-09 | MG22: =ME22+LV22/2 -> 2.153757904e-09 | MH22: =IF(ME_Input_Décr_Linéaire,MB22-MH$18*(MF22*24),MB22*(ME_Input_Décr_Finale+(1-ME_Input_Décr_Finale)*(1-ME_Input_Taux_Final)^(MG22*24))) -> 9.673015373 | MI22: =IF(ME_Input_Décr_Linéaire,MB22-MI$18*(MF22*24),MB22*(ME_Input_Décr_Finale+(1-ME_Input_Décr_Finale)*(1-ME_Input_Taux_Final)^(MG22*24))) -> 9.673015373 | MJ22: =IF(ISBLANK($AK22),MJ21,$AK22) -> 8 | MK22: =$DG22*MAX(P_Estimation_Vitesse_Min,CHOOSE(ME_Input_Méthode,MH22,MI22,MJ22)) -> 9.673015373 | ML22: =($CL22/1000)/(MK22*24) -> 4.307515812e-09 | MM22: =MD22+ML22 -> 4.307515812e-09 | MN22: =ME22+ML22 -> 4.307515812e-09 | MP22: =$AC22 -> 1 | MQ22: =VLOOKUP($V22,MR_Table_RB,MQ$19,FALSE) -> 2014-06-07T16:00:00 | MR22: =IF(MP22=MP21,MT21,MQ22) -> 2014-06-07T16:00:00 | MS22: =MR22+ML22 -> 2014-06-07T16:00:00 | MT22: =MS22+$AJ22 -> 2014-06-07T16:00:00 | MU22: =INT(MS22-MR22) -> 0 | MV22: =MS22-MR22-MU22 -> 4.307366908e-09 | MW22: =MOD(MR22+MV22/2,1) -> 0.6666666688 | MX22: =time_Leversoleil(INT(MR22),$DI22,$DJ22,MR_Input_Delta_TU*24,P_Angle_Crépuscule) -> 0.1977922632 | MY22: =time_Leversoleil(INT(MR22),$DI22,$DJ22,MR_Input_Delta_TU*24,P_Angle_LeverCoucher) -> 0.2279728925 | MZ22: =time_Couchersoleil(INT(MR22),$DI22,$DJ22,MR_Input_Delta_TU*24,P_Angle_LeverCoucher) -> 0.9028584148 | NA22: =time_Couchersoleil(INT(MR22),$DI22,$DJ22,MR_Input_Delta_TU*24,P_Angle_Crépuscule) -> 0.9330390441 | NB22: =IF(MW22<MX22,"Nuit",IF(MW22<MY22,"Matin",IF(MW22<MZ22,"Jour",IF(MW22<NA22,"Soir","Nuit")))) -> Jour | NC22: =double_PourcentCourseNuit(MR22,MS22,MX22,NA22) -> 0 | ND22: =NC22/($CN22/ME_Input_Nuit_Descente+($CO22+$CP22)/ME_Input_Nuit_Montée)+(1-NC22) -> 1 | NE22: =$DG22*ND22/($DG22+ND22-$DG22*ND22) -> 1 | NG22: =IF(ME_Input_Décr_Globale,1,$AC22) -> 1 | NH22: =ME_Input_Décr_Etape+(1-ME_Input_Décr_Etape)*(1-ME_Input_Taux_Etape)^($DQ22-1) -> 1 | NI22: =NI$16*NH22 -> 9.673015382 | NK22: =NT21 -> 0 | NL22: =IF(NG22=NG21,NU21,0) -> 0 | NM22: =NK22+ML22/2 -> 2.153757906e-09 | NN22: =NL22+ML22/2 -> 2.153757906e-09 | NO22: =IF(ME_Input_Décr_Linéaire,NI22-NO$18*(NM22*24),NI22*(ME_Input_Décr_Finale+(1-ME_Input_Décr_Finale)*(1-ME_Input_Taux_Final)^(NN22*24))) -> 9.673015373 | NP22: =IF(ME_Input_Décr_Linéaire,NI22-NP$18*(NM22*24),NI22*(ME_Input_Décr_Finale+(1-ME_Input_Décr_Finale)*(1-ME_Input_Taux_Final)^(NN22*24))) -> 9.673015373 | NQ22: =IF(ISBLANK($AK22),NQ21,$AK22) -> 8 | NR22: =NE22*MAX(P_Estimation_Vitesse_Min,CHOOSE(ME_Input_Méthode,NO22,NP22,NQ22)) -> 9.673015373 | NS22: =($CL22/1000)/(NR22*24) -> 4.307515812e-09 | NT22: =NK22+NS22 -> 4.307515812e-09 | NU22: =NL22+NS22 -> 4.307515812e-09 | NY22: =IF(ME_Input_Décr_Globale,1,$AC22) -> 1 | NZ22: =ME_Input_Décr_Etape+(1-ME_Input_Décr_Etape)*(1-ME_Input_Taux_Etape)^($DQ22-1) -> 1 | OA22: =OA$16*NZ22 -> 9.674878859 | OC22: =OL21 -> 0 | OD22: =IF(NY22=NY21,OM21,0) -> 0 | OE22: =OC22 -> 0 | OF22: =OD22 -> 0 | OG22: =IF(ME_Input_Décr_Linéaire,OA22-OG$18*(OE22*24),OA22*(ME_Input_Décr_Finale+(1-ME_Input_Décr_Finale)*(1-ME_Input_Taux_Final)^(OF22*24))) -> 9.674878859 | OH22: =IF(ME_Input_Décr_Linéaire,OA22-OH$18*(OE22*24),OA22*(ME_Input_Décr_Finale+(1-ME_Input_Décr_Finale)*(1-ME_Input_Taux_Final)^(OF22*24))) -> 9.674878859 | OI22: =IF(ISBLANK($AK22),OI21,$AK22) -> 8 | OJ22: =$DG22*MAX(P_Estimation_Vitesse_Min,CHOOSE(ME_Input_Méthode,OG22,OH22,OI22)) -> 9.674878859 | OK22: =($CL22/1000)/(OJ22*24) -> 4.306686138e-09 | OL22: =OC22+OK22 -> 4.306686138e-09 | OM22: =OD22+OK22 -> 4.306686138e-09 | OO22: =IF(ME_Input_Décr_Globale,1,$AC22) -> 1 | OP22: =ME_Input_Décr_Etape+(1-ME_Input_Décr_Etape)*(1-ME_Input_Taux_Etape)^($DQ22-1) -> 1 | OQ22: =OQ$16*OP22 -> 9.674878859 | OS22: =PB21 -> 0 | OT22: =IF(OO22=OO21,PC21,0) -> 0 | OU22: =OS22+OK22/2 -> 2.153343069e-09 | OV22: =OT22+OK22/2 -> 2.153343069e-09 | OW22: =IF(ME_Input_Décr_Linéaire,OQ22-OW$18*(OU22*24),OQ22*(ME_Input_Décr_Finale+(1-ME_Input_Décr_Finale)*(1-ME_Input_Taux_Final)^(OV22*24))) -> 9.674878851 | OX22: =IF(ME_Input_Décr_Linéaire,OQ22-OX$18*(OU22*24),OQ22*(ME_Input_Décr_Finale+(1-ME_Input_Décr_Finale)*(1-ME_Input_Taux_Final)^(OV22*24))) -> 9.674878851 | OY22: =IF(ISBLANK($AK22),OY21,$AK22) -> 8 | OZ22: =$DG22*MAX(P_Estimation_Vitesse_Min,CHOOSE(ME_Input_Méthode,OW22,OX22,OY22)) -> 9.674878851 | PA22: =($CL22/1000)/(OZ22*24) -> 4.306686141e-09 | PB22: =OS22+PA22 -> 4.306686141e-09 | PC22: =OT22+PA22 -> 4.306686141e-09 | PE22: =$AC22 -> 1 | PF22: =VLOOKUP($V22,MR_Table_RB,PF$19,FALSE) -> 2014-06-07T16:00:00 | PG22: =IF(PE22=PE21,PI21,PF22) -> 2014-06-07T16:00:00 | PH22: =PG22+PA22 -> 2014-06-07T16:00:00 | PI22: =PH22+$AJ22 -> 2014-06-07T16:00:00 | PJ22: =INT(PH22-PG22) -> 0 | PK22: =PH22-PG22-PJ22 -> 4.307366908e-09 | PL22: =MOD(PG22+PK22/2,1) -> 0.6666666688 | PM22: =time_Leversoleil(INT(PG22),$DI22,$DJ22,MR_Input_Delta_TU*24,P_Angle_Crépuscule) -> 0.1977922632 | PN22: =time_Leversoleil(INT(PG22),$DI22,$DJ22,MR_Input_Delta_TU*24,P_Angle_LeverCoucher) -> 0.2279728925 | PO22: =time_Couchersoleil(INT(PG22),$DI22,$DJ22,MR_Input_Delta_TU*24,P_Angle_LeverCoucher) -> 0.9028584148 | PP22: =time_Couchersoleil(INT(PG22),$DI22,$DJ22,MR_Input_Delta_TU*24,P_Angle_Crépuscule) -> 0.9330390441 | PQ22: =IF(PL22<PM22,"Nuit",IF(PL22<PN22,"Matin",IF(PL22<PO22,"Jour",IF(PL22<PP22,"Soir","Nuit")))) -> Jour | PR22: =double_PourcentCourseNuit(PG22,PH22,PM22,PP22) -> 0 | PS22: =PR22/($CN22/ME_Input_Nuit_Descente+($CO22+$CP22)/ME_Input_Nuit_Montée)+(1-PR22) -> 1 | PT22: =$DG22*PS22/($DG22+PS22-$DG22*PS22) -> 1 | PV22: =IF(ME_Input_Décr_Globale,1,$AC22) -> 1 | PW22: =ME_Input_Décr_Etape+(1-ME_Input_Décr_Etape)*(1-ME_Input_Taux_Etape)^($DQ22-1) -> 1 | PX22: =PX$16*PW22 -> 9.674878859 | PZ22: =QI21 -> 0 | QA22: =IF(PV22=PV21,QJ21,0) -> 0 | QB22: =PZ22+PA22/2 -> 2.153343071e-09 | QC22: =QA22+PA22/2 -> 2.153343071e-09 | QD22: =IF(ME_Input_Décr_Linéaire,PX22-QD$18*(QB22*24),PX22*(ME_Input_Décr_Finale+(1-ME_Input_Décr_Finale)*(1-ME_Input_Taux_Final)^(QC22*24))) -> 9.674878851 | QE22: =IF(ME_Input_Décr_Linéaire,PX22-QE$18*(QB22*24),PX22*(ME_Input_Décr_Finale+(1-ME_Input_Décr_Finale)*(1-ME_Input_Taux_Final)^(QC22*24))) -> 9.674878851 | QF22: =IF(ISBLANK($AK22),QF21,$AK22) -> 8 | QG22: =PT22*MAX(P_Estimation_Vitesse_Min,CHOOSE(ME_Input_Méthode,QD22,QE22,QF22)) -> 9.674878851 | QH22: =($CL22/1000)/(QG22*24) -> 4.306686141e-09 | QI22: =PZ22+QH22 -> 4.306686141e-09 | QJ22: =QA22+QH22 -> 4.306686141e-09 | QN22: =IF(ME_Input_Décr_Globale,1,$AC22) -> 1 | QO22: =ME_Input_Décr_Etape+(1-ME_Input_Décr_Etape)*(1-ME_Input_Taux_Etape)^($DQ22-1) -> 1 | QP22: =QP$16*QO22 -> 9.674744934 | QR22: =RA21 -> 0 | QS22: =IF(QN22=QN21,RB21,0) -> 0 | QT22: =QR22 -> 0 | QU22: =QS22 -> 0 | QV22: =IF(ME_Input_Décr_Linéaire,QP22-QV$18*(QT22*24),QP22*(ME_Input_Décr_Finale+(1-ME_Input_Décr_Finale)*(1-ME_Input_Taux_Final)^(QU22*24))) -> 9.674744934 | QW22: =IF(ME_Input_Décr_Linéaire,QP22-QW$18*(QT22*24),QP22*(ME_Input_Décr_Finale+(1-ME_Input_Décr_Finale)*(1-ME_Input_Taux_Final)^(QU22*24))) -> 9.674744934 | QX22: =IF(ISBLANK($AK22),QX21,$AK22) -> 8 | QY22: =$DG22*MAX(P_Estimation_Vitesse_Min,CHOOSE(ME_Input_Méthode,QV22,QW22,QX22)) -> 9.674744934 | QZ22: =($CL22/1000)/(QY22*24) -> 4.306745754e-09 | RA22: =QR22+QZ22 -> 4.306745754e-09 | RB22: =QS22+QZ22 -> 4.306745754e-09 | RD22: =IF(ME_Input_Décr_Globale,1,$AC22) -> 1 | RE22: =ME_Input_Décr_Etape+(1-ME_Input_Décr_Etape)*(1-ME_Input_Taux_Etape)^($DQ22-1) -> 1 | RF22: =RF$16*RE22 -> 9.674744934 | RH22: =RQ21 -> 0 | RI22: =IF(RD22=RD21,RR21,0) -> 0 | RJ22: =RH22+QZ22/2 -> 2.153372877e-09 | RK22: =RI22+QZ22/2 -> 2.153372877e-09 | RL22: =IF(ME_Input_Décr_Linéaire,RF22-RL$18*(RJ22*24),RF22*(ME_Input_Décr_Finale+(1-ME_Input_Décr_Finale)*(1-ME_Input_Taux_Final)^(RK22*24))) -> 9.674744926 | RM22: =IF(ME_Input_Décr_Linéaire,RF22-RM$18*(RJ22*24),RF22*(ME_Input_Décr_Finale+(1-ME_Input_Décr_Finale)*(1-ME_Input_Taux_Final)^(RK22*24))) -> 9.674744926 | RN22: =IF(ISBLANK($AK22),RN21,$AK22) -> 8 | RO22: =$DG22*MAX(P_Estimation_Vitesse_Min,CHOOSE(ME_Input_Méthode,RL22,RM22,RN22)) -> 9.674744926 | RP22: =($CL22/1000)/(RO22*24) -> 4.306745758e-09 | RQ22: =RH22+RP22 -> 4.306745758e-09 | RR22: =RI22+RP22 -> 4.306745758e-09 | RT22: =$AC22 -> 1 | RU22: =VLOOKUP($V22,MR_Table_RB,RU$19,FALSE) -> 2014-06-07T16:00:00 | RV22: =IF(RT22=RT21,RX21,RU22) -> 2014-06-07T16:00:00 | RW22: =RV22+RP22 -> 2014-06-07T16:00:00 | RX22: =RW22+$AJ22 -> 2014-06-07T16:00:00 | RY22: =INT(RW22-RV22) -> 0 | RZ22: =RW22-RV22-RY22 -> 4.307366908e-09 | SA22: =MOD(RV22+RZ22/2,1) -> 0.6666666688 | SB22: =time_Leversoleil(INT(RV22),$DI22,$DJ22,MR_Input_Delta_TU*24,P_Angle_Crépuscule) -> 0.1977922632 | SC22: =time_Leversoleil(INT(RV22),$DI22,$DJ22,MR_Input_Delta_TU*24,P_Angle_LeverCoucher) -> 0.2279728925 | SD22: =time_Couchersoleil(INT(RV22),$DI22,$DJ22,MR_Input_Delta_TU*24,P_Angle_LeverCoucher) -> 0.9028584148 | SE22: =time_Couchersoleil(INT(RV22),$DI22,$DJ22,MR_Input_Delta_TU*24,P_Angle_Crépuscule) -> 0.9330390441 | SF22: =IF(SA22<SB22,"Nuit",IF(SA22<SC22,"Matin",IF(SA22<SD22,"Jour",IF(SA22<SE22,"Soir","Nuit")))) -> Jour | SG22: =double_PourcentCourseNuit(RV22,RW22,SB22,SE22) -> 0 | SH22: =SG22/($CN22/ME_Input_Nuit_Descente+($CO22+$CP22)/ME_Input_Nuit_Montée)+(1-SG22) -> 1 | SI22: =$DG22*SH22/($DG22+SH22-$DG22*SH22) -> 1 | SK22: =IF(ME_Input_Décr_Globale,1,$AC22) -> 1 | SL22: =ME_Input_Décr_Etape+(1-ME_Input_Décr_Etape)*(1-ME_Input_Taux_Etape)^($DQ22-1) -> 1 | SM22: =SM$16*SL22 -> 9.674744934 | SO22: =SX21 -> 0 | SP22: =IF(SK22=SK21,SY21,0) -> 0 | SQ22: =SO22+RP22/2 -> 2.153372879e-09 | SR22: =SP22+RP22/2 -> 2.153372879e-09 | SS22: =IF(ME_Input_Décr_Linéaire,SM22-SS$18*(SQ22*24),SM22*(ME_Input_Décr_Finale+(1-ME_Input_Décr_Finale)*(1-ME_Input_Taux_Final)^(SR22*24))) -> 9.674744926 | ST22: =IF(ME_Input_Décr_Linéaire,SM22-ST$18*(SQ22*24),SM22*(ME_Input_Décr_Finale+(1-ME_Input_Décr_Finale)*(1-ME_Input_Taux_Final)^(SR22*24))) -> 9.674744926 | SU22: =IF(ISBLANK($AK22),SU21,$AK22) -> 8 | SV22: =SI22*MAX(P_Estimation_Vitesse_Min,CHOOSE(ME_Input_Méthode,SS22,ST22,SU22)) -> 9.674744926 | SW22: =($CL22/1000)/(SV22*24) -> 4.306745758e-09 | SX22: =SO22+SW22 -> 4.306745758e-09 | SY22: =SP22+SW22 -> 4.306745758e-09 | TC22: =CHOOSE(ME_Input_Méthode,$SS22,$ST22,$SU22) -> 9.674744926 | TD22: =($CL22/1000)/(TC22*24) -> 4.306745758e-09 | TE22: =($CL22/1000)/(TC22*24*$CR22) -> 4.306745758e-09 | TF22: =($CL22/1000)/(TC22*24*$DD22) -> 4.306745758e-09 | TG22: =($CL22/1000)/(TC22*24*$DE22) -> 4.306745758e-09 | TH22: =($CL22/1000)/(TC22*24*$SH22) -> 4.306745758e-09 | TJ22: =$SI22 -> 1 | TK22: =$SG22 -> 0 | TM22: =$CP22 -> 0 | TN22: =$CY22 -> 1 | TO22: =TN22*ME_Input_Grimpeur/(TN22+ME_Input_Grimpeur-TN22*ME_Input_Grimpeur) -> 1 | TP22: =(1-$TK22)+$TK22*ME_Input_Nuit_Montée -> 1 | TQ22: =TP22*TO22/(TP22+TO22-TP22*TO22) -> 1 | TR22: =TQ22*$CR22/(TQ22+$CR22-TQ22*$CR22) -> 1 | TT22: =$CN22 -> 0 | TU22: =$DB22 -> 1 | TV22: =TU22*ME_Input_Descendeur/(TU22+ME_Input_Descendeur-TU22*ME_Input_Descendeur) -> 1 | TW22: =(1-$TK22)+$TK22*ME_Input_Nuit_Descente -> 1 | TX22: =TW22*TV22/(TW22+TV22-TW22*TV22) -> 1 | TY22: =TX22*$CR22/(TX22+$CR22-TX22*$CR22) -> 1 | UA22: =($TM22/$TR22)/(1/$TJ22) -> 0 | UB22: =($TT22/$TY22)/(1/$TJ22) -> 0 | UD22: =IF($SW22*$UA22=0,0,$CC22/($SW22*24*$UA22)) -> 0 | UE22: =IF($SW22*$UB22=0,0,$CD22/($SW22*24*$UB22)) -> 0 | UI22: =UI21 -> 0 | UJ22: =UJ21+1 -> 1 | UK22: 0 | UL22: =IF($UJ22>ME_Nbr_RB,"",VLOOKUP($UJ22,ME_Table,UL$21,FALSE)) -> 1 | UM22: 1 | UN22: 1 | UO22: 1 | UP22: 1 | UQ22: =IF($UJ22>ME_Nbr_RB,"",VLOOKUP($UJ22,ME_Table,UQ$21,FALSE)) -> 9.674744926 | UR22: 9.674744926
C23: Taux de Décroissance ► | F23: 0.08 | G23: par heure | L23: 14 | M23: 0.8622385661 | O23: -32 | P23: -32 | Q23: 2.0125056 | V23: =V22+1 -> 2 | W23: GRC-064 Pont de Gilsdorf | AB23: 189.14872 | AC23: 1 | AD23: FALSE | AE23: FALSE | AF23: FALSE | AG23: FALSE | AH23: FALSE | AI23: FALSE | AL23: 2079.095823 | AM23: 7.511547935 | AN23: -10.34415594 | AO23: 2077.44239 | AP23: =$SV23 -> 9.463975575 | AQ23: =$SW23 -> 0.009146272505 | AR23: =IF($BC23,0,AS22)+AQ23 -> 0.009146276812 | AS23: =AR23+IF($BD23,0,$AJ23) -> 0.009146276812 | AT23: 2014-06-07T16:13:10.238 | AU23: =AT23+IF($BD23,0,$AJ23) -> 2014-06-07T16:13:10.238 | AV23: =$BM23 ->  | AW23: =$BO23 ->  | AY23: 2 | BC23: =IF($V23=1,TRUE,$AC23<>$AC22) -> FALSE | BD23: FALSE | BG23: 2 | BH23: FALSE | BL23: =IF(BJ23="","",SIGN($AT23-BJ23)) ->  | BM23: =IF(BJ23="","",ABS($AT23-BJ23)) ->  | BN23: =IF(BK23="","",SIGN($AU23-BK23)) ->  | BO23: =IF(BK23="","",ABS($AU23-BK23)) ->  | BQ23: 2079.095823 | BR23: 2079.095823 | BS23: 7.511547935 | BT23: -10.34415594 | BU23: 1292.620628 | BV23: 1267.641255 | BW23: 0.001 | BX23: 0.001 | BY23: 786.4741958 | BZ23: 809.8011346 | CB23: =BR23-BR22 -> 2079.094823 | CC23: 7.511547935 | CD23: -10.34415594 | CE23: 1292.620628 | CF23: 1267.641255 | CG23: 0 | CH23: 0 | CI23: 786.4741958 | CJ23: 809.8011346 | CL23: 2077.44239 | CN23: =IF(CN$21,CF23,CE23)/IF($CL23=0,1,$CL23) -> 0.6101932172 | CO23: =IF(CO$21,CH23,CG23)/IF($CL23=0,1,$CL23) -> 0 | CP23: =IF(CP$21,CJ23,CI23)/IF($CL23=0,1,$CL23) -> 0.3898067828 | CR23: 0.98 | CT23: 186.3947759 | CU23: 194.79768 | CV23: 190.0821575 | CW23: =IF($CU23<=ME_Input_Alt_Montée_Seuil,ME_Input_Alt_Montée_Seuil,IF($CT23>=ME_Input_Alt_Montée_Seuil,$CV23,($CU23+ME_Input_Alt_Montée_Seuil)/2)) -> 1600 | CX23: 0 | CY23: 1 | CZ23: 2500 | DA23: 0 | DB23: 1 | DD23: =IF($CL23=0,1,1/(($CP23+$CO23)/$CY23+$CN23/$DB23)) -> 1 | DE23: 1 | DF23: =DD23*DE23/(DD23+DE23-DD23*DE23) -> 1 | DG23: =$CR23*DF23/($CR23+DF23-$CR23*DF23) -> 0.98 | DI23: 49,868810 | DJ23: 6,181360 | DQ23: 1 | DR23: 1 | DS23: 16 | DU23: =ED22 -> 2.604166667e-09 | DV23: 2.604166667e-09 | DW23: =DU23 -> 2.604166667e-09 | DX23: =DV23 -> 2.604166667e-09 | DY23: 15.99999998 | DZ23: 15.99999998 | EA23: 8 | EB23: =$DG23*MAX(P_Estimation_Vitesse_Min,CHOOSE(ME_Input_Méthode,DY23,DZ23,EA23)) -> 15.67999998 | EC23: 0.00552041452 | ED23: 0.005520417124 | EE23: =DV23+EC23 -> 0.005520417124 | EG23: 1 | EH23: 1 | EI23: 16 | EK23: =ET22 -> 2.604166668e-09 | EL23: 2.604166668e-09 | EM23: =EK23+EC23/2 -> 0.002760209864 | EN23: =EL23+EC23/2 -> 0.002760209864 | EO23: 15.98237315 | EP23: 15.98237315 | EQ23: 8 | ER23: 15.66272569 | ES23: 0.005526502942 | ET23: 0.005526505546 | EU23: =EL23+ES23 -> 0.005526505546 | EW23: 1 | EX23: 2014-06-07T16:00:00 | EY23: =IF(EW23=EW22,FA22,EX23) -> 2014-06-07T16:00:00 | EZ23: =EY23+ES23 -> 2014-06-07T16:07:57.490 | FA23: 2014-06-07T16:07:57.490 | FB23: =INT(EZ23-EY23) -> 0 | FC23: =EZ23-EY23-FB23 -> 0.005526502944 | FD23: =MOD(EY23+FC23/2,1) -> 0.6694299207 | FE23: 0.1977047077 | FF23: 0.2278894648 | FG23: 0.9027983535 | FH23: 0.9329831107 | FI23: =IF(FD23<FE23,"Nuit",IF(FD23<FF23,"Matin",IF(FD23<FG23,"Jour",IF(FD23<FH23,"Soir","Nuit")))) -> Jour | FJ23: =double_PourcentCourseNuit(EY23,EZ23,FE23,FH23) -> 0 | FK23: 1 | FL23: =$DG23*FK23/($DG23+FK23-$DG23*FK23) -> 0.98 | FN23: 1 | FO23: 1 | FP23: 16 | FR23: =GA22 -> 2.604166668e-09 | FS23: 2.604166668e-09 | FT23: =FR23+ES23/2 -> 0.002763254075 | FU23: =FS23+ES23/2 -> 0.002763254075 | FV23: 15.98235376 | FW23: 15.98235376 | FX23: 8 | FY23: 15.66270669 | FZ23: 0.005526509646 | GA23: 0.00552651225 | GB23: =FS23+FZ23 -> 0.00552651225 | GF23: 1 | GG23: 1 | GH23: 9.34376595 | GJ23: =GS22 -> 4.459301195e-09 | GK23: 4.459301195e-09 | GL23: =GJ23 -> 4.459301195e-09 | GM23: =GK23 -> 4.459301195e-09 | GN23: 9.343765933 | GO23: 9.343765933 | GP23: 8 | GQ23: 9.156890615 | GR23: 0.009453001377 | GS23: 0.009453005836 | GT23: =GK23+GR23 -> 0.009453005836 | GV23: 1 | GW23: 1 | GX23: 9.34376595 | GZ23: =HI22 -> 4.459301199e-09 | HA23: 4.459301199e-09 | HB23: =GZ23+GR23/2 -> 0.004726505148 | HC23: =HA23+GR23/2 -> 0.004726505148 | HD23: 9.326173702 | HE23: 9.326173702 | HF23: 8 | HG23: 9.139650228 | HH23: 0.009470832846 | HI23: 0.009470837306 | HJ23: =HA23+HH23 -> 0.009470837306 | HL23: 1 | HM23: 2014-06-07T16:00:00 | HN23: =IF(HL23=HL22,HP22,HM23) -> 2014-06-07T16:00:00 | HO23: =HN23+HH23 -> 2014-06-07T16:13:38.280 | HP23: 2014-06-07T16:13:38.280 | HQ23: =INT(HO23-HN23) -> 0 | HR23: =HO23-HN23-HQ23 -> 0.009470832847 | HS23: =MOD(HN23+HR23/2,1) -> 0.6714020876 | HT23: 0.1977047077 | HU23: 0.2278894648 | HV23: 0.9027983535 | HW23: 0.9329831107 | HX23: =IF(HS23<HT23,"Nuit",IF(HS23<HU23,"Matin",IF(HS23<HV23,"Jour",IF(HS23<HW23,"Soir","Nuit")))) -> Jour | HY23: =double_PourcentCourseNuit(HN23,HO23,HT23,HW23) -> 0 | HZ23: 1 | IA23: =$DG23*HZ23/($DG23+HZ23-$DG23*HZ23) -> 0.98 | IC23: 1 | ID23: 1 | IE23: 9.34376595 | IG23: =IP22 -> 4.459301199e-09 | IH23: 4.459301199e-09 | II23: =IG23+HH23/2 -> 0.004735420882 | IJ23: =IH23+HH23/2 -> 0.004735420882 | IK23: 9.326140675 | IL23: 9.326140675 | IM23: 8 | IN23: 9.139617861 | IO23: 0.009470866386 | IP23: 0.009470870846 | IQ23: =IH23+IO23 -> 0.009470870846 | IU23: 1 | IV23: 1 | IW23: 9.698978908 | IY23: =JH22 -> 4.295984873e-09 | IZ23: 4.295984873e-09 | JA23: =IY23 -> 4.295984873e-09 | JB23: =IZ23 -> 4.295984873e-09 | JC23: 9.698978891 | JD23: 9.698978891 | JE23: 8 | JF23: 9.504999313 | JG23: 0.009106797037 | JH23: 0.009106801333 | JI23: =IZ23+JG23 -> 0.009106801333 | JK23: 1 | JL23: 1 | JM23: 9.698978908 | JO23: =JX22 -> 4.295984876e-09 | JP23: 4.295984876e-09 | JQ23: =JO23+JG23/2 -> 0.004553402815 | JR23: =JP23+JG23/2 -> 0.004553402815 | JS23: 9.681383617 | JT23: 9.681383617 | JU23: 8 | JV23: 9.487755945 | JW23: 0.009123348038 | JX23: 0.009123352334 | JY23: =JP23+JW23 -> 0.009123352334 | KA23: 1 | KB23: 2014-06-07T16:00:00 | KC23: =IF(KA23=KA22,KE22,KB23) -> 2014-06-07T16:00:00 | KD23: =KC23+JW23 -> 2014-06-07T16:13:08.258 | KE23: 2014-06-07T16:13:08.258 | KF23: =INT(KD23-KC23) -> 0 | KG23: =KD23-KC23-KF23 -> 0.009123348034 | KH23: =MOD(KC23+KG23/2,1) -> 0.671228345 | KI23: 0.1977047077 | KJ23: 0.2278894648 | KK23: 0.9027983535 | KL23: 0.9329831107 | KM23: =IF(KH23<KI23,"Nuit",IF(KH23<KJ23,"Matin",IF(KH23<KK23,"Jour",IF(KH23<KL23,"Soir","Nuit")))) -> Jour | KN23: =double_PourcentCourseNuit(KC23,KD23,KI23,KL23) -> 0 | KO23: 1 | KP23: =$DG23*KO23/($DG23+KO23-$DG23*KO23) -> 0.98 | KR23: 1 | KS23: 1 | KT23: 9.698978908 | KV23: =LE22 -> 4.295984876e-09 | KW23: 4.295984876e-09 | KX23: =KV23+JW23/2 -> 0.004561678315 | KY23: =KW23+JW23/2 -> 0.004561678315 | KZ23: 9.681351785 | LA23: 9.681351785 | LB23: 8 | LC23: 9.487724749 | LD23: 0.009123378036 | LE23: 0.009123382332 | LF23: =KW23+LD23 -> 0.009123382332 | LJ23: 1 | LK23: 1 | LL23: 9.673015382 | LN23: =LW22 -> 4.307515808e-09 | LO23: 4.307515808e-09 | LP23: =LN23 -> 4.307515808e-09 | LQ23: =LO23 -> 4.307515808e-09 | LR23: 9.673015365 | LS23: 9.673015365 | LT23: 8 | LU23: 9.479555058 | LV23: 0.009131240766 | LW23: 0.009131245074 | LX23: =LO23+LV23 -> 0.009131245074 | LZ23: 1 | MA23: 1 | MB23: 9.673015382 | MD23: =MM22 -> 4.307515812e-09 | ME23: 4.307515812e-09 | MF23: =MD23+LV23/2 -> 0.004565624691 | MG23: =ME23+LV23/2 -> 0.004565624691 | MH23: 9.655420306 | MI23: 9.655420306 | MJ23: 8 | MK23: 9.4623119 | ML23: 0.009147880613 | MM23: 0.009147884921 | MN23: =ME23+ML23 -> 0.009147884921 | MP23: 1 | MQ23: 2014-06-07T16:00:00 | MR23: =IF(MP23=MP22,MT22,MQ23) -> 2014-06-07T16:00:00 | MS23: =MR23+ML23 -> 2014-06-07T16:13:10.377 | MT23: 2014-06-07T16:13:10.377 | MU23: =INT(MS23-MR23) -> 0 | MV23: =MS23-MR23-MU23 -> 0.009147880613 | MW23: =MOD(MR23+MV23/2,1) -> 0.6712406113 | MX23: 0.1977047077 | MY23: 0.2278894648 | MZ23: 0.9027983535 | NA23: 0.9329831107 | NB23: =IF(MW23<MX23,"Nuit",IF(MW23<MY23,"Matin",IF(MW23<MZ23,"Jour",IF(MW23<NA23,"Soir","Nuit")))) -> Jour | NC23: =double_PourcentCourseNuit(MR23,MS23,MX23,NA23) -> 0 | ND23: 1 | NE23: =$DG23*ND23/($DG23+ND23-$DG23*ND23) -> 0.98 | NG23: 1 | NH23: 1 | NI23: 9.673015382 | NK23: =NT22 -> 4.307515812e-09 | NL23: 4.307515812e-09 | NM23: =NK23+ML23/2 -> 0.004573944614 | NN23: =NL23+ML23/2 -> 0.004573944614 | NO23: 9.655388389 | NP23: 9.655388389 | NQ23: 8 | NR23: 9.462280622 | NS23: 0.009147910852 | NT23: 0.00914791516 | NU23: =NL23+NS23 -> 0.00914791516 | NY23: 1 | NZ23: 1 | OA23: 9.674878859 | OC23: =OL22 -> 4.306686138e-09 | OD23: 4.306686138e-09 | OE23: =OC23 -> 4.306686138e-09 | OF23: =OD23 -> 4.306686138e-09 | OG23: 9.674878843 | OH23: 9.674878843 | OI23: 8 | OJ23: 9.481381266 | OK23: 0.009129481999 | OL23: 0.009129486305 | OM23: =OD23+OK23 -> 0.009129486305 | OO23: 1 | OP23: 1 | OQ23: 9.674878859 | OS23: =PB22 -> 4.306686141e-09 | OT23: 4.306686141e-09 | OU23: =OS23+OK23/2 -> 0.004564745306 | OV23: =OT23+OK23/2 -> 0.004564745306 | OW23: 9.657283768 | OX23: 9.657283768 | OY23: 8 | OZ23: 9.464138093 | PA23: 0.009146115445 | PB23: 0.009146119752 | PC23: =OT23+PA23 -> 0.009146119752 | PE23: 1 | PF23: 2014-06-07T16:00:00 | PG23: =IF(PE23=PE22,PI22,PF23) -> 2014-06-07T16:00:00 | PH23: =PG23+PA23 -> 2014-06-07T16:13:10.225 | PI23: 2014-06-07T16:13:10.225 | PJ23: =INT(PH23-PG23) -> 0 | PK23: =PH23-PG23-PJ23 -> 0.009146115444 | PL23: =MOD(PG23+PK23/2,1) -> 0.6712397287 | PM23: 0.1977047077 | PN23: 0.2278894648 | PO23: 0.9027983535 | PP23: 0.9329831107 | PQ23: =IF(PL23<PM23,"Nuit",IF(PL23<PN23,"Matin",IF(PL23<PO23,"Jour",IF(PL23<PP23,"Soir","Nuit")))) -> Jour | PR23: =double_PourcentCourseNuit(PG23,PH23,PM23,PP23) -> 0 | PS23: 1 | PT23: =$DG23*PS23/($DG23+PS23-$DG23*PS23) -> 0.98 | PV23: 1 | PW23: 1 | PX23: 9.674878859 | PZ23: =QI22 -> 4.306686141e-09 | QA23: 4.306686141e-09 | QB23: =PZ23+PA23/2 -> 0.004573062029 | QC23: =QA23+PA23/2 -> 0.004573062029 | QD23: 9.657251858 | QE23: 9.657251858 | QF23: 8 | QG23: 9.46410682 | QH23: 0.009146145667 | QI23: 0.009146149974 | QJ23: =QA23+QH23 -> 0.009146149974 | QN23: 1 | QO23: 1 | QP23: 9.674744934 | QR23: =RA22 -> 4.306745754e-09 | QS23: 4.306745754e-09 | QT23: =QR23 -> 4.306745754e-09 | QU23: =QS23 -> 4.306745754e-09 | QV23: 9.674744918 | QW23: 9.674744918 | QX23: 8 | QY23: 9.481250019 | QZ23: 0.009129608376 | RA23: 0.009129612682 | RB23: =QS23+QZ23 -> 0.009129612682 | RD23: 1 | RE23: 1 | RF23: 9.674744934 | RH23: =RQ22 -> 4.306745758e-09 | RI23: 4.306745758e-09 | RJ23: =RH23+QZ23/2 -> 0.004564808495 | RK23: =RI23+QZ23/2 -> 0.004564808495 | RL23: 9.657149845 | RM23: 9.657149845 | RN23: 8 | RO23: 9.464006848 | RP23: 0.009146242282 | RQ23: 0.009146246589 | RR23: =RI23+RP23 -> 0.009146246589 | RT23: 1 | RU23: 2014-06-07T16:00:00 | RV23: =IF(RT23=RT22,RX22,RU23) -> 2014-06-07T16:00:00 | RW23: =RV23+RP23 -> 2014-06-07T16:13:10.236 | RX23: 2014-06-07T16:13:10.236 | RY23: =INT(RW23-RV23) -> 0 | RZ23: =RW23-RV23-RY23 -> 0.009146242279 | SA23: =MOD(RV23+RZ23/2,1) -> 0.6712397921 | SB23: 0.1977047077 | SC23: 0.2278894648 | SD23: 0.9027983535 | SE23: 0.9329831107 | SF23: =IF(SA23<SB23,"Nuit",IF(SA23<SC23,"Matin",IF(SA23<SD23,"Jour",IF(SA23<SE23,"Soir","Nuit")))) -> Jour | SG23: =double_PourcentCourseNuit(RV23,RW23,SB23,SE23) -> 0 | SH23: 1 | SI23: =$DG23*SH23/($DG23+SH23-$DG23*SH23) -> 0.98 | SK23: 1 | SL23: 1 | SM23: 9.674744934 | SO23: =SX22 -> 4.306745758e-09 | SP23: 4.306745758e-09 | SQ23: =SO23+RP23/2 -> 0.004573125448 | SR23: =SP23+RP23/2 -> 0.004573125448 | SS23: 9.657117933 | ST23: 9.657117933 | SU23: 8 | SV23: 9.463975575 | SW23: 0.009146272505 | SX23: 0.009146276812 | SY23: =SP23+SW23 -> 0.009146276812 | TC23: 9.657117933 | TD23: =($CL23/1000)/(TC23*24) -> 0.008963347055 | TE23: =($CL23/1000)/(TC23*24*$CR23) -> 0.009146272505 | TF23: =($CL23/1000)/(TC23*24*$DD23) -> 0.008963347055 | TG23: 0.008963347055 | TH23: =($CL23/1000)/(TC23*24*$SH23) -> 0.008963347055 | TJ23: =$SI23 -> 0.98 | TK23: =$SG23 -> 0 | TM23: =$CP23 -> 0.3898067828 | TN23: =$CY23 -> 1 | TO23: 1 | TP23: 1 | TQ23: =TP23*TO23/(TP23+TO23-TP23*TO23) -> 1 | TR23: =TQ23*$CR23/(TQ23+$CR23-TQ23*$CR23) -> 0.98 | TT23: =$CN23 -> 0.6101932172 | TU23: =$DB23 -> 1 | TV23: 1 | TW23: 1 | TX23: =TW23*TV23/(TW23+TV23-TW23*TV23) -> 1 | TY23: =TX23*$CR23/(TX23+$CR23-TX23*$CR23) -> 0.98 | UA23: =($TM23/$TR23)/(1/$TJ23) -> 0.3898067828 | UB23: =($TT23/$TY23)/(1/$TJ23) -> 0.6101932172 | UD23: =IF($SW23*$UA23=0,0,$CC23/($SW23*24*$UA23)) -> 87.78588118 | UE23: =IF($SW23*$UB23=0,0,$CD23/($SW23*24*$UB23)) -> -77.22755842 | UI23: =UI22+1 -> 1 | UJ23: =UJ22 -> 1 | UK23: =IF($UJ23>ME_Nbr_RB,"",VLOOKUP($UI23,ME_Table,UK$21,FALSE)) -> 0.001 | UL23: 1 | UM23: 1 | UN23: 1 | UO23: 1 | UP23: 1 | UQ23: 9.674744926 | UR23: 9.674744926
L24: 15 | M24: 0.8572594808 | O24: -30 | P24: -30 | Q24: 1.879 | V24: 3 | W24: GR5-063 Bleesbréck | AB24: 189.2254941 | AC24: 1 | AD24: FALSE | AE24: FALSE | AF24: FALSE | AG24: FALSE | AH24: FALSE | AI24: FALSE | AL24: 2979.203719 | AM24: 15.27623553 | AN24: -18.03206942 | AO24: 912.9116455 | AP24: 9.439366392 | AQ24: 0.00402971806 | AR24: 0.01317599487 | AS24: 0.01317599487 | AT24: 2014-06-07T16:18:58.406 | AU24: 2014-06-07T16:18:58.406 | AY24: 3 | BC24: FALSE | BD24: FALSE | BG24: 3 | BH24: FALSE | BQ24: 2979.203719 | BR24: 2979.203719 | BS24: 15.27623553 | BT24: -18.03206942 | BU24: 1854.351826 | BV24: 1813.056749 | BW24: 0.001 | BX24: 0.001 | BY24: 1124.850893 | BZ24: 1177.297286 | CB24: 900.1078952 | CC24: 7.764687592 | CD24: -7.687913487 | CE24: 561.7311979 | CF24: 545.4154938 | CG24: 0 | CH24: 0 | CI24: 338.3766973 | CJ24: 367.4961517 | CL24: 912.9116455 | CN24: 0.5974460907 | CO24: 0 | CP24: 0.4025539093 | CR24: 0.98 | CT24: 187.2742 | CU24: 193.9393493 | CV24: 191.3048523 | CW24: 1600 | CX24: 0 | CY24: 1 | CZ24: 2500 | DA24: 0 | DB24: 1 | DD24: 1 | DE24: 1 | DF24: 1 | DG24: 0.98 | DI24: 49,872300 | DJ24: 6,190287 | DQ24: 1 | DR24: 1 | DS24: 16 | DU24: 0.005520417124 | DV24: 0.005520417124 | DW24: 0.005520417124 | DX24: 0.005520417124 | DY24: 15.96484341 | DZ24: 15.96484341 | EA24: 8 | EB24: 15.64554654 | EC24: 0.002431234033 | ED24: 0.007951651158 | EE24: 0.007951651158 | EG24: 1 | EH24: 1 | EI24: 16 | EK24: 0.005526505546 | EL24: 0.005526505546 | EM24: 0.006742122563 | EN24: 0.006742122563 | EO24: 15.95711537 | EP24: 15.95711537 | EQ24: 8 | ER24: 15.63797306 | ES24: 0.002432411482 | ET24: 0.007958917028 | EU24: 0.007958917028 | EW24: 1 | EX24: 2014-06-07T16:00:00 | EY24: 2014-06-07T16:07:57.490 | EZ24: 2014-06-07T16:11:27.650 | FA24: 2014-06-07T16:11:27.650 | FB24: 0 | FC24: 0.002432411478 | FD24: 0.673409378 | FE24: 0.1976639215 | FF24: 0.2278528535 | FG24: 0.9027853704 | FH24: 0.9329743024 | FI24: Jour | FJ24: 0 | FK24: 1 | FL24: 0.98 | FN24: 1 | FO24: 1 | FP24: 16 | FR24: 0.00552651225 | FS24: 0.00552651225 | FT24: 0.006742717991 | FU24: 0.006742717991 | FV24: 15.95711161 | FW24: 15.95711161 | FX24: 8 | FY24: 15.63796938 | FZ24: 0.002432412055 | GA24: 0.007958924305 | GB24: 0.007958924305 | GF24: 1 | GG24: 1 | GH24: 9.34376595 | GJ24: 0.009453005836 | GK24: 0.009453005836 | GL24: 0.009453005836 | GM24: 0.009453005836 | GN24: 9.308747083 | GO24: 9.308747083 | GP24: 8 | GQ24: 9.122572141 | GR24: 0.004169655733 | GS24: 0.01362266157 | GT24: 0.01362266157 | GV24: 1 | GW24: 1 | GX24: 9.34376595 | GZ24: 0.009470837306 | HA24: 0.009470837306 | HB24: 0.01155566517 | HC24: 0.01155566517 | HD24: 9.301047389 | HE24: 9.301047389 | HF24: 8 | HG24: 9.115026441 | HH24: 0.004173107503 | HI24: 0.01364394481 | HJ24: 0.01364394481 | HL24: 1 | HM24: 2014-06-07T16:00:00 | HN24: 2014-06-07T16:13:38.280 | HO24: 2014-06-07T16:19:38.837 | HP24: 2014-06-07T16:19:38.837 | HQ24: 0 | HR24: 0.004173107503 | HS24: 0.6782240577 | HT24: 0.1976639215 | HU24: 0.2278528535 | HV24: 0.9027853704 | HW24: 0.9329743024 | HX24: Jour | HY24: 0 | HZ24: 1 | IA24: 0.98 | IC24: 1 | ID24: 1 | IE24: 9.34376595 | IG24: 0.009470870846 | IH24: 0.009470870846 | II24: 0.0115574246 | IJ24: 0.0115574246 | IK24: 9.30104096 | IL24: 9.30104096 | IM24: 8 | IN24: 9.11502014 | IO24: 0.004173110387 | IP24: 0.01364398123 | IQ24: 0.01364398123 | IU24: 1 | IV24: 1 | IW24: 9.698978908 | IY24: 0.009106801333 | IZ24: 0.009106801333 | JA24: 0.009106801333 | JB24: 0.009106801333 | JC24: 9.663947945 | JD24: 9.663947945 | JE24: 8 | JF24: 9.470668986 | JG24: 0.004016398977 | JH24: 0.01312320031 | JI24: 0.01312320031 | JK24: 1 | JL24: 1 | JM24: 9.698978908 | JO24: 0.009123352334 | JP24: 0.009123352334 | JQ24: 0.01113155182 | JR24: 0.01113155182 | JS24: 9.656245744 | JT24: 9.656245744 | JU24: 8 | JV24: 9.463120829 | JW24: 0.004019602615 | JX24: 0.01314295495 | JY24: 0.01314295495 | KA24: 1 | KB24: 2014-06-07T16:00:00 | KC24: 2014-06-07T16:13:08.258 | KD24: 2014-06-07T16:18:55.551 | KE24: 2014-06-07T16:18:55.551 | KF24: 0 | KG24: 0.004019602617 | KH24: 0.6777998203 | KI24: 0.1976639215 | KJ24: 0.2278528535 | KK24: 0.9027853704 | KL24: 0.9329743024 | KM24: Jour | KN24: 0 | KO24: 1 | KP24: 0.98 | KR24: 1 | KS24: 1 | KT24: 9.698978908 | KV24: 0.009123382332 | KW24: 0.009123382332 | KX24: 0.01113318364 | KY24: 0.01113318364 | KZ24: 9.656239549 | LA24: 9.656239549 | LB24: 8 | LC24: 9.463114758 | LD24: 0.004019605193 | LE24: 0.01314298753 | LF24: 0.01314298753 | LJ24: 1 | LK24: 1 | LL24: 9.673015382 | LN24: 0.009131245074 | LO24: 0.009131245074 | LP24: 0.009131245074 | LQ24: 0.009131245074 | LR24: 9.637985273 | LS24: 9.637985273 | LT24: 8 | LU24: 9.445225568 | LV24: 0.004027218297 | LW24: 0.01315846337 | LX24: 0.01315846337 | LZ24: 1 | MA24: 1 | MB24: 9.673015382 | MD24: 0.009147884921 | ME24: 0.009147884921 | MF24: 0.01116149407 | MG24: 0.01116149407 | MH24: 9.630283249 | MI24: 9.630283249 | MJ24: 8 | MK24: 9.437677584 | ML24: 0.004030439151 | MM24: 0.01317832407 | MN24: 0.01317832407 | MP24: 1 | MQ24: 2014-06-07T16:00:00 | MR24: 2014-06-07T16:13:10.377 | MS24: 2014-06-07T16:18:58.607 | MT24: 2014-06-07T16:18:58.607 | MU24: 0 | MV24: 0.004030439151 | MW24: 0.6778297712 | MX24: 0.1976639215 | MY24: 0.2278528535 | MZ24: 0.9027853704 | NA24: 0.9329743024 | NB24: Jour | NC24: 0 | ND24: 1 | NE24: 0.98 | NG24: 1 | NH24: 1 | NI24: 9.673015382 | NK24: 0.00914791516 | NL24: 0.00914791516 | NM24: 0.01116313474 | NN24: 0.01116313474 | NO24: 9.630277038 | NP24: 9.630277038 | NQ24: 8 | NR24: 9.437671497 | NS24: 0.00403044175 | NT24: 0.01317835691 | NU24: 0.01317835691 | NY24: 1 | NZ24: 1 | OA24: 9.674878859 | OC24: 0.009129486305 | OD24: 0.009129486305 | OE24: 0.009129486305 | OF24: 0.009129486305 | OG24: 9.639848689 | OH24: 9.639848689 | OI24: 8 | OJ24: 9.447051716 | OK24: 0.004026439822 | OL24: 0.01315592613 | OM24: 0.01315592613 | OO24: 1 | OP24: 1 | OQ24: 9.674878859 | OS24: 0.009146119752 | OT24: 0.009146119752 | OU24: 0.01115933966 | OV24: 0.01115933966 | OW24: 9.632146653 | OX24: 9.632146653 | OY24: 8 | OZ24: 9.43950372 | PA24: 0.004029659435 | PB24: 0.01317577919 | PC24: 0.01317577919 | PE24: 1 | PF24: 2014-06-07T16:00:00 | PG24: 2014-06-07T16:13:10.225 | PH24: 2014-06-07T16:18:58.387 | PI24: 2014-06-07T16:18:58.387 | PJ24: 0 | PK24: 0.004029659438 | PL24: 0.6778276161 | PM24: 0.1976639215 | PN24: 0.2278528535 | PO24: 0.9027853704 | PP24: 0.9329743024 | PQ24: Jour | PR24: 0 | PS24: 1 | PT24: 0.98 | PV24: 1 | PW24: 1 | PX24: 9.674878859 | PZ24: 0.009146149974 | QA24: 0.009146149974 | QB24: 0.01116097969 | QC24: 0.01116097969 | QD24: 9.632140443 | QE24: 9.632140443 | QF24: 8 | QG24: 9.439497634 | QH24: 0.004029662033 | QI24: 0.01317581201 | QJ24: 0.01317581201 | QN24: 1 | QO24: 1 | QP24: 9.674744934 | QR24: 0.009129612682 | QS24: 0.009129612682 | QT24: 0.009129612682 | QU24: 0.009129612682 | QV24: 9.639714769 | QW24: 9.639714769 | QX24: 8 | QY24: 9.446920473 | QZ24: 0.00402649576 | RA24: 0.01315610844 | RB24: 0.01315610844 | RD24: 1 | RE24: 1 | RF24: 9.674744934 | RH24: 0.009146246589 | RI24: 0.009146246589 | RJ24: 0.01115949447 | RK24: 0.01115949447 | RL24: 9.632012733 | RM24: 9.632012733 | RN24: 8 | RO24: 9.439372478 | RP24: 0.004029715462 | RQ24: 0.01317596205 | RR24: 0.01317596205 | RT24: 1 | RU24: 2014-06-07T16:00:00 | RV24: 2014-06-07T16:13:10.236 | RW24: 2014-06-07T16:18:58.403 | RX24: 2014-06-07T16:18:58.403 | RY24: 0 | RZ24: 0.004029715463 | SA24: 0.677827771 | SB24: 0.1976639215 | SC24: 0.2278528535 | SD24: 0.9027853704 | SE24: 0.9329743024 | SF24: Jour | SG24: 0 | SH24: 1 | SI24: 0.98 | SK24: 1 | SL24: 1 | SM24: 9.674744934 | SO24: 0.009146276812 | SP24: 0.009146276812 | SQ24: 0.01116113454 | SR24: 0.01116113454 | SS24: 9.632006523 | ST24: 9.632006523 | SU24: 8 | SV24: 9.439366392 | SW24: 0.00402971806 | SX24: 0.01317599487 | SY24: 0.01317599487 | TC24: 9.632006523 | TD24: 0.003949123699 | TE24: 0.00402971806 | TF24: 0.003949123699 | TG24: 0.003949123699 | TH24: 0.003949123699 | TJ24: 0.98 | TK24: 0 | TM24: 0.4025539093 | TN24: 1 | TO24: 1 | TP24: 1 | TQ24: 1 | TR24: 0.98 | TT24: 0.5974460907 | TU24: 1 | TV24: 1 | TW24: 1 | TX24: 1 | TY24: 0.98 | UA24: 0.4025539093 | UB24: 0.5974460907 | UD24: 199.4408126 | UE24: -133.0527516 | UI24: 1 | UJ24: =UJ23+1 -> 2 | UK24: 0.001 | UL24: 0.98 | UM24: 1 | UN24: 1 | UO24: 1 | UP24: 0.98 | UQ24: 9.463975575 | UR24: 9.657117933
B25: TRUE | C25: Prendre en compte le Relief ► | F25: =IF(ME_Input_Relief,"Oui","Non") -> Oui | L25: 16 | M25: 0.8526787223 | O25: -28 | P25: -28 | Q25: 1.7472416 | V25: 4 | W25: GR5-062 Kiirchbesch | AB25: 426.631817 | AC25: 1 | AD25: FALSE | AE25: FALSE | AF25: FALSE | AG25: FALSE | AH25: FALSE | AI25: FALSE | AL25: 7302.335111 | AM25: 275.5799575 | AN25: -40.92946844 | AO25: 5626.380642 | AP25: 8.808882007 | AQ25: 0.02661319865 | AR25: 0.03978919352 | AS25: 0.03978919352 | AT25: 2014-06-07T16:57:17.786 | AU25: 2014-06-07T16:57:17.786 | AY25: 4 | BC25: FALSE | BD25: FALSE | BG25: 4 | BH25: FALSE | BQ25: 7302.335111 | BR25: 7302.335111 | BS25: 275.5799575 | BT25: -40.92946844 | BU25: 2542.694938 | BV25: 2467.341078 | BW25: 0.001 | BX25: 0.001 | BY25: 4759.639174 | BZ25: 6149.3936 | CB25: 4323.131393 | CC25: 260.3037219 | CD25: -22.89739902 | CE25: 688.3431121 | CF25: 654.2843285 | CG25: 0 | CH25: 0 | CI25: 3634.788281 | CJ25: 4972.096313 | CL25: 5626.380642 | CN25: 0.1162886712 | CO25: 0 | CP25: 0.8837113288 | CR25: 0.92 | CT25: 189.2254941 | CU25: 433.67452 | CV25: 329.456554 | CW25: 1600 | CX25: 0 | CY25: 1 | CZ25: 2500 | DA25: 0 | DB25: 1 | DD25: 1 | DE25: 1 | DF25: 1 | DG25: 0.92 | DI25: 49,890954 | DJ25: 6,218746 | DQ25: 1 | DR25: 1 | DS25: 16 | DU25: 0.007951651158 | DV25: 0.007951651158 | DW25: 0.007951651158 | DX25: 0.007951651158 | DY25: 15.94948294 | DZ25: 15.94948294 | EA25: 8 | EB25: 14.67352431 | EC25: 0.01597656581 | ED25: 0.02392821697 | EE25: 0.02392821697 | EG25: 1 | EH25: 1 | EI25: 16 | EK25: 0.007958917028 | EL25: 0.007958917028 | EM25: 0.01594719993 | EN25: 0.01594719993 | EO25: 15.89949109 | EP25: 15.89949109 | EQ25: 8 | ER25: 14.6275318 | ES25: 0.0160268 | ET25: 0.02398571703 | EU25: 0.02398571703 | EW25: 1 | EX25: 2014-06-07T16:00:00 | EY25: 2014-06-07T16:11:27.650 | EZ25: 2014-06-07T16:34:32.366 | FA25: 2014-06-07T16:34:32.366 | FB25: 0 | FC25: 0.0160268 | FD25: 0.6826389837 | FE25: 0.1974993414 | FF25: 0.2277106163 | FG25: 0.9027695021 | FH25: 0.932980777 | FI25: Jour | FJ25: 0 | FK25: 1 | FL25: 0.92 | FN25: 1 | FO25: 1 | FP25: 16 | FR25: 0.007958924305 | FS25: 0.007958924305 | FT25: 0.01597232431 | FU25: 0.01597232431 | FV25: 15.89933526 | FW25: 15.89933526 | FX25: 8 | FY25: 14.62738844 | FZ25: 0.01602695708 | GA25: 0.02398588139 | GB25: 0.02398588139 | GF25: 1 | GG25: 1 | GH25: 9.34376595 | GJ25: 0.01362266157 | GK25: 0.01362266157 | GL25: 0.01362266157 | GM25: 0.01362266157 | GN25: 9.293509802 | GO25: 9.293509802 | GP25: 8 | GQ25: 8.550029018 | GR25: 0.02741891592 | GS25: 0.04104157749 | GT25: 0.04104157749 | GV25: 1 | GW25: 1 | GX25: 9.34376595 | GZ25: 0.01364394481 | HA25: 0.01364394481 | HB25: 0.02735340277 | HC25: 0.02735340277 | HD25: 9.244222492 | HE25: 9.244222492 | HF25: 8 | HG25: 8.504684692 | HH25: 0.02756510502 | HI25: 0.04120904983 | HJ25: 0.04120904983 | HL25: 1 | HM25: 2014-06-07T16:00:00 | HN25: 2014-06-07T16:19:38.837 | HO25: 2014-06-07T16:59:20.462 | HP25: 2014-06-07T16:59:20.462 | HQ25: 0 | HR25: 0.02756510503 | HS25: 0.694093164 | HT25: 0.1974993414 | HU25: 0.2277106163 | HV25: 0.9027695021 | HW25: 0.932980777 | HX25: Jour | HY25: 0 | HZ25: 1 | IA25: 0.92 | IC25: 1 | ID25: 1 | IE25: 9.34376595 | IG25: 0.01364398123 | IH25: 0.01364398123 | II25: 0.02742653375 | IJ25: 0.02742653375 | IK25: 9.243963593 | IL25: 9.243963593 | IM25: 8 | IN25: 8.504446505 | IO25: 0.02756587705 | IP25: 0.04120985828 | IQ25: 0.04120985828 | IU25: 1 | IV25: 1 | IW25: 9.698978908 | IY25: 0.01312320031 | IZ25: 0.01312320031 | JA25: 0.01312320031 | JB25: 0.01312320031 | JC25: 9.64869985 | JD25: 9.64869985 | JE25: 8 | JF25: 8.876803862 | JG25: 0.02640956479 | JH25: 0.0395327651 | JI25: 0.0395327651 | JK25: 1 | JL25: 1 | JM25: 9.698978908 | JO25: 0.01314295495 | JP25: 0.01314295495 | JQ25: 0.02634773734 | JR25: 0.02634773734 | JS25: 9.599350808 | JT25: 9.599350808 | JU25: 8 | JV25: 8.831402743 | JW25: 0.02654533301 | JX25: 0.03968828796 | JY25: 0.03968828796 | KA25: 1 | KB25: 2014-06-07T16:00:00 | KC25: 2014-06-07T16:18:55.551 | KD25: 2014-06-07T16:57:09.068 | KE25: 2014-06-07T16:57:09.068 | KF25: 0 | KG25: 0.02654533301 | KH25: 0.6930822881 | KI25: 0.1974993414 | KJ25: 0.2277106163 | KK25: 0.9027695021 | KL25: 0.932980777 | KM25: Jour | KN25: 0 | KO25: 1 | KP25: 0.92 | KR25: 1 | KS25: 1 | KT25: 9.698978908 | KV25: 0.01314298753 | KW25: 0.01314298753 | KX25: 0.02641565403 | KY25: 0.02641565403 | KZ25: 9.599100724 | LA25: 9.599100724 | LB25: 8 | LC25: 8.831172666 | LD25: 0.02654602459 | LE25: 0.03968901211 | LF25: 0.03968901211 | LJ25: 1 | LK25: 1 | LL25: 9.673015382 | LN25: 0.01315846337 | LO25: 0.01315846337 | LP25: 0.01315846337 | LQ25: 0.01315846337 | LR25: 9.622737942 | LS25: 9.622737942 | LT25: 8 | LU25: 8.852918907 | LV25: 0.02648081714 | LW25: 0.03963928051 | LX25: 0.03963928051 | LZ25: 1 | MA25: 1 | MB25: 9.673015382 | MD25: 0.01317832407 | ME25: 0.01317832407 | MF25: 0.02641873264 | MG25: 0.02641873264 | MH25: 9.57339326 | MI25: 9.57339326 | MJ25: 8 | MK25: 8.807521799 | ML25: 0.02661730871 | MM25: 0.03979563279 | MN25: 0.03979563279 | MP25: 1 | MQ25: 2014-06-07T16:00:00 | MR25: 2014-06-07T16:18:58.607 | MS25: 2014-06-07T16:57:18.343 | MT25: 2014-06-07T16:57:18.343 | MU25: 0 | MV25: 0.02661730871 | MW25: 0.6931536451 | MX25: 0.1974993414 | MY25: 0.2277106163 | MZ25: 0.9027695021 | NA25: 0.932980777 | NB25: Jour | NC25: 0 | ND25: 1 | NE25: 0.92 | NG25: 1 | NH25: 1 | NI25: 9.673015382 | NK25: 0.01317835691 | NL25: 0.01317835691 | NM25: 0.02648701127 | NN25: 0.02648701127 | NO25: 9.573142552 | NP25: 9.573142552 | NQ25: 8 | NR25: 8.807291148 | NS25: 0.02661800579 | NT25: 0.0397963627 | NU25: 0.0397963627 | NY25: 1 | NZ25: 1 | OA25: 9.674878859 | OC25: 0.01315592613 | OD25: 0.01315592613 | OE25: 0.01315592613 | OF25: 0.01315592613 | OG25: 9.624601303 | OH25: 9.624601303 | OI25: 8 | OJ25: 8.854633199 | OK25: 0.02647569035 | OL25: 0.03963161648 | OM25: 0.03963161648 | OO25: 1 | OP25: 1 | OQ25: 9.674878859 | OS25: 0.01317577919 | OT25: 0.01317577919 | OU25: 0.02641362436 | OV25: 0.02641362436 | OW25: 9.575256307 | OX25: 9.575256307 | OY25: 8 | OZ25: 8.809235803 | PA25: 0.02661212981 | PB25: 0.039787909 | PC25: 0.039787909 | PE25: 1 | PF25: 2014-06-07T16:00:00 | PG25: 2014-06-07T16:18:58.387 | PH25: 2014-06-07T16:57:17.675 | PI25: 2014-06-07T16:57:17.675 | PJ25: 0 | PK25: 0.02661212981 | PL25: 0.6931485108 | PM25: 0.1974993414 | PN25: 0.2277106163 | PO25: 0.9027695021 | PP25: 0.932980777 | PQ25: Jour | PR25: 0 | PS25: 1 | PT25: 0.92 | PV25: 1 | PW25: 1 | PX25: 9.674878859 | PZ25: 0.01317581201 | QA25: 0.01317581201 | QB25: 0.02648187691 | QC25: 0.02648187691 | QD25: 9.575005644 | QE25: 9.575005644 | QF25: 8 | QG25: 8.809005193 | QH25: 0.02661282649 | QI25: 0.0397886385 | QJ25: 0.0397886385 | QN25: 1 | QO25: 1 | QP25: 9.674744934 | QR25: 0.01315610844 | QS25: 0.01315610844 | QT25: 0.01315610844 | QU25: 0.01315610844 | QV25: 9.624467387 | QW25: 9.624467387 | QX25: 8 | QY25: 8.854509996 | QZ25: 0.02647605874 | RA25: 0.03963216718 | RB25: 0.03963216718 | RD25: 1 | RE25: 1 | RF25: 9.674744934 | RH25: 0.01317596205 | RI25: 0.01317596205 | RJ25: 0.02641399142 | RK25: 0.02641399142 | RL25: 9.575122413 | RM25: 9.575122413 | RN25: 8 | RO25: 8.80911262 | RP25: 0.02661250195 | RQ25: 0.039788464 | RR25: 0.039788464 | RT25: 1 | RU25: 2014-06-07T16:00:00 | RV25: 2014-06-07T16:18:58.403 | RW25: 2014-06-07T16:57:17.723 | RX25: 2014-06-07T16:57:17.723 | RY25: 0 | RZ25: 0.02661250195 | SA25: 0.6931488797 | SB25: 0.1974993414 | SC25: 0.2277106163 | SD25: 0.9027695021 | SE25: 0.932980777 | SF25: Jour | SG25: 0 | SH25: 1 | SI25: 0.92 | SK25: 1 | SL25: 1 | SM25: 9.674744934 | SO25: 0.01317599487 | SP25: 0.01317599487 | SQ25: 0.02648224584 | SR25: 0.02648224584 | SS25: 9.574871747 | ST25: 9.574871747 | SU25: 8 | SV25: 8.808882007 | SW25: 0.02661319865 | SX25: 0.03978919352 | SY25: 0.03978919352 | TC25: 9.574871747 | TD25: 0.02448414276 | TE25: 0.02661319865 | TF25: 0.02448414276 | TG25: 0.02448414276 | TH25: 0.02448414276 | TJ25: 0.92 | TK25: 0 | TM25: 0.8837113288 | TN25: 1 | TO25: 1 | TP25: 1 | TQ25: 1 | TR25: 0.92 | TT25: 0.1162886712 | TU25: 1 | TV25: 1 | TW25: 1 | TX25: 1 | TY25: 0.92 | UA25: 0.8837113288 | UB25: 0.1162886712 | UD25: 461.1706267 | UE25: -308.2765053 | UI25: =UI24+1 -> 2 | UJ25: 2 | UK25: 2079.095823 | UL25: 0.98 | UM25: 1 | UN25: 1 | UO25: 1 | UP25: 0.98 | UQ25: 9.463975575 | UR25: 9.657117933
B26: TRUE | C26: Prendre en compte la Courabilité ► | F26: =IF(ME_Input_Courabilité,"Oui","Non") -> Oui | L26: 17 | M26: 0.8484644246 | O26: -26 | P26: -26 | Q26: 1.6193616 | V26: 5 | W26: GR5-061 Marxbierg | AB26: 298.4837625 | AC26: 1 | AD26: FALSE | AE26: FALSE | AF26: FALSE | AG26: FALSE | AH26: FALSE | AI26: FALSE | AL26: 10126.0507 | AM26: 306.9398381 | AN26: -200.4374036 | AO26: 2952.92289 | AP26: 8.741528642 | AQ26: 0.01407516451 | AR26: 0.05386435804 | AS26: 0.05386435804 | AT26: 2014-06-07T17:17:33.881 | AU26: 2014-06-07T17:17:33.881 | AY26: 5 | BC26: FALSE | BD26: FALSE | BG26: 5 | BH26: FALSE | BQ26: 10126.0507 | BR26: 10126.0507 | BS26: 306.9398381 | BT26: -200.4374036 | BU26: 4756.89265 | BV26: 4658.151781 | BW26: 0.001 | BX26: 0.001 | BY26: 5369.157047 | BZ26: 6911.505786 | CB26: 2823.715586 | CC26: 31.35988062 | CD26: -159.5079352 | CE26: 2214.197712 | CF26: 2190.810703 | CG26: 0 | CH26: 0 | CI26: 609.5178733 | CJ26: 762.1121866 | CL26: 2952.92289 | CN26: 0.7419126015 | CO26: 0 | CP26: 0.2580873985 | CR26: 0.92 | CT26: 281.6606 | CU26: 429.4782999 | CV26: 348.5798569 | CW26: 1600 | CX26: 0 | CY26: 1 | CZ26: 2500 | DA26: 0 | DB26: 1 | DD26: 1 | DE26: 1 | DF26: 1 | DG26: 0.92 | DI26: 49,899000 | DJ26: 6,207713 | DQ26: 1 | DR26: 1 | DS26: 16 | DU26: 0.02392821697 | DV26: 0.02392821697 | DW26: 0.02392821697 | DX26: 0.02392821697 | DY26: 15.85038146 | DZ26: 15.85038146 | EA26: 8 | EB26: 14.58235095 | EC26: 0.008437490923 | ED26: 0.03236570789 | EE26: 0.03236570789 | EG26: 1 | EH26: 1 | EI26: 16 | EK26: 0.02398571703 | EL26: 0.02398571703 | EM26: 0.02820446249 | EN26: 0.02820446249 | EO26: 15.82438936 | EP26: 15.82438936 | EQ26: 8 | ER26: 14.55843821 | ES26: 0.008451349791 | ET26: 0.03243706682 | EU26: 0.03243706682 | EW26: 1 | EX26: 2014-06-07T16:00:00 | EY26: 2014-06-07T16:34:32.366 | EZ26: 2014-06-07T16:46:42.563 | FA26: 2014-06-07T16:46:42.563 | FB26: 0 | FC26: 0.008451349793 | FD26: 0.6948780586 | FE26: 0.1974930636 | FF26: 0.2277139902 | FG26: 0.9028274226 | FH26: 0.9330483492 | FI26: Jour | FJ26: 0 | FK26: 1 | FL26: 0.92 | FN26: 1 | FO26: 1 | FP26: 16 | FR26: 0.02398588139 | FS26: 0.02398588139 | FT26: 0.02821155629 | FU26: 0.02821155629 | FV26: 15.82434643 | FW26: 15.82434643 | FX26: 8 | FY26: 14.55839871 | FZ26: 0.008451372721 | GA26: 0.03243725411 | GB26: 0.03243725411 | GF26: 1 | GG26: 1 | GH26: 9.34376595 | GJ26: 0.04104157749 | GK26: 0.04104157749 | GL26: 0.04104157749 | GM26: 0.04104157749 | GN26: 9.196417658 | GO26: 9.196417658 | GP26: 8 | GQ26: 8.460704246 | GR26: 0.01454234189 | GS26: 0.05558391937 | GT26: 0.05558391937 | GV26: 1 | GW26: 1 | GX26: 9.34376595 | GZ26: 0.04120904983 | HA26: 0.04120904983 | HB26: 0.04848022078 | HC26: 0.04848022078 | HD26: 9.170982769 | HE26: 9.170982769 | HF26: 8 | HG26: 8.437304147 | HH26: 0.01458267375 | HI26: 0.05579172359 | HJ26: 0.05579172359 | HL26: 1 | HM26: 2014-06-07T16:00:00 | HN26: 2014-06-07T16:59:20.462 | HO26: 2014-06-07T17:20:20.405 | HP26: 2014-06-07T17:20:20.405 | HQ26: 0 | HR26: 0.01458267376 | HS26: 0.7151670534 | HT26: 0.1974930636 | HU26: 0.2277139902 | HV26: 0.9028274226 | HW26: 0.9330483492 | HX26: Jour | HY26: 0 | HZ26: 1 | IA26: 0.92 | IC26: 1 | ID26: 1 | IE26: 9.34376595 | IG26: 0.04120985828 | IH26: 0.04120985828 | II26: 0.04850119516 | IJ26: 0.04850119516 | IK26: 9.170911585 | IL26: 9.170911585 | IM26: 8 | IN26: 8.437238658 | IO26: 0.01458278694 | IP26: 0.05579264523 | IQ26: 0.05579264523 | IU26: 1 | IV26: 1 | IW26: 9.698978908 | IY26: 0.0395327651 | IZ26: 0.0395327651 | JA26: 0.0395327651 | JB26: 0.0395327651 | JC26: 9.551432325 | JD26: 9.551432325 | JE26: 8 | JF26: 8.787317739 | JG26: 0.01400182142 | JH26: 0.05353458652 | JI26: 0.05353458652 | JK26: 1 | JL26: 1 | JM26: 9.698978908 | JO26: 0.03968828796 | JP26: 0.03968828796 | JQ26: 0.04668919867 | JR26: 0.04668919867 | JS26: 9.525948157 | JT26: 9.525948157 | JU26: 8 | JV26: 8.763872304 | JW26: 0.01403927961 | JX26: 0.05372756757 | JY26: 0.05372756757 | KA26: 1 | KB26: 2014-06-07T16:00:00 | KC26: 2014-06-07T16:57:09.068 | KD26: 2014-06-07T17:17:22.062 | KE26: 2014-06-07T17:17:22.062 | KF26: 0 | KG26: 0.01403927961 | KH26: 0.7133745944 | KI26: 0.1974930636 | KJ26: 0.2277139902 | KK26: 0.9028274226 | KL26: 0.9330483492 | KM26: Jour | KN26: 0 | KO26: 1 | KP26: 0.92 | KR26: 1 | KS26: 1 | KT26: 9.698978908 | KV26: 0.03968901211 | KW26: 0.03968901211 | KX26: 0.04670865192 | KY26: 0.04670865192 | KZ26: 9.52587938 | LA26: 9.52587938 | LB26: 8 | LC26: 8.763809029 | LD26: 0.01403938097 | LE26: 0.05372839309 | LF26: 0.05372839309 | LJ26: 1 | LK26: 1 | LL26: 9.673015382 | LN26: 0.03963928051 | LO26: 0.03963928051 | LP26: 0.03963928051 | LQ26: 0.03963928051 | LR26: 9.525482809 | LS26: 9.525482809 | LT26: 8 | LU26: 8.763444185 | LV26: 0.01403996547 | LW26: 0.05367924598 | LX26: 0.05367924598 | LZ26: 1 | MA26: 1 | MB26: 9.673015382 | MD26: 0.03979563279 | ME26: 0.03979563279 | MF26: 0.04681561552 | MG26: 0.04681561552 | MH26: 9.500002119 | MI26: 9.500002119 | MJ26: 8 | MK26: 8.74000195 | ML26: 0.01407762315 | MM26: 0.05387325593 | MN26: 0.05387325593 | MP26: 1 | MQ26: 2014-06-07T16:00:00 | MR26: 2014-06-07T16:57:18.343 | MS26: 2014-06-07T17:17:34.649 | MT26: 2014-06-07T17:17:34.649 | MU26: 0 | MV26: 0.01407762315 | MW26: 0.713501111 | MX26: 0.1974930636 | MY26: 0.2277139902 | MZ26: 0.9028274226 | NA26: 0.9330483492 | NB26: Jour | NC26: 0 | ND26: 1 | NE26: 0.92 | NG26: 1 | NH26: 1 | NI26: 9.673015382 | NK26: 0.0397963627 | NL26: 0.0397963627 | NM26: 0.04683517427 | NN26: 0.04683517427 | NO26: 9.499933172 | NP26: 9.499933172 | NQ26: 8 | NR26: 8.739938518 | NS26: 0.01407772532 | NT26: 0.05387408801 | NU26: 0.05387408801 | NY26: 1 | NZ26: 1 | OA26: 9.674878859 | OC26: 0.03963161648 | OD26: 0.03963161648 | OE26: 0.03963161648 | OF26: 0.03963161648 | OG26: 9.527345279 | OH26: 9.527345279 | OI26: 8 | OJ26: 8.765157657 | OK26: 0.01403722084 | OL26: 0.05366883732 | OM26: 0.05366883732 | OO26: 1 | OP26: 1 | OQ26: 9.674878859 | OS26: 0.039787909 | OT26: 0.039787909 | OU26: 0.04680651942 | OV26: 0.04680651942 | OW26: 9.501864338 | OX26: 9.501864338 | OY26: 8 | OZ26: 8.741715191 | PA26: 0.01407486415 | PB26: 0.05386277315 | PC26: 0.05386277315 | PE26: 1 | PF26: 2014-06-07T16:00:00 | PG26: 2014-06-07T16:57:17.675 | PH26: 2014-06-07T17:17:33.744 | PI26: 2014-06-07T17:17:33.744 | PJ26: 0 | PK26: 0.01407486415 | PL26: 0.7134920077 | PM26: 0.1974930636 | PN26: 0.2277139902 | PO26: 0.9028274226 | PP26: 0.9330483492 | PQ26: Jour | PR26: 0 | PS26: 1 | PT26: 0.92 | PV26: 1 | PW26: 1 | PX26: 9.674878859 | PZ26: 0.0397886385 | QA26: 0.0397886385 | QB26: 0.04682607057 | QC26: 0.04682607057 | QD26: 9.501795403 | QE26: 9.501795403 | QF26: 8 | QG26: 8.741651771 | QH26: 0.01407496626 | QI26: 0.05386360476 | QJ26: 0.05386360476 | QN26: 1 | QO26: 1 | QP26: 9.674744934 | QR26: 0.03963216718 | QS26: 0.03963216718 | QT26: 0.03963216718 | QU26: 0.03963216718 | QV26: 9.527211426 | QW26: 9.527211426 | QX26: 8 | QY26: 8.765034512 | QZ26: 0.01403741806 | RA26: 0.05366958524 | RB26: 0.05366958524 | RD26: 1 | RE26: 1 | RF26: 9.674744934 | RH26: 0.039788464 | RI26: 0.039788464 | RJ26: 0.04680717302 | RK26: 0.04680717302 | RL26: 9.501730504 | RM26: 9.501730504 | RN26: 8 | RO26: 8.741592064 | RP26: 0.0140750624 | RQ26: 0.05386352639 | RR26: 0.05386352639 | RT26: 1 | RU26: 2014-06-07T16:00:00 | RV26: 2014-06-07T16:57:17.723 | RW26: 2014-06-07T17:17:33.809 | RX26: 2014-06-07T17:17:33.809 | RY26: 0 | RZ26: 0.0140750624 | SA26: 0.7134926619 | SB26: 0.1974930636 | SC26: 0.2277139902 | SD26: 0.9028274226 | SE26: 0.9330483492 | SF26: Jour | SG26: 0 | SH26: 1 | SI26: 0.92 | SK26: 1 | SL26: 1 | SM26: 9.674744934 | SO26: 0.03978919352 | SP26: 0.03978919352 | SQ26: 0.04682672472 | SR26: 0.04682672472 | SS26: 9.501661568 | ST26: 9.501661568 | SU26: 8 | SV26: 8.741528642 | SW26: 0.01407516451 | SX26: 0.05386435804 | SY26: 0.05386435804 | TC26: 9.501661568 | TD26: 0.01294915135 | TE26: 0.01407516451 | TF26: 0.01294915135 | TG26: 0.01294915135 | TH26: 0.01294915135 | TJ26: 0.92 | TK26: 0 | TM26: 0.2580873985 | TN26: 1 | TO26: 1 | TP26: 1 | TQ26: 1 | TR26: 0.92 | TT26: 0.7419126015 | TU26: 1 | TV26: 1 | TW26: 1 | TX26: 1 | TY26: 0.92 | UA26: 0.2580873985 | UB26: 0.7419126015 | UD26: 359.7020222 | UE26: -636.4507814 | UI26: =UI25 -> 2 | UJ26: =UJ25+1 -> 3 | UK26: 2079.095823 | UL26: 0.98 | UM26: 1 | UN26: 1 | UO26: 1 | UP26: 0.98 | UQ26: 9.439366392 | UR26: 9.632006523
L27: 18 | M27: 0.8445872706 | O27: -24 | P27: -24 | Q27: 1.4973376 | V27: 6 | W27: GR5-060 Bettel | AB27: 214.0257942 | AC27: 1 | AD27: FALSE | AE27: FALSE | AF27: FALSE | AG27: FALSE | AH27: FALSE | AI27: FALSE | AL27: 12908.04218 | AM27: 346.9386485 | AN27: -324.8941823 | AO27: 2843.678127 | AP27: 9.265837782 | AQ27: 0.01278746633 | AR27: 0.06665182436 | AS27: 0.06665182436 | AT27: 2014-06-07T17:35:58.718 | AU27: 2014-06-07T17:35:58.718 | AY27: 6 | BC27: FALSE | BD27: FALSE | BG27: 6 | BH27: FALSE | BQ27: 12908.04218 | BR27: 12908.04218 | BS27: 346.9386485 | BT27: -324.8941823 | BU27: 6447.188492 | BV27: 6244.549516 | BW27: 0.001 | BX27: 0.001 | BY27: 6460.852687 | BZ27: 8168.786178 | CB27: 2781.991482 | CC27: 39.99881041 | CD27: -124.4567787 | CE27: 1690.295842 | CF27: 1586.397735 | CG27: 0 | CH27: 0 | CI27: 1091.69564 | CJ27: 1257.280391 | CL27: 2843.678127 | CN27: 0.5578682483 | CO27: 0 | CP27: 0.4421317517 | CR27: 0.98 | CT27: 203.44892 | CU27: 327.9056987 | CV27: 265.0023487 | CW27: 1600 | CX27: 0 | CY27: 1 | CZ27: 2500 | DA27: 0 | DB27: 1 | DD27: 1 | DE27: 1 | DF27: 1 | DG27: 0.98 | DI27: 49,916574 | DJ27: 6,226680 | DQ27: 1 | DR27: 1 | DS27: 16 | DU27: 0.03236570789 | DV27: 0.03236570789 | DW27: 0.03236570789 | DX27: 0.03236570789 | DY27: 15.7993089 | DZ27: 15.7993089 | EA27: 8 | EB27: 15.48332272 | EC27: 0.007652529807 | ED27: 0.0400182377 | EE27: 0.0400182377 | EG27: 1 | EH27: 1 | EI27: 16 | EK27: 0.03243706682 | EL27: 0.03243706682 | EM27: 0.03626333173 | EN27: 0.03626333173 | EO27: 15.77600599 | EP27: 15.77600599 | EQ27: 8 | ER27: 15.46048587 | ES27: 0.007663833439 | ET27: 0.04010090026 | EU27: 0.04010090026 | EW27: 1 | EX27: 2014-06-07T16:00:00 | EY27: 2014-06-07T16:46:42.563 | EZ27: 2014-06-07T16:57:44.718 | FA27: 2014-06-07T16:57:44.718 | FB27: 0 | FC27: 0.007663833436 | FD27: 0.7029356502 | FE27: 0.1973596535 | FF27: 0.2276016922 | FG27: 0.9028343484 | FH27: 0.9330763871 | FI27: Jour | FJ27: 0 | FK27: 1 | FL27: 0.98 | FN27: 1 | FO27: 1 | FP27: 16 | FR27: 0.03243725411 | FS27: 0.03243725411 | FT27: 0.03626917083 | FU27: 0.03626917083 | FV27: 15.77597122 | FW27: 15.77597122 | FX27: 8 | FY27: 15.4604518 | FZ27: 0.007663850332 | GA27: 0.04010110444 | GB27: 0.04010110444 | GF27: 1 | GG27: 1 | GH27: 9.34376595 | GJ27: 0.05558391937 | GK27: 0.05558391937 | GL27: 0.05558391937 | GM27: 0.05558391937 | GN27: 9.147044046 | GO27: 9.147044046 | GP27: 8 | GQ27: 8.964103165 | GR27: 0.01321789659 | GS27: 0.06880181596 | GT27: 0.06880181596 | GV27: 1 | GW27: 1 | GX27: 9.34376595 | GZ27: 0.05579172359 | HA27: 0.05579172359 | HB27: 0.06240067188 | HC27: 0.06240067188 | HD27: 9.124390061 | HE27: 9.124390061 | HF27: 8 | HG27: 8.941902259 | HH27: 0.01325071391 | HI27: 0.06904243749 | HJ27: 0.06904243749 | HL27: 1 | HM27: 2014-06-07T16:00:00 | HN27: 2014-06-07T17:20:20.405 | HO27: 2014-06-07T17:39:25.267 | HP27: 2014-06-07T17:39:25.267 | HQ27: 0 | HR27: 0.01325071391 | HS27: 0.7290837472 | HT27: 0.1973596535 | HU27: 0.2276016922 | HV27: 0.9028343484 | HW27: 0.9330763871 | HX27: Jour | HY27: 0 | HZ27: 1 | IA27: 0.98 | IC27: 1 | ID27: 1 | IE27: 9.34376595 | IG27: 0.05579264523 | IH27: 0.05579264523 | II27: 0.06241800218 | IJ27: 0.06241800218 | IK27: 9.12433286 | IL27: 9.12433286 | IM27: 8 | IN27: 8.941846203 | IO27: 0.01325079698 | IP27: 0.0690434422 | IQ27: 0.0690434422 | IU27: 1 | IV27: 1 | IW27: 9.698978908 | IY27: 0.05353458652 | IZ27: 0.05353458652 | JA27: 0.05353458652 | JB27: 0.05353458652 | JC27: 9.501910777 | JD27: 9.501910777 | JE27: 8 | JF27: 9.311872562 | JG27: 0.01272424938 | JH27: 0.0662588359 | JI27: 0.0662588359 | JK27: 1 | JL27: 1 | JM27: 9.698978908 | JO27: 0.05372756757 | JP27: 0.05372756757 | JQ27: 0.06008969225 | JR27: 0.06008969225 | JS27: 9.479199301 | JT27: 9.479199301 | JU27: 8 | JV27: 9.289615315 | JW27: 0.01275473576 | JX27: 0.06648230332 | JY27: 0.06648230332 | KA27: 1 | KB27: 2014-06-07T16:00:00 | KC27: 2014-06-07T17:17:22.062 | KD27: 2014-06-07T17:35:44.071 | KE27: 2014-06-07T17:35:44.071 | KF27: 0 | KG27: 0.01275473576 | KH27: 0.7267716021 | KI27: 0.1973596535 | KJ27: 0.2276016922 | KK27: 0.9028343484 | KL27: 0.9330763871 | KM27: Jour | KN27: 0 | KO27: 1 | KP27: 0.98 | KR27: 1 | KS27: 1 | KT27: 9.698978908 | KV27: 0.05372839309 | KW27: 0.05372839309 | KX27: 0.06010576097 | KY27: 0.06010576097 | KZ27: 9.479143993 | LA27: 9.479143993 | LB27: 8 | LC27: 9.289561113 | LD27: 0.01275481018 | LE27: 0.06648320326 | LF27: 0.06648320326 | LJ27: 1 | LK27: 1 | LL27: 9.673015382 | LN27: 0.05367924598 | LO27: 0.05367924598 | LP27: 0.05367924598 | LQ27: 0.05367924598 | LR27: 9.475971717 | LS27: 9.475971717 | LT27: 8 | LU27: 9.286452282 | LV27: 0.01275908011 | LW27: 0.06643832609 | LX27: 0.06643832609 | LZ27: 1 | MA27: 1 | MB27: 9.673015382 | MD27: 0.05387325593 | ME27: 0.05387325593 | MF27: 0.06025279599 | MG27: 0.06025279599 | MH27: 9.453264298 | MI27: 9.453264298 | MJ27: 8 | MK27: 9.264199012 | ML27: 0.01278972834 | MM27: 0.06666298427 | MN27: 0.06666298427 | MP27: 1 | MQ27: 2014-06-07T16:00:00 | MR27: 2014-06-07T17:17:34.649 | MS27: 2014-06-07T17:35:59.682 | MT27: 2014-06-07T17:35:59.682 | MU27: 0 | MV27: 0.01278972834 | MW27: 0.7269347868 | MX27: 0.1973596535 | MY27: 0.2276016922 | MZ27: 0.9028343484 | NA27: 0.9330763871 | NB27: Jour | NC27: 0 | ND27: 1 | NE27: 0.98 | NG27: 1 | NH27: 1 | NI27: 9.673015382 | NK27: 0.05387408801 | NL27: 0.05387408801 | NM27: 0.06026895218 | NN27: 0.06026895218 | NO27: 9.453208856 | NP27: 9.453208856 | NQ27: 8 | NR27: 9.264144679 | NS27: 0.01278980335 | NT27: 0.06666389136 | NU27: 0.06666389136 | NY27: 1 | NZ27: 1 | OA27: 9.674878859 | OC27: 0.05366883732 | OD27: 0.05366883732 | OE27: 0.05366883732 | OF27: 0.05366883732 | OG27: 9.477833434 | OH27: 9.477833434 | OI27: 8 | OJ27: 9.288276765 | OK27: 0.01275657386 | OL27: 0.06642541118 | OM27: 0.06642541118 | OO27: 1 | OP27: 1 | OQ27: 9.674878859 | OS27: 0.05386277315 | OT27: 0.05386277315 | OU27: 0.06024106008 | OV27: 0.06024106008 | OW27: 9.455125723 | OX27: 9.455125723 | OY27: 8 | OZ27: 9.266023209 | PA27: 0.01278721043 | PB27: 0.06664998358 | PC27: 0.06664998358 | PE27: 1 | PF27: 2014-06-07T16:00:00 | PG27: 2014-06-07T17:17:33.744 | PH27: 2014-06-07T17:35:58.559 | PI27: 2014-06-07T17:35:58.559 | PJ27: 0 | PK27: 0.01278721043 | PL27: 0.726923045 | PM27: 0.1973596535 | PN27: 0.2276016922 | PO27: 0.9028343484 | PP27: 0.9330763871 | PQ27: Jour | PR27: 0 | PS27: 1 | PT27: 0.98 | PV27: 1 | PW27: 1 | PX27: 9.674878859 | PZ27: 0.05386360476 | QA27: 0.05386360476 | QB27: 0.06025720997 | QC27: 0.06025720997 | QD27: 9.455070291 | QE27: 9.455070291 | QF27: 8 | QG27: 9.265968885 | QH27: 0.0127872854 | QI27: 0.06665089016 | QJ27: 0.06665089016 | QN27: 1 | QO27: 1 | QP27: 9.674744934 | QR27: 0.05366958524 | QS27: 0.05366958524 | QT27: 0.05366958524 | QU27: 0.05366958524 | QV27: 9.477699635 | QW27: 9.477699635 | QX27: 8 | QY27: 9.288145643 | QZ27: 0.01275675395 | RA27: 0.06642633919 | RB27: 0.06642633919 | RD27: 1 | RE27: 1 | RF27: 9.674744934 | RH27: 0.05386352639 | RI27: 0.05386352639 | RJ27: 0.06024190337 | RK27: 0.06024190337 | RL27: 9.454991946 | RM27: 9.454991946 | RN27: 8 | RO27: 9.265892107 | RP27: 0.01278739135 | RQ27: 0.06665091775 | RR27: 0.06665091775 | RT27: 1 | RU27: 2014-06-07T16:00:00 | RV27: 2014-06-07T17:17:33.809 | RW27: 2014-06-07T17:35:58.639 | RX27: 2014-06-07T17:35:58.639 | RY27: 0 | RZ27: 0.01278739135 | SA27: 0.7269238887 | SB27: 0.1973596535 | SC27: 0.2276016922 | SD27: 0.9028343484 | SE27: 0.9330763871 | SF27: Jour | SG27: 0 | SH27: 1 | SI27: 0.98 | SK27: 1 | SL27: 1 | SM27: 9.674744934 | SO27: 0.05386435804 | SP27: 0.05386435804 | SQ27: 0.06025805371 | SR27: 0.06025805371 | SS27: 9.454936513 | ST27: 9.454936513 | SU27: 8 | SV27: 9.265837782 | SW27: 0.01278746633 | SX27: 0.06665182436 | SY27: 0.06665182436 | TC27: 9.454936513 | TD27: 0.012531717 | TE27: 0.01278746633 | TF27: 0.012531717 | TG27: 0.012531717 | TH27: 0.012531717 | TJ27: 0.98 | TK27: 0 | TM27: 0.4421317517 | TN27: 1 | TO27: 1 | TP27: 1 | TQ27: 1 | TR27: 0.98 | TT27: 0.5578682483 | TU27: 1 | TV27: 1 | TW27: 1 | TX27: 1 | TY27: 0.98 | UA27: 0.4421317517 | UB27: 0.5578682483 | UD27: 294.7810936 | UE27: -726.9276148 | UI27: =UI26+1 -> 3 | UJ27: 3 | UK27: 2979.203719 | UL27: 0.98 | UM27: 1 | UN27: 1 | UO27: 1 | UP27: 0.98 | UQ27: 9.439366392 | UR27: 9.632006523
C28: ▼ Perte de Vitesse due à l'Altitude ▼ | L28: 19 | M28: 0.8410202889 | O28: -22 | P28: -22 | Q28: 1.3829936 | V28: 7 | W28: GR5-059 Leemkaul | AB28: 206.5657546 | AC28: 1 | AD28: FALSE | AE28: FALSE | AF28: FALSE | AG28: FALSE | AH28: FALSE | AI28: FALSE | AL28: 14734.337 | AM28: 424.7185285 | AN28: -410.134102 | AO28: 2253.435608 | AP28: 9.227659144 | AQ28: 0.01017518624 | AR28: 0.0768270106 | AS28: 0.0768270106 | AT28: 2014-06-07T17:50:37.854 | AU28: 2014-06-07T17:50:37.854 | AY28: 7 | AZ28: 00:30 | BC28: FALSE | BD28: FALSE | BG28: 7 | BH28: FALSE | BQ28: 14734.337 | BR28: 14734.337 | BS28: 424.7185285 | BT28: -410.134102 | BU28: 7382.747684 | BV28: 7206.308017 | BW28: 0.001 | BX28: 0.001 | BY28: 7351.588318 | BZ28: 9460.463284 | CB28: 1826.294823 | CC28: 77.77988 | CD28: -85.23991969 | CE28: 935.5591921 | CF28: 961.7585009 | CG28: 0 | CH28: 0 | CI28: 890.735631 | CJ28: 1291.677107 | CL28: 2253.435608 | CN28: 0.4267965314 | CO28: 0 | CP28: 0.5732034686 | CR28: 0.98 | CT28: 206.5657546 | CU28: 281.14244 | CV28: 241.1248401 | CW28: 1600 | CX28: 0 | CY28: 1 | CZ28: 2500 | DA28: 0 | DB28: 1 | DD28: 1 | DE28: 1 | DF28: 1 | DG28: 0.98 | DI28: 49,927309 | DJ28: 6,220286 | DQ28: 1 | DR28: 1 | DS28: 16 | DU28: 0.0400182377 | DV28: 0.0400182377 | DW28: 0.0400182377 | DX28: 0.0400182377 | DY28: 15.75372761 | DZ28: 15.75372761 | EA28: 8 | EB28: 15.43865306 | EC28: 0.006081693136 | ED28: 0.04609993083 | EE28: 0.04609993083 | EG28: 1 | EH28: 1 | EI28: 16 | EK28: 0.04010090026 | EL28: 0.04010090026 | EM28: 0.04314174683 | EN28: 0.04314174683 | EO28: 15.73532251 | EP28: 15.73532251 | EQ28: 8 | ER28: 15.42061606 | ES28: 0.006088806696 | ET28: 0.04618970696 | EU28: 0.04618970696 | EW28: 1 | EX28: 2014-06-07T16:00:00 | EY28: 2014-06-07T16:57:44.718 | EZ28: 2014-06-07T17:06:30.791 | FA28: 2014-06-07T17:06:30.791 | FB28: 0 | FC28: 0.006088806695 | FD28: 0.7098119703 | FE28: 0.1973280556 | FF28: 0.2275830113 | FG28: 0.9028885515 | FH28: 0.9331435072 | FI28: Jour | FJ28: 0 | FK28: 1 | FL28: 0.98 | FN28: 1 | FO28: 1 | FP28: 16 | FR28: 0.04010110444 | FS28: 0.04010110444 | FT28: 0.04314550779 | FU28: 0.04314550779 | FV28: 15.73530042 | FW28: 15.73530042 | FX28: 8 | FY28: 15.42059441 | FZ28: 0.006088815244 | GA28: 0.04618991969 | GB28: 0.04618991969 | GF28: 1 | GG28: 1 | GH28: 9.34376595 | GJ28: 0.06880181596 | GK28: 0.06880181596 | GL28: 0.06880181596 | GM28: 0.06880181596 | GN28: 9.103396771 | GO28: 9.103396771 | GP28: 8 | GQ28: 8.921328835 | GR28: 0.01052457006 | GS28: 0.07932638602 | GT28: 0.07932638602 | GV28: 1 | GW28: 1 | GX28: 9.34376595 | GZ28: 0.06904243749 | HA28: 0.06904243749 | HB28: 0.07430472252 | HC28: 0.07430472252 | HD28: 9.085563073 | HE28: 9.085563073 | HF28: 8 | HG28: 8.903851811 | HH28: 0.01054522832 | HI28: 0.07958766582 | HJ28: 0.07958766582 | HL28: 1 | HM28: 2014-06-07T16:00:00 | HN28: 2014-06-07T17:39:25.267 | HO28: 2014-06-07T17:54:36.374 | HP28: 2014-06-07T17:54:36.374 | HQ28: 0 | HR28: 0.01054522832 | HS28: 0.7409817183 | HT28: 0.1973280556 | HU28: 0.2275830113 | HV28: 0.9028885515 | HW28: 0.9331435072 | HX28: Jour | HY28: 0 | HZ28: 1 | IA28: 0.98 | IC28: 1 | ID28: 1 | IE28: 9.34376595 | IG28: 0.0690434422 | IH28: 0.0690434422 | II28: 0.07431605636 | IJ28: 0.07431605636 | IK28: 9.085526544 | IL28: 9.085526544 | IM28: 8 | IN28: 8.903816013 | IO28: 0.01054527072 | IP28: 0.07958871292 | IQ28: 0.07958871292 | IU28: 1 | IV28: 1 | IW28: 9.698978908 | IY28: 0.0662588359 | IZ28: 0.0662588359 | JA28: 0.0662588359 | JB28: 0.0662588359 | JC28: 9.458095489 | JD28: 9.458095489 | JE28: 8 | JF28: 9.26893358 | JG28: 0.01012987627 | JH28: 0.07638871217 | JI28: 0.07638871217 | JK28: 1 | JL28: 1 | JM28: 9.698978908 | JO28: 0.06648230332 | JP28: 0.06648230332 | JQ28: 0.07154724146 | JR28: 0.07154724146 | JS28: 9.440210808 | JT28: 9.440210808 | JU28: 8 | JV28: 9.251406592 | JW28: 0.01014906754 | JX28: 0.07663137086 | JY28: 0.07663137086 | KA28: 1 | KB28: 2014-06-07T16:00:00 | KC28: 2014-06-07T17:35:44.071 | KD28: 2014-06-07T17:50:20.950 | KE28: 2014-06-07T17:50:20.950 | KF28: 0 | KG28: 0.01014906754 | KH28: 0.7382235038 | KI28: 0.1973280556 | KJ28: 0.2275830113 | KK28: 0.9028885515 | KL28: 0.9331435072 | KM28: Jour | KN28: 0 | KO28: 1 | KP28: 0.98 | KR28: 1 | KS28: 1 | KT28: 9.698978908 | KV28: 0.06648320326 | KW28: 0.06648320326 | KX28: 0.07155773703 | KY28: 0.07155773703 | KZ28: 9.440175501 | LA28: 9.440175501 | LB28: 8 | LC28: 9.251371991 | LD28: 0.0101491055 | LE28: 0.07663230876 | LF28: 0.07663230876 | LJ28: 1 | LK28: 1 | LL28: 9.673015382 | LN28: 0.06643832609 | LO28: 0.06643832609 | LP28: 0.06643832609 | LQ28: 0.06643832609 | LR28: 9.432168306 | LS28: 9.432168306 | LT28: 8 | LU28: 9.24352494 | LV28: 0.01015772132 | LW28: 0.07659604741 | LX28: 0.07659604741 | LZ28: 1 | MA28: 1 | MB28: 9.673015382 | MD28: 0.06666298427 | ME28: 0.06666298427 | MF28: 0.07174184493 | MG28: 0.07174184493 | MH28: 9.41428722 | MI28: 9.41428722 | MJ28: 8 | MK28: 9.226001475 | ML28: 0.01017701445 | MM28: 0.07683999872 | MN28: 0.07683999872 | MP28: 1 | MQ28: 2014-06-07T16:00:00 | MR28: 2014-06-07T17:35:59.682 | MS28: 2014-06-07T17:50:38.976 | MT28: 2014-06-07T17:50:38.976 | MU28: 0 | MV28: 0.01017701445 | MW28: 0.7384181582 | MX28: 0.1973280556 | MY28: 0.2275830113 | MZ28: 0.9028885515 | NA28: 0.9331435072 | NB28: Jour | NC28: 0 | ND28: 1 | NE28: 0.98 | NG28: 1 | NH28: 1 | NI28: 9.673015382 | NK28: 0.06666389136 | NL28: 0.06666389136 | NM28: 0.07175239859 | NN28: 0.07175239859 | NO28: 9.414251827 | NP28: 9.414251827 | NQ28: 8 | NR28: 9.22596679 | NS28: 0.01017705271 | NT28: 0.07684094407 | NU28: 0.07684094407 | NY28: 1 | NZ28: 1 | OA28: 9.674878859 | OC28: 0.06642541118 | OD28: 0.06642541118 | OE28: 0.06642541118 | OF28: 0.06642541118 | OG28: 9.434029169 | OH28: 9.434029169 | OI28: 8 | OJ28: 9.245348585 | OK28: 0.0101557177 | OL28: 0.07658112889 | OM28: 0.07658112889 | OO28: 1 | OP28: 1 | OQ28: 9.674878859 | OS28: 0.06664998358 | OT28: 0.06664998358 | OU28: 0.07172784243 | OV28: 0.07172784243 | OW28: 9.416147824 | OX28: 9.416147824 | OY28: 8 | OZ28: 9.227824867 | PA28: 0.0101750035 | PB28: 0.07682498708 | PC28: 0.07682498708 | PE28: 1 | PF28: 2014-06-07T16:00:00 | PG28: 2014-06-07T17:35:58.559 | PH28: 2014-06-07T17:50:37.679 | PI28: 2014-06-07T17:50:37.679 | PJ28: 0 | PK28: 0.0101750035 | PL28: 0.738404152 | PM28: 0.1973280556 | PN28: 0.2275830113 | PO28: 0.9028885515 | PP28: 0.9331435072 | PQ28: Jour | PR28: 0 | PS28: 1 | PT28: 0.98 | PV28: 1 | PW28: 1 | PX28: 9.674878859 | PZ28: 0.06665089016 | QA28: 0.06665089016 | QB28: 0.07173839191 | QC28: 0.07173839191 | QD28: 9.416112437 | QE28: 9.416112437 | QF28: 8 | QG28: 9.227790188 | QH28: 0.01017504174 | QI28: 0.07682593189 | QJ28: 0.07682593189 | QN28: 1 | QO28: 1 | QP28: 9.674744934 | QR28: 0.06642633919 | QS28: 0.06642633919 | QT28: 0.06642633919 | QU28: 0.06642633919 | QV28: 9.433895432 | QW28: 9.433895432 | QX28: 8 | QY28: 9.245217523 | QZ28: 0.01015586167 | RA28: 0.07658220086 | RB28: 0.07658220086 | RD28: 1 | RE28: 1 | RF28: 9.674744934 | RH28: 0.06665091775 | RI28: 0.06665091775 | RJ28: 0.07172884858 | RK28: 0.07172884858 | RL28: 9.416014105 | RM28: 9.416014105 | RN28: 8 | RO28: 9.227693823 | RP28: 0.010175148 | RQ28: 0.07682606574 | RR28: 0.07682606574 | RT28: 1 | RU28: 2014-06-07T16:00:00 | RV28: 2014-06-07T17:35:58.639 | RW28: 2014-06-07T17:50:37.772 | RX28: 2014-06-07T17:50:37.772 | RY28: 0 | RZ28: 0.010175148 | SA28: 0.7384051584 | SB28: 0.1973280556 | SC28: 0.2275830113 | SD28: 0.9028885515 | SE28: 0.9331435072 | SF28: Jour | SG28: 0 | SH28: 1 | SI28: 0.98 | SK28: 1 | SL28: 1 | SM28: 9.674744934 | SO28: 0.06665182436 | SP28: 0.06665182436 | SQ28: 0.07173939836 | SR28: 0.07173939836 | SS28: 9.415978718 | ST28: 9.415978718 | SU28: 8 | SV28: 9.227659144 | SW28: 0.01017518624 | SX28: 0.0768270106 | SY28: 0.0768270106 | TC28: 9.415978718 | TD28: 0.009971682512 | TE28: 0.01017518624 | TF28: 0.009971682512 | TG28: 0.009971682512 | TH28: 0.009971682512 | TJ28: 0.98 | TK28: 0 | TM28: 0.5732034686 | TN28: 1 | TO28: 1 | TP28: 1 | TQ28: 1 | TR28: 0.98 | TT28: 0.4267965314 | TU28: 1 | TV28: 1 | TW28: 1 | TX28: 1 | TY28: 0.98 | UA28: 0.5732034686 | UB28: 0.4267965314 | UD28: 555.6545186 | UE28: -817.8403659 | UI28: =UI27 -> 3 | UJ28: =UJ27+1 -> 4 | UK28: 2979.203719 | UL28: 0.92 | UM28: 1 | UN28: 1 | UO28: 1 | UP28: 0.92 | UQ28: 8.808882007 | UR28: 9.574871747
C29: Montée ► | D29: 0.11 | E29: par 1000 m au-delà de | G29: 1600 | L29: 20 | M29: 0.8377386658 | O29: -20 | P29: -20 | Q29: 1.278 | V29: 8 | W29: GR5-058 AJ Vianden | AB29: 282.575 | AC29: 1 | AD29: FALSE | AE29: FALSE | AF29: FALSE | AG29: FALSE | AH29: FALSE | AI29: FALSE | AL29: 16996.9459 | AM29: 578.6288997 | AN29: -488.0352277 | AO29: 3219.254878 | AP29: 9.187439239 | AQ29: 0.01459989192 | AR29: 0.09142690252 | AS29: 0.09142690252 | AT29: 2014-06-07T18:11:39.284 | AU29: 2014-06-07T18:11:39.284 | AY29: 8 | BC29: FALSE | BD29: FALSE | BG29: 8 | BH29: FALSE | BQ29: 16996.9459 | BR29: 16996.9459 | BS29: 578.6288997 | BT29: -488.0352277 | BU29: 8235.830856 | BV29: 8099.64576 | BW29: 0.001 | BX29: 0.001 | BY29: 8761.114049 | BZ29: 11786.38042 | CB29: 2262.608902 | CC29: 153.9103712 | CD29: -77.90112576 | CE29: 853.0831718 | CF29: 893.3377429 | CG29: 0 | CH29: 0 | CI29: 1409.52573 | CJ29: 2325.917135 | CL29: 3219.254878 | CN29: 0.2774982959 | CO29: 0 | CP29: 0.7225017041 | CR29: 0.98 | CT29: 205.59268 | CU29: 329.6561763 | CV29: 271.5753487 | CW29: 1600 | CX29: 0 | CY29: 1 | CZ29: 2500 | DA29: 0 | DB29: 1 | DD29: 1 | DE29: 1 | DF29: 1 | DG29: 0.98 | DI29: 49,935575 | DJ29: 6,200267 | DQ29: 1 | DR29: 1 | DS29: 16 | DU29: 0.04609993083 | DV29: 0.04609993083 | DW29: 0.04609993083 | DX29: 0.04609993083 | DY29: 15.71799733 | DZ29: 15.71799733 | EA29: 8 | EB29: 15.40363739 | EC29: 0.008708048402 | ED29: 0.05480797923 | EE29: 0.05480797923 | EG29: 1 | EH29: 1 | EI29: 16 | EK29: 0.04618970696 | EL29: 0.04618970696 | EM29: 0.05054373116 | EN29: 0.05054373116 | EO29: 15.69216335 | EP29: 15.69216335 | EQ29: 8 | ER29: 15.37832008 | ES29: 0.008722384447 | ET29: 0.0549120914 | EU29: 0.0549120914 | EW29: 1 | EX29: 2014-06-07T16:00:00 | EY29: 2014-06-07T17:06:30.791 | EZ29: 2014-06-07T17:19:04.405 | FA29: 2014-06-07T17:19:04.405 | FB29: 0 | FC29: 0.008722384446 | FD29: 0.7172175658 | FE29: 0.1973456319 | FF29: 0.2276105445 | FG29: 0.902972235 | FH29: 0.9332371476 | FI29: Jour | FJ29: 0 | FK29: 1 | FL29: 0.98 | FN29: 1 | FO29: 1 | FP29: 16 | FR29: 0.04618991969 | FS29: 0.04618991969 | FT29: 0.05055111191 | FU29: 0.05055111191 | FV29: 15.69212063 | FW29: 15.69212063 | FX29: 8 | FY29: 15.37827822 | FZ29: 0.008722408191 | GA29: 0.05491232788 | GB29: 0.05491232788 | GF29: 1 | GG29: 1 | GH29: 9.34376595 | GJ29: 0.07932638602 | GK29: 0.07932638602 | GL29: 0.07932638602 | GM29: 0.07932638602 | GN29: 9.069459468 | GO29: 9.069459468 | GP29: 8 | GQ29: 8.888070279 | GR29: 0.01509164709 | GS29: 0.0944180331 | GT29: 0.0944180331 | GV29: 1 | GW29: 1 | GX29: 9.34376595 | GZ29: 0.07958766582 | HA29: 0.07958766582 | HB29: 0.08713348936 | HC29: 0.08713348936 | HD29: 9.044742607 | HE29: 9.044742607 | HF29: 8 | HG29: 8.863847755 | HH29: 0.01513288852 | HI29: 0.09472055434 | HJ29: 0.09472055434 | HL29: 1 | HM29: 2014-06-07T16:00:00 | HN29: 2014-06-07T17:54:36.374 | HO29: 2014-06-07T18:16:23.856 | HP29: 2014-06-07T18:16:23.856 | HQ29: 0 | HR29: 0.01513288852 | HS29: 0.7538207768 | HT29: 0.1973456319 | HU29: 0.2276105445 | HV29: 0.902972235 | HW29: 0.9332371476 | HX29: Jour | HY29: 0 | HZ29: 1 | IA29: 0.98 | IC29: 1 | ID29: 1 | IE29: 9.34376595 | IG29: 0.07958871292 | IH29: 0.07958871292 | II29: 0.08715515718 | IJ29: 0.08715515718 | IK29: 9.044674543 | IL29: 9.044674543 | IM29: 8 | IN29: 8.863781053 | IO29: 0.0151330024 | IP29: 0.09472171532 | IQ29: 0.09472171532 | IU29: 1 | IV29: 1 | IW29: 9.698978908 | IY29: 0.07638871217 | IZ29: 0.07638871217 | JA29: 0.07638871217 | JB29: 0.07638871217 | JC29: 9.424002729 | JD29: 9.424002729 | JE29: 8 | JF29: 9.235522674 | JG29: 0.01452387966 | JH29: 0.09091259183 | JI29: 0.09091259183 | JK29: 1 | JL29: 1 | JM29: 9.698978908 | JO29: 0.07663137086 | JP29: 0.07663137086 | JQ29: 0.08389331069 | JR29: 0.08389331069 | JS29: 9.399187451 | JT29: 9.399187451 | JU29: 8 | JV29: 9.211203702 | JW29: 0.0145622249 | JX29: 0.09119359576 | JY29: 0.09119359576 | KA29: 1 | KB29: 2014-06-07T16:00:00 | KC29: 2014-06-07T17:50:20.950 | KD29: 2014-06-07T18:11:19.127 | KE29: 2014-06-07T18:11:19.127 | KF29: 0 | KG29: 0.0145622249 | KH29: 0.75057915 | KI29: 0.1973456319 | KJ29: 0.2276105445 | KK29: 0.902972235 | KL29: 0.9332371476 | KM29: Jour | KN29: 0 | KO29: 1 | KP29: 0.98 | KR29: 1 | KS29: 1 | KT29: 9.698978908 | KV29: 0.07663230876 | KW29: 0.07663230876 | KX29: 0.08391342121 | KY29: 0.08391342121 | KZ29: 9.399121451 | LA29: 9.399121451 | LB29: 8 | LC29: 9.211139022 | LD29: 0.01456232716 | LE29: 0.09119463592 | LF29: 0.09119463592 | LJ29: 1 | LK29: 1 | LL29: 9.673015382 | LN29: 0.07659604741 | LO29: 0.07659604741 | LP29: 0.07659604741 | LQ29: 0.07659604741 | LR29: 9.398086537 | LS29: 9.398086537 | LT29: 8 | LU29: 9.210124806 | LV29: 0.01456393076 | LW29: 0.09115997816 | LX29: 0.09115997816 | LZ29: 1 | MA29: 1 | MB29: 9.673015382 | MD29: 0.07683999872 | ME29: 0.07683999872 | MF29: 0.08412196409 | MG29: 0.08412196409 | MH29: 9.373278207 | MI29: 9.373278207 | MJ29: 8 | MK29: 9.185812643 | ML29: 0.01460247723 | MM29: 0.09144247594 | MN29: 0.09144247594 | MP29: 1 | MQ29: 2014-06-07T16:00:00 | MR29: 2014-06-07T17:50:38.976 | MS29: 2014-06-07T18:11:40.630 | MT29: 2014-06-07T18:11:40.630 | MU29: 0 | MV29: 0.01460247723 | MW29: 0.750807904 | MX29: 0.1973456319 | MY29: 0.2276105445 | MZ29: 0.902972235 | NA29: 0.9332371476 | NB29: Jour | NC29: 0 | ND29: 1 | NE29: 0.98 | NG29: 1 | NH29: 1 | NI29: 9.673015382 | NK29: 0.07684094407 | NL29: 0.07684094407 | NM29: 0.08414218268 | NN29: 0.08414218268 | NO29: 9.373212061 | NP29: 9.373212061 | NQ29: 8 | NR29: 9.18574782 | NS29: 0.01460258027 | NT29: 0.09144352435 | NU29: 0.09144352435 | NY29: 1 | NZ29: 1 | OA29: 9.674878859 | OC29: 0.07658112889 | OD29: 0.07658112889 | OE29: 0.07658112889 | OF29: 0.07658112889 | OG29: 9.399946609 | OH29: 9.399946609 | OI29: 8 | OJ29: 9.211947676 | OK29: 0.01456104883 | OL29: 0.09114217772 | OM29: 0.09114217772 | OO29: 1 | OP29: 1 | OQ29: 9.674878859 | OS29: 0.07682498708 | OT29: 0.07682498708 | OU29: 0.08410551149 | OV29: 0.08410551149 | OW29: 9.375137779 | OX29: 9.375137779 | OY29: 8 | OZ29: 9.187635024 | PA29: 0.0145995808 | PB29: 0.09142456788 | PC29: 0.09142456788 | PE29: 1 | PF29: 2014-06-07T16:00:00 | PG29: 2014-06-07T17:50:37.679 | PH29: 2014-06-07T18:11:39.083 | PI29: 2014-06-07T18:11:39.083 | PJ29: 0 | PK29: 0.01459958081 | PL29: 0.7507914441 | PM29: 0.1973456319 | PN29: 0.2276105445 | PO29: 0.902972235 | PP29: 0.9332371476 | PQ29: Jour | PR29: 0 | PS29: 1 | PT29: 0.98 | PV29: 1 | PW29: 1 | PX29: 9.674878859 | PZ29: 0.07682593189 | QA29: 0.07682593189 | QB29: 0.0841257223 | QC29: 0.0841257223 | QD29: 9.375071644 | QE29: 9.375071644 | QF29: 8 | QG29: 9.187570211 | QH29: 0.0145996838 | QI29: 0.09142561569 | QJ29: 0.09142561569 | QN29: 1 | QO29: 1 | QP29: 9.674744934 | QR29: 0.07658220086 | QS29: 0.07658220086 | QT29: 0.07658220086 | QU29: 0.07658220086 | QV29: 9.399812928 | QW29: 9.399812928 | QX29: 8 | QY29: 9.21181667 | QZ29: 0.01456125591 | RA29: 0.09114345677 | RB29: 0.09114345677 | RD29: 1 | RE29: 1 | RF29: 9.674744934 | RH29: 0.07682606574 | RI29: 0.07682606574 | RJ29: 0.0841066937 | RK29: 0.0841066937 | RL29: 9.375004135 | RM29: 9.375004135 | RN29: 8 | RO29: 9.187504052 | RP29: 0.01459978893 | RQ29: 0.09142585467 | RR29: 0.09142585467 | RT29: 1 | RU29: 2014-06-07T16:00:00 | RV29: 2014-06-07T17:50:37.772 | RW29: 2014-06-07T18:11:39.194 | RX29: 2014-06-07T18:11:39.194 | RY29: 0 | RZ29: 0.01459978893 | SA29: 0.7507926269 | SB29: 0.1973456319 | SC29: 0.2276105445 | SD29: 0.902972235 | SE29: 0.9332371476 | SF29: Jour | SG29: 0 | SH29: 1 | SI29: 0.98 | SK29: 1 | SL29: 1 | SM29: 9.674744934 | SO29: 0.0768270106 | SP29: 0.0768270106 | SQ29: 0.08412690506 | SR29: 0.08412690506 | SS29: 9.374937999 | ST29: 9.374937999 | SU29: 8 | SV29: 9.187439239 | SW29: 0.01459989192 | SX29: 0.09142690252 | SY29: 0.09142690252 | TC29: 9.374937999 | TD29: 0.01430789408 | TE29: 0.01459989192 | TF29: 0.01430789408 | TG29: 0.01430789408 | TH29: 0.01430789408 | TJ29: 0.98 | TK29: 0 | TM29: 0.7225017041 | TN29: 1 | TO29: 1 | TP29: 1 | TQ29: 1 | TR29: 0.98 | TT29: 0.2774982959 | TU29: 1 | TV29: 1 | TW29: 1 | TX29: 1 | TY29: 0.98 | UA29: 0.7225017041 | UB29: 0.2774982959 | UD29: 607.9503703 | UE29: -801.1660375 | UI29: =UI28+1 -> 4 | UJ29: 4 | UK29: 7302.335111 | UL29: 0.92 | UM29: 1 | UN29: 1 | UO29: 1 | UP29: 0.92 | UQ29: 8.808882007 | UR29: 9.574871747
C30: Descente ► | D30: 0.05 | E30: par 1000 m au-delà de | G30: 2500 | L30: 21 | M30: 0.8347195726 | O30: -18 | P30: -18 | Q30: 1.1838736 | V30: 9 | W30: GR5-057 Mont Saint Nicolas | AB30: 492.84128 | AC30: 1 | AD30: FALSE | AE30: FALSE | AF30: FALSE | AG30: FALSE | AH30: FALSE | AI30: FALSE | AL30: 22934.06957 | AM30: 1026.01373 | AN30: -725.153778 | AO30: 9224.941126 | AP30: 8.537830839 | AQ30: 0.04501993002 | AR30: 0.1364468325 | AS30: 0.1364468325 | AT30: 2014-06-07T19:16:29.006 | AU30: 2014-06-07T19:16:29.006 | AY30: 9 | AZ30: 00:20 | BC30: FALSE | BD30: FALSE | BG30: 9 | BH30: FALSE | BQ30: 22934.06957 | BR30: 22934.06957 | BS30: 1026.01373 | BT30: -725.153778 | BU30: 10603.76151 | BV30: 10836.41588 | BW30: 0.001 | BX30: 0.001 | BY30: 12330.30705 | BZ30: 18274.55143 | CB30: 5937.123661 | CC30: 447.3848303 | CD30: -237.1185503 | CE30: 2367.930655 | CF30: 2736.770117 | CG30: 0 | CH30: 0 | CI30: 3569.193006 | CJ30: 6488.171009 | CL30: 9224.941126 | CN30: 0.2966707407 | CO30: 0 | CP30: 0.7033292593 | CR30: 0.92 | CT30: 264.0692725 | CU30: 500.0386357 | CV30: 391.303777 | CW30: 1600 | CX30: 0 | CY30: 1 | CZ30: 2500 | DA30: 0 | DB30: 1 | DD30: 1 | DE30: 1 | DF30: 1 | DG30: 0.92 | DI30: 49,946809 | DJ30: 6,166292 | DQ30: 1 | DR30: 1 | DS30: 16 | DU30: 0.05480797923 | DV30: 0.05480797923 | DW30: 0.05480797923 | DX30: 0.05480797923 | DY30: 15.66758826 | DZ30: 15.66758826 | EA30: 8 | EB30: 14.4141812 | EC30: 0.02666627688 | ED30: 0.08147425611 | EE30: 0.08147425611 | EG30: 1 | EH30: 1 | EI30: 16 | EK30: 0.0549120914 | EL30: 0.0549120914 | EM30: 0.06824522984 | EN30: 0.06824522984 | EO30: 15.59150613 | EP30: 15.59150613 | EQ30: 8 | ER30: 14.34418564 | ES30: 0.02679640076 | ET30: 0.08170849217 | EU30: 0.08170849217 | EW30: 1 | EX30: 2014-06-07T16:00:00 | EY30: 2014-06-07T17:19:04.405 | EZ30: 2014-06-07T17:57:39.614 | FA30: 2014-06-07T17:57:39.614 | FB30: 0 | FC30: 0.02679640077 | FD30: 0.7349769584 | FE30: 0.1973882834 | FF30: 0.2276667431 | FG30: 0.9031047864 | FH30: 0.9333832461 | FI30: Jour | FJ30: 0 | FK30: 1 | FL30: 0.92 | FN30: 1 | FO30: 1 | FP30: 16 | FR30: 0.05491232788 | FS30: 0.05491232788 | FT30: 0.06831052826 | FU30: 0.06831052826 | FV30: 15.59114138 | FW30: 15.59114138 | FX30: 8 | FY30: 14.34385007 | FZ30: 0.02679702765 | GA30: 0.08170935553 | GB30: 0.08170935553 | GF30: 1 | GG30: 1 | GH30: 9.34376595 | GJ30: 0.0944180331 | GK30: 0.0944180331 | GL30: 0.0944180331 | GM30: 0.0944180331 | GN30: 9.022025806 | GO30: 9.022025806 | GP30: 8 | GQ30: 8.300263742 | GR30: 0.04630847391 | GS30: 0.140726507 | GT30: 0.140726507 | GV30: 1 | GW30: 1 | GX30: 9.34376595 | GZ30: 0.09472055434 | HA30: 0.09472055434 | HB30: 0.1178747913 | HC30: 0.1178747913 | HD30: 8.951085949 | HE30: 8.951085949 | HF30: 8 | HG30: 8.234999073 | HH30: 0.0466754815 | HI30: 0.1413960358 | HJ30: 0.1413960358 | HL30: 1 | HM30: 2014-06-07T16:00:00 | HN30: 2014-06-07T18:16:23.856 | HO30: 2014-06-07T19:23:36.617 | HP30: 2014-06-07T19:23:36.617 | HQ30: 0 | HR30: 0.0466754815 | HS30: 0.7847249618 | HT30: 0.1973882834 | HU30: 0.2276667431 | HV30: 0.9031047864 | HW30: 0.9333832461 | HX30: Jour | HY30: 0 | HZ30: 1 | IA30: 0.92 | IC30: 1 | ID30: 1 | IE30: 9.34376595 | IG30: 0.09472171532 | IH30: 0.09472171532 | II30: 0.1180594561 | IJ30: 0.1180594561 | IK30: 8.950540577 | IL30: 8.950540577 | IM30: 8 | IN30: 8.234497331 | IO30: 0.04667832552 | IP30: 0.1414000408 | IQ30: 0.1414000408 | IU30: 1 | IV30: 1 | IW30: 9.698978908 | IY30: 0.09091259183 | IZ30: 0.09091259183 | JA30: 0.09091259183 | JB30: 0.09091259183 | JC30: 9.37631185 | JD30: 9.37631185 | JE30: 8 | JF30: 8.626206902 | JG30: 0.04455869785 | JH30: 0.1354712897 | JI30: 0.1354712897 | JK30: 1 | JL30: 1 | JM30: 9.698978908 | JO30: 0.09119359576 | JP30: 0.09119359576 | JQ30: 0.1134729447 | JR30: 0.1134729447 | JS30: 9.304927113 | JT30: 9.304927113 | JU30: 8 | JV30: 8.560532944 | JW30: 0.04490053942 | JX30: 0.1360941352 | JY30: 0.1360941352 | KA30: 1 | KB30: 2014-06-07T16:00:00 | KC30: 2014-06-07T18:11:19.127 | KD30: 2014-06-07T19:15:58.533 | KE30: 2014-06-07T19:15:58.533 | KF30: 0 | KG30: 0.04490053942 | KH30: 0.7803105321 | KI30: 0.1973882834 | KJ30: 0.2276667431 | KK30: 0.9031047864 | KL30: 0.9333832461 | KM30: Jour | KN30: 0 | KO30: 1 | KP30: 0.92 | KR30: 1 | KS30: 1 | KT30: 9.698978908 | KV30: 0.09119463592 | KW30: 0.09119463592 | KX30: 0.1136449056 | KY30: 0.1136449056 | KZ30: 9.304395282 | LA30: 9.304395282 | LB30: 8 | LC30: 8.560043659 | LD30: 0.0449031059 | LE30: 0.1360977418 | LF30: 0.1360977418 | LJ30: 1 | LK30: 1 | LL30: 9.673015382 | LN30: 0.09115997816 | LO30: 0.09115997816 | LP30: 0.09115997816 | LQ30: 0.09115997816 | LR30: 9.350413848 | LS30: 9.350413848 | LT30: 8 | LU30: 8.602380741 | LV30: 0.04468211284 | LW30: 0.135842091 | LX30: 0.135842091 | LZ30: 1 | MA30: 1 | MB30: 9.673015382 | MD30: 0.09144247594 | ME30: 0.09144247594 | MF30: 0.1137835324 | MG30: 0.1137835324 | MH30: 9.279060573 | MI30: 9.279060573 | MJ30: 8 | MK30: 8.536735727 | ML30: 0.04502570528 | MM30: 0.1364681812 | MN30: 0.1364681812 | MP30: 1 | MQ30: 2014-06-07T16:00:00 | MR30: 2014-06-07T18:11:40.630 | MS30: 2014-06-07T19:16:30.851 | MT30: 2014-06-07T19:16:30.851 | MU30: 0 | MV30: 0.04502570528 | MW30: 0.7806219952 | MX30: 0.1973882834 | MY30: 0.2276667431 | MZ30: 0.9031047864 | NA30: 0.9333832461 | NB30: Jour | NC30: 0 | ND30: 1 | NE30: 0.92 | NG30: 1 | NH30: 1 | NI30: 9.673015382 | NK30: 0.09144352435 | NL30: 0.09144352435 | NM30: 0.113956377 | NN30: 0.113956377 | NO30: 9.278527771 | NP30: 9.278527771 | NQ30: 8 | NR30: 8.53624555 | NS30: 0.0450282908 | NT30: 0.1364718151 | NU30: 0.1364718151 | NY30: 1 | NZ30: 1 | OA30: 9.674878859 | OC30: 0.09114217772 | OD30: 0.09114217772 | OE30: 0.09114217772 | OF30: 0.09114217772 | OG30: 9.352272612 | OH30: 9.352272612 | OI30: 8 | OJ30: 8.604090803 | OK30: 0.04467323227 | OL30: 0.13581541 | OM30: 0.13581541 | OO30: 1 | OP30: 1 | OQ30: 9.674878859 | OS30: 0.09142456788 | OT30: 0.09142456788 | OU30: 0.113761184 | OV30: 0.113761184 | OW30: 9.280917073 | OX30: 9.280917073 | OY30: 8 | OZ30: 8.538443707 | PA30: 0.0450166986 | PB30: 0.1364412665 | PC30: 0.1364412665 | PE30: 1 | PF30: 2014-06-07T16:00:00 | PG30: 2014-06-07T18:11:39.083 | PH30: 2014-06-07T19:16:28.525 | PI30: 2014-06-07T19:16:28.525 | PJ30: 0 | PK30: 0.0450166986 | PL30: 0.7805995838 | PM30: 0.1973882834 | PN30: 0.2276667431 | PO30: 0.9031047864 | PP30: 0.9333832461 | PQ30: Jour | PR30: 0 | PS30: 1 | PT30: 0.92 | PV30: 1 | PW30: 1 | PX30: 9.674878859 | PZ30: 0.09142561569 | QA30: 0.09142561569 | QB30: 0.113933965 | QC30: 0.113933965 | QD30: 9.280384341 | QE30: 9.280384341 | QF30: 8 | QG30: 8.537953594 | QH30: 0.04501928275 | QI30: 0.1364448984 | QJ30: 0.1364448984 | QN30: 1 | QO30: 1 | QP30: 9.674744934 | QR30: 0.09114345677 | QS30: 0.09114345677 | QT30: 0.09114345677 | QU30: 0.09114345677 | QV30: 9.352139026 | QW30: 9.352139026 | QX30: 8 | QY30: 8.603967904 | QZ30: 0.04467387038 | RA30: 0.1358173272 | RB30: 0.1358173272 | RD30: 1 | RE30: 1 | RF30: 9.674744934 | RH30: 0.09142585467 | RI30: 0.09142585467 | RJ30: 0.1137627899 | RK30: 0.1137627899 | RL30: 9.280783649 | RM30: 9.280783649 | RN30: 8 | RO30: 8.538320958 | RP30: 0.04501734578 | RQ30: 0.1364432004 | RR30: 0.1364432004 | RT30: 1 | RU30: 2014-06-07T16:00:00 | RV30: 2014-06-07T18:11:39.194 | RW30: 2014-06-07T19:16:28.693 | RX30: 2014-06-07T19:16:28.693 | RY30: 0 | RZ30: 0.04501734578 | SA30: 0.7806011942 | SB30: 0.1973882834 | SC30: 0.2276667431 | SD30: 0.9031047864 | SE30: 0.9333832461 | SF30: Jour | SG30: 0 | SH30: 1 | SI30: 0.92 | SK30: 1 | SL30: 1 | SM30: 9.674744934 | SO30: 0.09142690252 | SP30: 0.09142690252 | SQ30: 0.1139355754 | SR30: 0.1139355754 | SS30: 9.280250912 | ST30: 9.280250912 | SU30: 8 | SV30: 8.537830839 | SW30: 0.04501993002 | SX30: 0.1364468325 | SY30: 0.1364468325 | TC30: 9.280250912 | TD30: 0.04141833562 | TE30: 0.04501993002 | TF30: 0.04141833562 | TG30: 0.04141833562 | TH30: 0.04141833562 | TJ30: 0.92 | TK30: 0 | TM30: 0.7033292593 | TN30: 1 | TO30: 1 | TP30: 1 | TQ30: 1 | TR30: 0.92 | TT30: 0.2966707407 | TU30: 1 | TV30: 1 | TW30: 1 | TX30: 1 | TY30: 0.92 | UA30: 0.7033292593 | UB30: 0.2966707407 | UD30: 588.716912 | UE30: -739.7325988 | UI30: =UI29 -> 4 | UJ30: =UJ29+1 -> 5 | UK30: 7302.335111 | UL30: 0.92 | UM30: 1 | UN30: 1 | UO30: 1 | UP30: 0.92 | UQ30: 8.741528642 | UR30: 9.501661568
